Workbook

Sheet Main Menu
B2: NCHRP Project 24-46 GAM Planner | V2: 9/21/18
B3: Main Menu
C5: MODEL PARAMETERS | N5: SUMMARY STATISTICS
D7: ASSET MODEL ADMINISTRATION | O7: ASSET DATA
D9: Opens worksheet to enter or edit information for an asset model. You will be asked to name the model if creating a new model, or to select an existing model if editing or deleting a model. | P9: Number of Asset Models | U9: =COUNTA(Inventory!C1036:C1085) -> 7
P10: Number of Assets | U10: =COUNTA(Inventory!C9:D1008) -> 0
P11: Asset Reconstruction Value | T11: =SUM('Year 01'!AU10:AU1009) -> 0
P13: Level of Risk | R13: Segments | T13: Asset Reconstruction Value
D14: Note: To use the tool, it is necessary to enable macros. Also, the Excel Solver must be installed. The Excel Solver is a plug-in provided with Excel. | P14: A | R14: =COUNTIF(Inventory!AW$9:AX$1008,"="&$P14) -> 0 | T14: =SUMIF(Inventory!AW$9:AX$1008,"="&$P14,'Year 01'!AU$10:AU$1009) -> 0
P15: B | R15: =COUNTIF(Inventory!AW$9:AX$1008,"="&$P15) -> 0 | T15: =SUMIF(Inventory!AW$9:AX$1008,"="&$P15,'Year 01'!AU$10:AU$1009) -> 0
P16: C | R16: =COUNTIF(Inventory!AW$9:AX$1008,"="&$P16) -> 0 | T16: =SUMIF(Inventory!AW$9:AX$1008,"="&$P16,'Year 01'!AU$10:AU$1009) -> 0
P17: D | R17: =COUNTIF(Inventory!AW$9:AX$1008,"="&$P17) -> 0 | T17: =SUMIF(Inventory!AW$9:AX$1008,"="&$P17,'Year 01'!AU$10:AU$1009) -> 0
P18: F | R18: =COUNTIF(Inventory!AW$9:AX$1008,"="&$P18) -> 0 | T18: =SUMIF(Inventory!AW$9:AX$1008,"="&$P18,'Year 01'!AU$10:AU$1009) -> 0
C19: ASSET INVENTORY
D21: Opens the Inventory worksheet to enter or edit information for the inventory of assets.
C25: PROGRAM SIMULATION
O26: ANALYSIS RESULTS
C27: Opens the Summary Results worksheet to enter budgets by year and view summary results.
P28: Initial Needs | T28: ='Summary Results'!G9 -> 0
P29: Spent Over 10 Years | T29: ='Summary Results'!I19 -> 0
C30: Opens the Detailed Results worksheet to show details on a selected asset. | P30: Remaining Backlog | T30: ='Summary Results'!G18-'Summary Results'!I18 -> 0

Sheet Inventory
B2: NCHRP Project 24-46 GAM Planner
B3: Asset Inventory
C5: INVENTORY
O7: i | P7: Approx. | Q7: i | R7: Fixed | S7: i | T7: Total | U7: i | V7: Cost | W7: i | X7: Effective | AA7: i | AB7: O&M | AG7: i | AH7: Accel. | AI7: i | AJ7: Maint | AK7: i | AL7: S+M | AM7: i | AN7: Initial | AO7: i | AP7: Initial Treatment | AQ7: i | AR7: GAM Safety | AS7: i | AT7: GAM Mobility | AU7: i | AV7: Total GAM | AW7: i | AX7: Level of
C8: i | D8: Asset ID | E8: i | F8: Type | I8: i | J8: Route | K8: i | L8: Milepost | M8: i | N8: Description | P8: Const. Year | R8: Seg. Length | T8: Seg. Length | V8: Scale Factor | X8: Quantity | AB8: Condition | AC8: i | AD8: Safety Consequence | AE8: i | AF8: Mobility Consequence | AH8: Det. | AJ8: Risk | AL8: Risk | AN8: Recommendation | AP8: Cost | AR8: Risk Score | AT8: Risk Score | AV8: Risk Level | AX8: Risk Grade
Q9: 0.1 | S9: 0.1 | U9: 1 | W9: =IF(OR(S9="",OR(Q9="",Q9=0)),"",S9/Q9*IF(OR(U9=0,U9=""),1,U9)) -> 1 | AI9: =IF(AA9="","",(VALUE(LEFT(AA9,1)))) ->  | AK9: =IF(OR(AC9="",AE9=""),"",ROUND((VALUE(LEFT(AC9,1)+VALUE(LEFT(AE9,1)))/2),0)) ->  | AM9: =IF(OR(AA9="",AC9="",AE9=""),"",'Year 01'!Y10) ->  | AP9: =IF(OR(AA9="",AC9="",AE9=""),"",'Year 01'!AG10) ->  | AQ9: =IF(OR(AI9="",AC9=""),"",AI9*VALUE(LEFT(AC9,1))) ->  | AS9: =IF(OR(AI9="",AE9=""),"",AI9*VALUE(LEFT(AE9,1))) ->  | AU9: =IF(OR(AQ9="",AS9=""),"",AQ9+AS9) ->  | AW9: =IF(OR(AQ9="",AE9=""),"",VLOOKUP(AU9,$L$1012:$M$1016,2)) -> 
Q10: 0.1 | S10: 0.1 | U10: 1 | W10: =IF(OR(S10="",OR(Q10="",Q10=0)),"",S10/Q10*IF(OR(U10=0,U10=""),1,U10)) -> 1 | AM10: =IF(OR(AA10="",AC10="",AE10=""),"",'Year 01'!Y11) ->  | AP10: =IF(OR(AA10="",AC10="",AE10=""),"",'Year 01'!AG11) ->  | AU10: =IF(OR(AQ10="",AS10=""),"",AQ10+AS10) ->  | AW10: =IF(OR(AQ10="",AE10=""),"",VLOOKUP(AU10,$L$1012:$M$1016,2)) -> 
Q11: 0.1 | S11: 0.1 | U11: 1 | W11: =IF(OR(S11="",OR(Q11="",Q11=0)),"",S11/Q11*IF(OR(U11=0,U11=""),1,U11)) -> 1 | AI11: =IF(AA11="","",(VALUE(LEFT(AA11,1)))) ->  | AK11: =IF(OR(AC11="",AE11=""),"",ROUND((VALUE(LEFT(AC11,1)+VALUE(LEFT(AE11,1)))/2),0)) ->  | AM11: =IF(OR(AA11="",AC11="",AE11=""),"",'Year 01'!Y12) ->  | AP11: =IF(OR(AA11="",AC11="",AE11=""),"",'Year 01'!AG12) ->  | AQ11: =IF(OR(AI11="",AC11=""),"",AI11*VALUE(LEFT(AC11,1))) ->  | AS11: =IF(OR(AI11="",AE11=""),"",AI11*VALUE(LEFT(AE11,1))) ->  | AU11: =IF(OR(AQ11="",AS11=""),"",AQ11+AS11) ->  | AW11: =IF(OR(AQ11="",AE11=""),"",VLOOKUP(AU11,$L$1012:$M$1016,2)) -> 
Q12: 0.1 | S12: 0.1 | U12: 1 | W12: =IF(OR(S12="",OR(Q12="",Q12=0)),"",S12/Q12*IF(OR(U12=0,U12=""),1,U12)) -> 1 | AI12: =IF(AA12="","",(VALUE(LEFT(AA12,1)))) ->  | AK12: =IF(OR(AC12="",AE12=""),"",ROUND((VALUE(LEFT(AC12,1)+VALUE(LEFT(AE12,1)))/2),0)) ->  | AM12: =IF(OR(AA12="",AC12="",AE12=""),"",'Year 01'!Y13) ->  | AP12: =IF(OR(AA12="",AC12="",AE12=""),"",'Year 01'!AG13) ->  | AQ12: =IF(OR(AI12="",AC12=""),"",AI12*VALUE(LEFT(AC12,1))) ->  | AS12: =IF(OR(AI12="",AE12=""),"",AI12*VALUE(LEFT(AE12,1))) ->  | AU12: =IF(OR(AQ12="",AS12=""),"",AQ12+AS12) ->  | AW12: =IF(OR(AQ12="",AE12=""),"",VLOOKUP(AU12,$L$1012:$M$1016,2)) -> 
Q13: 0.1 | S13: 0.1 | U13: 1 | W13: =IF(OR(S13="",OR(Q13="",Q13=0)),"",S13/Q13*IF(OR(U13=0,U13=""),1,U13)) -> 1 | AI13: =IF(AA13="","",(VALUE(LEFT(AA13,1)))) ->  | AK13: =IF(OR(AC13="",AE13=""),"",ROUND((VALUE(LEFT(AC13,1)+VALUE(LEFT(AE13,1)))/2),0)) ->  | AM13: =IF(OR(AA13="",AC13="",AE13=""),"",'Year 01'!Y14) ->  | AP13: =IF(OR(AA13="",AC13="",AE13=""),"",'Year 01'!AG14) ->  | AQ13: =IF(OR(AI13="",AC13=""),"",AI13*VALUE(LEFT(AC13,1))) ->  | AS13: =IF(OR(AI13="",AE13=""),"",AI13*VALUE(LEFT(AE13,1))) ->  | AU13: =IF(OR(AQ13="",AS13=""),"",AQ13+AS13) ->  | AW13: =IF(OR(AQ13="",AE13=""),"",VLOOKUP(AU13,$L$1012:$M$1016,2)) -> 
Q14: 0.1 | S14: 0.1 | U14: 1 | W14: 1 | AM14: =IF(OR(AA14="",AC14="",AE14=""),"",'Year 01'!Y15) ->  | AP14: =IF(OR(AA14="",AC14="",AE14=""),"",'Year 01'!AG15) -> 
Q15: 0.1 | S15: 0.1 | U15: 1 | W15: 1 | AM15: =IF(OR(AA15="",AC15="",AE15=""),"",'Year 01'!Y16) ->  | AP15: =IF(OR(AA15="",AC15="",AE15=""),"",'Year 01'!AG16) -> 
Q16: 0.1 | S16: 0.1 | U16: 1 | W16: 1 | AM16: =IF(OR(AA16="",AC16="",AE16=""),"",'Year 01'!Y17) ->  | AP16: =IF(OR(AA16="",AC16="",AE16=""),"",'Year 01'!AG17) -> 
Q17: 0.1 | S17: 0.1 | U17: 1 | W17: 1 | AM17: =IF(OR(AA17="",AC17="",AE17=""),"",'Year 01'!Y18) ->  | AP17: =IF(OR(AA17="",AC17="",AE17=""),"",'Year 01'!AG18) -> 
Q18: 0.1 | S18: 0.1 | U18: 1 | W18: 1 | AM18: =IF(OR(AA18="",AC18="",AE18=""),"",'Year 01'!Y19) ->  | AP18: =IF(OR(AA18="",AC18="",AE18=""),"",'Year 01'!AG19) -> 
AM19: =IF(OR(AA19="",AC19="",AE19=""),"",'Year 01'!Y20) ->  | AP19: =IF(OR(AA19="",AC19="",AE19=""),"",'Year 01'!AG20) -> 
AM20: =IF(OR(AA20="",AC20="",AE20=""),"",'Year 01'!Y21) ->  | AP20: =IF(OR(AA20="",AC20="",AE20=""),"",'Year 01'!AG21) -> 
AM21: =IF(OR(AA21="",AC21="",AE21=""),"",'Year 01'!Y22) ->  | AP21: =IF(OR(AA21="",AC21="",AE21=""),"",'Year 01'!AG22) -> 
AM22: =IF(OR(AA22="",AC22="",AE22=""),"",'Year 01'!Y23) ->  | AP22: =IF(OR(AA22="",AC22="",AE22=""),"",'Year 01'!AG23) -> 
AM23: =IF(OR(AA23="",AC23="",AE23=""),"",'Year 01'!Y24) ->  | AP23: =IF(OR(AA23="",AC23="",AE23=""),"",'Year 01'!AG24) -> 
AM24: =IF(OR(AA24="",AC24="",AE24=""),"",'Year 01'!Y25) ->  | AP24: =IF(OR(AA24="",AC24="",AE24=""),"",'Year 01'!AG25) -> 
AM25: =IF(OR(AA25="",AC25="",AE25=""),"",'Year 01'!Y26) ->  | AP25: =IF(OR(AA25="",AC25="",AE25=""),"",'Year 01'!AG26) -> 
AM26: =IF(OR(AA26="",AC26="",AE26=""),"",'Year 01'!Y27) ->  | AP26: =IF(OR(AA26="",AC26="",AE26=""),"",'Year 01'!AG27) -> 
AM27: =IF(OR(AA27="",AC27="",AE27=""),"",'Year 01'!Y28) ->  | AP27: =IF(OR(AA27="",AC27="",AE27=""),"",'Year 01'!AG28) -> 
AM28: =IF(OR(AA28="",AC28="",AE28=""),"",'Year 01'!Y29) ->  | AP28: =IF(OR(AA28="",AC28="",AE28=""),"",'Year 01'!AG29) -> 
AM29: =IF(OR(AA29="",AC29="",AE29=""),"",'Year 01'!Y30) ->  | AP29: =IF(OR(AA29="",AC29="",AE29=""),"",'Year 01'!AG30) -> 
AM30: =IF(OR(AA30="",AC30="",AE30=""),"",'Year 01'!Y31) ->  | AP30: =IF(OR(AA30="",AC30="",AE30=""),"",'Year 01'!AG31) -> 
AM31: =IF(OR(AA31="",AC31="",AE31=""),"",'Year 01'!Y32) ->  | AP31: =IF(OR(AA31="",AC31="",AE31=""),"",'Year 01'!AG32) -> 
AM32: =IF(OR(AA32="",AC32="",AE32=""),"",'Year 01'!Y33) ->  | AP32: =IF(OR(AA32="",AC32="",AE32=""),"",'Year 01'!AG33) -> 
AM33: =IF(OR(AA33="",AC33="",AE33=""),"",'Year 01'!Y34) ->  | AP33: =IF(OR(AA33="",AC33="",AE33=""),"",'Year 01'!AG34) -> 
AM34: =IF(OR(AA34="",AC34="",AE34=""),"",'Year 01'!Y35) ->  | AP34: =IF(OR(AA34="",AC34="",AE34=""),"",'Year 01'!AG35) -> 
AM35: =IF(OR(AA35="",AC35="",AE35=""),"",'Year 01'!Y36) ->  | AP35: =IF(OR(AA35="",AC35="",AE35=""),"",'Year 01'!AG36) -> 
AM36: =IF(OR(AA36="",AC36="",AE36=""),"",'Year 01'!Y37) ->  | AP36: =IF(OR(AA36="",AC36="",AE36=""),"",'Year 01'!AG37) -> 
AM37: =IF(OR(AA37="",AC37="",AE37=""),"",'Year 01'!Y38) ->  | AP37: =IF(OR(AA37="",AC37="",AE37=""),"",'Year 01'!AG38) -> 
AM38: =IF(OR(AA38="",AC38="",AE38=""),"",'Year 01'!Y39) ->  | AP38: =IF(OR(AA38="",AC38="",AE38=""),"",'Year 01'!AG39) -> 
AM39: =IF(OR(AA39="",AC39="",AE39=""),"",'Year 01'!Y40) ->  | AP39: =IF(OR(AA39="",AC39="",AE39=""),"",'Year 01'!AG40) -> 
AM40: =IF(OR(AA40="",AC40="",AE40=""),"",'Year 01'!Y41) ->  | AP40: =IF(OR(AA40="",AC40="",AE40=""),"",'Year 01'!AG41) -> 
AM41: =IF(OR(AA41="",AC41="",AE41=""),"",'Year 01'!Y42) ->  | AP41: =IF(OR(AA41="",AC41="",AE41=""),"",'Year 01'!AG42) -> 
AM42: =IF(OR(AA42="",AC42="",AE42=""),"",'Year 01'!Y43) ->  | AP42: =IF(OR(AA42="",AC42="",AE42=""),"",'Year 01'!AG43) -> 
AM43: =IF(OR(AA43="",AC43="",AE43=""),"",'Year 01'!Y44) ->  | AP43: =IF(OR(AA43="",AC43="",AE43=""),"",'Year 01'!AG44) -> 
AM44: =IF(OR(AA44="",AC44="",AE44=""),"",'Year 01'!Y45) ->  | AP44: =IF(OR(AA44="",AC44="",AE44=""),"",'Year 01'!AG45) -> 
AM45: =IF(OR(AA45="",AC45="",AE45=""),"",'Year 01'!Y46) ->  | AP45: =IF(OR(AA45="",AC45="",AE45=""),"",'Year 01'!AG46) -> 
AM46: =IF(OR(AA46="",AC46="",AE46=""),"",'Year 01'!Y47) ->  | AP46: =IF(OR(AA46="",AC46="",AE46=""),"",'Year 01'!AG47) -> 
AM47: =IF(OR(AA47="",AC47="",AE47=""),"",'Year 01'!Y48) ->  | AP47: =IF(OR(AA47="",AC47="",AE47=""),"",'Year 01'!AG48) -> 
AM48: =IF(OR(AA48="",AC48="",AE48=""),"",'Year 01'!Y49) ->  | AP48: =IF(OR(AA48="",AC48="",AE48=""),"",'Year 01'!AG49) -> 
AM49: =IF(OR(AA49="",AC49="",AE49=""),"",'Year 01'!Y50) ->  | AP49: =IF(OR(AA49="",AC49="",AE49=""),"",'Year 01'!AG50) -> 
AM50: =IF(OR(AA50="",AC50="",AE50=""),"",'Year 01'!Y51) ->  | AP50: =IF(OR(AA50="",AC50="",AE50=""),"",'Year 01'!AG51) -> 
AM51: =IF(OR(AA51="",AC51="",AE51=""),"",'Year 01'!Y52) ->  | AP51: =IF(OR(AA51="",AC51="",AE51=""),"",'Year 01'!AG52) -> 
AM52: =IF(OR(AA52="",AC52="",AE52=""),"",'Year 01'!Y53) ->  | AP52: =IF(OR(AA52="",AC52="",AE52=""),"",'Year 01'!AG53) -> 
AM53: =IF(OR(AA53="",AC53="",AE53=""),"",'Year 01'!Y54) ->  | AP53: =IF(OR(AA53="",AC53="",AE53=""),"",'Year 01'!AG54) -> 
AM54: =IF(OR(AA54="",AC54="",AE54=""),"",'Year 01'!Y55) ->  | AP54: =IF(OR(AA54="",AC54="",AE54=""),"",'Year 01'!AG55) -> 
AM55: =IF(OR(AA55="",AC55="",AE55=""),"",'Year 01'!Y56) ->  | AP55: =IF(OR(AA55="",AC55="",AE55=""),"",'Year 01'!AG56) -> 
AM56: =IF(OR(AA56="",AC56="",AE56=""),"",'Year 01'!Y57) ->  | AP56: =IF(OR(AA56="",AC56="",AE56=""),"",'Year 01'!AG57) -> 
AM57: =IF(OR(AA57="",AC57="",AE57=""),"",'Year 01'!Y58) ->  | AP57: =IF(OR(AA57="",AC57="",AE57=""),"",'Year 01'!AG58) -> 
AM58: =IF(OR(AA58="",AC58="",AE58=""),"",'Year 01'!Y59) ->  | AP58: =IF(OR(AA58="",AC58="",AE58=""),"",'Year 01'!AG59) -> 
AM59: =IF(OR(AA59="",AC59="",AE59=""),"",'Year 01'!Y60) ->  | AP59: =IF(OR(AA59="",AC59="",AE59=""),"",'Year 01'!AG60) -> 
AM60: =IF(OR(AA60="",AC60="",AE60=""),"",'Year 01'!Y61) ->  | AP60: =IF(OR(AA60="",AC60="",AE60=""),"",'Year 01'!AG61) -> 
AM61: =IF(OR(AA61="",AC61="",AE61=""),"",'Year 01'!Y62) ->  | AP61: =IF(OR(AA61="",AC61="",AE61=""),"",'Year 01'!AG62) -> 
AM62: =IF(OR(AA62="",AC62="",AE62=""),"",'Year 01'!Y63) ->  | AP62: =IF(OR(AA62="",AC62="",AE62=""),"",'Year 01'!AG63) -> 
AM63: =IF(OR(AA63="",AC63="",AE63=""),"",'Year 01'!Y64) ->  | AP63: =IF(OR(AA63="",AC63="",AE63=""),"",'Year 01'!AG64) -> 
AM64: =IF(OR(AA64="",AC64="",AE64=""),"",'Year 01'!Y65) ->  | AP64: =IF(OR(AA64="",AC64="",AE64=""),"",'Year 01'!AG65) -> 
AM65: =IF(OR(AA65="",AC65="",AE65=""),"",'Year 01'!Y66) ->  | AP65: =IF(OR(AA65="",AC65="",AE65=""),"",'Year 01'!AG66) -> 
AM66: =IF(OR(AA66="",AC66="",AE66=""),"",'Year 01'!Y67) ->  | AP66: =IF(OR(AA66="",AC66="",AE66=""),"",'Year 01'!AG67) -> 
AM67: =IF(OR(AA67="",AC67="",AE67=""),"",'Year 01'!Y68) ->  | AP67: =IF(OR(AA67="",AC67="",AE67=""),"",'Year 01'!AG68) -> 
AM68: =IF(OR(AA68="",AC68="",AE68=""),"",'Year 01'!Y69) ->  | AP68: =IF(OR(AA68="",AC68="",AE68=""),"",'Year 01'!AG69) -> 
AM69: =IF(OR(AA69="",AC69="",AE69=""),"",'Year 01'!Y70) ->  | AP69: =IF(OR(AA69="",AC69="",AE69=""),"",'Year 01'!AG70) -> 
AM70: =IF(OR(AA70="",AC70="",AE70=""),"",'Year 01'!Y71) ->  | AP70: =IF(OR(AA70="",AC70="",AE70=""),"",'Year 01'!AG71) -> 
AM71: =IF(OR(AA71="",AC71="",AE71=""),"",'Year 01'!Y72) ->  | AP71: =IF(OR(AA71="",AC71="",AE71=""),"",'Year 01'!AG72) -> 
AM72: =IF(OR(AA72="",AC72="",AE72=""),"",'Year 01'!Y73) ->  | AP72: =IF(OR(AA72="",AC72="",AE72=""),"",'Year 01'!AG73) -> 
AI73: =IF(AA73="","",(VALUE(LEFT(AA73,1)))) ->  | AK73: =IF(OR(AC73="",AE73=""),"",ROUND((VALUE(LEFT(AC73,1)+VALUE(LEFT(AE73,1)))/2),0)) ->  | AM73: =IF(OR(AA73="",AC73="",AE73=""),"",'Year 01'!Y74) ->  | AP73: =IF(OR(AA73="",AC73="",AE73=""),"",'Year 01'!AG74) ->  | AQ73: =IF(OR(AI73="",AC73=""),"",AI73*VALUE(LEFT(AC73,1))) ->  | AS73: =IF(OR(AI73="",AE73=""),"",AI73*VALUE(LEFT(AE73,1))) -> 
W74: =IF(OR(S74="",OR(Q74="",Q74=0)),"",S74/Q74*IF(OR(U74=0,U74=""),1,U74)) ->  | AM74: =IF(OR(AA74="",AC74="",AE74=""),"",'Year 01'!Y75) ->  | AP74: =IF(OR(AA74="",AC74="",AE74=""),"",'Year 01'!AG75) ->  | AU74: =IF(OR(AQ74="",AS74=""),"",AQ74+AS74) ->  | AW74: =IF(OR(AQ74="",AE74=""),"",VLOOKUP(AU74,$L$1012:$M$1016,2)) -> 
AM75: =IF(OR(AA75="",AC75="",AE75=""),"",'Year 01'!Y76) ->  | AP75: =IF(OR(AA75="",AC75="",AE75=""),"",'Year 01'!AG76) -> 
AM76: =IF(OR(AA76="",AC76="",AE76=""),"",'Year 01'!Y77) ->  | AP76: =IF(OR(AA76="",AC76="",AE76=""),"",'Year 01'!AG77) -> 
AM77: =IF(OR(AA77="",AC77="",AE77=""),"",'Year 01'!Y78) ->  | AP77: =IF(OR(AA77="",AC77="",AE77=""),"",'Year 01'!AG78) -> 
AM78: =IF(OR(AA78="",AC78="",AE78=""),"",'Year 01'!Y79) ->  | AP78: =IF(OR(AA78="",AC78="",AE78=""),"",'Year 01'!AG79) -> 
AM79: =IF(OR(AA79="",AC79="",AE79=""),"",'Year 01'!Y80) ->  | AP79: =IF(OR(AA79="",AC79="",AE79=""),"",'Year 01'!AG80) -> 
AM80: =IF(OR(AA80="",AC80="",AE80=""),"",'Year 01'!Y81) ->  | AP80: =IF(OR(AA80="",AC80="",AE80=""),"",'Year 01'!AG81) -> 
AM81: =IF(OR(AA81="",AC81="",AE81=""),"",'Year 01'!Y82) ->  | AP81: =IF(OR(AA81="",AC81="",AE81=""),"",'Year 01'!AG82) -> 
AM82: =IF(OR(AA82="",AC82="",AE82=""),"",'Year 01'!Y83) ->  | AP82: =IF(OR(AA82="",AC82="",AE82=""),"",'Year 01'!AG83) -> 
AM83: =IF(OR(AA83="",AC83="",AE83=""),"",'Year 01'!Y84) ->  | AP83: =IF(OR(AA83="",AC83="",AE83=""),"",'Year 01'!AG84) -> 
AM84: =IF(OR(AA84="",AC84="",AE84=""),"",'Year 01'!Y85) ->  | AP84: =IF(OR(AA84="",AC84="",AE84=""),"",'Year 01'!AG85) -> 
AM85: =IF(OR(AA85="",AC85="",AE85=""),"",'Year 01'!Y86) ->  | AP85: =IF(OR(AA85="",AC85="",AE85=""),"",'Year 01'!AG86) -> 
AM86: =IF(OR(AA86="",AC86="",AE86=""),"",'Year 01'!Y87) ->  | AP86: =IF(OR(AA86="",AC86="",AE86=""),"",'Year 01'!AG87) -> 
AM87: =IF(OR(AA87="",AC87="",AE87=""),"",'Year 01'!Y88) ->  | AP87: =IF(OR(AA87="",AC87="",AE87=""),"",'Year 01'!AG88) -> 
AM88: =IF(OR(AA88="",AC88="",AE88=""),"",'Year 01'!Y89) ->  | AP88: =IF(OR(AA88="",AC88="",AE88=""),"",'Year 01'!AG89) -> 
AM89: =IF(OR(AA89="",AC89="",AE89=""),"",'Year 01'!Y90) ->  | AP89: =IF(OR(AA89="",AC89="",AE89=""),"",'Year 01'!AG90) -> 
AM90: =IF(OR(AA90="",AC90="",AE90=""),"",'Year 01'!Y91) ->  | AP90: =IF(OR(AA90="",AC90="",AE90=""),"",'Year 01'!AG91) -> 
AM91: =IF(OR(AA91="",AC91="",AE91=""),"",'Year 01'!Y92) ->  | AP91: =IF(OR(AA91="",AC91="",AE91=""),"",'Year 01'!AG92) -> 
AM92: =IF(OR(AA92="",AC92="",AE92=""),"",'Year 01'!Y93) ->  | AP92: =IF(OR(AA92="",AC92="",AE92=""),"",'Year 01'!AG93) -> 
AM93: =IF(OR(AA93="",AC93="",AE93=""),"",'Year 01'!Y94) ->  | AP93: =IF(OR(AA93="",AC93="",AE93=""),"",'Year 01'!AG94) -> 
AM94: =IF(OR(AA94="",AC94="",AE94=""),"",'Year 01'!Y95) ->  | AP94: =IF(OR(AA94="",AC94="",AE94=""),"",'Year 01'!AG95) -> 
AM95: =IF(OR(AA95="",AC95="",AE95=""),"",'Year 01'!Y96) ->  | AP95: =IF(OR(AA95="",AC95="",AE95=""),"",'Year 01'!AG96) -> 
AM96: =IF(OR(AA96="",AC96="",AE96=""),"",'Year 01'!Y97) ->  | AP96: =IF(OR(AA96="",AC96="",AE96=""),"",'Year 01'!AG97) -> 
AM97: =IF(OR(AA97="",AC97="",AE97=""),"",'Year 01'!Y98) ->  | AP97: =IF(OR(AA97="",AC97="",AE97=""),"",'Year 01'!AG98) -> 
AM98: =IF(OR(AA98="",AC98="",AE98=""),"",'Year 01'!Y99) ->  | AP98: =IF(OR(AA98="",AC98="",AE98=""),"",'Year 01'!AG99) -> 
AM99: =IF(OR(AA99="",AC99="",AE99=""),"",'Year 01'!Y100) ->  | AP99: =IF(OR(AA99="",AC99="",AE99=""),"",'Year 01'!AG100) -> 
AM100: =IF(OR(AA100="",AC100="",AE100=""),"",'Year 01'!Y101) ->  | AP100: =IF(OR(AA100="",AC100="",AE100=""),"",'Year 01'!AG101) -> 
AM101: =IF(OR(AA101="",AC101="",AE101=""),"",'Year 01'!Y102) ->  | AP101: =IF(OR(AA101="",AC101="",AE101=""),"",'Year 01'!AG102) -> 
AM102: =IF(OR(AA102="",AC102="",AE102=""),"",'Year 01'!Y103) ->  | AP102: =IF(OR(AA102="",AC102="",AE102=""),"",'Year 01'!AG103) -> 
AM103: =IF(OR(AA103="",AC103="",AE103=""),"",'Year 01'!Y104) ->  | AP103: =IF(OR(AA103="",AC103="",AE103=""),"",'Year 01'!AG104) -> 
AM104: =IF(OR(AA104="",AC104="",AE104=""),"",'Year 01'!Y105) ->  | AP104: =IF(OR(AA104="",AC104="",AE104=""),"",'Year 01'!AG105) -> 
AM105: =IF(OR(AA105="",AC105="",AE105=""),"",'Year 01'!Y106) ->  | AP105: =IF(OR(AA105="",AC105="",AE105=""),"",'Year 01'!AG106) -> 
AM106: =IF(OR(AA106="",AC106="",AE106=""),"",'Year 01'!Y107) ->  | AP106: =IF(OR(AA106="",AC106="",AE106=""),"",'Year 01'!AG107) -> 
AM107: =IF(OR(AA107="",AC107="",AE107=""),"",'Year 01'!Y108) ->  | AP107: =IF(OR(AA107="",AC107="",AE107=""),"",'Year 01'!AG108) -> 
AM108: =IF(OR(AA108="",AC108="",AE108=""),"",'Year 01'!Y109) ->  | AP108: =IF(OR(AA108="",AC108="",AE108=""),"",'Year 01'!AG109) -> 
AM109: =IF(OR(AA109="",AC109="",AE109=""),"",'Year 01'!Y110) ->  | AP109: =IF(OR(AA109="",AC109="",AE109=""),"",'Year 01'!AG110) -> 
AM110: =IF(OR(AA110="",AC110="",AE110=""),"",'Year 01'!Y111) ->  | AP110: =IF(OR(AA110="",AC110="",AE110=""),"",'Year 01'!AG111) -> 
AM111: =IF(OR(AA111="",AC111="",AE111=""),"",'Year 01'!Y112) ->  | AP111: =IF(OR(AA111="",AC111="",AE111=""),"",'Year 01'!AG112) -> 
AM112: =IF(OR(AA112="",AC112="",AE112=""),"",'Year 01'!Y113) ->  | AP112: =IF(OR(AA112="",AC112="",AE112=""),"",'Year 01'!AG113) -> 
AM113: =IF(OR(AA113="",AC113="",AE113=""),"",'Year 01'!Y114) ->  | AP113: =IF(OR(AA113="",AC113="",AE113=""),"",'Year 01'!AG114) -> 
AM114: =IF(OR(AA114="",AC114="",AE114=""),"",'Year 01'!Y115) ->  | AP114: =IF(OR(AA114="",AC114="",AE114=""),"",'Year 01'!AG115) -> 
AM115: =IF(OR(AA115="",AC115="",AE115=""),"",'Year 01'!Y116) ->  | AP115: =IF(OR(AA115="",AC115="",AE115=""),"",'Year 01'!AG116) -> 
AM116: =IF(OR(AA116="",AC116="",AE116=""),"",'Year 01'!Y117) ->  | AP116: =IF(OR(AA116="",AC116="",AE116=""),"",'Year 01'!AG117) -> 
AM117: =IF(OR(AA117="",AC117="",AE117=""),"",'Year 01'!Y118) ->  | AP117: =IF(OR(AA117="",AC117="",AE117=""),"",'Year 01'!AG118) -> 
AM118: =IF(OR(AA118="",AC118="",AE118=""),"",'Year 01'!Y119) ->  | AP118: =IF(OR(AA118="",AC118="",AE118=""),"",'Year 01'!AG119) -> 
AM119: =IF(OR(AA119="",AC119="",AE119=""),"",'Year 01'!Y120) ->  | AP119: =IF(OR(AA119="",AC119="",AE119=""),"",'Year 01'!AG120) -> 
AM120: =IF(OR(AA120="",AC120="",AE120=""),"",'Year 01'!Y121) ->  | AP120: =IF(OR(AA120="",AC120="",AE120=""),"",'Year 01'!AG121) -> 
AM121: =IF(OR(AA121="",AC121="",AE121=""),"",'Year 01'!Y122) ->  | AP121: =IF(OR(AA121="",AC121="",AE121=""),"",'Year 01'!AG122) -> 
AM122: =IF(OR(AA122="",AC122="",AE122=""),"",'Year 01'!Y123) ->  | AP122: =IF(OR(AA122="",AC122="",AE122=""),"",'Year 01'!AG123) -> 
AM123: =IF(OR(AA123="",AC123="",AE123=""),"",'Year 01'!Y124) ->  | AP123: =IF(OR(AA123="",AC123="",AE123=""),"",'Year 01'!AG124) -> 
AM124: =IF(OR(AA124="",AC124="",AE124=""),"",'Year 01'!Y125) ->  | AP124: =IF(OR(AA124="",AC124="",AE124=""),"",'Year 01'!AG125) -> 
AM125: =IF(OR(AA125="",AC125="",AE125=""),"",'Year 01'!Y126) ->  | AP125: =IF(OR(AA125="",AC125="",AE125=""),"",'Year 01'!AG126) -> 
... 152 more rows

Sheet Summary Results
B2: NCHRP Project 24-46 GAM Planner
B3: Summary Results
C5: BUDGET AND SUMMARY RESULTS BY YEAR
I7: Agency Cost | O7: User Cost | S7: i | T7: Distribution by O&M Condition Level | Y7: i | Z7: Distribution by Safety/Mobility Consequence Level
C8: i | D8: Year | E8: i | F8: Budget | G8: i | H8: Need | I8: i | J8: Total | K8: i | L8: Do Minimum | M8: i | N8: Failures | O8: i | P8: Total | Q8: i | R8: Failures | S8: 1 | U8: 2 | V8: 3 | W8: 4 | X8: 5 | Y8: 1 | AA8: 2 | AB8: 3 | AC8: 4 | AD8: 5
C9: 1 | E9: 50000 | G9: =SUM('Year 01'!$AG$10:$AG$1009) -> 0 | I9: =SUM('Year 01'!$AP$10:$AP$1009) -> 0 | K9: =SUM('Year 01'!$AQ$10:$AQ$1009) -> 0 | M9: =SUM('Year 01'!$AR$10:$AR$1009) -> 0 | O9: =SUM('Year 01'!$AS$10:$AS$1009) -> 0 | Q9: =SUM('Year 01'!$AT$10:$AT$1009) -> 0 | S9: =SUMIF('Year 01'!$G$10:$G$1009,"="&S$8,'Year 01'!$AU$10:$AU$1009)/SUM('Year 01'!$AU$10:$AU$1009) ->  | U9: =SUMIF('Year 01'!$G$10:$G$1009,"="&U$8,'Year 01'!$AU$10:$AU$1009)/SUM('Year 01'!$AU$10:$AU$1009) ->  | V9: =SUMIF('Year 01'!$G$10:$G$1009,"="&V$8,'Year 01'!$AU$10:$AU$1009)/SUM('Year 01'!$AU$10:$AU$1009) ->  | W9: =SUMIF('Year 01'!$G$10:$G$1009,"="&W$8,'Year 01'!$AU$10:$AU$1009)/SUM('Year 01'!$AU$10:$AU$1009) ->  | X9: =SUMIF('Year 01'!$G$10:$G$1009,"="&X$8,'Year 01'!$AU$10:$AU$1009)/SUM('Year 01'!$AU$10:$AU$1009) ->  | Y9: =SUMIF('Year 01'!$J$10:$J$1009,"="&Y$8,'Year 01'!$AU$10:$AU$1009)/SUM('Year 01'!$AU$10:$AU$1009) ->  | AA9: =SUMIF('Year 01'!$J$10:$J$1009,"="&AA$8,'Year 01'!$AU$10:$AU$1009)/SUM('Year 01'!$AU$10:$AU$1009) ->  | AB9: =SUMIF('Year 01'!$J$10:$J$1009,"="&AB$8,'Year 01'!$AU$10:$AU$1009)/SUM('Year 01'!$AU$10:$AU$1009) ->  | AC9: =SUMIF('Year 01'!$J$10:$J$1009,"="&AC$8,'Year 01'!$AU$10:$AU$1009)/SUM('Year 01'!$AU$10:$AU$1009) ->  | AD9: =1-SUM(Y9:AC9) -> 
C10: =C9+1 -> 2 | E10: 50000 | G10: =SUM('Year 02'!$AG$10:$AG$1009) -> 0 | I10: =SUM('Year 02'!$AP$10:$AP$1009) -> 0 | K10: =SUM('Year 02'!$AQ$10:$AQ$1009) -> 0 | M10: =SUM('Year 02'!$AR$10:$AR$1009) -> 0 | O10: =SUM('Year 02'!$AS$10:$AS$1009) -> 0 | Q10: =SUM('Year 02'!$AT$10:$AT$1009) -> 0 | S10: =SUMIF('Year 02'!$G$10:$G$1009,"="&S$8,'Year 02'!$AU$10:$AU$1009)/SUM('Year 02'!$AU$10:$AU$1009) ->  | U10: =SUMIF('Year 02'!$G$10:$G$1009,"="&U$8,'Year 02'!$AU$10:$AU$1009)/SUM('Year 02'!$AU$10:$AU$1009) ->  | V10: =SUMIF('Year 02'!$G$10:$G$1009,"="&V$8,'Year 02'!$AU$10:$AU$1009)/SUM('Year 02'!$AU$10:$AU$1009) ->  | W10: =SUMIF('Year 02'!$G$10:$G$1009,"="&W$8,'Year 02'!$AU$10:$AU$1009)/SUM('Year 02'!$AU$10:$AU$1009) ->  | X10: =SUMIF('Year 02'!$G$10:$G$1009,"="&X$8,'Year 02'!$AU$10:$AU$1009)/SUM('Year 02'!$AU$10:$AU$1009) ->  | Y10: =SUMIF('Year 02'!$J$10:$J$1009,"="&Y$8,'Year 02'!$AU$10:$AU$1009)/SUM('Year 02'!$AU$10:$AU$1009) ->  | AA10: =SUMIF('Year 02'!$J$10:$J$1009,"="&AA$8,'Year 02'!$AU$10:$AU$1009)/SUM('Year 02'!$AU$10:$AU$1009) ->  | AB10: =SUMIF('Year 02'!$J$10:$J$1009,"="&AB$8,'Year 02'!$AU$10:$AU$1009)/SUM('Year 02'!$AU$10:$AU$1009) ->  | AC10: =SUMIF('Year 02'!$J$10:$J$1009,"="&AC$8,'Year 02'!$AU$10:$AU$1009)/SUM('Year 02'!$AU$10:$AU$1009) -> 
C11: =C10+1 -> 3 | E11: 50000 | G11: =SUM('Year 03'!$AG$10:$AG$1009) -> 0 | I11: =SUM('Year 03'!$AP$10:$AP$1009) -> 0 | K11: =SUM('Year 03'!$AQ$10:$AQ$1009) -> 0 | M11: =SUM('Year 03'!$AR$10:$AR$1009) -> 0 | O11: =SUM('Year 03'!$AS$10:$AS$1009) -> 0 | Q11: =SUM('Year 03'!$AT$10:$AT$1009) -> 0 | S11: =SUMIF('Year 03'!$G$10:$G$1009,"="&S$8,'Year 03'!$AU$10:$AU$1009)/SUM('Year 03'!$AU$10:$AU$1009) ->  | U11: =SUMIF('Year 03'!$G$10:$G$1009,"="&U$8,'Year 03'!$AU$10:$AU$1009)/SUM('Year 03'!$AU$10:$AU$1009) ->  | V11: =SUMIF('Year 03'!$G$10:$G$1009,"="&V$8,'Year 03'!$AU$10:$AU$1009)/SUM('Year 03'!$AU$10:$AU$1009) ->  | W11: =SUMIF('Year 03'!$G$10:$G$1009,"="&W$8,'Year 03'!$AU$10:$AU$1009)/SUM('Year 03'!$AU$10:$AU$1009) ->  | X11: =SUMIF('Year 03'!$G$10:$G$1009,"="&X$8,'Year 03'!$AU$10:$AU$1009)/SUM('Year 03'!$AU$10:$AU$1009) ->  | Y11: =SUMIF('Year 03'!$J$10:$J$1009,"="&Y$8,'Year 03'!$AU$10:$AU$1009)/SUM('Year 03'!$AU$10:$AU$1009) ->  | AA11: =SUMIF('Year 03'!$J$10:$J$1009,"="&AA$8,'Year 03'!$AU$10:$AU$1009)/SUM('Year 03'!$AU$10:$AU$1009) ->  | AB11: =SUMIF('Year 03'!$J$10:$J$1009,"="&AB$8,'Year 03'!$AU$10:$AU$1009)/SUM('Year 03'!$AU$10:$AU$1009) ->  | AC11: =SUMIF('Year 03'!$J$10:$J$1009,"="&AC$8,'Year 03'!$AU$10:$AU$1009)/SUM('Year 03'!$AU$10:$AU$1009) ->  | AD11: =1-SUM(Y11:AC11) -> 
C12: 4 | E12: 50000 | G12: =SUM('Year 04'!$AG$10:$AG$1009) -> 0 | I12: =SUM('Year 04'!$AP$10:$AP$1009) -> 0 | K12: =SUM('Year 04'!$AQ$10:$AQ$1009) -> 0 | M12: =SUM('Year 04'!$AR$10:$AR$1009) -> 0 | O12: =SUM('Year 04'!$AS$10:$AS$1009) -> 0 | Q12: =SUM('Year 04'!$AT$10:$AT$1009) -> 0 | S12: =SUMIF('Year 04'!$G$10:$G$1009,"="&S$8,'Year 04'!$AU$10:$AU$1009)/SUM('Year 04'!$AU$10:$AU$1009) ->  | U12: =SUMIF('Year 04'!$G$10:$G$1009,"="&U$8,'Year 04'!$AU$10:$AU$1009)/SUM('Year 04'!$AU$10:$AU$1009) ->  | V12: =SUMIF('Year 04'!$G$10:$G$1009,"="&V$8,'Year 04'!$AU$10:$AU$1009)/SUM('Year 04'!$AU$10:$AU$1009) ->  | W12: =SUMIF('Year 04'!$G$10:$G$1009,"="&W$8,'Year 04'!$AU$10:$AU$1009)/SUM('Year 04'!$AU$10:$AU$1009) ->  | X12: =SUMIF('Year 04'!$G$10:$G$1009,"="&X$8,'Year 04'!$AU$10:$AU$1009)/SUM('Year 04'!$AU$10:$AU$1009) ->  | Y12: =SUMIF('Year 04'!$J$10:$J$1009,"="&Y$8,'Year 04'!$AU$10:$AU$1009)/SUM('Year 04'!$AU$10:$AU$1009) ->  | AA12: =SUMIF('Year 04'!$J$10:$J$1009,"="&AA$8,'Year 04'!$AU$10:$AU$1009)/SUM('Year 04'!$AU$10:$AU$1009) ->  | AB12: =SUMIF('Year 04'!$J$10:$J$1009,"="&AB$8,'Year 04'!$AU$10:$AU$1009)/SUM('Year 04'!$AU$10:$AU$1009) ->  | AC12: =SUMIF('Year 04'!$J$10:$J$1009,"="&AC$8,'Year 04'!$AU$10:$AU$1009)/SUM('Year 04'!$AU$10:$AU$1009) -> 
C13: 5 | E13: 50000 | G13: =SUM('Year 05'!$AG$10:$AG$1009) -> 0 | I13: =SUM('Year 05'!$AP$10:$AP$1009) -> 0 | K13: =SUM('Year 05'!$AQ$10:$AQ$1009) -> 0 | M13: =SUM('Year 05'!$AR$10:$AR$1009) -> 0 | O13: =SUM('Year 05'!$AS$10:$AS$1009) -> 0 | Q13: =SUM('Year 05'!$AT$10:$AT$1009) -> 0 | S13: =SUMIF('Year 05'!$G$10:$G$1009,"="&S$8,'Year 05'!$AU$10:$AU$1009)/SUM('Year 05'!$AU$10:$AU$1009) ->  | U13: =SUMIF('Year 05'!$G$10:$G$1009,"="&U$8,'Year 05'!$AU$10:$AU$1009)/SUM('Year 05'!$AU$10:$AU$1009) ->  | V13: =SUMIF('Year 05'!$G$10:$G$1009,"="&V$8,'Year 05'!$AU$10:$AU$1009)/SUM('Year 05'!$AU$10:$AU$1009) ->  | W13: =SUMIF('Year 05'!$G$10:$G$1009,"="&W$8,'Year 05'!$AU$10:$AU$1009)/SUM('Year 05'!$AU$10:$AU$1009) ->  | X13: =SUMIF('Year 05'!$G$10:$G$1009,"="&X$8,'Year 05'!$AU$10:$AU$1009)/SUM('Year 05'!$AU$10:$AU$1009) ->  | Y13: =SUMIF('Year 05'!$J$10:$J$1009,"="&Y$8,'Year 05'!$AU$10:$AU$1009)/SUM('Year 05'!$AU$10:$AU$1009) ->  | AA13: =SUMIF('Year 05'!$J$10:$J$1009,"="&AA$8,'Year 05'!$AU$10:$AU$1009)/SUM('Year 05'!$AU$10:$AU$1009) ->  | AB13: =SUMIF('Year 05'!$J$10:$J$1009,"="&AB$8,'Year 05'!$AU$10:$AU$1009)/SUM('Year 05'!$AU$10:$AU$1009) ->  | AC13: =SUMIF('Year 05'!$J$10:$J$1009,"="&AC$8,'Year 05'!$AU$10:$AU$1009)/SUM('Year 05'!$AU$10:$AU$1009) -> 
C14: 6 | E14: 50000 | G14: =SUM('Year 06'!$AG$10:$AG$1009) -> 0 | I14: =SUM('Year 06'!$AP$10:$AP$1009) -> 0 | K14: =SUM('Year 06'!$AQ$10:$AQ$1009) -> 0 | M14: =SUM('Year 06'!$AR$10:$AR$1009) -> 0 | O14: =SUM('Year 06'!$AS$10:$AS$1009) -> 0 | Q14: =SUM('Year 06'!$AT$10:$AT$1009) -> 0 | S14: =SUMIF('Year 06'!$G$10:$G$1009,"="&S$8,'Year 06'!$AU$10:$AU$1009)/SUM('Year 06'!$AU$10:$AU$1009) ->  | U14: =SUMIF('Year 06'!$G$10:$G$1009,"="&U$8,'Year 06'!$AU$10:$AU$1009)/SUM('Year 06'!$AU$10:$AU$1009) ->  | V14: =SUMIF('Year 06'!$G$10:$G$1009,"="&V$8,'Year 06'!$AU$10:$AU$1009)/SUM('Year 06'!$AU$10:$AU$1009) ->  | W14: =SUMIF('Year 06'!$G$10:$G$1009,"="&W$8,'Year 06'!$AU$10:$AU$1009)/SUM('Year 06'!$AU$10:$AU$1009) ->  | X14: =SUMIF('Year 06'!$G$10:$G$1009,"="&X$8,'Year 06'!$AU$10:$AU$1009)/SUM('Year 06'!$AU$10:$AU$1009) ->  | Y14: =SUMIF('Year 06'!$J$10:$J$1009,"="&Y$8,'Year 06'!$AU$10:$AU$1009)/SUM('Year 06'!$AU$10:$AU$1009) ->  | AA14: =SUMIF('Year 06'!$J$10:$J$1009,"="&AA$8,'Year 06'!$AU$10:$AU$1009)/SUM('Year 06'!$AU$10:$AU$1009) ->  | AB14: =SUMIF('Year 06'!$J$10:$J$1009,"="&AB$8,'Year 06'!$AU$10:$AU$1009)/SUM('Year 06'!$AU$10:$AU$1009) ->  | AC14: =SUMIF('Year 06'!$J$10:$J$1009,"="&AC$8,'Year 06'!$AU$10:$AU$1009)/SUM('Year 06'!$AU$10:$AU$1009) -> 
C15: 7 | E15: 50000 | G15: =SUM('Year 07'!$AG$10:$AG$1009) -> 0 | I15: =SUM('Year 07'!$AP$10:$AP$1009) -> 0 | K15: =SUM('Year 07'!$AQ$10:$AQ$1009) -> 0 | M15: =SUM('Year 07'!$AR$10:$AR$1009) -> 0 | O15: =SUM('Year 07'!$AS$10:$AS$1009) -> 0 | Q15: =SUM('Year 07'!$AT$10:$AT$1009) -> 0 | S15: =SUMIF('Year 07'!$G$10:$G$1009,"="&S$8,'Year 07'!$AU$10:$AU$1009)/SUM('Year 07'!$AU$10:$AU$1009) ->  | U15: =SUMIF('Year 07'!$G$10:$G$1009,"="&U$8,'Year 07'!$AU$10:$AU$1009)/SUM('Year 07'!$AU$10:$AU$1009) ->  | V15: =SUMIF('Year 07'!$G$10:$G$1009,"="&V$8,'Year 07'!$AU$10:$AU$1009)/SUM('Year 07'!$AU$10:$AU$1009) ->  | W15: =SUMIF('Year 07'!$G$10:$G$1009,"="&W$8,'Year 07'!$AU$10:$AU$1009)/SUM('Year 07'!$AU$10:$AU$1009) ->  | X15: =SUMIF('Year 07'!$G$10:$G$1009,"="&X$8,'Year 07'!$AU$10:$AU$1009)/SUM('Year 07'!$AU$10:$AU$1009) ->  | Y15: =SUMIF('Year 07'!$J$10:$J$1009,"="&Y$8,'Year 07'!$AU$10:$AU$1009)/SUM('Year 07'!$AU$10:$AU$1009) ->  | AA15: =SUMIF('Year 07'!$J$10:$J$1009,"="&AA$8,'Year 07'!$AU$10:$AU$1009)/SUM('Year 07'!$AU$10:$AU$1009) ->  | AB15: =SUMIF('Year 07'!$J$10:$J$1009,"="&AB$8,'Year 07'!$AU$10:$AU$1009)/SUM('Year 07'!$AU$10:$AU$1009) ->  | AC15: =SUMIF('Year 07'!$J$10:$J$1009,"="&AC$8,'Year 07'!$AU$10:$AU$1009)/SUM('Year 07'!$AU$10:$AU$1009) -> 
C16: 8 | E16: 50000 | G16: =SUM('Year 08'!$AG$10:$AG$1009) -> 0 | I16: =SUM('Year 08'!$AP$10:$AP$1009) -> 0 | K16: =SUM('Year 08'!$AQ$10:$AQ$1009) -> 0 | M16: =SUM('Year 08'!$AR$10:$AR$1009) -> 0 | O16: =SUM('Year 08'!$AS$10:$AS$1009) -> 0 | Q16: =SUM('Year 08'!$AT$10:$AT$1009) -> 0 | S16: =SUMIF('Year 08'!$G$10:$G$1009,"="&S$8,'Year 08'!$AU$10:$AU$1009)/SUM('Year 08'!$AU$10:$AU$1009) ->  | U16: =SUMIF('Year 08'!$G$10:$G$1009,"="&U$8,'Year 08'!$AU$10:$AU$1009)/SUM('Year 08'!$AU$10:$AU$1009) ->  | V16: =SUMIF('Year 08'!$G$10:$G$1009,"="&V$8,'Year 08'!$AU$10:$AU$1009)/SUM('Year 08'!$AU$10:$AU$1009) ->  | W16: =SUMIF('Year 08'!$G$10:$G$1009,"="&W$8,'Year 08'!$AU$10:$AU$1009)/SUM('Year 08'!$AU$10:$AU$1009) ->  | X16: =SUMIF('Year 08'!$G$10:$G$1009,"="&X$8,'Year 08'!$AU$10:$AU$1009)/SUM('Year 08'!$AU$10:$AU$1009) ->  | Y16: =SUMIF('Year 08'!$J$10:$J$1009,"="&Y$8,'Year 08'!$AU$10:$AU$1009)/SUM('Year 08'!$AU$10:$AU$1009) ->  | AA16: =SUMIF('Year 08'!$J$10:$J$1009,"="&AA$8,'Year 08'!$AU$10:$AU$1009)/SUM('Year 08'!$AU$10:$AU$1009) ->  | AB16: =SUMIF('Year 08'!$J$10:$J$1009,"="&AB$8,'Year 08'!$AU$10:$AU$1009)/SUM('Year 08'!$AU$10:$AU$1009) ->  | AC16: =SUMIF('Year 08'!$J$10:$J$1009,"="&AC$8,'Year 08'!$AU$10:$AU$1009)/SUM('Year 08'!$AU$10:$AU$1009) -> 
C17: 9 | E17: 50000 | G17: =SUM('Year 09'!$AG$10:$AG$1009) -> 0 | I17: =SUM('Year 09'!$AP$10:$AP$1009) -> 0 | K17: =SUM('Year 09'!$AQ$10:$AQ$1009) -> 0 | M17: =SUM('Year 09'!$AR$10:$AR$1009) -> 0 | O17: =SUM('Year 09'!$AS$10:$AS$1009) -> 0 | Q17: =SUM('Year 09'!$AT$10:$AT$1009) -> 0 | S17: =SUMIF('Year 09'!$G$10:$G$1009,"="&S$8,'Year 09'!$AU$10:$AU$1009)/SUM('Year 09'!$AU$10:$AU$1009) ->  | U17: =SUMIF('Year 09'!$G$10:$G$1009,"="&U$8,'Year 09'!$AU$10:$AU$1009)/SUM('Year 09'!$AU$10:$AU$1009) ->  | V17: =SUMIF('Year 09'!$G$10:$G$1009,"="&V$8,'Year 09'!$AU$10:$AU$1009)/SUM('Year 09'!$AU$10:$AU$1009) ->  | W17: =SUMIF('Year 09'!$G$10:$G$1009,"="&W$8,'Year 09'!$AU$10:$AU$1009)/SUM('Year 09'!$AU$10:$AU$1009) ->  | X17: =SUMIF('Year 09'!$G$10:$G$1009,"="&X$8,'Year 09'!$AU$10:$AU$1009)/SUM('Year 09'!$AU$10:$AU$1009) ->  | Y17: =SUMIF('Year 09'!$J$10:$J$1009,"="&Y$8,'Year 09'!$AU$10:$AU$1009)/SUM('Year 09'!$AU$10:$AU$1009) ->  | AA17: =SUMIF('Year 09'!$J$10:$J$1009,"="&AA$8,'Year 09'!$AU$10:$AU$1009)/SUM('Year 09'!$AU$10:$AU$1009) ->  | AB17: =SUMIF('Year 09'!$J$10:$J$1009,"="&AB$8,'Year 09'!$AU$10:$AU$1009)/SUM('Year 09'!$AU$10:$AU$1009) ->  | AC17: =SUMIF('Year 09'!$J$10:$J$1009,"="&AC$8,'Year 09'!$AU$10:$AU$1009)/SUM('Year 09'!$AU$10:$AU$1009) -> 
C18: 10 | E18: 50000 | G18: =SUM('Year 10'!$AG$10:$AG$1009) -> 0 | I18: =SUM('Year 10'!$AP$10:$AP$1009) -> 0 | K18: =SUM('Year 10'!$AQ$10:$AQ$1009) -> 0 | M18: =SUM('Year 10'!$AR$10:$AR$1009) -> 0 | O18: =SUM('Year 10'!$AS$10:$AS$1009) -> 0 | Q18: =SUM('Year 10'!$AT$10:$AT$1009) -> 0 | S18: =SUMIF('Year 10'!$G$10:$G$1009,"="&S$8,'Year 10'!$AU$10:$AU$1009)/SUM('Year 10'!$AU$10:$AU$1009) ->  | U18: =SUMIF('Year 10'!$G$10:$G$1009,"="&U$8,'Year 10'!$AU$10:$AU$1009)/SUM('Year 10'!$AU$10:$AU$1009) ->  | V18: =SUMIF('Year 10'!$G$10:$G$1009,"="&V$8,'Year 10'!$AU$10:$AU$1009)/SUM('Year 10'!$AU$10:$AU$1009) ->  | W18: =SUMIF('Year 10'!$G$10:$G$1009,"="&W$8,'Year 10'!$AU$10:$AU$1009)/SUM('Year 10'!$AU$10:$AU$1009) ->  | X18: =SUMIF('Year 10'!$G$10:$G$1009,"="&X$8,'Year 10'!$AU$10:$AU$1009)/SUM('Year 10'!$AU$10:$AU$1009) ->  | Y18: =SUMIF('Year 10'!$J$10:$J$1009,"="&Y$8,'Year 10'!$AU$10:$AU$1009)/SUM('Year 10'!$AU$10:$AU$1009) ->  | AA18: =SUMIF('Year 10'!$J$10:$J$1009,"="&AA$8,'Year 10'!$AU$10:$AU$1009)/SUM('Year 10'!$AU$10:$AU$1009) ->  | AB18: =SUMIF('Year 10'!$J$10:$J$1009,"="&AB$8,'Year 10'!$AU$10:$AU$1009)/SUM('Year 10'!$AU$10:$AU$1009) ->  | AC18: =SUMIF('Year 10'!$J$10:$J$1009,"="&AC$8,'Year 10'!$AU$10:$AU$1009)/SUM('Year 10'!$AU$10:$AU$1009) -> 
D19: Total | I19: =SUM(I9:I18) -> 0 | K19: =SUM(K9:K18) -> 0 | M19: =SUM(M9:M18) -> 0 | O19: =SUM(O9:O18) -> 0 | Q19: =SUM(Q9:Q18) -> 0 | S19: =SUMIF('Year 10'!$AM$10:$AM$1009,"="&S$8,'Year 10'!$AU$10:$AU$1009)/SUM('Year 10'!$AU$10:$AU$1009) ->  | U19: =SUMIF('Year 10'!$AM$10:$AM$1009,"="&U$8,'Year 10'!$AU$10:$AU$1009)/SUM('Year 10'!$AU$10:$AU$1009) ->  | V19: =SUMIF('Year 10'!$AM$10:$AM$1009,"="&V$8,'Year 10'!$AU$10:$AU$1009)/SUM('Year 10'!$AU$10:$AU$1009) ->  | W19: =SUMIF('Year 10'!$AM$10:$AM$1009,"="&W$8,'Year 10'!$AU$10:$AU$1009)/SUM('Year 10'!$AU$10:$AU$1009) ->  | X19: =SUMIF('Year 10'!$AM$10:$AM$1009,"="&X$8,'Year 10'!$AU$10:$AU$1009)/SUM('Year 10'!$AU$10:$AU$1009) ->  | Y19: =SUMIF('Year 10'!$AN$10:$AN$1009,"="&Y$8,'Year 10'!$AU$10:$AU$1009)/SUM('Year 10'!$AU$10:$AU$1009) ->  | AA19: =SUMIF('Year 10'!$AN$10:$AN$1009,"="&AA$8,'Year 10'!$AU$10:$AU$1009)/SUM('Year 10'!$AU$10:$AU$1009) ->  | AB19: =SUMIF('Year 10'!$AN$10:$AN$1009,"="&AB$8,'Year 10'!$AU$10:$AU$1009)/SUM('Year 10'!$AU$10:$AU$1009) ->  | AC19: =SUMIF('Year 10'!$AN$10:$AN$1009,"="&AC$8,'Year 10'!$AU$10:$AU$1009)/SUM('Year 10'!$AU$10:$AU$1009) -> 
E40: 1 | F40: 2 | G40: 3 | H40: 4 | I40: 5 | U40: 1 | V40: 2 | W40: 3 | X40: 4 | Y40: 5 | Z40: 1 | AA40: 2 | AB40: 3 | AC40: 4 | AD40: 5
D41: 9 | I41: 5 | Y41: =SUMIFS('Year 01'!$AU$10:$AU$1009,'Year 01'!$G$10:$G$1009,"="&Y$40,'Year 01'!$H$10:$H$1009,"=5")/'Main Menu'!$T$11 ->  | AD41: =SUMIFS('Year 01'!$AU$10:$AU$1009,'Year 01'!$G$10:$G$1009,"="&AD$40,'Year 01'!$I$10:$I$1009,"=5")/'Main Menu'!$T$11 -> 
D42: 8 | H42: 5 | I42: 4 | X42: =SUMIFS('Year 01'!$AU$10:$AU$1009,'Year 01'!$G$10:$G$1009,"="&X$40,'Year 01'!$H$10:$H$1009,"=5")/'Main Menu'!$T$11 ->  | Y42: =SUMIFS('Year 01'!$AU$10:$AU$1009,'Year 01'!$G$10:$G$1009,"="&Y$40,'Year 01'!$H$10:$H$1009,"=4")/'Main Menu'!$T$11 ->  | AC42: =SUMIFS('Year 01'!$AU$10:$AU$1009,'Year 01'!$G$10:$G$1009,"="&AC$40,'Year 01'!$I$10:$I$1009,"=5")/'Main Menu'!$T$11 ->  | AD42: =SUMIFS('Year 01'!$AU$10:$AU$1009,'Year 01'!$G$10:$G$1009,"="&AD$40,'Year 01'!$I$10:$I$1009,"=4")/'Main Menu'!$T$11 -> 
D43: 7 | G43: 5 | H43: 4 | I43: 3 | W43: =SUMIFS('Year 01'!$AU$10:$AU$1009,'Year 01'!$G$10:$G$1009,"="&W$40,'Year 01'!$H$10:$H$1009,"=5")/'Main Menu'!$T$11 ->  | X43: =SUMIFS('Year 01'!$AU$10:$AU$1009,'Year 01'!$G$10:$G$1009,"="&X$40,'Year 01'!$H$10:$H$1009,"=4")/'Main Menu'!$T$11 ->  | Y43: =SUMIFS('Year 01'!$AU$10:$AU$1009,'Year 01'!$G$10:$G$1009,"="&Y$40,'Year 01'!$H$10:$H$1009,"=3")/'Main Menu'!$T$11 ->  | AB43: =SUMIFS('Year 01'!$AU$10:$AU$1009,'Year 01'!$G$10:$G$1009,"="&AB$40,'Year 01'!$I$10:$I$1009,"=5")/'Main Menu'!$T$11 ->  | AC43: =SUMIFS('Year 01'!$AU$10:$AU$1009,'Year 01'!$G$10:$G$1009,"="&AC$40,'Year 01'!$I$10:$I$1009,"=4")/'Main Menu'!$T$11 ->  | AD43: =SUMIFS('Year 01'!$AU$10:$AU$1009,'Year 01'!$G$10:$G$1009,"="&AD$40,'Year 01'!$I$10:$I$1009,"=3")/'Main Menu'!$T$11 -> 
D44: 6 | F44: 5 | G44: 4 | H44: 3 | I44: 2 | V44: =SUMIFS('Year 01'!$AU$10:$AU$1009,'Year 01'!$G$10:$G$1009,"="&V$40,'Year 01'!$H$10:$H$1009,"=5")/'Main Menu'!$T$11 ->  | W44: =SUMIFS('Year 01'!$AU$10:$AU$1009,'Year 01'!$G$10:$G$1009,"="&W$40,'Year 01'!$H$10:$H$1009,"=4")/'Main Menu'!$T$11 ->  | X44: =SUMIFS('Year 01'!$AU$10:$AU$1009,'Year 01'!$G$10:$G$1009,"="&X$40,'Year 01'!$H$10:$H$1009,"=3")/'Main Menu'!$T$11 ->  | Y44: =SUMIFS('Year 01'!$AU$10:$AU$1009,'Year 01'!$G$10:$G$1009,"="&Y$40,'Year 01'!$H$10:$H$1009,"=2")/'Main Menu'!$T$11 ->  | AA44: =SUMIFS('Year 01'!$AU$10:$AU$1009,'Year 01'!$G$10:$G$1009,"="&AA$40,'Year 01'!$I$10:$I$1009,"=5")/'Main Menu'!$T$11 ->  | AB44: =SUMIFS('Year 01'!$AU$10:$AU$1009,'Year 01'!$G$10:$G$1009,"="&AB$40,'Year 01'!$I$10:$I$1009,"=4")/'Main Menu'!$T$11 ->  | AC44: =SUMIFS('Year 01'!$AU$10:$AU$1009,'Year 01'!$G$10:$G$1009,"="&AC$40,'Year 01'!$I$10:$I$1009,"=3")/'Main Menu'!$T$11 ->  | AD44: =SUMIFS('Year 01'!$AU$10:$AU$1009,'Year 01'!$G$10:$G$1009,"="&AD$40,'Year 01'!$I$10:$I$1009,"=2")/'Main Menu'!$T$11 -> 
D45: 5 | E45: 5 | F45: 4 | G45: 3 | H45: 2 | I45: 1 | U45: =SUMIFS('Year 01'!$AU$10:$AU$1009,'Year 01'!$G$10:$G$1009,"="&U$40,'Year 01'!$H$10:$H$1009,"=5")/'Main Menu'!$T$11 ->  | V45: =SUMIFS('Year 01'!$AU$10:$AU$1009,'Year 01'!$G$10:$G$1009,"="&V$40,'Year 01'!$H$10:$H$1009,"=4")/'Main Menu'!$T$11 ->  | W45: =SUMIFS('Year 01'!$AU$10:$AU$1009,'Year 01'!$G$10:$G$1009,"="&W$40,'Year 01'!$H$10:$H$1009,"=3")/'Main Menu'!$T$11 ->  | X45: =SUMIFS('Year 01'!$AU$10:$AU$1009,'Year 01'!$G$10:$G$1009,"="&X$40,'Year 01'!$H$10:$H$1009,"=2")/'Main Menu'!$T$11 ->  | Y45: =SUMIFS('Year 01'!$AU$10:$AU$1009,'Year 01'!$G$10:$G$1009,"="&Y$40,'Year 01'!$H$10:$H$1009,"=1")/'Main Menu'!$T$11 ->  | Z45: =SUMIFS('Year 01'!$AU$10:$AU$1009,'Year 01'!$G$10:$G$1009,"="&Z$40,'Year 01'!$I$10:$I$1009,"=5")/'Main Menu'!$T$11 ->  | AA45: =SUMIFS('Year 01'!$AU$10:$AU$1009,'Year 01'!$G$10:$G$1009,"="&AA$40,'Year 01'!$I$10:$I$1009,"=4")/'Main Menu'!$T$11 ->  | AB45: =SUMIFS('Year 01'!$AU$10:$AU$1009,'Year 01'!$G$10:$G$1009,"="&AB$40,'Year 01'!$I$10:$I$1009,"=3")/'Main Menu'!$T$11 ->  | AC45: =SUMIFS('Year 01'!$AU$10:$AU$1009,'Year 01'!$G$10:$G$1009,"="&AC$40,'Year 01'!$I$10:$I$1009,"=2")/'Main Menu'!$T$11 ->  | AD45: =SUMIFS('Year 01'!$AU$10:$AU$1009,'Year 01'!$G$10:$G$1009,"="&AD$40,'Year 01'!$I$10:$I$1009,"=1")/'Main Menu'!$T$11 -> 
D46: 4 | E46: 4 | F46: 3 | G46: 2 | H46: 1 | U46: =SUMIFS('Year 01'!$AU$10:$AU$1009,'Year 01'!$G$10:$G$1009,"="&U$40,'Year 01'!$H$10:$H$1009,"=4")/'Main Menu'!$T$11 ->  | V46: =SUMIFS('Year 01'!$AU$10:$AU$1009,'Year 01'!$G$10:$G$1009,"="&V$40,'Year 01'!$H$10:$H$1009,"=3")/'Main Menu'!$T$11 ->  | W46: =SUMIFS('Year 01'!$AU$10:$AU$1009,'Year 01'!$G$10:$G$1009,"="&W$40,'Year 01'!$H$10:$H$1009,"=2")/'Main Menu'!$T$11 ->  | X46: =SUMIFS('Year 01'!$AU$10:$AU$1009,'Year 01'!$G$10:$G$1009,"="&X$40,'Year 01'!$H$10:$H$1009,"=1")/'Main Menu'!$T$11 ->  | Z46: =SUMIFS('Year 01'!$AU$10:$AU$1009,'Year 01'!$G$10:$G$1009,"="&Z$40,'Year 01'!$I$10:$I$1009,"=4")/'Main Menu'!$T$11 ->  | AA46: =SUMIFS('Year 01'!$AU$10:$AU$1009,'Year 01'!$G$10:$G$1009,"="&AA$40,'Year 01'!$I$10:$I$1009,"=3")/'Main Menu'!$T$11 ->  | AB46: =SUMIFS('Year 01'!$AU$10:$AU$1009,'Year 01'!$G$10:$G$1009,"="&AB$40,'Year 01'!$I$10:$I$1009,"=2")/'Main Menu'!$T$11 ->  | AC46: =SUMIFS('Year 01'!$AU$10:$AU$1009,'Year 01'!$G$10:$G$1009,"="&AC$40,'Year 01'!$I$10:$I$1009,"=1")/'Main Menu'!$T$11 -> 
D47: 3 | E47: 3 | F47: 2 | G47: 1 | U47: =SUMIFS('Year 01'!$AU$10:$AU$1009,'Year 01'!$G$10:$G$1009,"="&U$40,'Year 01'!$H$10:$H$1009,"=3")/'Main Menu'!$T$11 ->  | V47: =SUMIFS('Year 01'!$AU$10:$AU$1009,'Year 01'!$G$10:$G$1009,"="&V$40,'Year 01'!$H$10:$H$1009,"=2")/'Main Menu'!$T$11 ->  | W47: =SUMIFS('Year 01'!$AU$10:$AU$1009,'Year 01'!$G$10:$G$1009,"="&W$40,'Year 01'!$H$10:$H$1009,"=1")/'Main Menu'!$T$11 ->  | Z47: =SUMIFS('Year 01'!$AU$10:$AU$1009,'Year 01'!$G$10:$G$1009,"="&Z$40,'Year 01'!$I$10:$I$1009,"=3")/'Main Menu'!$T$11 ->  | AA47: =SUMIFS('Year 01'!$AU$10:$AU$1009,'Year 01'!$G$10:$G$1009,"="&AA$40,'Year 01'!$I$10:$I$1009,"=2")/'Main Menu'!$T$11 ->  | AB47: =SUMIFS('Year 01'!$AU$10:$AU$1009,'Year 01'!$G$10:$G$1009,"="&AB$40,'Year 01'!$I$10:$I$1009,"=1")/'Main Menu'!$T$11 -> 
D48: 2 | E48: 2 | F48: 1 | U48: =SUMIFS('Year 01'!$AU$10:$AU$1009,'Year 01'!$G$10:$G$1009,"="&U$40,'Year 01'!$H$10:$H$1009,"=2")/'Main Menu'!$T$11 ->  | V48: =SUMIFS('Year 01'!$AU$10:$AU$1009,'Year 01'!$G$10:$G$1009,"="&V$40,'Year 01'!$H$10:$H$1009,"=1")/'Main Menu'!$T$11 ->  | Z48: =SUMIFS('Year 01'!$AU$10:$AU$1009,'Year 01'!$G$10:$G$1009,"="&Z$40,'Year 01'!$I$10:$I$1009,"=2")/'Main Menu'!$T$11 ->  | AA48: =SUMIFS('Year 01'!$AU$10:$AU$1009,'Year 01'!$G$10:$G$1009,"="&AA$40,'Year 01'!$I$10:$I$1009,"=1")/'Main Menu'!$T$11 -> 
D49: 1 | E49: 1 | U49: =SUMIFS('Year 01'!$AU$10:$AU$1009,'Year 01'!$G$10:$G$1009,"="&U$40,'Year 01'!$H$10:$H$1009,"=1")/'Main Menu'!$T$11 ->  | Z49: =SUMIFS('Year 01'!$AU$10:$AU$1009,'Year 01'!$G$10:$G$1009,"="&Z$40,'Year 01'!$I$10:$I$1009,"=1")/'Main Menu'!$T$11 -> 

Sheet Detailed Results
B2: NCHRP Project 24-46 GAM Planner
B3: Detailed Results
B5: Asset ID | C5: 1 | E5: Fixed Seg. Length | F5: =INDEX(Inventory!$C$9:$AX$1008,$C$44,13) -> 
B6: Type | C6: =INDEX(Inventory!$C$9:$AX$1008,$C$44,3) ->  | E6: Total Seg. Length | F6: =INDEX(Inventory!$C$9:$AX$1008,$C$44,15) -> 
B7: Route | C7: =INDEX(Inventory!$C$9:$AX$1008,$C$44,7) ->  | E7: Cost Scale Factor | F7: =INDEX(Inventory!$C$9:$AX$1008,$C$44,17) -> 
B8: Milepost | C8: =INDEX(Inventory!$C$9:$AX$1008,$C$44,9) ->  | E8: Effective Quantity | F8: =INDEX(Inventory!$C$9:$AX$1008,$C$44,19) -> 
B9: Description | C9: =INDEX(Inventory!$C$9:$AX$1008,$C$44,11) -> 
C11: O&M | D11: Safety | E11: Mobility | F11: Total GAM | G11: Treatment | L11: Agency Costs | O11: User Costs
B12: Year | C12: Condition Level | D12: Consequence | E12: Consequence | F12: Risk Level | G12: Recommended | H12: Cost | I12: Benefit | J12: BCR | K12: Program? | L12: Total | M12: Do Min | N12: Failure | O12: Total | P12: Failure
B13: ='Summary Results'!C9 -> 1 | C13: =INDEX(Inventory!$C$1011:$C$1015,INDEX('Year 01'!$D$10:$AU$1009,$C$44,4),1) ->  | D13: =INDEX(Inventory!$C$1018:$C$1022,INDEX('Year 01'!$H$10:$H$1009,$C$44,1),1) ->  | E13: =INDEX(Inventory!$C$1025:$C$1029,INDEX('Year 01'!$I$10:$I$1009,$C$44,1),1) ->  | F13: =VALUE(LEFT(C13,1))*(VALUE(LEFT(D13,1)+VALUE(LEFT(E13,1)))) ->  | G13: =INDEX('Year 01'!$D$10:$AU$1009,$C$44,22) ->  | H13: =INDEX('Year 01'!$D$10:$AU$1009,$C$44,30) ->  | I13: =INDEX('Year 01'!$D$10:$AU$1009,$C$44,31) ->  | J13: =IF(AND(INDEX('Year 01'!$D$10:$AU$1009,$C$44,32)<999999,INDEX('Year 01'!$D$10:$AU$1009,$C$44,32)>=0),INDEX('Year 01'!$D$10:$AU$1009,$C$44,32)+1,"N/A") ->  | K13: =IF(INDEX('Year 01'!$D$10:$AU$1009,$C$44,34),"Yes","No") ->  | L13: =INDEX('Year 01'!$D$10:$AU$1009,$C$44,39) ->  | M13: =INDEX('Year 01'!$D$10:$AU$1009,$C$44,40) ->  | N13: =INDEX('Year 01'!$D$10:$AU$1009,$C$44,41) ->  | O13: =INDEX('Year 01'!$D$10:$AU$1009,$C$44,42) ->  | P13: =INDEX('Year 01'!$D$10:$AU$1009,$C$44,43) -> 
B14: ='Summary Results'!C10 -> 2 | C14: =INDEX(Inventory!$C$1011:$C$1015,INDEX('Year 02'!$D$10:$AU$1009,$C$44,4),1) ->  | D14: =INDEX(Inventory!$C$1018:$C$1022,INDEX('Year 02'!$H$10:$H$1009,$C$44,1),1) ->  | E14: =INDEX(Inventory!$C$1025:$C$1029,INDEX('Year 02'!$I$10:$I$1009,$C$44,1),1) ->  | F14: =VALUE(LEFT(C14,1))*(VALUE(LEFT(D14,1)+VALUE(LEFT(E14,1)))) ->  | G14: =INDEX('Year 01'!$D$10:$AU$1009,$C$44,22) ->  | H14: =INDEX('Year 01'!$D$10:$AU$1009,$C$44,30) ->  | I14: =INDEX('Year 01'!$D$10:$AU$1009,$C$44,31) ->  | J14: =IF(AND(INDEX('Year 01'!$D$10:$AU$1009,$C$44,32)<999999,INDEX('Year 01'!$D$10:$AU$1009,$C$44,32)>=0),INDEX('Year 01'!$D$10:$AU$1009,$C$44,32)+1,"N/A") ->  | K14: =IF(INDEX('Year 01'!$D$10:$AU$1009,$C$44,34),"Yes","No") ->  | L14: =INDEX('Year 01'!$D$10:$AU$1009,$C$44,39) ->  | M14: =INDEX('Year 01'!$D$10:$AU$1009,$C$44,40) ->  | N14: =INDEX('Year 01'!$D$10:$AU$1009,$C$44,41) ->  | O14: =INDEX('Year 01'!$D$10:$AU$1009,$C$44,42) ->  | P14: =INDEX('Year 01'!$D$10:$AU$1009,$C$44,43) -> 
B15: ='Summary Results'!C11 -> 3 | C15: =INDEX(Inventory!$C$1011:$C$1015,INDEX('Year 03'!$D$10:$AU$1009,$C$44,4),1) ->  | D15: =INDEX(Inventory!$C$1018:$C$1022,INDEX('Year 03'!$H$10:$H$1009,$C$44,1),1) ->  | E15: =INDEX(Inventory!$C$1025:$C$1029,INDEX('Year 03'!$I$10:$I$1009,$C$44,1),1) ->  | G15: =INDEX('Year 01'!$D$10:$AU$1009,$C$44,22) ->  | H15: =INDEX('Year 01'!$D$10:$AU$1009,$C$44,30) ->  | I15: =INDEX('Year 01'!$D$10:$AU$1009,$C$44,31) ->  | J15: =IF(AND(INDEX('Year 01'!$D$10:$AU$1009,$C$44,32)<999999,INDEX('Year 01'!$D$10:$AU$1009,$C$44,32)>=0),INDEX('Year 01'!$D$10:$AU$1009,$C$44,32)+1,"N/A") ->  | K15: =IF(INDEX('Year 01'!$D$10:$AU$1009,$C$44,34),"Yes","No") ->  | L15: =INDEX('Year 01'!$D$10:$AU$1009,$C$44,39) ->  | M15: =INDEX('Year 01'!$D$10:$AU$1009,$C$44,40) ->  | N15: =INDEX('Year 01'!$D$10:$AU$1009,$C$44,41) ->  | O15: =INDEX('Year 01'!$D$10:$AU$1009,$C$44,42) ->  | P15: =INDEX('Year 01'!$D$10:$AU$1009,$C$44,43) -> 
B16: ='Summary Results'!C12 -> 4 | C16: =INDEX(Inventory!$C$1011:$C$1015,INDEX('Year 04'!$D$10:$AU$1009,$C$44,4),1) ->  | D16: =INDEX(Inventory!$C$1018:$C$1022,INDEX('Year 04'!$H$10:$H$1009,$C$44,1),1) ->  | E16: =INDEX(Inventory!$C$1025:$C$1029,INDEX('Year 04'!$I$10:$I$1009,$C$44,1),1) ->  | G16: =INDEX('Year 01'!$D$10:$AU$1009,$C$44,22) ->  | H16: =INDEX('Year 01'!$D$10:$AU$1009,$C$44,30) ->  | I16: =INDEX('Year 01'!$D$10:$AU$1009,$C$44,31) ->  | J16: =IF(AND(INDEX('Year 01'!$D$10:$AU$1009,$C$44,32)<999999,INDEX('Year 01'!$D$10:$AU$1009,$C$44,32)>=0),INDEX('Year 01'!$D$10:$AU$1009,$C$44,32)+1,"N/A") ->  | K16: =IF(INDEX('Year 01'!$D$10:$AU$1009,$C$44,34),"Yes","No") ->  | L16: =INDEX('Year 01'!$D$10:$AU$1009,$C$44,39) ->  | M16: =INDEX('Year 01'!$D$10:$AU$1009,$C$44,40) ->  | N16: =INDEX('Year 01'!$D$10:$AU$1009,$C$44,41) ->  | O16: =INDEX('Year 01'!$D$10:$AU$1009,$C$44,42) ->  | P16: =INDEX('Year 01'!$D$10:$AU$1009,$C$44,43) -> 
B17: ='Summary Results'!C13 -> 5 | C17: =INDEX(Inventory!$C$1011:$C$1015,INDEX('Year 05'!$D$10:$AU$1009,$C$44,4),1) ->  | D17: =INDEX(Inventory!$C$1018:$C$1022,INDEX('Year 05'!$H$10:$H$1009,$C$44,1),1) ->  | E17: =INDEX(Inventory!$C$1025:$C$1029,INDEX('Year 05'!$I$10:$I$1009,$C$44,1),1) ->  | G17: =INDEX('Year 01'!$D$10:$AU$1009,$C$44,22) ->  | H17: =INDEX('Year 01'!$D$10:$AU$1009,$C$44,30) ->  | I17: =INDEX('Year 01'!$D$10:$AU$1009,$C$44,31) ->  | J17: =IF(AND(INDEX('Year 01'!$D$10:$AU$1009,$C$44,32)<999999,INDEX('Year 01'!$D$10:$AU$1009,$C$44,32)>=0),INDEX('Year 01'!$D$10:$AU$1009,$C$44,32)+1,"N/A") ->  | K17: =IF(INDEX('Year 01'!$D$10:$AU$1009,$C$44,34),"Yes","No") ->  | L17: =INDEX('Year 01'!$D$10:$AU$1009,$C$44,39) ->  | M17: =INDEX('Year 01'!$D$10:$AU$1009,$C$44,40) ->  | N17: =INDEX('Year 01'!$D$10:$AU$1009,$C$44,41) ->  | O17: =INDEX('Year 01'!$D$10:$AU$1009,$C$44,42) ->  | P17: =INDEX('Year 01'!$D$10:$AU$1009,$C$44,43) -> 
B18: ='Summary Results'!C14 -> 6 | C18: =INDEX(Inventory!$C$1011:$C$1015,INDEX('Year 06'!$D$10:$AU$1009,$C$44,4),1) ->  | D18: =INDEX(Inventory!$C$1018:$C$1022,INDEX('Year 06'!$H$10:$H$1009,$C$44,1),1) ->  | E18: =INDEX(Inventory!$C$1025:$C$1029,INDEX('Year 06'!$I$10:$I$1009,$C$44,1),1) ->  | G18: =INDEX('Year 01'!$D$10:$AU$1009,$C$44,22) ->  | H18: =INDEX('Year 01'!$D$10:$AU$1009,$C$44,30) ->  | I18: =INDEX('Year 01'!$D$10:$AU$1009,$C$44,31) ->  | J18: =IF(AND(INDEX('Year 01'!$D$10:$AU$1009,$C$44,32)<999999,INDEX('Year 01'!$D$10:$AU$1009,$C$44,32)>=0),INDEX('Year 01'!$D$10:$AU$1009,$C$44,32)+1,"N/A") ->  | K18: =IF(INDEX('Year 01'!$D$10:$AU$1009,$C$44,34),"Yes","No") ->  | L18: =INDEX('Year 01'!$D$10:$AU$1009,$C$44,39) ->  | M18: =INDEX('Year 01'!$D$10:$AU$1009,$C$44,40) ->  | N18: =INDEX('Year 01'!$D$10:$AU$1009,$C$44,41) ->  | O18: =INDEX('Year 01'!$D$10:$AU$1009,$C$44,42) ->  | P18: =INDEX('Year 01'!$D$10:$AU$1009,$C$44,43) -> 
B19: ='Summary Results'!C15 -> 7 | C19: =INDEX(Inventory!$C$1011:$C$1015,INDEX('Year 07'!$D$10:$AU$1009,$C$44,4),1) ->  | D19: =INDEX(Inventory!$C$1018:$C$1022,INDEX('Year 07'!$H$10:$H$1009,$C$44,1),1) ->  | E19: =INDEX(Inventory!$C$1025:$C$1029,INDEX('Year 07'!$I$10:$I$1009,$C$44,1),1) ->  | G19: =INDEX('Year 01'!$D$10:$AU$1009,$C$44,22) ->  | H19: =INDEX('Year 01'!$D$10:$AU$1009,$C$44,30) ->  | I19: =INDEX('Year 01'!$D$10:$AU$1009,$C$44,31) ->  | J19: =IF(AND(INDEX('Year 01'!$D$10:$AU$1009,$C$44,32)<999999,INDEX('Year 01'!$D$10:$AU$1009,$C$44,32)>=0),INDEX('Year 01'!$D$10:$AU$1009,$C$44,32)+1,"N/A") ->  | K19: =IF(INDEX('Year 01'!$D$10:$AU$1009,$C$44,34),"Yes","No") ->  | L19: =INDEX('Year 01'!$D$10:$AU$1009,$C$44,39) ->  | M19: =INDEX('Year 01'!$D$10:$AU$1009,$C$44,40) ->  | N19: =INDEX('Year 01'!$D$10:$AU$1009,$C$44,41) ->  | O19: =INDEX('Year 01'!$D$10:$AU$1009,$C$44,42) ->  | P19: =INDEX('Year 01'!$D$10:$AU$1009,$C$44,43) -> 
B20: ='Summary Results'!C16 -> 8 | C20: =INDEX(Inventory!$C$1011:$C$1015,INDEX('Year 08'!$D$10:$AU$1009,$C$44,4),1) ->  | D20: =INDEX(Inventory!$C$1018:$C$1022,INDEX('Year 08'!$H$10:$H$1009,$C$44,1),1) ->  | E20: =INDEX(Inventory!$C$1025:$C$1029,INDEX('Year 08'!$I$10:$I$1009,$C$44,1),1) ->  | G20: =INDEX('Year 01'!$D$10:$AU$1009,$C$44,22) ->  | H20: =INDEX('Year 01'!$D$10:$AU$1009,$C$44,30) ->  | I20: =INDEX('Year 01'!$D$10:$AU$1009,$C$44,31) ->  | J20: =IF(AND(INDEX('Year 01'!$D$10:$AU$1009,$C$44,32)<999999,INDEX('Year 01'!$D$10:$AU$1009,$C$44,32)>=0),INDEX('Year 01'!$D$10:$AU$1009,$C$44,32)+1,"N/A") ->  | K20: =IF(INDEX('Year 01'!$D$10:$AU$1009,$C$44,34),"Yes","No") ->  | L20: =INDEX('Year 01'!$D$10:$AU$1009,$C$44,39) ->  | M20: =INDEX('Year 01'!$D$10:$AU$1009,$C$44,40) ->  | N20: =INDEX('Year 01'!$D$10:$AU$1009,$C$44,41) ->  | O20: =INDEX('Year 01'!$D$10:$AU$1009,$C$44,42) ->  | P20: =INDEX('Year 01'!$D$10:$AU$1009,$C$44,43) -> 
B21: ='Summary Results'!C17 -> 9 | C21: =INDEX(Inventory!$C$1011:$C$1015,INDEX('Year 09'!$D$10:$AU$1009,$C$44,4),1) ->  | D21: =INDEX(Inventory!$C$1018:$C$1022,INDEX('Year 09'!$H$10:$H$1009,$C$44,1),1) ->  | E21: =INDEX(Inventory!$C$1025:$C$1029,INDEX('Year 09'!$I$10:$I$1009,$C$44,1),1) ->  | G21: =INDEX('Year 01'!$D$10:$AU$1009,$C$44,22) ->  | H21: =INDEX('Year 01'!$D$10:$AU$1009,$C$44,30) ->  | I21: =INDEX('Year 01'!$D$10:$AU$1009,$C$44,31) ->  | J21: =IF(AND(INDEX('Year 01'!$D$10:$AU$1009,$C$44,32)<999999,INDEX('Year 01'!$D$10:$AU$1009,$C$44,32)>=0),INDEX('Year 01'!$D$10:$AU$1009,$C$44,32)+1,"N/A") ->  | K21: =IF(INDEX('Year 01'!$D$10:$AU$1009,$C$44,34),"Yes","No") ->  | L21: =INDEX('Year 01'!$D$10:$AU$1009,$C$44,39) ->  | M21: =INDEX('Year 01'!$D$10:$AU$1009,$C$44,40) ->  | N21: =INDEX('Year 01'!$D$10:$AU$1009,$C$44,41) ->  | O21: =INDEX('Year 01'!$D$10:$AU$1009,$C$44,42) ->  | P21: =INDEX('Year 01'!$D$10:$AU$1009,$C$44,43) -> 
B22: ='Summary Results'!C18 -> 10 | C22: =INDEX(Inventory!$C$1011:$C$1015,INDEX('Year 10'!$D$10:$AU$1009,$C$44,4),1) ->  | D22: =INDEX(Inventory!$C$1018:$C$1022,INDEX('Year 10'!$H$10:$H$1009,$C$44,1),1) ->  | E22: =INDEX(Inventory!$C$1025:$C$1029,INDEX('Year 10'!$I$10:$I$1009,$C$44,1),1) ->  | F22: =VALUE(LEFT(C22,1))*(VALUE(LEFT(D22,1)+VALUE(LEFT(E22,1)))) ->  | G22: =INDEX('Year 01'!$D$10:$AU$1009,$C$44,22) ->  | H22: =INDEX('Year 01'!$D$10:$AU$1009,$C$44,30) ->  | I22: =INDEX('Year 01'!$D$10:$AU$1009,$C$44,31) ->  | J22: =IF(AND(INDEX('Year 01'!$D$10:$AU$1009,$C$44,32)<999999,INDEX('Year 01'!$D$10:$AU$1009,$C$44,32)>=0),INDEX('Year 01'!$D$10:$AU$1009,$C$44,32)+1,"N/A") ->  | K22: =IF(INDEX('Year 01'!$D$10:$AU$1009,$C$44,34),"Yes","No") ->  | L22: =INDEX('Year 01'!$D$10:$AU$1009,$C$44,39) ->  | M22: =INDEX('Year 01'!$D$10:$AU$1009,$C$44,40) ->  | N22: =INDEX('Year 01'!$D$10:$AU$1009,$C$44,41) ->  | O22: =INDEX('Year 01'!$D$10:$AU$1009,$C$44,42) ->  | P22: =INDEX('Year 01'!$D$10:$AU$1009,$C$44,43) -> 
B23: Total | C23: =INDEX(Inventory!$C$1011:$C$1015,INDEX('Year 10'!$D$10:$AU$1009,$C$44,36),1) ->  | D23: =IF(INDEX('Year 10'!$AN$10:$AN$1009,$C$44,1)=INDEX('Year 10'!$J$10:$J$1009,$C$44,1),D22,INDEX(Inventory!$C$1018:$C$1022,INDEX('Year 10'!$AN$10:$AN$1009,$C$44,1),1)) ->  | E23: =IF(INDEX('Year 10'!$AN$10:$AN$1009,$C$44,1)=INDEX('Year 10'!$J$10:$J$1009,$C$44,1),E22,INDEX(Inventory!$C$1025:$C$1029,INDEX('Year 10'!$AN$10:$AN$1009,$C$44,1),1)) ->  | F23: =VALUE(LEFT(C23,1))*(VALUE(LEFT(D23,1)+VALUE(LEFT(E23,1)))) ->  | L23: =SUM(L13:L22) ->  | M23: =SUM(M13:M22) ->  | N23: =SUM(N13:N22) ->  | O23: =SUM(O13:O22) ->  | P23: =SUM(P13:P22) -> 
I27: OM | J27: S/M
I28: =VALUE(LEFT(C13,1)) ->  | J28: =ROUND((VALUE(LEFT(D13,1))+VALUE(LEFT(E13,1)))/2,0) -> 
I29: =VALUE(LEFT(C14,1)) ->  | J29: =ROUND((VALUE(LEFT(D14,1))+VALUE(LEFT(E14,1)))/2,0) -> 
B44: Row | C44: =MATCH(C5,B47:B1046) -> 
B46: Asset ID
B47: =IF(Inventory!C9<>"",Inventory!C9,"") -> 
B48: =IF(Inventory!C10<>"",Inventory!C10,"") -> 
B49: =IF(Inventory!C11<>"",Inventory!C11,"") -> 
B50: =IF(Inventory!C12<>"",Inventory!C12,"") -> 
B51: =IF(Inventory!C13<>"",Inventory!C13,"") -> 
B52: =IF(Inventory!C14<>"",Inventory!C14,"") -> 
B53: =IF(Inventory!C15<>"",Inventory!C15,"") -> 
B54: =IF(Inventory!C16<>"",Inventory!C16,"") -> 
B55: =IF(Inventory!C17<>"",Inventory!C17,"") -> 
B56: =IF(Inventory!C18<>"",Inventory!C18,"") -> 
B57: =IF(Inventory!C19<>"",Inventory!C19,"") -> 
B58: =IF(Inventory!C20<>"",Inventory!C20,"") -> 
B59: =IF(Inventory!C21<>"",Inventory!C21,"") -> 
B60: =IF(Inventory!C22<>"",Inventory!C22,"") -> 
B61: =IF(Inventory!C23<>"",Inventory!C23,"") -> 
B62: =IF(Inventory!C24<>"",Inventory!C24,"") -> 
B63: =IF(Inventory!C25<>"",Inventory!C25,"") -> 
B64: =IF(Inventory!C26<>"",Inventory!C26,"") -> 
B65: =IF(Inventory!C27<>"",Inventory!C27,"") -> 
B66: =IF(Inventory!C28<>"",Inventory!C28,"") -> 
B67: =IF(Inventory!C29<>"",Inventory!C29,"") -> 
B68: =IF(Inventory!C30<>"",Inventory!C30,"") -> 
B69: =IF(Inventory!C31<>"",Inventory!C31,"") -> 
B70: =IF(Inventory!C32<>"",Inventory!C32,"") -> 
B71: =IF(Inventory!C33<>"",Inventory!C33,"") -> 
B72: =IF(Inventory!C34<>"",Inventory!C34,"") -> 
B73: =IF(Inventory!C35<>"",Inventory!C35,"") -> 
B74: =IF(Inventory!C36<>"",Inventory!C36,"") -> 
B75: =IF(Inventory!C37<>"",Inventory!C37,"") -> 
B76: =IF(Inventory!C38<>"",Inventory!C38,"") -> 
B77: =IF(Inventory!C39<>"",Inventory!C39,"") -> 
B78: =IF(Inventory!C40<>"",Inventory!C40,"") -> 
B79: =IF(Inventory!C41<>"",Inventory!C41,"") -> 
B80: =IF(Inventory!C42<>"",Inventory!C42,"") -> 
B81: =IF(Inventory!C43<>"",Inventory!C43,"") -> 
B82: =IF(Inventory!C44<>"",Inventory!C44,"") -> 
B83: =IF(Inventory!C45<>"",Inventory!C45,"") -> 
B84: =IF(Inventory!C46<>"",Inventory!C46,"") -> 
B85: =IF(Inventory!C47<>"",Inventory!C47,"") -> 
B86: =IF(Inventory!C48<>"",Inventory!C48,"") -> 
B87: =IF(Inventory!C49<>"",Inventory!C49,"") -> 
B88: =IF(Inventory!C50<>"",Inventory!C50,"") -> 
B89: =IF(Inventory!C51<>"",Inventory!C51,"") -> 
B90: =IF(Inventory!C52<>"",Inventory!C52,"") -> 
B91: =IF(Inventory!C53<>"",Inventory!C53,"") -> 
B92: =IF(Inventory!C54<>"",Inventory!C54,"") -> 
B93: =IF(Inventory!C55<>"",Inventory!C55,"") -> 
B94: =IF(Inventory!C56<>"",Inventory!C56,"") -> 
B95: =IF(Inventory!C57<>"",Inventory!C57,"") -> 
B96: =IF(Inventory!C58<>"",Inventory!C58,"") -> 
B97: =IF(Inventory!C59<>"",Inventory!C59,"") -> 
B98: =IF(Inventory!C60<>"",Inventory!C60,"") -> 
B99: =IF(Inventory!C61<>"",Inventory!C61,"") -> 
B100: =IF(Inventory!C62<>"",Inventory!C62,"") -> 
B101: =IF(Inventory!C63<>"",Inventory!C63,"") -> 
B102: =IF(Inventory!C64<>"",Inventory!C64,"") -> 
B103: =IF(Inventory!C65<>"",Inventory!C65,"") -> 
B104: =IF(Inventory!C66<>"",Inventory!C66,"") -> 
B105: =IF(Inventory!C67<>"",Inventory!C67,"") -> 
B106: =IF(Inventory!C68<>"",Inventory!C68,"") -> 
B107: =IF(Inventory!C69<>"",Inventory!C69,"") -> 
B108: =IF(Inventory!C70<>"",Inventory!C70,"") -> 
B109: =IF(Inventory!C71<>"",Inventory!C71,"") -> 
B110: =IF(Inventory!C72<>"",Inventory!C72,"") -> 
B111: =IF(Inventory!C73<>"",Inventory!C73,"") -> 
B112: =IF(Inventory!C74<>"",Inventory!C74,"") -> 
B113: =IF(Inventory!C75<>"",Inventory!C75,"") -> 
B114: =IF(Inventory!C76<>"",Inventory!C76,"") -> 
B115: =IF(Inventory!C77<>"",Inventory!C77,"") -> 
B116: =IF(Inventory!C78<>"",Inventory!C78,"") -> 
B117: =IF(Inventory!C79<>"",Inventory!C79,"") -> 
B118: =IF(Inventory!C80<>"",Inventory!C80,"") -> 
B119: =IF(Inventory!C81<>"",Inventory!C81,"") -> 
B120: =IF(Inventory!C82<>"",Inventory!C82,"") -> 
B121: =IF(Inventory!C83<>"",Inventory!C83,"") -> 
B122: =IF(Inventory!C84<>"",Inventory!C84,"") -> 
B123: =IF(Inventory!C85<>"",Inventory!C85,"") -> 
B124: =IF(Inventory!C86<>"",Inventory!C86,"") -> 
B125: =IF(Inventory!C87<>"",Inventory!C87,"") -> 
... 156 more rows

Sheet Asset Model Builder
B2: NCHRP Project 24-46 GAM Planner
B3: Asset Model Builder
C5: MISCELLANEOUS PARAMETERS
D7: Description | F7: Example
D8: Discount Rate | F8: 0.05
C10: TREATMENTS
D12: ID | E12: Description | F12: Feasible | G12: Annual Agency Cost | H12: Notes
D13: 1 | E13: =F170 -> Maintain | F13: Yes | G13: 5000
D14: 2 | E14: =F171 -> Rehab | F14: Yes | G14: 250000
D15: 3 | E15: =F172 -> Reconstruct | F15: Yes | G15: 500000
C17: PARAMETERS SPECIFIED BY OPERATIONS & MAINTENANCE CONDITION LEVEL
E19: Do Minimum Cost | I19: One-Year Probabilities for the Do-Minimum Action
D20: Risk Level | H20: O&M Condition Level After Rehab | K20: Med. Years
E21: Agency | F21: User | G21: Total | I21: Stay the Same | J21: Deteriorate | K21: to Deteriorate | L21: Fail | M21: Notes
D22: 1 | E22: 0 | F22: 0 | G22: =E22+F22 -> 0 | H22: N/A | I22: 0.96 | J22: =1-I22-L22 -> 0.03 | K22: =LN(0.5)/LN(I22) -> 16.97974802 | L22: 0.01
D23: 2 | E23: 500 | F23: 0 | G23: =E23+F23 -> 500 | H23: 1 | I23: 0.93 | J23: =1-I23-L23 -> 0.05 | K23: =LN(0.5)/LN(I23) -> 9.551337509 | L23: 0.02
D24: 3 | E24: 2500 | F24: 0 | G24: =E24+F24 -> 2500 | H24: 2 | I24: 0.9 | J24: =1-I24-L24 -> 0.05 | K24: =LN(0.5)/LN(I24) -> 6.578813479 | L24: 0.05
D25: 4 | E25: 5000 | F25: 0 | G25: =E25+F25 -> 5000 | H25: 2 | I25: 0.5 | J25: N/A | K25: =LN(0.5)/LN(I25) -> 1 | L25: 0.5
C27: PARAMETERS SPECIFIED BY SAFETY & MOBILITY RISK LEVEL
E29: Additional Annual Cost (Relative to Do Min Cost Above) | H29: Annual Failure Risk for a New Asset | I29: Unit Failure Cost | K29: Level Following Failure
D30: Risk Level
E31: Agency | F31: User | G31: Total | I31: Agency | J31: User | K31: O&M Condition | L31: Safety/Mobility Risk | M31: Notes
D32: 1 | E32: 0 | F32: 0 | G32: =E32+F32 -> 0 | H32: 0 | I32: 4000000 | J32: 5000 | K32: 1 | L32: 1
D33: 2 | E33: 0 | F33: 0 | G33: =E33+F33 -> 0 | H33: 0 | I33: 4000000 | J33: 5000 | K33: 1 | L33: 2
D34: 3 | E34: 0 | F34: 1000 | G34: 1000 | H34: 0 | I34: 4000000 | J34: 25000 | K34: 1 | L34: 3
D35: 4 | E35: 0 | F35: 5000 | G35: =E35+F35 -> 5000 | H35: 0 | I35: 4000000 | J35: 50000 | K35: 1 | L35: 4
D36: 5 | E36: 0 | F36: 50000 | G36: =E36+F36 -> 50000 | H36: 0 | I36: 4000000 | J36: 500000 | K36: 1 | L36: 5
C38: SOLUTION BY STATE
E40: O&M | F40: Safety/Mobility
D41: State | E41: Condition Level | F41: Conseq. Level | G41: Rec. Action | H41: Desc. | I41: Long-Term Cost | J41: Benefit
D42: 1 | E42: 1 | F42: 1 | G42: =SUMPRODUCT(F72:F73,$AK72:$AK73) -> 1 | H42: =VLOOKUP(G42,$E$169:$F$173,2) -> Maintain | I42: =SUMPRODUCT(AH72:AH73,$AK72:$AK73) -> 105000 | J42: =SUMPRODUCT(AJ72:AJ73,$AK72:$AK73) -> 33095.2381
D43: 2 | E43: 2 | F43: 1 | G43: =SUMPRODUCT(F74:F77,$AK74:$AK77) -> 1 | H43: Maintain | I43: =SUMPRODUCT(AH74:AH77,$AK74:$AK77) -> 105000 | J43: =SUMPRODUCT(AJ74:AJ77,$AK74:$AK77) -> 71690.47619
D44: 3 | E44: 3 | F44: 1 | G44: =SUMPRODUCT(F78:F81,$AK78:$AK81) -> 1 | H44: Maintain | I44: =SUMPRODUCT(AH78:AH81,$AK78:$AK81) -> 105000 | J44: =SUMPRODUCT(AJ78:AJ81,$AK78:$AK81) -> 187976.1905
D45: 4 | E45: 4 | F45: 1 | G45: =SUMPRODUCT(F82:F85,$AK82:$AK85) -> 1 | H45: Maintain | I45: =SUMPRODUCT(AH82:AH85,$AK82:$AK85) -> 105000 | J45: =SUMPRODUCT(AJ82:AJ85,$AK82:$AK85) -> 1904761.905
D46: 5 | E46: 5 | F46: 1 | G46: 4 | H46: Restore | I46: =AH86 -> 4105000 | J46: 0
D47: 6 | E47: 1 | F47: 2 | G47: =SUMPRODUCT(F87:F89,$AK87:$AK89) -> 1 | H47: Maintain | I47: =SUMPRODUCT(AH87:AH89,$AK87:$AK89) -> 105000 | J47: =SUMPRODUCT(AJ87:AJ89,$AK87:$AK89) -> 33095.2381
D48: 7 | E48: 2 | F48: 2 | G48: =SUMPRODUCT(F90:F93,$AK90:$AK93) -> 1 | H48: Maintain | I48: =SUMPRODUCT(AH90:AH93,$AK90:$AK93) -> 105000 | J48: =SUMPRODUCT(AJ90:AJ93,$AK90:$AK93) -> 71690.47619
D49: 8 | E49: 3 | F49: 2 | G49: =SUMPRODUCT(F94:F97,$AK94:$AK97) -> 1 | H49: Maintain | I49: =SUMPRODUCT(AH94:AH97,$AK94:$AK97) -> 105000 | J49: =SUMPRODUCT(AJ94:AJ97,$AK94:$AK97) -> 187976.1905
D50: 9 | E50: 4 | F50: 2 | G50: =SUMPRODUCT(F98:F101,$AK98:$AK101) -> 1 | H50: Maintain | I50: =SUMPRODUCT(AH98:AH101,$AK98:$AK101) -> 105000 | J50: =SUMPRODUCT(AJ98:AJ101,$AK98:$AK101) -> 1904761.905
D51: 10 | E51: 5 | F51: 2 | G51: 4 | H51: Restore | I51: =AH102 -> 4105000 | J51: 0
D52: 11 | E52: 1 | F52: 3 | G52: =SUMPRODUCT(F103:F105,$AK103:$AK105) -> 1 | H52: Maintain | I52: =SUMPRODUCT(AH103:AH105,$AK103:$AK105) -> 126000 | J52: =SUMPRODUCT(AJ103:AJ105,$AK103:$AK105) -> 33276.19048
D53: 12 | E53: 2 | F53: 3 | G53: =SUMPRODUCT(F106:F109,$AK106:$AK109) -> 1 | H53: Maintain | I53: =SUMPRODUCT(AH106:AH109,$AK106:$AK109) -> 126000 | J53: =SUMPRODUCT(AJ106:AJ109,$AK106:$AK109) -> 72052.38095
D54: 13 | E54: 3 | F54: 3 | G54: =SUMPRODUCT(F110:F113,$AK110:$AK113) -> 1 | H54: Maintain | I54: =SUMPRODUCT(AH110:AH113,$AK110:$AK113) -> 126000 | J54: =SUMPRODUCT(AJ110:AJ113,$AK110:$AK113) -> 188880.9524
D55: 14 | E55: 4 | F55: 3 | G55: =SUMPRODUCT(F114:F117,$AK114:$AK117) -> 1 | H55: Maintain | I55: =SUMPRODUCT(AH114:AH117,$AK114:$AK117) -> 126000 | J55: =SUMPRODUCT(AJ114:AJ117,$AK114:$AK117) -> 1913809.524
D56: 15 | E56: 5 | F56: 3 | G56: 4 | H56: Restore | I56: =AH118 -> 4145000 | J56: 0
D57: 16 | E57: 1 | F57: 4 | G57: =SUMPRODUCT(F119:F121,$AK119:$AK121) -> 1 | H57: Maintain | I57: =SUMPRODUCT(AH119:AH121,$AK119:$AK121) -> 210000 | J57: =SUMPRODUCT(AJ119:AJ121,$AK119:$AK121) -> 33476.19048
D58: 17 | E58: 2 | F58: 4 | G58: =SUMPRODUCT(F122:F125,$AK122:$AK125) -> 1 | H58: Maintain | I58: =SUMPRODUCT(AH122:AH125,$AK122:$AK125) -> 210000 | J58: =SUMPRODUCT(AJ122:AJ125,$AK122:$AK125) -> 72452.38095
D59: 18 | E59: 3 | F59: 4 | G59: =SUMPRODUCT(F126:F129,$AK126:$AK129) -> 1 | H59: Maintain | I59: =SUMPRODUCT(AH126:AH129,$AK126:$AK129) -> 210000 | J59: =SUMPRODUCT(AJ126:AJ129,$AK126:$AK129) -> 189880.9524
D60: 19 | E60: 4 | F60: 4 | G60: =SUMPRODUCT(F130:F133,$AK130:$AK133) -> 1 | H60: Maintain | I60: =SUMPRODUCT(AH130:AH133,$AK130:$AK133) -> 210000 | J60: =SUMPRODUCT(AJ130:AJ133,$AK130:$AK133) -> 1923809.524
D61: 20 | E61: 5 | F61: 4 | G61: 4 | H61: Restore | I61: =AH134 -> 4250000 | J61: 0
D62: 21 | E62: 1 | F62: 5 | G62: =SUMPRODUCT(F135:F137,$AK135:$AK137) -> 3 | H62: Reconstruct | I62: =SUMPRODUCT(AH135:AH137,$AK135:$AK137) -> 650000 | J62: =SUMPRODUCT(AJ135:AJ137,$AK135:$AK137) -> 61609.97732
D63: 22 | E63: 2 | F63: 5 | G63: =SUMPRODUCT(F138:F141,$AK138:$AK141) -> 3 | H63: Reconstruct | I63: =SUMPRODUCT(AH138:AH141,$AK138:$AK141) -> 650000 | J63: =SUMPRODUCT(AJ138:AJ141,$AK138:$AK141) -> 104672.3356
D64: 23 | E64: 3 | F64: 5 | G64: =SUMPRODUCT(F142:F145,$AK142:$AK145) -> 3 | H64: Reconstruct | I64: =SUMPRODUCT(AH142:AH145,$AK142:$AK145) -> 650000 | J64: =SUMPRODUCT(AJ142:AJ145,$AK142:$AK145) -> 234359.4104
D65: 24 | E65: 4 | F65: 5 | G65: =SUMPRODUCT(F146:F149,$AK146:$AK149) -> 3 | H65: Reconstruct | I65: =SUMPRODUCT(AH146:AH149,$AK146:$AK149) -> 650000 | J65: =SUMPRODUCT(AJ146:AJ149,$AK146:$AK149) -> 2152165.533
D66: 25 | E66: 5 | F66: 5 | G66: 4 | H66: Restore | I66: =AH150 -> 5119047.619 | J66: 0
C68: DETAILED DATA
I70: Transition Probability to State | AH70: Solution Details
E71: State | F71: Action | G71: Desc | H71: Unit Cost | I71: 1 | J71: 2 | K71: 3 | L71: 4 | M71: 5 | N71: 6 | O71: 7 | P71: 8 | Q71: 9 | R71: 10 | S71: 11 | T71: 12 | U71: 13 | V71: 14 | W71: 15 | X71: 16 | Y71: 17 | Z71: 18 | AA71: 19 | AB71: 20 | AC71: 21 | AD71: 22 | AE71: 23 | AF71: 24 | AG71: 25 | AH71: LT Cost | AI71: LT Cost - Slack | AJ71: Benefit | AK71: Optimal
E72: 1 | F72: 0 | G72: =VLOOKUP(F72,$E$169:$F$173,2) -> Do Minimum | H72: =$G$22+$G$32 -> 0 | I72: =$I$22*(1-$H$32) -> 0.96 | J72: =$J$22*(1-$H$32) -> 0.03 | K72: 0 | L72: 0 | M72: =1-SUM(I72:L72) -> 0.01 | N72: 0 | O72: 0 | P72: 0 | Q72: 0 | R72: 0 | S72: 0 | T72: 0 | U72: 0 | V72: 0 | W72: 0 | X72: 0 | Y72: 0 | Z72: 0 | AA72: 0 | AB72: 0 | AC72: 0 | AD72: 0 | AE72: 0 | AF72: 0 | AG72: =1-SUM(I72:AF72) -> 0 | AH72: =H72+$F$177*SUMPRODUCT(I72:AG72,$E$155:$AC$155) -> 138095.2381 | AI72: =AH72-E$155 -> 33095.2381 | AJ72: =AH72-AH72 -> 0 | AK72: =IF(AH72<=AH73,1,0) -> 0
F73: 1 | G73: Maintain | H73: =$G$13+$G$32 -> 5000 | I73: =IF($F$14=$E$164,1,0)*(1-$H$32) -> 1 | J73: 0 | K73: 0 | L73: 0 | M73: =1-SUM(I73:L73) -> 0 | N73: 0 | O73: 0 | P73: 0 | Q73: 0 | R73: 0 | S73: 0 | T73: 0 | U73: 0 | V73: 0 | W73: 0 | X73: 0 | Y73: 0 | Z73: 0 | AA73: 0 | AB73: =1-SUM(I73:AA73) -> 0 | AC73: 0 | AD73: 0 | AE73: 0 | AF73: 0 | AG73: =1-SUM(I73:AF73) -> 0 | AH73: 105000 | AI73: =AH73-E$155 -> 0 | AJ73: =AH72-AH73 -> 33095.2381 | AK73: =1-AK72 -> 1
E74: 2 | F74: 0 | G74: Do Minimum | H74: =$G$23+$G$32 -> 500 | I74: 0 | J74: =$I$23*(1-$H$32) -> 0.93 | K74: =$J$23*(1-$H$32) -> 0.05 | L74: 0 | M74: 0.02 | N74: 0 | O74: 0 | P74: 0 | Q74: 0 | R74: 0 | S74: 0 | T74: 0 | U74: 0 | V74: 0 | W74: 0 | X74: 0 | Y74: 0 | Z74: 0 | AA74: 0 | AB74: =1-SUM(I74:AA74) -> 0 | AC74: 0 | AD74: 0 | AE74: 0 | AF74: 0 | AG74: 0 | AH74: 176690.4762 | AI74: =AH74-F$155 -> 71690.47619 | AJ74: =AH74-AH74 -> 0 | AK74: =IF(AND(AH74<=AH75,AH74<=AH76,AH74<=AH77),1,0) -> 0
F75: 1 | G75: Maintain | H75: =$G$13+$G$32 -> 5000 | I75: 0 | J75: =IF($F$13=$E$164,1,0)*(1-$H$32) -> 1 | K75: 0 | L75: 0 | M75: 0 | N75: 0 | O75: 0 | P75: 0 | Q75: 0 | R75: 0 | S75: 0 | T75: 0 | U75: 0 | V75: 0 | W75: 0 | X75: 0 | Y75: 0 | Z75: 0 | AA75: 0 | AB75: =1-SUM(I75:AA75) -> 0 | AC75: 0 | AD75: 0 | AE75: 0 | AF75: 0 | AG75: 0 | AH75: 105000 | AI75: =AH75-F$155 -> 0 | AJ75: =AH74-AH75 -> 71690.47619 | AK75: =IF(AND(AK74=0,AH75<=AH76,AH75<=AH77),1,0) -> 1
F76: 2 | G76: Rehab | H76: =$G$14+$G$32 -> 250000 | I76: =IF(AND($F$14=$E$164,$H$23=1),1,0)*(1-$H$32) -> 1 | J76: =IF(AND($F$14=$E$164,$H$23=2),1,0)*(1-$H$32) -> 0 | K76: =IF(AND($F$14=$E$164,$H$23=3),1,0)*(1-$H$32) -> 0 | L76: =IF(AND($F$14=$E$164,$H$23=4),1,0)*(1-$H$32) -> 0 | M76: 0 | N76: 0 | O76: 0 | P76: 0 | Q76: 0 | R76: 0 | S76: 0 | T76: 0 | U76: 0 | V76: 0 | W76: 0 | X76: 0 | Y76: 0 | Z76: 0 | AA76: 0 | AB76: =1-SUM(I76:AA76) -> 0 | AC76: 0 | AD76: 0 | AE76: 0 | AF76: 0 | AG76: 0 | AH76: 350000 | AI76: =AH76-F$155 -> 245000 | AJ76: =AH74-AH76 -> -173309.5238 | AK76: =IF(AND(AK74=0,AK75=0,AH76<=AH77),1,0) -> 0
F77: 3 | G77: Reconstruct | H77: =$G$15+$G$32 -> 500000 | I77: =IF($F$15=$E$164,1,0) -> 1 | J77: 0 | K77: 0 | L77: 0 | M77: 0 | N77: 0 | O77: 0 | P77: 0 | Q77: 0 | R77: 0 | S77: 0 | T77: 0 | U77: 0 | V77: 0 | W77: 0 | X77: 0 | Y77: 0 | Z77: 0 | AA77: 0 | AB77: =1-SUM(I77:AA77) -> 0 | AC77: 0 | AD77: 0 | AE77: 0 | AF77: 0 | AG77: 0 | AH77: 600000 | AI77: =AH77-F$155 -> 495000 | AJ77: =AH74-AH77 -> -423309.5238 | AK77: =1-AK74-AK75-AK76 -> 0
E78: 3 | F78: 0 | G78: Do Minimum | H78: =$G$24+$G$32 -> 2500 | I78: 0 | J78: 0 | K78: =$I$24*(1-$H$32) -> 0.9 | L78: =$J$24*(1-$H$32) -> 0.05 | M78: 0.05 | N78: 0 | O78: 0 | P78: 0 | Q78: 0 | R78: 0 | S78: 0 | T78: 0 | U78: 0 | V78: 0 | W78: 0 | X78: 0 | Y78: 0 | Z78: 0 | AA78: 0 | AB78: 0 | AC78: 0 | AD78: 0 | AE78: 0 | AF78: 0 | AG78: 0 | AH78: 292976.1905 | AI78: =AH78-G$155 -> 187976.1905 | AJ78: =AH78-AH78 -> 0 | AK78: =IF(AND(AH78<=AH79,AH78<=AH80,AH78<=AH81),1,0) -> 0
F79: 1 | G79: Maintain | H79: =$G$13+$G$32 -> 5000 | I79: =I75 -> 0 | J79: 0 | K79: =IF($F$13=$E$164,1,0)*(1-$H$32) -> 1 | L79: 0 | M79: 0 | N79: 0 | O79: 0 | P79: 0 | Q79: 0 | R79: 0 | S79: 0 | T79: 0 | U79: 0 | V79: 0 | W79: 0 | X79: 0 | Y79: 0 | Z79: 0 | AA79: 0 | AB79: 0 | AC79: 0 | AD79: 0 | AE79: 0 | AF79: 0 | AG79: 0 | AH79: 105000 | AI79: =AH79-G$155 -> 0 | AJ79: =AH78-AH79 -> 187976.1905 | AK79: =IF(AND(AK78=0,AH79<=AH80,AH79<=AH81),1,0) -> 1
F80: 2 | G80: Rehab | H80: =$G$14+$G$32 -> 250000 | I80: =IF(AND($F$14=$E$164,$H$24=1),1,0)*(1-$H$32) -> 0 | J80: =IF(AND($F$14=$E$164,$H$24=2),1,0)*(1-$H$32) -> 1 | K80: =IF(AND($F$14=$E$164,$H$24=3),1,0)*(1-$H$32) -> 0 | L80: =IF(AND($F$14=$E$164,$H$24=4),1,0)*(1-$H$32) -> 0 | M80: 0 | N80: 0 | O80: 0 | P80: 0 | Q80: 0 | R80: 0 | S80: 0 | T80: 0 | U80: 0 | V80: 0 | W80: 0 | X80: 0 | Y80: 0 | Z80: 0 | AA80: 0 | AB80: 0 | AC80: 0 | AD80: 0 | AE80: 0 | AF80: 0 | AG80: 0 | AH80: 350000 | AI80: =AH80-G$155 -> 245000 | AJ80: =AH78-AH80 -> -57023.80952 | AK80: =IF(AND(AK78=0,AK79=0,AH80<=AH81),1,0) -> 0
F81: 3 | G81: Reconstruct | H81: =$G$15+$G$32 -> 500000 | I81: =IF($F$15=$E$164,1,0) -> 1 | J81: 0 | K81: 0 | L81: 0 | M81: 0 | N81: 0 | O81: 0 | P81: 0 | Q81: 0 | R81: 0 | S81: 0 | T81: 0 | U81: 0 | V81: 0 | W81: 0 | X81: 0 | Y81: 0 | Z81: 0 | AA81: 0 | AB81: 0 | AC81: 0 | AD81: 0 | AE81: 0 | AF81: 0 | AG81: 0 | AH81: 600000 | AI81: =AH81-G$155 -> 495000 | AJ81: =AH78-AH81 -> -307023.8095 | AK81: =1-AK78-AK79-AK80 -> 0
E82: 4 | F82: 0 | G82: Do Minimum | H82: =$G$25+$G$32 -> 5000 | I82: 0 | J82: 0 | K82: 0 | L82: =$I$25*(1-$H$32) -> 0.5 | M82: 0.5 | N82: 0 | O82: 0 | P82: 0 | Q82: 0 | R82: 0 | S82: 0 | T82: 0 | U82: 0 | V82: 0 | W82: 0 | X82: 0 | Y82: 0 | Z82: 0 | AA82: 0 | AB82: 0 | AC82: 0 | AD82: 0 | AE82: 0 | AF82: 0 | AG82: 0 | AH82: 2009761.905 | AI82: =AH82-H$155 -> 1904761.905 | AJ82: =AH82-AH82 -> 0 | AK82: =IF(AND(AH82<=AH83,AH82<=AH84,AH82<=AH85),1,0) -> 0
F83: 1 | G83: Maintain | H83: =$G$13+$G$32 -> 5000 | I83: =I79 -> 0 | J83: =J79 -> 0 | K83: 0 | L83: =IF($F$13=$E$164,1,0)*(1-$H$32) -> 1 | M83: 0 | N83: 0 | O83: 0 | P83: 0 | Q83: 0 | R83: 0 | S83: 0 | T83: 0 | U83: 0 | V83: 0 | W83: 0 | X83: 0 | Y83: 0 | Z83: 0 | AA83: 0 | AB83: 0 | AC83: 0 | AD83: 0 | AE83: 0 | AF83: 0 | AG83: 0 | AH83: 105000 | AI83: =AH83-H$155 -> 0 | AJ83: =AH82-AH83 -> 1904761.905 | AK83: =IF(AND(AK82=0,AH83<=AH84,AH83<=AH85),1,0) -> 1
F84: 2 | G84: Rehab | H84: =$G$14+$G$32 -> 250000 | I84: =IF(AND($F$14=$E$164,$H$25=1),1,0)*(1-$H$32) -> 0 | J84: =IF(AND($F$14=$E$164,$H$25=2),1,0)*(1-$H$32) -> 1 | K84: =IF(AND($F$14=$E$164,$H$25=3),1,0)*(1-$H$32) -> 0 | L84: =IF(AND($F$14=$E$164,$H$25=4),1,0)*(1-$H$32) -> 0 | M84: 0 | N84: 0 | O84: 0 | P84: 0 | Q84: 0 | R84: 0 | S84: 0 | T84: 0 | U84: 0 | V84: 0 | W84: 0 | X84: 0 | Y84: 0 | Z84: 0 | AA84: 0 | AB84: 0 | AC84: 0 | AD84: 0 | AE84: 0 | AF84: 0 | AG84: 0 | AH84: 350000 | AI84: =AH84-H$155 -> 245000 | AJ84: =AH82-AH84 -> 1659761.905 | AK84: =IF(AND(AK82=0,AK83=0,AH84<=AH85),1,0) -> 0
F85: 3 | G85: Reconstruct | H85: =$G$15+$G$32 -> 500000 | I85: =IF($F$15=$E$164,1,0) -> 1 | J85: 0 | K85: 0 | L85: 0 | M85: 0 | N85: 0 | O85: 0 | P85: 0 | Q85: 0 | R85: 0 | S85: 0 | T85: 0 | U85: 0 | V85: 0 | W85: 0 | X85: 0 | Y85: 0 | Z85: 0 | AA85: 0 | AB85: 0 | AC85: 0 | AD85: 0 | AE85: 0 | AF85: 0 | AG85: 0 | AH85: 600000 | AI85: =AH85-H$155 -> 495000 | AJ85: =AH82-AH85 -> 1409761.905 | AK85: =1-AK82-AK83-AK84 -> 0
E86: 5 | F86: 4 | G86: Restore | H86: =$I$32+$J$32 -> 4005000 | I86: =IF(AND($K$32=1,$L$32=1),1,0) -> 1 | J86: =IF(AND($K$32=2,$L$32=1),1,0) -> 0 | K86: =IF(AND($K$32=3,$L$32=1),1,0) -> 0 | L86: =IF(AND($K$32=4,$L$32=1),1,0) -> 0 | M86: 0 | N86: =IF(AND($K$32=1,$L$32=2),1,0) -> 0 | O86: =IF(AND($K$32=2,$L$32=2),1,0) -> 0 | P86: =IF(AND($K$32=3,$L$32=2),1,0) -> 0 | Q86: =IF(AND($K$32=4,$L$32=2),1,0) -> 0 | R86: 0 | S86: =IF(AND($K$32=1,$L$32=3),1,0) -> 0 | T86: =IF(AND($K$32=2,$L$32=3),1,0) -> 0 | U86: =IF(AND($K$32=3,$L$32=3),1,0) -> 0 | V86: =IF(AND($K$32=4,$L$32=3),1,0) -> 0 | W86: 0 | X86: =IF(AND($K$32=1,$L$32=4),1,0) -> 0 | Y86: =IF(AND($K$32=2,$L$32=4),1,0) -> 0 | Z86: =IF(AND($K$32=3,$L$32=4),1,0) -> 0 | AA86: =IF(AND($K$32=4,$L$32=4),1,0) -> 0 | AB86: 0 | AC86: =IF(AND($K$32=1,$L$32=5),1,0) -> 0 | AD86: =IF(AND($K$32=2,$L$32=5),1,0) -> 0 | AE86: =IF(AND($K$32=3,$L$32=5),1,0) -> 0 | AF86: =IF(AND($K$32=4,$L$32=5),1,0) -> 0 | AG86: 0 | AH86: 4105000 | AI86: =AH86-I$155 -> 0 | AJ86: =AH86-AH86 -> 0 | AK86: 1
E87: 6 | F87: 0 | G87: =VLOOKUP(F87,$E$169:$F$173,2) -> Do Minimum | H87: =$G$22+$G$33 -> 0 | I87: 0 | J87: 0 | K87: 0 | L87: 0 | M87: 0 | N87: =$I$22*(1-$H$33) -> 0.96 | O87: =$J$22*(1-$H$33) -> 0.03 | P87: 0 | Q87: 0 | R87: =1-SUM(I87:Q87) -> 0.01 | S87: 0 | T87: 0 | U87: 0 | V87: 0 | W87: 0 | X87: 0 | Y87: 0 | Z87: 0 | AA87: 0 | AB87: 0 | AC87: 0 | AD87: 0 | AE87: 0 | AF87: 0 | AG87: 0 | AH87: 138095.2381 | AI87: =AH87-J$155 -> 33095.2381 | AJ87: =AH87-AH87 -> 0 | AK87: =IF(AND(AH87<=AH88,AH87<=AH89),1,0) -> 0
F88: 1 | G88: Maintain | H88: =$G$13+$G$33 -> 5000 | I88: 0 | J88: 0 | K88: 0 | L88: 0 | M88: 0 | N88: =IF($F$13=$E$164,1,0)*(1-$H$33) -> 1 | O88: 0 | P88: 0 | Q88: 0 | R88: =1-SUM(I88:Q88) -> 0 | S88: 0 | T88: 0 | U88: 0 | V88: 0 | W88: 0 | X88: 0 | Y88: 0 | Z88: 0 | AA88: 0 | AB88: 0 | AC88: 0 | AD88: 0 | AE88: 0 | AF88: 0 | AG88: 0 | AH88: 105000 | AI88: =AH88-J$155 -> 0 | AJ88: =AH87-AH88 -> 33095.2381 | AK88: =IF(AND(AK87=0,AH88<=AH89),1,0) -> 1
F89: 3 | G89: Reconstruct | H89: =$G$15+$G$33 -> 500000 | I89: =IF($F$15=$E$164,1,0)*(1-$H$33) -> 1 | J89: 0 | K89: 0 | L89: 0 | M89: 0 | N89: 0 | O89: 0 | P89: 0 | Q89: 0 | R89: 0 | S89: 0 | T89: 0 | U89: 0 | V89: 0 | W89: 0 | X89: 0 | Y89: 0 | Z89: 0 | AA89: 0 | AB89: 0 | AC89: 0 | AD89: 0 | AE89: 0 | AF89: 0 | AG89: 0 | AH89: 600000 | AI89: =AH89-J$155 -> 495000 | AJ89: =AH87-AH89 -> -461904.7619 | AK89: =1-AK87-AK88 -> 0
E90: 7 | F90: 0 | G90: Do Minimum | H90: =$G$23+$G$33 -> 500 | I90: 0 | J90: 0 | K90: 0 | L90: 0 | M90: 0 | N90: 0 | O90: =$I$23*(1-$H$33) -> 0.93 | P90: =$J$23*(1-$H$33) -> 0.05 | Q90: 0 | R90: 0.02 | S90: 0 | T90: 0 | U90: 0 | V90: 0 | W90: 0 | X90: 0 | Y90: 0 | Z90: 0 | AA90: 0 | AB90: 0 | AC90: 0 | AD90: 0 | AE90: 0 | AF90: 0 | AG90: 0 | AH90: 176690.4762 | AI90: =AH90-K$155 -> 71690.47619 | AJ90: =AH90-AH90 -> 0 | AK90: =IF(AND(AH90<=AH91,AH90<=AH92,AH90<=AH93),1,0) -> 0
F91: 1 | G91: Maintain | H91: =$G$13+$G$33 -> 5000 | I91: 0 | J91: 0 | K91: 0 | L91: 0 | M91: 0 | N91: 0 | O91: =IF($F$13=$E$164,1,0)*(1-$H$33) -> 1 | P91: 0 | Q91: 0 | R91: 0 | S91: 0 | T91: 0 | U91: 0 | V91: 0 | W91: 0 | X91: 0 | Y91: 0 | Z91: 0 | AA91: 0 | AB91: 0 | AC91: 0 | AD91: 0 | AE91: 0 | AF91: 0 | AG91: 0 | AH91: 105000 | AI91: =AH91-K$155 -> 0 | AJ91: =AH90-AH91 -> 71690.47619 | AK91: =IF(AND(AK90=0,AH91<=AH92,AH91<=AH93),1,0) -> 1
F92: 2 | G92: Rehab | H92: =$G$14+$G$33 -> 250000 | I92: 0 | J92: 0 | K92: 0 | L92: 0 | M92: 0 | N92: =IF(AND($F$14=$E$164,$H$23=1),1,0)*(1-$H$33) -> 1 | O92: =IF(AND($F$14=$E$164,$H$23=2),1,0)*(1-$H$33) -> 0 | P92: =IF(AND($F$14=$E$164,$H$23=3),1,0)*(1-$H$33) -> 0 | Q92: =IF(AND($F$14=$E$164,$H$23=4),1,0)*(1-$H$33) -> 0 | R92: 0 | S92: 0 | T92: 0 | U92: 0 | V92: 0 | W92: 0 | X92: 0 | Y92: 0 | Z92: 0 | AA92: 0 | AB92: 0 | AC92: 0 | AD92: 0 | AE92: 0 | AF92: 0 | AG92: 0 | AH92: 350000 | AI92: =AH92-K$155 -> 245000 | AJ92: =AH90-AH92 -> -173309.5238 | AK92: =IF(AND(AK90=0,AK91=0,AH92<=AH93),1,0) -> 0
F93: 3 | G93: Reconstruct | H93: =$G$15+$G$33 -> 500000 | I93: =IF($F$15=$E$164,1,0) -> 1 | J93: 0 | K93: 0 | L93: 0 | M93: 0 | N93: 0 | O93: 0 | P93: 0 | Q93: 0 | R93: 0 | S93: 0 | T93: 0 | U93: 0 | V93: 0 | W93: 0 | X93: 0 | Y93: 0 | Z93: 0 | AA93: 0 | AB93: 0 | AC93: 0 | AD93: 0 | AE93: 0 | AF93: 0 | AG93: 0 | AH93: 600000 | AI93: =AH93-K$155 -> 495000 | AJ93: =AH90-AH93 -> -423309.5238 | AK93: =1-AK90-AK91-AK92 -> 0
E94: 8 | F94: 0 | G94: Do Minimum | H94: =$G$24+$G$33 -> 2500 | I94: 0 | J94: 0 | K94: 0 | L94: 0 | M94: 0 | N94: 0 | O94: 0 | P94: =$I$24*(1-$H$33) -> 0.9 | Q94: =$J$24*(1-$H$33) -> 0.05 | R94: 0.05 | S94: 0 | T94: 0 | U94: 0 | V94: 0 | W94: 0 | X94: 0 | Y94: 0 | Z94: 0 | AA94: 0 | AB94: 0 | AC94: 0 | AD94: 0 | AE94: 0 | AF94: 0 | AG94: 0 | AH94: 292976.1905 | AI94: =AH94-L$155 -> 187976.1905 | AJ94: =AH94-AH94 -> 0 | AK94: =IF(AND(AH94<=AH95,AH94<=AH96,AH94<=AH97),1,0) -> 0
F95: 1 | G95: Maintain | H95: =$G$13+$G$33 -> 5000 | I95: 0 | J95: 0 | K95: 0 | L95: 0 | M95: 0 | N95: =N91 -> 0 | O95: 0 | P95: =IF($F$13=$E$164,1,0)*(1-$H$33) -> 1 | Q95: 0 | R95: 0 | S95: 0 | T95: 0 | U95: 0 | V95: 0 | W95: 0 | X95: 0 | Y95: 0 | Z95: 0 | AA95: 0 | AB95: 0 | AC95: 0 | AD95: 0 | AE95: 0 | AF95: 0 | AG95: 0 | AH95: 105000 | AI95: =AH95-L$155 -> 0 | AJ95: =AH94-AH95 -> 187976.1905 | AK95: =IF(AND(AK94=0,AH95<=AH96,AH95<=AH97),1,0) -> 1
F96: 2 | G96: Rehab | H96: =$G$14+$G$33 -> 250000 | I96: 0 | J96: 0 | K96: 0 | L96: 0 | M96: 0 | N96: =IF(AND($F$14=$E$164,$H$24=1),1,0)*(1-$H$33) -> 0 | O96: =IF(AND($F$14=$E$164,$H$24=2),1,0)*(1-$H$33) -> 1 | P96: =IF(AND($F$14=$E$164,$H$24=3),1,0)*(1-$H$33) -> 0 | Q96: =IF(AND($F$14=$E$164,$H$24=4),1,0)*(1-$H$33) -> 0 | R96: 0 | S96: 0 | T96: 0 | U96: 0 | V96: 0 | W96: 0 | X96: 0 | Y96: 0 | Z96: 0 | AA96: 0 | AB96: 0 | AC96: 0 | AD96: 0 | AE96: 0 | AF96: 0 | AG96: 0 | AH96: 350000 | AI96: =AH96-L$155 -> 245000 | AJ96: =AH94-AH96 -> -57023.80952 | AK96: =IF(AND(AK94=0,AK95=0,AH96<=AH97),1,0) -> 0
F97: 3 | G97: Reconstruct | H97: =$G$15+$G$33 -> 500000 | I97: =IF($F$15=$E$164,1,0) -> 1 | J97: 0 | K97: 0 | L97: 0 | M97: 0 | N97: 0 | O97: 0 | P97: 0 | Q97: 0 | R97: 0 | S97: 0 | T97: 0 | U97: 0 | V97: 0 | W97: 0 | X97: 0 | Y97: 0 | Z97: 0 | AA97: 0 | AB97: 0 | AC97: 0 | AD97: 0 | AE97: 0 | AF97: 0 | AG97: 0 | AH97: 600000 | AI97: =AH97-L$155 -> 495000 | AJ97: =AH94-AH97 -> -307023.8095 | AK97: =1-AK94-AK95-AK96 -> 0
E98: 9 | F98: 0 | G98: Do Minimum | H98: =$G$25+$G$33 -> 5000 | I98: 0 | J98: 0 | K98: 0 | L98: 0 | M98: 0 | N98: 0 | O98: 0 | P98: 0 | Q98: =$I$25*(1-$H$33) -> 0.5 | R98: 0.5 | S98: 0 | T98: 0 | U98: 0 | V98: 0 | W98: 0 | X98: 0 | Y98: 0 | Z98: 0 | AA98: 0 | AB98: 0 | AC98: 0 | AD98: 0 | AE98: 0 | AF98: 0 | AG98: 0 | AH98: 2009761.905 | AI98: =AH98-M$155 -> 1904761.905 | AJ98: =AH98-AH98 -> 0 | AK98: =IF(AND(AH98<=AH99,AH98<=AH100,AH98<=AH101),1,0) -> 0
F99: 1 | G99: Maintain | H99: =$G$13+$G$33 -> 5000 | I99: 0 | J99: 0 | K99: 0 | L99: 0 | M99: 0 | N99: 0 | O99: 0 | P99: 0 | Q99: =IF($F$13=$E$164,1,0)*(1-$H$33) -> 1 | R99: 0 | S99: 0 | T99: 0 | U99: 0 | V99: 0 | W99: 0 | X99: 0 | Y99: 0 | Z99: 0 | AA99: 0 | AB99: 0 | AC99: 0 | AD99: 0 | AE99: 0 | AF99: 0 | AG99: 0 | AH99: 105000 | AI99: =AH99-M$155 -> 0 | AJ99: =AH98-AH99 -> 1904761.905 | AK99: =IF(AND(AK98=0,AH99<=AH100,AH99<=AH101),1,0) -> 1
F100: 2 | G100: Rehab | H100: =$G$14+$G$33 -> 250000 | I100: 0 | J100: 0 | K100: 0 | L100: 0 | M100: 0 | N100: =IF(AND($F$14=$E$164,$H$25=1),1,0)*(1-$H$33) -> 0 | O100: =IF(AND($F$14=$E$164,$H$25=2),1,0)*(1-$H$33) -> 1 | P100: =IF(AND($F$14=$E$164,$H$25=3),1,0)*(1-$H$33) -> 0 | Q100: =IF(AND($F$14=$E$164,$H$25=4),1,0)*(1-$H$33) -> 0 | R100: 0 | S100: 0 | T100: 0 | U100: 0 | V100: 0 | W100: 0 | X100: 0 | Y100: 0 | Z100: 0 | AA100: 0 | AB100: 0 | AC100: 0 | AD100: 0 | AE100: 0 | AF100: 0 | AG100: 0 | AH100: 350000 | AI100: =AH100-M$155 -> 245000 | AJ100: =AH98-AH100 -> 1659761.905 | AK100: =IF(AND(AK98=0,AK99=0,AH100<=AH101),1,0) -> 0
F101: 3 | G101: Reconstruct | H101: =$G$15+$G$33 -> 500000 | I101: =IF($F$15=$E$164,1,0) -> 1 | J101: 0 | K101: 0 | L101: 0 | M101: 0 | N101: 0 | O101: 0 | P101: 0 | Q101: =1-I101 -> 0 | R101: 0 | S101: 0 | T101: 0 | U101: 0 | V101: 0 | W101: 0 | X101: 0 | Y101: 0 | Z101: 0 | AA101: 0 | AB101: 0 | AC101: 0 | AD101: 0 | AE101: 0 | AF101: 0 | AG101: 0 | AH101: 600000 | AI101: =AH101-M$155 -> 495000 | AJ101: =AH98-AH101 -> 1409761.905 | AK101: =1-AK98-AK99-AK100 -> 0
E102: 10 | F102: 4 | G102: Restore | H102: =$I$33+$J$33 -> 4005000 | I102: =IF(AND($K$33=1,$L$33=1),1,0) -> 0 | J102: =IF(AND($K$33=2,$L$33=1),1,0) -> 0 | K102: =IF(AND($K$33=3,$L$33=1),1,0) -> 0 | L102: =IF(AND($K$33=4,$L$33=1),1,0) -> 0 | M102: 0 | N102: =IF(AND($K$33=1,$L$33=2),1,0) -> 1 | O102: =IF(AND($K$33=2,$L$33=2),1,0) -> 0 | P102: =IF(AND($K$33=3,$L$33=2),1,0) -> 0 | Q102: =IF(AND($K$33=4,$L$33=2),1,0) -> 0 | R102: 0 | S102: =IF(AND($K$33=1,$L$33=3),1,0) -> 0 | T102: =IF(AND($K$33=2,$L$33=3),1,0) -> 0 | U102: =IF(AND($K$33=3,$L$33=3),1,0) -> 0 | V102: =IF(AND($K$33=4,$L$33=3),1,0) -> 0 | W102: 0 | X102: =IF(AND($K$33=1,$L$33=4),1,0) -> 0 | Y102: =IF(AND($K$33=2,$L$33=4),1,0) -> 0 | Z102: =IF(AND($K$33=3,$L$33=4),1,0) -> 0 | AA102: =IF(AND($K$33=4,$L$33=4),1,0) -> 0 | AB102: 0 | AC102: =IF(AND($K$33=1,$L$33=5),1,0) -> 0 | AD102: =IF(AND($K$33=2,$L$33=5),1,0) -> 0 | AE102: =IF(AND($K$33=3,$L$33=5),1,0) -> 0 | AF102: =IF(AND($K$33=4,$L$33=5),1,0) -> 0 | AG102: 0 | AH102: 4105000 | AI102: =AH102-N$155 -> 0 | AJ102: =AH102-AH102 -> 0 | AK102: 1
E103: 11 | F103: 0 | G103: =VLOOKUP(F103,$E$169:$F$173,2) -> Do Minimum | H103: =$G$22+$G$34 -> 1000 | I103: 0 | J103: 0 | K103: 0 | L103: 0 | M103: 0 | N103: 0 | O103: 0 | P103: 0 | Q103: 0 | R103: 0 | S103: =$I$22*(1-$H$34) -> 0.96 | T103: =$J$22*(1-$H$34) -> 0.03 | U103: 0 | V103: 0 | W103: =1-SUM(I103:V103) -> 0.01 | X103: 0 | Y103: 0 | Z103: 0 | AA103: 0 | AB103: 0 | AC103: 0 | AD103: 0 | AE103: 0 | AF103: 0 | AG103: 0 | AH103: 159276.1905 | AI103: =AH103-O$155 -> 33276.19048 | AJ103: =AH103-AH103 -> 0 | AK103: =IF(AND(AH103<=AH104,AH103<=AH105),1,0) -> 0
F104: 1 | G104: Maintain | H104: =$G$13+$G$34 -> 6000 | I104: 0 | J104: 0 | K104: 0 | L104: 0 | M104: 0 | N104: 0 | O104: 0 | P104: 0 | Q104: 0 | R104: 0 | S104: =IF($F$13=$E$164,1,0)*(1-$H$34) -> 1 | T104: 0 | U104: 0 | V104: 0 | W104: =1-SUM(I104:V104) -> 0 | X104: 0 | Y104: 0 | Z104: 0 | AA104: 0 | AB104: 0 | AC104: 0 | AD104: 0 | AE104: 0 | AF104: 0 | AG104: 0 | AH104: =H104+$F$177*SUMPRODUCT(I104:AG104,$E$155:$AC$155) -> 126000 | AI104: =AH104-O$155 -> 0 | AJ104: =AH103-AH104 -> 33276.19048 | AK104: =IF(AND(AK103=0,AH104<=AH105),1,0) -> 1
F105: 3 | G105: Reconstruct | H105: =$G$15+$G$34 -> 501000 | I105: =IF($F$15=$E$164,1,0) -> 1 | J105: 0 | K105: 0 | L105: 0 | M105: 0 | N105: 0 | O105: 0 | P105: 0 | Q105: =1-I105 -> 0 | R105: 0 | S105: 0 | T105: 0 | U105: 0 | V105: 0 | W105: 0 | X105: 0 | Y105: 0 | Z105: 0 | AA105: 0 | AB105: 0 | AC105: 0 | AD105: 0 | AE105: 0 | AF105: 0 | AG105: 0 | AH105: 601000 | AI105: =AH105-O$155 -> 475000 | AJ105: =AH103-AH105 -> -441723.8095 | AK105: =1-AK103-AK104 -> 0
E106: 12 | F106: 0 | G106: Do Minimum | H106: =$G$23+$G$34 -> 1500 | I106: 0 | J106: 0 | K106: 0 | L106: 0 | M106: 0 | N106: 0 | O106: 0 | P106: 0 | Q106: 0 | R106: 0 | S106: 0 | T106: =$I$23*(1-$H$34) -> 0.93 | U106: =$J$23*(1-$H$34) -> 0.05 | V106: 0 | W106: 0.02 | X106: 0 | Y106: 0 | Z106: 0 | AA106: 0 | AB106: 0 | AC106: 0 | AD106: 0 | AE106: 0 | AF106: 0 | AG106: 0 | AH106: 198052.381 | AI106: =AH106-P$155 -> 72052.38095 | AJ106: =AH106-AH106 -> 0 | AK106: =IF(AND(AH106<=AH107,AH106<=AH108,AH106<=AH109),1,0) -> 0
F107: 1 | G107: Maintain | H107: =$G$13+$G$34 -> 6000 | I107: 0 | J107: 0 | K107: 0 | L107: 0 | M107: 0 | N107: 0 | O107: 0 | P107: 0 | Q107: =Q104 -> 0 | R107: 0 | S107: 0 | T107: =IF($F$13=$E$164,1,0)*(1-$H$34) -> 1 | U107: 0 | V107: 0 | W107: 0 | X107: 0 | Y107: 0 | Z107: 0 | AA107: 0 | AB107: 0 | AC107: 0 | AD107: 0 | AE107: 0 | AF107: 0 | AG107: 0 | AH107: 126000 | AI107: =AH107-P$155 -> 0 | AJ107: =AH106-AH107 -> 72052.38095 | AK107: =IF(AND(AK106=0,AH107<=AH108,AH107<=AH109),1,0) -> 1
F108: 2 | G108: Rehab | H108: =$G$14+$G$34 -> 251000 | I108: 0 | J108: 0 | K108: 0 | L108: 0 | M108: 0 | N108: 0 | O108: 0 | P108: 0 | Q108: 0 | R108: 0 | S108: =IF(AND($F$14=$E$164,$H$23=1),1,0)*(1-$H$34) -> 1 | T108: =IF(AND($F$14=$E$164,$H$23=2),1,0)*(1-$H$34) -> 0 | U108: =IF(AND($F$14=$E$164,$H$23=3),1,0)*(1-$H$34) -> 0 | V108: =IF(AND($F$14=$E$164,$H$23=4),1,0)*(1-$H$34) -> 0 | W108: 0 | X108: 0 | Y108: 0 | Z108: 0 | AA108: 0 | AB108: 0 | AC108: 0 | AD108: 0 | AE108: 0 | AF108: 0 | AG108: 0 | AH108: 371000 | AI108: =AH108-P$155 -> 245000 | AJ108: =AH106-AH108 -> -172947.619 | AK108: =IF(AND(AK106=0,AK107=0,AH108<=AH109),1,0) -> 0
F109: 3 | G109: Reconstruct | H109: =$G$15+$G$34 -> 501000 | I109: =IF($F$15=$E$164,1,0) -> 1 | J109: 0 | K109: 0 | L109: 0 | M109: 0 | N109: 0 | O109: 0 | P109: 0 | Q109: =1-I109 -> 0 | R109: 0 | S109: 0 | T109: 0 | U109: 0 | V109: 0 | W109: 0 | X109: 0 | Y109: 0 | Z109: 0 | AA109: 0 | AB109: 0 | AC109: 0 | AD109: 0 | AE109: 0 | AF109: 0 | AG109: 0 | AH109: 601000 | AI109: =AH109-P$155 -> 475000 | AJ109: =AH106-AH109 -> -402947.619 | AK109: =1-AK106-AK107-AK108 -> 0
E110: 13 | F110: 0 | G110: Do Minimum | H110: =$G$24+$G$34 -> 3500 | I110: 0 | J110: 0 | K110: 0 | L110: 0 | M110: 0 | N110: 0 | O110: 0 | P110: 0 | Q110: 0 | R110: 0 | S110: 0 | T110: 0 | U110: =$I$24*(1-$H$34) -> 0.9 | V110: =$J$24*(1-$H$34) -> 0.05 | W110: 0.05 | X110: 0 | Y110: 0 | Z110: 0 | AA110: 0 | AB110: 0 | AC110: 0 | AD110: 0 | AE110: 0 | AF110: 0 | AG110: 0 | AH110: 314880.9524 | AI110: =AH110-Q$155 -> 188880.9524 | AJ110: =AH110-AH110 -> 0 | AK110: =IF(AND(AH110<=AH111,AH110<=AH112,AH110<=AH113),1,0) -> 0
F111: 1 | G111: Maintain | H111: =$G$13+$G$34 -> 6000 | I111: 0 | J111: 0 | K111: 0 | L111: 0 | M111: 0 | N111: 0 | O111: 0 | P111: 0 | Q111: 0 | R111: 0 | S111: 0 | T111: 0 | U111: =IF($F$13=$E$164,1,0)*(1-$H$34) -> 1 | V111: 0 | W111: 0 | X111: 0 | Y111: 0 | Z111: 0 | AA111: 0 | AB111: 0 | AC111: 0 | AD111: 0 | AE111: 0 | AF111: 0 | AG111: 0 | AH111: 126000 | AI111: =AH111-Q$155 -> 0 | AJ111: =AH110-AH111 -> 188880.9524 | AK111: =IF(AND(AK110=0,AH111<=AH112,AH111<=AH113),1,0) -> 1
F112: 2 | G112: Rehab | H112: =$G$14+$G$34 -> 251000 | I112: 0 | J112: 0 | K112: 0 | L112: 0 | M112: 0 | N112: 0 | O112: 0 | P112: 0 | Q112: 0 | R112: 0 | S112: =IF(AND($F$14=$E$164,$H$24=1),1,0)*(1-$H$34) -> 0 | T112: =IF(AND($F$14=$E$164,$H$24=2),1,0)*(1-$H$34) -> 1 | U112: =IF(AND($F$14=$E$164,$H$24=3),1,0)*(1-$H$34) -> 0 | V112: =IF(AND($F$14=$E$164,$H$24=4),1,0)*(1-$H$34) -> 0 | W112: 0 | X112: 0 | Y112: 0 | Z112: 0 | AA112: 0 | AB112: 0 | AC112: 0 | AD112: 0 | AE112: 0 | AF112: 0 | AG112: 0 | AH112: 371000 | AI112: =AH112-Q$155 -> 245000 | AJ112: =AH110-AH112 -> -56119.04762 | AK112: =IF(AND(AK110=0,AK111=0,AH112<=AH113),1,0) -> 0
F113: 3 | G113: Reconstruct | H113: =$G$15+$G$34 -> 501000 | I113: =IF($F$15=$E$164,1,0) -> 1 | J113: 0 | K113: 0 | L113: 0 | M113: 0 | N113: 0 | O113: 0 | P113: 0 | Q113: 0 | R113: 0 | S113: 0 | T113: 0 | U113: =1-I113 -> 0 | V113: 0 | W113: 0 | X113: 0 | Y113: 0 | Z113: 0 | AA113: 0 | AB113: 0 | AC113: 0 | AD113: 0 | AE113: 0 | AF113: 0 | AG113: 0 | AH113: 601000 | AI113: =AH113-Q$155 -> 475000 | AJ113: =AH110-AH113 -> -286119.0476 | AK113: =1-AK110-AK111-AK112 -> 0
E114: 14 | F114: 0 | G114: Do Minimum | H114: =$G$25+$G$34 -> 6000 | I114: 0 | J114: 0 | K114: 0 | L114: 0 | M114: 0 | N114: 0 | O114: 0 | P114: 0 | Q114: 0 | R114: 0 | S114: 0 | T114: 0 | U114: 0 | V114: =$I$25*(1-$H$34) -> 0.5 | W114: 0.5 | X114: 0 | Y114: 0 | Z114: 0 | AA114: 0 | AB114: 0 | AC114: 0 | AD114: 0 | AE114: 0 | AF114: 0 | AG114: 0 | AH114: 2039809.524 | AI114: =AH114-R$155 -> 1913809.524 | AJ114: =AH114-AH114 -> 0 | AK114: =IF(AND(AH114<=AH115,AH114<=AH116,AH114<=AH117),1,0) -> 0
F115: 1 | G115: Maintain | H115: =$G$13+$G$34 -> 6000 | I115: 0 | J115: 0 | K115: 0 | L115: 0 | M115: 0 | N115: 0 | O115: 0 | P115: 0 | Q115: 0 | R115: 0 | S115: 0 | T115: 0 | U115: 0 | V115: =IF($F$13=$E$164,1,0)*(1-$H$34) -> 1 | W115: 0 | X115: 0 | Y115: 0 | Z115: 0 | AA115: 0 | AB115: 0 | AC115: 0 | AD115: 0 | AE115: 0 | AF115: 0 | AG115: 0 | AH115: 126000 | AI115: =AH115-R$155 -> 0 | AJ115: =AH114-AH115 -> 1913809.524 | AK115: =IF(AND(AK114=0,AH115<=AH116,AH115<=AH117),1,0) -> 1
F116: 2 | G116: Rehab | H116: =$G$14+$G$34 -> 251000 | I116: 0 | J116: 0 | K116: 0 | L116: 0 | M116: 0 | N116: 0 | O116: 0 | P116: 0 | Q116: 0 | R116: 0 | S116: =IF(AND($F$14=$E$164,$H$25=1),1,0)*(1-$H$34) -> 0 | T116: =IF(AND($F$14=$E$164,$H$25=2),1,0)*(1-$H$34) -> 1 | U116: =IF(AND($F$14=$E$164,$H$25=3),1,0)*(1-$H$34) -> 0 | V116: =IF(AND($F$14=$E$164,$H$25=4),1,0)*(1-$H$34) -> 0 | W116: 0 | X116: 0 | Y116: 0 | Z116: 0 | AA116: 0 | AB116: 0 | AC116: 0 | AD116: 0 | AE116: 0 | AF116: 0 | AG116: 0 | AH116: 371000 | AI116: =AH116-R$155 -> 245000 | AJ116: =AH114-AH116 -> 1668809.524 | AK116: =IF(AND(AK114=0,AK115=0,AH116<=AH117),1,0) -> 0
F117: 3 | G117: Reconstruct | H117: =$G$15+$G$34 -> 501000 | I117: =IF($F$15=$E$164,1,0) -> 1 | J117: 0 | K117: 0 | L117: 0 | M117: 0 | N117: 0 | O117: 0 | P117: 0 | Q117: 0 | R117: 0 | S117: 0 | T117: 0 | U117: =1-I117 -> 0 | V117: 0 | W117: 0 | X117: 0 | Y117: 0 | Z117: 0 | AA117: 0 | AB117: 0 | AC117: 0 | AD117: 0 | AE117: 0 | AF117: 0 | AG117: 0 | AH117: 601000 | AI117: =AH117-R$155 -> 475000 | AJ117: =AH114-AH117 -> 1438809.524 | AK117: =1-AK114-AK115-AK116 -> 0
E118: 15 | F118: 4 | G118: Restore | H118: =$I$34+$J$34 -> 4025000 | I118: =IF(AND($K$34=1,$L$34=1),1,0) -> 0 | J118: =IF(AND($K$34=2,$L$34=1),1,0) -> 0 | K118: =IF(AND($K$34=3,$L$34=1),1,0) -> 0 | L118: =IF(AND($K$34=4,$L$34=1),1,0) -> 0 | M118: 0 | N118: =IF(AND($K$34=1,$L$34=2),1,0) -> 0 | O118: =IF(AND($K$34=2,$L$34=2),1,0) -> 0 | P118: =IF(AND($K$34=3,$L$34=2),1,0) -> 0 | Q118: =IF(AND($K$34=4,$L$34=2),1,0) -> 0 | R118: 0 | S118: =IF(AND($K$34=1,$L$34=3),1,0) -> 1 | T118: =IF(AND($K$34=2,$L$34=3),1,0) -> 0 | U118: =IF(AND($K$34=3,$L$34=3),1,0) -> 0 | V118: =IF(AND($K$34=4,$L$34=3),1,0) -> 0 | W118: 0 | X118: =IF(AND($K$34=1,$L$34=4),1,0) -> 0 | Y118: =IF(AND($K$34=2,$L$34=4),1,0) -> 0 | Z118: =IF(AND($K$34=3,$L$34=4),1,0) -> 0 | AA118: =IF(AND($K$34=4,$L$34=4),1,0) -> 0 | AB118: 0 | AC118: =IF(AND($K$34=1,$L$34=5),1,0) -> 0 | AD118: =IF(AND($K$34=2,$L$34=5),1,0) -> 0 | AE118: =IF(AND($K$34=3,$L$34=5),1,0) -> 0 | AF118: =IF(AND($K$34=4,$L$34=5),1,0) -> 0 | AG118: 0 | AH118: 4145000 | AI118: =AH118-S$155 -> 0 | AJ118: =AH118-AH118 -> 0 | AK118: 1
E119: 16 | F119: 0 | G119: =VLOOKUP(F119,$E$169:$F$173,2) -> Do Minimum | H119: =$G$22+$G$35 -> 5000 | I119: 0 | J119: 0 | K119: 0 | L119: 0 | M119: 0 | N119: 0 | O119: 0 | P119: 0 | Q119: 0 | R119: 0 | S119: =O106 -> 0 | T119: =P106 -> 0 | U119: 0 | V119: 0 | W119: 0 | X119: =$I$22*(1-$H$35) -> 0.96 | Y119: =$J$22*(1-$H$35) -> 0.03 | Z119: 0 | AA119: 0 | AB119: =1-SUM(I119:AA119) -> 0.01 | AC119: 0 | AD119: 0 | AE119: 0 | AF119: 0 | AG119: 0 | AH119: 243476.1905 | AI119: =AH119-T$155 -> 33476.19048 | AJ119: =AH119-AH119 -> 0 | AK119: =IF(AND(AH119<=AH120,AH119<=AH121),1,0) -> 0
F120: 1 | G120: Maintain | H120: =$G$13+$G$35 -> 10000 | I120: 0 | J120: 0 | K120: 0 | L120: 0 | M120: 0 | N120: 0 | O120: 0 | P120: 0 | Q120: 0 | R120: 0 | S120: 0 | T120: 0 | U120: 0 | V120: 0 | W120: 0 | X120: =IF($F$13=$E$164,1,0)*(1-$H$35) -> 1 | Y120: 0 | Z120: 0 | AA120: 0 | AB120: 0 | AC120: 0 | AD120: 0 | AE120: 0 | AF120: 0 | AG120: 0 | AH120: 210000 | AI120: =AH120-T$155 -> 0 | AJ120: =AH119-AH120 -> 33476.19048 | AK120: =IF(AND(AK119=0,AH120<=AH121),1,0) -> 1
F121: 3 | G121: Reconstruct | H121: =$G$15+$G$35 -> 505000 | I121: =IF($F$15=$E$164,1,0) -> 1 | J121: 0 | K121: 0 | L121: 0 | M121: 0 | N121: 0 | O121: 0 | P121: 0 | Q121: =1-I121 -> 0 | R121: 0 | S121: 0 | T121: 0 | U121: 0 | V121: 0 | W121: 0 | X121: 0 | Y121: 0 | Z121: 0 | AA121: 0 | AB121: 0 | AC121: 0 | AD121: 0 | AE121: 0 | AF121: 0 | AG121: 0 | AH121: 605000 | AI121: =AH121-T$155 -> 395000 | AJ121: =AH119-AH121 -> -361523.8095 | AK121: =1-AK119-AK120 -> 0
E122: 17 | F122: 0 | G122: Do Minimum | H122: =$G$23+$G$35 -> 5500 | I122: 0 | J122: 0 | K122: 0 | L122: 0 | M122: 0 | N122: 0 | O122: 0 | P122: 0 | Q122: 0 | R122: 0 | S122: 0 | T122: =P110 -> 0 | U122: 0 | V122: 0 | W122: 0 | X122: 0 | Y122: =$I$23*(1-$H$35) -> 0.93 | Z122: =$J$23*(1-$H$35) -> 0.05 | AA122: 0 | AB122: 0.02 | AC122: 0 | AD122: 0 | AE122: 0 | AF122: 0 | AG122: 0 | AH122: 282452.381 | AI122: =AH122-U$155 -> 72452.38095 | AJ122: =AH122-AH122 -> 0 | AK122: =IF(AND(AH122<=AH123,AH122<=AH124,AH122<=AH125),1,0) -> 0
F123: 1 | G123: Maintain | H123: =$G$13+$G$35 -> 10000 | I123: 0 | J123: 0 | K123: 0 | L123: 0 | M123: 0 | N123: 0 | O123: 0 | P123: 0 | Q123: =Q120 -> 0 | R123: 0 | S123: 0 | T123: 0 | U123: 0 | V123: 0 | W123: 0 | X123: 0 | Y123: =IF($F$13=$E$164,1,0)*(1-$H$35) -> 1 | Z123: 0 | AA123: 0 | AB123: 0 | AC123: 0 | AD123: 0 | AE123: 0 | AF123: 0 | AG123: 0 | AH123: 210000 | AI123: =AH123-U$155 -> 0 | AJ123: =AH122-AH123 -> 72452.38095 | AK123: =IF(AND(AK122=0,AH123<=AH124,AH123<=AH125),1,0) -> 1
F124: 2 | G124: Rehab | H124: =$G$14+$G$35 -> 255000 | I124: 0 | J124: 0 | K124: 0 | L124: 0 | M124: 0 | N124: 0 | O124: 0 | P124: 0 | Q124: 0 | R124: 0 | S124: 0 | T124: 0 | U124: 0 | V124: 0 | W124: 0 | X124: =IF(AND($F$14=$E$164,$H$23=1),1,0)*(1-$H$35) -> 1 | Y124: =IF(AND($F$14=$E$164,$H$23=2),1,0)*(1-$H$35) -> 0 | Z124: =IF(AND($F$14=$E$164,$H$23=3),1,0)*(1-$H$35) -> 0 | AA124: =IF(AND($F$14=$E$164,$H$23=4),1,0)*(1-$H$35) -> 0 | AB124: 0 | AC124: 0 | AD124: 0 | AE124: 0 | AF124: 0 | AG124: 0 | AH124: 455000 | AI124: =AH124-U$155 -> 245000 | AJ124: =AH122-AH124 -> -172547.619 | AK124: =IF(AND(AK122=0,AK123=0,AH124<=AH125),1,0) -> 0
F125: 3 | G125: Reconstruct | H125: =$G$15+$G$35 -> 505000 | I125: =IF($F$15=$E$164,1,0) -> 1 | J125: 0 | K125: 0 | L125: 0 | M125: 0 | N125: 0 | O125: 0 | P125: 0 | Q125: =1-I125 -> 0 | R125: 0 | S125: 0 | T125: 0 | U125: 0 | V125: 0 | W125: 0 | X125: 0 | Y125: 0 | Z125: 0 | AA125: 0 | AB125: 0 | AC125: 0 | AD125: 0 | AE125: 0 | AF125: 0 | AG125: 0 | AH125: 605000 | AI125: =AH125-U$155 -> 395000 | AJ125: =AH122-AH125 -> -322547.619 | AK125: =1-AK122-AK123-AK124 -> 0
E126: 18 | F126: 0 | G126: Do Minimum | H126: =$G$24+$G$35 -> 7500 | I126: 0 | J126: 0 | K126: 0 | L126: 0 | M126: 0 | N126: 0 | O126: 0 | P126: 0 | Q126: 0 | R126: 0 | S126: 0 | T126: 0 | U126: =Q114 -> 0 | V126: 0 | W126: 0 | X126: 0 | Y126: 0 | Z126: =$I$24*(1-$H$35) -> 0.9 | AA126: =$J$24*(1-$H$35) -> 0.05 | AB126: 0.05 | AC126: 0 | AD126: 0 | AE126: 0 | AF126: 0 | AG126: 0 | AH126: 399880.9524 | AI126: =AH126-V$155 -> 189880.9524 | AJ126: =AH126-AH126 -> 0 | AK126: =IF(AND(AH126<=AH127,AH126<=AH128,AH126<=AH129),1,0) -> 0
F127: 1 | G127: Maintain | H127: =$G$13+$G$35 -> 10000 | I127: 0 | J127: 0 | K127: 0 | L127: 0 | M127: 0 | N127: 0 | O127: 0 | P127: 0 | Q127: 0 | R127: 0 | S127: 0 | T127: 0 | U127: =Q123 -> 0 | V127: 0 | W127: 0 | X127: 0 | Y127: 0 | Z127: =IF($F$13=$E$164,1,0)*(1-$H$35) -> 1 | AA127: 0 | AB127: 0 | AC127: 0 | AD127: 0 | AE127: 0 | AF127: 0 | AG127: 0 | AH127: 210000 | AI127: =AH127-V$155 -> 0 | AJ127: =AH126-AH127 -> 189880.9524 | AK127: =IF(AND(AK126=0,AH127<=AH128,AH127<=AH129),1,0) -> 1
F128: 2 | G128: Rehab | H128: =$G$14+$G$35 -> 255000 | I128: 0 | J128: 0 | K128: 0 | L128: 0 | M128: 0 | N128: 0 | O128: 0 | P128: 0 | Q128: 0 | R128: 0 | S128: 0 | T128: 0 | U128: 0 | V128: 0 | W128: 0 | X128: =IF(AND($F$14=$E$164,$H$24=1),1,0)*(1-$H$35) -> 0 | Y128: =IF(AND($F$14=$E$164,$H$24=2),1,0)*(1-$H$35) -> 1 | Z128: =IF(AND($F$14=$E$164,$H$24=3),1,0)*(1-$H$35) -> 0 | AA128: =IF(AND($F$14=$E$164,$H$24=4),1,0)*(1-$H$35) -> 0 | AB128: 0 | AC128: 0 | AD128: 0 | AE128: 0 | AF128: 0 | AG128: 0 | AH128: 455000 | AI128: =AH128-V$155 -> 245000 | AJ128: =AH126-AH128 -> -55119.04762 | AK128: =IF(AND(AK126=0,AK127=0,AH128<=AH129),1,0) -> 0
F129: 3 | G129: Reconstruct | H129: =$G$15+$G$35 -> 505000 | I129: =IF($F$15=$E$164,1,0) -> 1 | J129: 0 | K129: 0 | L129: 0 | M129: 0 | N129: 0 | O129: 0 | P129: 0 | Q129: 0 | R129: 0 | S129: 0 | T129: 0 | U129: =1-I129 -> 0 | V129: 0 | W129: 0 | X129: 0 | Y129: 0 | Z129: 0 | AA129: 0 | AB129: 0 | AC129: 0 | AD129: 0 | AE129: 0 | AF129: 0 | AG129: 0 | AH129: 605000 | AI129: =AH129-V$155 -> 395000 | AJ129: =AH126-AH129 -> -205119.0476 | AK129: =1-AK126-AK127-AK128 -> 0
E130: 19 | F130: 0 | G130: Do Minimum | H130: =$G$25+$G$35 -> 10000 | I130: 0 | J130: 0 | K130: 0 | L130: 0 | M130: 0 | N130: 0 | O130: 0 | P130: 0 | Q130: 0 | R130: 0 | S130: 0 | T130: 0 | U130: 0 | V130: 0 | W130: 0 | X130: 0 | Y130: 0 | Z130: 0 | AA130: =$I$25*(1-$H$35) -> 0.5 | AB130: 0.5 | AC130: 0 | AD130: 0 | AE130: 0 | AF130: 0 | AG130: 0 | AH130: 2133809.524 | AI130: =AH130-W$155 -> 1923809.524 | AJ130: =AH130-AH130 -> 0 | AK130: =IF(AND(AH130<=AH131,AH130<=AH132,AH130<=AH133),1,0) -> 0
F131: 1 | G131: Maintain | H131: =$G$13+$G$35 -> 10000 | I131: 0 | J131: 0 | K131: 0 | L131: 0 | M131: 0 | N131: 0 | O131: 0 | P131: 0 | Q131: 0 | R131: 0 | S131: 0 | T131: 0 | U131: =U127 -> 0 | V131: =V127 -> 0 | W131: 0 | X131: 0 | Y131: 0 | Z131: 0 | AA131: =IF($F$13=$E$164,1,0)*(1-$H$35) -> 1 | AB131: 0 | AC131: 0 | AD131: 0 | AE131: 0 | AF131: 0 | AG131: 0 | AH131: 210000 | AI131: =AH131-W$155 -> 0 | AJ131: =AH130-AH131 -> 1923809.524 | AK131: =IF(AND(AK130=0,AH131<=AH132,AH131<=AH133),1,0) -> 1
F132: 2 | G132: Rehab | H132: =$G$14+$G$35 -> 255000 | I132: 0 | J132: 0 | K132: 0 | L132: 0 | M132: 0 | N132: 0 | O132: 0 | P132: 0 | Q132: 0 | R132: 0 | S132: 0 | T132: 0 | U132: 0 | V132: 0 | W132: 0 | X132: =IF(AND($F$14=$E$164,$H$25=1),1,0)*(1-$H$35) -> 0 | Y132: =IF(AND($F$14=$E$164,$H$25=2),1,0)*(1-$H$35) -> 1 | Z132: =IF(AND($F$14=$E$164,$H$25=3),1,0)*(1-$H$35) -> 0 | AA132: =IF(AND($F$14=$E$164,$H$25=4),1,0)*(1-$H$35) -> 0 | AB132: 0 | AC132: 0 | AD132: 0 | AE132: 0 | AF132: 0 | AG132: 0 | AH132: 455000 | AI132: =AH132-W$155 -> 245000 | AJ132: =AH130-AH132 -> 1678809.524 | AK132: =IF(AND(AK130=0,AK131=0,AH132<=AH133),1,0) -> 0
F133: 3 | G133: Reconstruct | H133: =$G$15+$G$35 -> 505000 | I133: =IF($F$15=$E$164,1,0) -> 1 | J133: 0 | K133: 0 | L133: 0 | M133: 0 | N133: 0 | O133: 0 | P133: 0 | Q133: 0 | R133: 0 | S133: 0 | T133: 0 | U133: =1-I133 -> 0 | V133: 0 | W133: 0 | X133: 0 | Y133: 0 | Z133: 0 | AA133: 0 | AB133: 0 | AC133: 0 | AD133: 0 | AE133: 0 | AF133: 0 | AG133: 0 | AH133: 605000 | AI133: =AH133-W$155 -> 395000 | AJ133: =AH130-AH133 -> 1528809.524 | AK133: =1-AK130-AK131-AK132 -> 0
E134: 20 | F134: 4 | G134: Restore | H134: =$I$35+$J$35 -> 4050000 | I134: =IF(AND($K$35=1,$L$35=1),1,0) -> 0 | J134: =IF(AND($K$35=2,$L$35=1),1,0) -> 0 | K134: =IF(AND($K$35=3,$L$35=1),1,0) -> 0 | L134: =IF(AND($K$35=4,$L$35=1),1,0) -> 0 | M134: 0 | N134: =IF(AND($K$35=1,$L$35=2),1,0) -> 0 | O134: =IF(AND($K$35=2,$L$35=2),1,0) -> 0 | P134: =IF(AND($K$35=3,$L$35=2),1,0) -> 0 | Q134: =IF(AND($K$35=4,$L$35=2),1,0) -> 0 | R134: 0 | S134: =IF(AND($K$35=1,$L$35=3),1,0) -> 0 | T134: =IF(AND($K$35=2,$L$35=3),1,0) -> 0 | U134: =IF(AND($K$35=3,$L$35=3),1,0) -> 0 | V134: =IF(AND($K$35=4,$L$35=3),1,0) -> 0 | W134: 0 | X134: =IF(AND($K$35=1,$L$35=4),1,0) -> 1 | Y134: =IF(AND($K$35=2,$L$35=4),1,0) -> 0 | Z134: =IF(AND($K$35=3,$L$35=4),1,0) -> 0 | AA134: =IF(AND($K$35=4,$L$35=4),1,0) -> 0 | AB134: 0 | AC134: =IF(AND($K$35=1,$L$35=5),1,0) -> 0 | AD134: =IF(AND($K$35=2,$L$35=5),1,0) -> 0 | AE134: =IF(AND($K$35=3,$L$35=5),1,0) -> 0 | AF134: =IF(AND($K$35=4,$L$35=5),1,0) -> 0 | AG134: 0 | AH134: 4250000 | AI134: =AH134-X$155 -> 0 | AJ134: =AH134-AH134 -> 0 | AK134: 1
E135: 21 | F135: 0 | G135: =VLOOKUP(F135,$E$169:$F$173,2) -> Do Minimum | H135: =$G$22+$G$36 -> 50000 | I135: 0 | J135: 0 | K135: 0 | L135: 0 | M135: 0 | N135: 0 | O135: 0 | P135: 0 | Q135: 0 | R135: 0 | S135: =O122 -> 0 | T135: =P122 -> 0 | U135: 0 | V135: 0 | W135: 0 | X135: 0 | Y135: 0 | Z135: 0 | AA135: 0 | AB135: 0 | AC135: =$I$22*(1-$H$36) -> 0.96 | AD135: =$J$22*(1-$H$36) -> 0.03 | AE135: 0 | AF135: 0 | AG135: 0.01 | AH135: 711609.9773 | AI135: =AH135-Y$155 -> 61609.97732 | AJ135: =AH135-AH135 -> 0 | AK135: =IF(AND(AH135<=AH136,AH135<=AH137),1,0) -> 0
F136: 1 | G136: Maintain | H136: =$G$13+$G$36 -> 55000 | I136: 0 | J136: 0 | K136: 0 | L136: 0 | M136: 0 | N136: 0 | O136: 0 | P136: 0 | Q136: 0 | R136: 0 | S136: 0 | T136: 0 | U136: 0 | V136: 0 | W136: 0 | X136: 0 | Y136: 0 | Z136: 0 | AA136: 0 | AB136: 0 | AC136: =IF($F$13=$E$164,1,0)*(1-$H$36) -> 1 | AD136: 0 | AE136: 0 | AF136: 0 | AG136: 0 | AH136: =H136+$F$177*SUMPRODUCT(I136:AG136,$E$155:$AC$155) -> 674047.619 | AI136: =AH136-Y$155 -> 24047.61905 | AJ136: =AH135-AH136 -> 37562.35828 | AK136: =IF(AND(AK135=0,AH136<=AH137),1,0) -> 0
F137: 3 | G137: Reconstruct | H137: =$G$15+$G$36 -> 550000 | I137: =IF($F$15=$E$164,1,0) -> 1 | J137: 0 | K137: 0 | L137: 0 | M137: 0 | N137: 0 | O137: 0 | P137: 0 | Q137: =1-I137 -> 0 | R137: 0 | S137: 0 | T137: 0 | U137: 0 | V137: 0 | W137: 0 | X137: 0 | Y137: 0 | Z137: 0 | AA137: 0 | AB137: 0 | AC137: 0 | AD137: 0 | AE137: 0 | AF137: 0 | AG137: =1-SUM(I137:AF137) -> 0 | AH137: 650000 | AI137: =AH137-Y$155 -> 0 | AJ137: =AH135-AH137 -> 61609.97732 | AK137: =1-AK135-AK136 -> 1
E138: 22 | F138: 0 | G138: Do Minimum | H138: =$G$23+$G$36 -> 50500 | I138: 0 | J138: 0 | K138: 0 | L138: 0 | M138: 0 | N138: 0 | O138: 0 | P138: 0 | Q138: 0 | R138: 0 | S138: 0 | T138: =P126 -> 0 | U138: 0 | V138: 0 | W138: 0 | X138: 0 | Y138: 0 | Z138: 0 | AA138: 0 | AB138: 0 | AC138: 0 | AD138: =$I$23*(1-$H$36) -> 0.93 | AE138: =$J$23*(1-$H$36) -> 0.05 | AF138: 0 | AG138: 0.02 | AH138: 754672.3356 | AI138: =AH138-Z$155 -> 104672.3356 | AJ138: =AH138-AH138 -> 0 | AK138: =IF(AND(AH138<=AH139,AH138<=AH140,AH138<=AH141),1,0) -> 0
F139: 1 | G139: Maintain | H139: =$G$13+$G$36 -> 55000 | I139: 0 | J139: 0 | K139: 0 | L139: 0 | M139: 0 | N139: 0 | O139: 0 | P139: 0 | Q139: =Q136 -> 0 | R139: 0 | S139: 0 | T139: 0 | U139: 0 | V139: 0 | W139: 0 | X139: 0 | Y139: 0 | Z139: 0 | AA139: 0 | AB139: 0 | AC139: 0 | AD139: =IF($F$13=$E$164,1,0)*(1-$H$36) -> 1 | AE139: 0 | AF139: 0 | AG139: 0 | AH139: 674047.619 | AI139: =AH139-Z$155 -> 24047.61905 | AJ139: =AH138-AH139 -> 80624.71655 | AK139: =IF(AND(AK138=0,AH139<=AH140,AH139<=AH141),1,0) -> 0
F140: 2 | G140: Rehab | H140: =$G$14+$G$36 -> 300000 | I140: 0 | J140: 0 | K140: 0 | L140: 0 | M140: 0 | N140: 0 | O140: 0 | P140: 0 | Q140: 0 | R140: 0 | S140: 0 | T140: 0 | U140: 0 | V140: 0 | W140: 0 | X140: 0 | Y140: 0 | Z140: 0 | AA140: 0 | AB140: 0 | AC140: =IF(AND($F$14=$E$164,$H$23=1),1,0)*(1-$H$36) -> 1 | AD140: =IF(AND($F$14=$E$164,$H$23=2),1,0)*(1-$H$36) -> 0 | AE140: =IF(AND($F$14=$E$164,$H$23=3),1,0)*(1-$H$36) -> 0 | AF140: =IF(AND($F$14=$E$164,$H$23=4),1,0)*(1-$H$36) -> 0 | AG140: 0 | AH140: 919047.619 | AI140: =AH140-Z$155 -> 269047.619 | AJ140: =AH138-AH140 -> -164375.2834 | AK140: =IF(AND(AK138=0,AK139=0,AH140<=AH141),1,0) -> 0
F141: 3 | G141: Reconstruct | H141: =$G$15+$G$36 -> 550000 | I141: =IF($F$15=$E$164,1,0) -> 1 | J141: 0 | K141: 0 | L141: 0 | M141: 0 | N141: 0 | O141: 0 | P141: 0 | Q141: =1-I141 -> 0 | R141: 0 | S141: 0 | T141: 0 | U141: 0 | V141: 0 | W141: 0 | X141: 0 | Y141: 0 | Z141: 0 | AA141: 0 | AB141: 0 | AC141: 0 | AD141: 0 | AE141: 0 | AF141: 0 | AG141: 0 | AH141: 650000 | AI141: =AH141-Z$155 -> 0 | AJ141: =AH138-AH141 -> 104672.3356 | AK141: =1-AK138-AK139-AK140 -> 1
E142: 23 | F142: 0 | G142: Do Minimum | H142: =$G$24+$G$36 -> 52500 | I142: 0 | J142: 0 | K142: 0 | L142: 0 | M142: 0 | N142: 0 | O142: 0 | P142: 0 | Q142: 0 | R142: 0 | S142: 0 | T142: 0 | U142: =Q130 -> 0 | V142: 0 | W142: 0 | X142: 0 | Y142: 0 | Z142: 0 | AA142: 0 | AB142: 0 | AC142: 0 | AD142: 0 | AE142: =$I$24*(1-$H$36) -> 0.9 | AF142: =$J$24*(1-$H$36) -> 0.05 | AG142: 0.05 | AH142: 884359.4104 | AI142: =AH142-AA$155 -> 234359.4104 | AJ142: =AH142-AH142 -> 0 | AK142: =IF(AND(AH142<=AH143,AH142<=AH144,AH142<=AH145),1,0) -> 0
F143: 1 | G143: Maintain | H143: =$G$13+$G$36 -> 55000 | I143: 0 | J143: 0 | K143: 0 | L143: 0 | M143: 0 | N143: 0 | O143: 0 | P143: 0 | Q143: 0 | R143: 0 | S143: 0 | T143: 0 | U143: =Q139 -> 0 | V143: 0 | W143: 0 | X143: 0 | Y143: 0 | Z143: 0 | AA143: 0 | AB143: 0 | AC143: 0 | AD143: 0 | AE143: =IF($F$13=$E$164,1,0)*(1-$H$36) -> 1 | AF143: 0 | AG143: 0 | AH143: 674047.619 | AI143: =AH143-AA$155 -> 24047.61905 | AJ143: =AH142-AH143 -> 210311.7914 | AK143: =IF(AND(AK142=0,AH143<=AH144,AH143<=AH145),1,0) -> 0
F144: 2 | G144: Rehab | H144: =$G$14+$G$36 -> 300000 | I144: 0 | J144: 0 | K144: 0 | L144: 0 | M144: 0 | N144: 0 | O144: 0 | P144: 0 | Q144: 0 | R144: 0 | S144: 0 | T144: 0 | U144: 0 | V144: 0 | W144: 0 | X144: 0 | Y144: 0 | Z144: 0 | AA144: 0 | AB144: 0 | AC144: =IF(AND($F$14=$E$164,$H$24=1),1,0)*(1-$H$36) -> 0 | AD144: =IF(AND($F$14=$E$164,$H$24=2),1,0)*(1-$H$36) -> 1 | AE144: =IF(AND($F$14=$E$164,$H$24=3),1,0)*(1-$H$36) -> 0 | AF144: =IF(AND($F$14=$E$164,$H$24=4),1,0)*(1-$H$36) -> 0 | AG144: 0 | AH144: 919047.619 | AI144: =AH144-AA$155 -> 269047.619 | AJ144: =AH142-AH144 -> -34688.20862 | AK144: =IF(AND(AK142=0,AK143=0,AH144<=AH145),1,0) -> 0
F145: 3 | G145: Reconstruct | H145: =$G$15+$G$36 -> 550000 | I145: =IF($F$15=$E$164,1,0) -> 1 | J145: 0 | K145: 0 | L145: 0 | M145: 0 | N145: 0 | O145: 0 | P145: 0 | Q145: 0 | R145: 0 | S145: 0 | T145: 0 | U145: =1-I145 -> 0 | V145: 0 | W145: 0 | X145: 0 | Y145: 0 | Z145: 0 | AA145: 0 | AB145: 0 | AC145: 0 | AD145: 0 | AE145: 0 | AF145: 0 | AG145: 0 | AH145: 650000 | AI145: =AH145-AA$155 -> 0 | AJ145: =AH142-AH145 -> 234359.4104 | AK145: =1-AK142-AK143-AK144 -> 1
E146: 24 | F146: 0 | G146: Do Minimum | H146: =$G$25+$G$36 -> 55000 | I146: 0 | J146: 0 | K146: 0 | L146: 0 | M146: 0 | N146: 0 | O146: 0 | P146: 0 | Q146: 0 | R146: 0 | S146: 0 | T146: 0 | U146: 0 | V146: 0 | W146: 0 | X146: 0 | Y146: 0 | Z146: 0 | AA146: 0 | AB146: 0 | AC146: 0 | AD146: 0 | AE146: 0 | AF146: =$I$25*(1-$H$36) -> 0.5 | AG146: 0.5 | AH146: 2802165.533 | AI146: =AH146-AB$155 -> 2152165.533 | AJ146: =AH146-AH146 -> 0 | AK146: =IF(AND(AH146<=AH147,AH146<=AH148,AH146<=AH149),1,0) -> 0
F147: 1 | G147: Maintain | H147: =$G$13+$G$36 -> 55000 | I147: 0 | J147: 0 | K147: 0 | L147: 0 | M147: 0 | N147: 0 | O147: 0 | P147: 0 | Q147: 0 | R147: 0 | S147: 0 | T147: 0 | U147: =U143 -> 0 | V147: =V143 -> 0 | W147: 0 | X147: 0 | Y147: 0 | Z147: 0 | AA147: 0 | AB147: 0 | AC147: 0 | AD147: 0 | AE147: 0 | AF147: =IF($F$13=$E$164,1,0)*(1-$H$36) -> 1 | AG147: 0 | AH147: 674047.619 | AI147: =AH147-AB$155 -> 24047.61905 | AJ147: =AH146-AH147 -> 2128117.914 | AK147: =IF(AND(AK146=0,AH147<=AH148,AH147<=AH149),1,0) -> 0
F148: 2 | G148: Rehab | H148: =$G$14+$G$36 -> 300000 | I148: 0 | J148: 0 | K148: 0 | L148: 0 | M148: 0 | N148: 0 | O148: 0 | P148: 0 | Q148: 0 | R148: 0 | S148: 0 | T148: 0 | U148: 0 | V148: 0 | W148: 0 | X148: 0 | Y148: 0 | Z148: 0 | AA148: 0 | AB148: 0 | AC148: =IF(AND($F$14=$E$164,$H$25=1),1,0)*(1-$H$36) -> 0 | AD148: =IF(AND($F$14=$E$164,$H$25=2),1,0)*(1-$H$36) -> 1 | AE148: =IF(AND($F$14=$E$164,$H$25=3),1,0)*(1-$H$36) -> 0 | AF148: =IF(AND($F$14=$E$164,$H$25=4),1,0)*(1-$H$36) -> 0 | AG148: 0 | AH148: 919047.619 | AI148: =AH148-AB$155 -> 269047.619 | AJ148: =AH146-AH148 -> 1883117.914 | AK148: =IF(AND(AK146=0,AK147=0,AH148<=AH149),1,0) -> 0
F149: 3 | G149: Reconstruct | H149: =$G$15+$G$36 -> 550000 | I149: =IF($F$15=$E$164,1,0) -> 1 | J149: 0 | K149: 0 | L149: 0 | M149: 0 | N149: 0 | O149: 0 | P149: 0 | Q149: 0 | R149: 0 | S149: 0 | T149: 0 | U149: =1-I149 -> 0 | V149: 0 | W149: 0 | X149: 0 | Y149: 0 | Z149: 0 | AA149: 0 | AB149: 0 | AC149: 0 | AD149: 0 | AE149: 0 | AF149: 0 | AG149: 0 | AH149: 650000 | AI149: =AH149-AB$155 -> 0 | AJ149: =AH146-AH149 -> 2152165.533 | AK149: =1-AK146-AK147-AK148 -> 1
E150: 25 | F150: 4 | G150: Restore | H150: =$I$36+$J$36 -> 4500000 | I150: =IF(AND($K$36=1,$L$36=1),1,0) -> 0 | J150: =IF(AND($K$36=2,$L$36=1),1,0) -> 0 | K150: =IF(AND($K$36=3,$L$36=1),1,0) -> 0 | L150: =IF(AND($K$36=4,$L$36=1),1,0) -> 0 | M150: 0 | N150: =IF(AND($K$36=1,$L$36=2),1,0) -> 0 | O150: =IF(AND($K$36=2,$L$36=2),1,0) -> 0 | P150: =IF(AND($K$36=3,$L$36=2),1,0) -> 0 | Q150: =IF(AND($K$36=4,$L$36=2),1,0) -> 0 | R150: 0 | S150: =IF(AND($K$36=1,$L$36=3),1,0) -> 0 | T150: =IF(AND($K$36=2,$L$36=3),1,0) -> 0 | U150: =IF(AND($K$36=3,$L$36=3),1,0) -> 0 | V150: =IF(AND($K$36=4,$L$36=3),1,0) -> 0 | W150: 0 | X150: 0 | Y150: 0 | Z150: =IF(AND($K$36=3,$L$36=4),1,0) -> 0 | AA150: 0 | AB150: 0 | AC150: =IF(AND($K$36=1,$L$36=5),1,0) -> 1 | AD150: =IF(AND($K$36=2,$L$36=5),1,0) -> 0 | AE150: =IF(AND($K$36=3,$L$36=5),1,0) -> 0 | AF150: =IF(AND($K$36=4,$L$36=5),1,0) -> 0 | AG150: 0 | AH150: 5119047.619 | AI150: =AH150-AC$155 -> 0 | AJ150: =AH150-AH150 -> 0 | AK150: 1
C152: SOLUTIONS
E153: Decision Variables by State
E154: 1 | F154: 2 | G154: 3 | H154: 4 | I154: 5 | J154: 6 | K154: 7 | L154: 8 | M154: 9 | N154: 10 | O154: 11 | P154: 12 | Q154: 13 | R154: 14 | S154: 15 | T154: 16 | U154: 17 | V154: 18 | W154: 19 | X154: 20 | Y154: 21 | Z154: 22 | AA154: 23 | AB154: 24 | AC154: 25
E155: 105000 | F155: 105000 | G155: 105000 | H155: 105000 | I155: 4105000 | J155: 105000 | K155: 105000 | L155: 105000 | M155: 105000 | N155: 4105000 | O155: 126000 | P155: 126000 | Q155: 126000 | R155: 126000 | S155: 4145000 | T155: 210000 | U155: 210000 | V155: 210000 | W155: 210000 | X155: 4250000 | Y155: 650000 | Z155: 650000 | AA155: 650000 | AB155: 650000 | AC155: 5119047.619
E157: One-Row Solution
F158: Do-Min Cost by Maint Risk - Agency | J158: Do-Min Cost by Maint Risk - User | N158: Additional Annual Cost by S/M Risk - Agency | S158: Additional Annual Cost by S/M Risk - User | X158: Treatment Costs | AA158: Agency Failure Cost by S/M Risk | AF158: User Failure Cost by S/M Risk | AK158: Maint Risk Following Rehab | AN158: Maint Risk Following Restore by Safety/Mob. Level | AS158: Safety/Mob Risk Following Restore by Safety/Mob. Level | AX158: TP by Maint Risk - Stay Same | BB158: TP by Maint Risk - Det | BE158: Failure Risk by S/M Risk | BJ158: Rec Action by State | CI158: Benefit by State
E159: Desc | F159: 1 | G159: 2 | H159: 3 | I159: 4 | J159: 1 | K159: 2 | L159: 3 | M159: 4 | N159: 1 | O159: 2 | P159: 3 | Q159: 4 | R159: 5 | S159: 1 | T159: 2 | U159: 3 | V159: 4 | W159: 5 | X159: 1 | Y159: 2 | Z159: 3 | AA159: 1 | AB159: 2 | AC159: 3 | AD159: 4 | AE159: 4 | AF159: 1 | AG159: 2 | AH159: 3 | AI159: 4 | AJ159: 5 | AK159: 2 | AL159: 3 | AM159: 4 | AN159: 1 | AO159: 2 | AP159: 3 | AQ159: 4 | AR159: 5 | AS159: 1 | AT159: 2 | AU159: 3 | AV159: 4 | AW159: 5 | AX159: 1 | AY159: 2 | AZ159: 3 | BA159: 4 | BB159: 1 | BC159: 2 | BD159: 3 | BE159: 1 | BF159: 2 | BG159: 3 | BH159: 4 | BI159: 5 | BJ159: 1 | BK159: 2 | BL159: 3 | BM159: 4 | BN159: 5 | BO159: 6 | BP159: 7 | BQ159: 8 | BR159: 9 | BS159: 10 | BT159: 11 | BU159: 12 | BV159: 13 | BW159: 14 | BX159: 15 | BY159: 16 | BZ159: 17 | CA159: 18 | CB159: 19 | CC159: 20 | CD159: 21 | CE159: 22 | CF159: 23 | CG159: 24 | CH159: 25 | CI159: 1 | CJ159: 2 | CK159: 3 | CL159: 4 | CM159: 5 | CN159: 6 | CO159: 7 | CP159: 8 | CQ159: 9 | CR159: 10 | CS159: 11 | CT159: 12 | CU159: 13 | CV159: 14 | CW159: 15 | CX159: 16 | CY159: 17 | CZ159: 18 | DA159: 19 | DB159: 20 | DC159: 21 | DD159: 22 | DE159: 23 | DF159: 24 | DG159: 25
E160: =F7 -> Example | F160: =E22 -> 0 | G160: =E23 -> 500 | H160: =E24 -> 2500 | I160: =E25 -> 5000 | J160: =F22 -> 0 | K160: =F23 -> 0 | L160: =F24 -> 0 | M160: =F25 -> 0 | N160: =E32 -> 0 | O160: =E33 -> 0 | P160: =E34 -> 0 | Q160: =E35 -> 0 | R160: =E36 -> 0 | S160: =F32 -> 0 | T160: =F33 -> 0 | U160: =F34 -> 1000 | V160: =F35 -> 5000 | W160: =F36 -> 50000 | X160: =G13 -> 5000 | Y160: =G14 -> 250000 | Z160: =G15 -> 500000 | AA160: =I32 -> 4000000 | AB160: =I33 -> 4000000 | AC160: =I34 -> 4000000 | AD160: =I35 -> 4000000 | AE160: =I36 -> 4000000 | AF160: =J32 -> 5000 | AG160: =J33 -> 5000 | AH160: =J34 -> 25000 | AI160: =J35 -> 50000 | AJ160: =J36 -> 500000 | AK160: =H23 -> 1 | AL160: =H24 -> 2 | AM160: =H25 -> 2 | AN160: =$K32 -> 1 | AO160: =$K33 -> 1 | AP160: =$K34 -> 1 | AQ160: =$K35 -> 1 | AR160: =$K36 -> 1 | AS160: =$L32 -> 1 | AT160: =$L33 -> 2 | AU160: =$L34 -> 3 | AV160: =$L35 -> 4 | AW160: =$L36 -> 5 | AX160: =I22 -> 0.96 | AY160: =I23 -> 0.93 | AZ160: =I24 -> 0.9 | BA160: =I25 -> 0.5 | BB160: =J22 -> 0.03 | BC160: =J23 -> 0.05 | BD160: =J24 -> 0.05 | BE160: =H32 -> 0 | BF160: =H33 -> 0 | BG160: =H34 -> 0 | BH160: =H35 -> 0 | BI160: =H36 -> 0 | BJ160: =G42 -> 1 | BK160: =G43 -> 1 | BL160: =G44 -> 1 | BM160: =G45 -> 1 | BN160: =G46 -> 4 | BO160: =G47 -> 1 | BP160: =G48 -> 1 | BQ160: =G49 -> 1 | BR160: =G50 -> 1 | BS160: =G51 -> 4 | BT160: =G52 -> 1 | BU160: =G53 -> 1 | BV160: =G54 -> 1 | BW160: =G55 -> 1 | BX160: =G56 -> 4 | BY160: =G57 -> 1 | BZ160: =G58 -> 1 | CA160: =G59 -> 1 | CB160: =G60 -> 1 | CC160: =G61 -> 4 | CD160: =G62 -> 3 | CE160: =G63 -> 3 | CF160: =G64 -> 3 | CG160: =G65 -> 3 | CH160: =G66 -> 4 | CI160: =J42 -> 33095.2381 | CJ160: =J43 -> 71690.47619 | CK160: =J44 -> 187976.1905 | CL160: =J45 -> 1904761.905 | CM160: =J46 -> 0 | CN160: =J47 -> 33095.2381 | CO160: =J48 -> 71690.47619 | CP160: =J49 -> 187976.1905 | CQ160: =J50 -> 1904761.905 | CR160: =J51 -> 0 | CS160: =J52 -> 33276.19048 | CT160: =J53 -> 72052.38095 | CU160: =J54 -> 188880.9524 | CV160: =J55 -> 1913809.524 | CW160: =J56 -> 0 | CX160: =J57 -> 33476.19048 | CY160: =J58 -> 72452.38095 | CZ160: =J59 -> 189880.9524 | DA160: =J60 -> 1923809.524 | DB160: =J61 -> 0 | DC160: =J62 -> 61609.97732 | DD160: =J63 -> 104672.3356 | DE160: =J64 -> 234359.4104 | DF160: =J65 -> 2152165.533 | DG160: =J66 -> 0
E163: Yes/No
E164: Yes
E165: No
E167: Treatment Labels
E168: ID | F168: Label
E169: 0 | F169: Do Minimum
E170: 1 | F170: Maintain
E171: 2 | F171: Rehab
E172: 3 | F172: Reconstruct
E173: 4 | F173: Restore
E175: Other Parameters
E176: Desc | F176: Value
E177: Disc Factor | F177: =1/(1+F8) -> 0.9523809524
E178: Obj Function | F178: =SUM(E155:AC155) -> 26508047.62

Sheet Asset Models
A1: NCHRP Project 24-46
A2: Asset Models
A4: Model by Asset Type
B5: Do-Min Cost by Maint Risk - Agency | F5: Do-Min Cost by Maint Risk - User | J5: Additional Annual Cost by S/M Risk - Agency | O5: Additional Annual Cost by S/M Risk - User | T5: Treatment Costs | W5: Agency Failure Cost by S/M Risk | AB5: User Failure Cost by S/M Risk | AG5: Maint Risk Following Rehab | AJ5: Maint Risk Following Restore by Safety/Mob. Level | AO5: Safety/Mob Risk Following Restore by Safety/Mob. Level | AT5: TP by Maint Risk - Stay Same | AX5: TP by Maint Risk - Det | BA5: Failure Risk by S/M Risk | BF5: Rec Action by State | CE5: Benefit by State
A6: Asset Models | B6: 1 | C6: 2 | D6: 3 | E6: 4 | F6: 1 | G6: 2 | H6: 3 | I6: 4 | J6: 1 | K6: 2 | L6: 3 | M6: 4 | N6: 5 | O6: 1 | P6: 2 | Q6: 3 | R6: 4 | S6: 5 | T6: 1 | U6: 2 | V6: 3 | W6: 1 | X6: 2 | Y6: 3 | Z6: 4 | AA6: 5 | AB6: 1 | AC6: 2 | AD6: 3 | AE6: 4 | AF6: 5 | AG6: 2 | AH6: 3 | AI6: 4 | AJ6: 1 | AK6: 2 | AL6: 3 | AM6: 4 | AN6: 5 | AO6: 1 | AP6: 2 | AQ6: 3 | AR6: 4 | AS6: 5 | AT6: 1 | AU6: 2 | AV6: 3 | AW6: 4 | AX6: 1 | AY6: 2 | AZ6: 3 | BA6: 1 | BB6: 2 | BC6: 3 | BD6: 4 | BE6: 5 | BF6: 1 | BG6: 2 | BH6: 3 | BI6: 4 | BJ6: 5 | BK6: 6 | BL6: 7 | BM6: 8 | BN6: 9 | BO6: 10 | BP6: 11 | BQ6: 12 | BR6: 13 | BS6: 14 | BT6: 15 | BU6: 16 | BV6: 17 | BW6: 18 | BX6: 19 | BY6: 20 | BZ6: 21 | CA6: 22 | CB6: 23 | CC6: 24 | CD6: 25 | CE6: 1 | CF6: 2 | CG6: 3 | CH6: 4 | CI6: 5 | CJ6: 6 | CK6: 7 | CL6: 8 | CM6: 9 | CN6: 10 | CO6: 11 | CP6: 12 | CQ6: 13 | CR6: 14 | CS6: 15 | CT6: 16 | CU6: 17 | CV6: 18 | CW6: 19 | CX6: 20 | CY6: 21 | CZ6: 22 | DA6: 23 | DB6: 24 | DC6: 25
A7: 1 | B7: =A7+1 -> 2 | C7: 3 | D7: 4 | E7: 5 | F7: 6 | G7: 7 | H7: 8 | I7: 9 | J7: 10 | K7: 11 | L7: 12 | M7: 13 | N7: 14 | O7: 15 | P7: 16 | Q7: 17 | R7: 18 | S7: 19 | T7: 20 | U7: 21 | V7: 22 | W7: 23 | X7: 24 | Y7: 25 | Z7: 26 | AA7: 27 | AB7: 28 | AC7: 29 | AD7: 30 | AE7: 31 | AF7: 32 | AG7: 33 | AH7: =AG7+1 -> 34 | AI7: 35 | AJ7: 36 | AK7: 37 | AL7: 38 | AM7: 39 | AN7: 40 | AO7: 41 | AP7: 42 | AQ7: 43 | AR7: 44 | AS7: 45 | AT7: 46 | AU7: 47 | AV7: 48 | AW7: 49 | AX7: 50 | AY7: 51 | AZ7: 52 | BA7: 53 | BB7: 54 | BC7: 55 | BD7: 56 | BE7: 57 | BF7: 58 | BG7: 59 | BH7: 60 | BI7: 61 | BJ7: 62 | BK7: 63 | BL7: 64 | BM7: 65 | BN7: =BM7+1 -> 66 | BO7: 67 | BP7: 68 | BQ7: 69 | BR7: 70 | BS7: 71 | BT7: 72 | BU7: 73 | BV7: 74 | BW7: 75 | BX7: 76 | BY7: 77 | BZ7: 78 | CA7: 79 | CB7: 80 | CC7: 81 | CD7: 82 | CE7: 83 | CF7: 84 | CG7: 85 | CH7: 86 | CI7: 87 | CJ7: 88 | CK7: 89 | CL7: 90 | CM7: 91 | CN7: 92 | CO7: 93 | CP7: 94 | CQ7: 95 | CR7: 96 | CS7: 97 | CT7: =CS7+1 -> 98 | CU7: 99 | CV7: 100 | CW7: 101 | CX7: 102 | CY7: 103 | CZ7: 104 | DA7: 105 | DB7: 106 | DC7: 107
A8: Cut-All | B8: 0 | C8: 500 | D8: 2500 | E8: 5000 | F8: 0 | G8: 0 | H8: 0 | I8: 0 | J8: 0 | K8: 0 | L8: 0 | M8: 0 | N8: 0 | O8: 0 | P8: 0 | Q8: 0 | R8: 1000 | S8: 100000 | T8: 5000 | U8: 250000 | V8: 750000 | W8: 1125000 | X8: 1125000 | Y8: 1125000 | Z8: 1125000 | AA8: 1125000 | AB8: 5000 | AC8: 5000 | AD8: 25000 | AE8: 50000 | AF8: 500000 | AG8: 1 | AH8: 2 | AI8: 2 | AJ8: 1 | AK8: 1 | AL8: 1 | AM8: 1 | AN8: 1 | AO8: 1 | AP8: 2 | AQ8: 3 | AR8: 4 | AS8: 5 | AT8: 0.98 | AU8: 0.9 | AV8: 0.8 | AW8: 0.5 | AX8: 0.01 | AY8: 0.05 | AZ8: 0.1 | BA8: 0 | BB8: 0 | BC8: 0 | BD8: 0 | BE8: 0 | BF8: 1 | BG8: 1 | BH8: 1 | BI8: 1 | BJ8: 4 | BK8: 1 | BL8: 1 | BM8: 1 | BN8: 1 | BO8: 4 | BP8: 1 | BQ8: 1 | BR8: 1 | BS8: 1 | BT8: 4 | BU8: 1 | BV8: 1 | BW8: 1 | BX8: 1 | BY8: 4 | BZ8: 1 | CA8: 1 | CB8: 1 | CC8: 1 | CD8: 4 | CE8: 33095.2381 | CF8: 185976.1905 | CG8: 378452.381 | CH8: 1904761.905 | CI8: 0 | CJ8: 33095.2381 | CK8: 185976.1905 | CL8: 378452.381 | CM8: 1904761.905 | CN8: 0 | CO8: 33276.19048 | CP8: 186880.9524 | CQ8: 380261.9048 | CR8: 1913809.524 | CS8: 0 | CT8: 33476.19048 | CU8: 187880.9524 | CV8: 382261.9048 | CW8: 1923809.524 | CX8: 0 | CY8: 37562.35828 | CZ8: 208311.7914 | DA8: 423123.5828 | DB8: 2128117.914 | DC8: 0
A9: Embankment | B9: 0 | C9: 500 | D9: 10000 | E9: 50000 | F9: 0 | G9: 0 | H9: 0 | I9: 0 | J9: 0 | K9: 0 | L9: 0 | M9: 0 | N9: 0 | O9: 0 | P9: 0 | Q9: 0 | R9: 10000 | S9: 100000 | T9: 2500 | U9: 250000 | V9: 1000000 | W9: 1500000 | X9: 1500000 | Y9: 1500000 | Z9: 1500000 | AA9: 1500000 | AB9: 5000 | AC9: 5000 | AD9: 25000 | AE9: 50000 | AF9: 500000 | AG9: 1 | AH9: 2 | AI9: 2 | AJ9: 1 | AK9: 1 | AL9: 1 | AM9: 1 | AN9: 1 | AO9: 1 | AP9: 2 | AQ9: 3 | AR9: 4 | AS9: 5 | AT9: 0.98 | AU9: 0.9 | AV9: 0.8 | AW9: 0.5 | AX9: 0.01 | AY9: 0.05 | AZ9: 0.1 | BA9: 0.01 | BB9: 0.01 | BC9: 0.01 | BD9: 0.01 | BE9: 0.01 | BF9: 1 | BG9: 1 | BH9: 1 | BI9: 1 | BJ9: 4 | BK9: 1 | BL9: 1 | BM9: 1 | BN9: 1 | BO9: 4 | BP9: 1 | BQ9: 1 | BR9: 1 | BS9: 1 | BT9: 4 | BU9: 1 | BV9: 1 | BW9: 1 | BX9: 1 | BY9: 4 | BZ9: 1 | CA9: 1 | CB9: 1 | CC9: 1 | CD9: 4 | CE9: 35214.28571 | CF9: 186571.4286 | CG9: 384642.8571 | CH9: 1933214.286 | CI9: 0 | CJ9: 35214.28571 | CK9: 186571.4286 | CL9: 384642.8571 | CM9: 1933214.286 | CN9: 0 | CO9: 35393.42857 | CP9: 187467.1429 | CQ9: 386434.2857 | CR9: 1942171.429 | CS9: 0 | CT9: 35591.42857 | CU9: 188457.1429 | CV9: 388414.2857 | CW9: 1952071.429 | CX9: 0 | CY9: 39636.73469 | CZ9: 208683.6735 | DA9: 428867.3469 | DB9: 2154336.735 | DC9: 0
A10: Subgrade | B10: 0 | C10: 500 | D10: 2500 | E10: 25000 | F10: 0 | G10: 0 | H10: 0 | I10: 0 | J10: 0 | K10: 0 | L10: 0 | M10: 0 | N10: 0 | O10: 0 | P10: 0 | Q10: 0 | R10: 10000 | S10: 50000 | T10: 5000 | U10: 250000 | V10: 500000 | W10: 750000 | X10: 750000 | Y10: 750000 | Z10: 750000 | AA10: 750000 | AB10: 5000 | AC10: 5000 | AD10: 25000 | AE10: 50000 | AF10: 500000 | AG10: 1 | AH10: 2 | AI10: 2 | AJ10: 1 | AK10: 1 | AL10: 1 | AM10: 1 | AN10: 1 | AO10: 1 | AP10: 2 | AQ10: 3 | AR10: 4 | AS10: 5 | AT10: 0.98 | AU10: 0.9 | AV10: 0.8 | AW10: 0.5 | AX10: 0.01 | AY10: 0.05 | AZ10: 0.1 | BA10: 0.01 | BB10: 0.01 | BC10: 0.01 | BD10: 0.01 | BE10: 0.01 | BF10: 1 | BG10: 1 | BH10: 1 | BI10: 1 | BJ10: 4 | BK10: 1 | BL10: 1 | BM10: 1 | BN10: 1 | BO10: 4 | BP10: 1 | BQ10: 1 | BR10: 1 | BS10: 1 | BT10: 4 | BU10: 1 | BV10: 1 | BW10: 1 | BX10: 1 | BY10: 4 | BZ10: 3 | CA10: 3 | CB10: 3 | CC10: 3 | CD10: 4 | CE10: 32714.28571 | CF10: 184071.4286 | CG10: 374642.8571 | CH10: 1905714.286 | CI10: 0 | CJ10: 32714.28571 | CK10: 184071.4286 | CL10: 374642.8571 | CM10: 1905714.286 | CN10: 0 | CO10: 32893.42857 | CP10: 184967.1429 | CQ10: 376434.2857 | CR10: 1914671.429 | CS10: 0 | CT10: 33091.42857 | CU10: 185957.1429 | CV10: 378414.2857 | CW10: 1924571.429 | CX10: 0 | CY10: 103746.712 | CZ10: 272793.6508 | DA10: 485477.3243 | DB10: 2193446.712 | DC10: 0
A11: Wall Below | B11: 0 | C11: 500 | D11: 10000 | E11: 50000 | F11: 0 | G11: 0 | H11: 0 | I11: 0 | J11: 0 | K11: 0 | L11: 0 | M11: 0 | N11: 0 | O11: 0 | P11: 0 | Q11: 0 | R11: 10000 | S11: 100000 | T11: 5000 | U11: 125000 | V11: 1000000 | W11: 1500000 | X11: 1500000 | Y11: 1500000 | Z11: 1500000 | AA11: 1500000 | AB11: 5000 | AC11: 5000 | AD11: 25000 | AE11: 50000 | AF11: 500000 | AG11: 1 | AH11: 2 | AI11: 2 | AJ11: 1 | AK11: 1 | AL11: 1 | AM11: 1 | AN11: 1 | AO11: 1 | AP11: 2 | AQ11: 3 | AR11: 4 | AS11: 5 | AT11: 0.98 | AU11: 0.9 | AV11: 0.8 | AW11: 0.5 | AX11: 0.01 | AY11: 0.05 | AZ11: 0.1 | BA11: 0.01 | BB11: 0.01 | BC11: 0.01 | BD11: 0.01 | BE11: 0.01 | BF11: 1 | BG11: 1 | BH11: 1 | BI11: 1 | BJ11: 4 | BK11: 1 | BL11: 1 | BM11: 1 | BN11: 1 | BO11: 4 | BP11: 1 | BQ11: 1 | BR11: 1 | BS11: 1 | BT11: 4 | BU11: 1 | BV11: 1 | BW11: 1 | BX11: 1 | BY11: 4 | BZ11: 1 | CA11: 1 | CB11: 1 | CC11: 1 | CD11: 4 | CE11: 32714.28571 | CF11: 184071.4286 | CG11: 382142.8571 | CH11: 1930714.286 | CI11: 0 | CJ11: 32714.28571 | CK11: 184071.4286 | CL11: 382142.8571 | CM11: 1930714.286 | CN11: 0 | CO11: 32893.42857 | CP11: 184967.1429 | CQ11: 383934.2857 | CR11: 1939671.429 | CS11: 0 | CT11: 33091.42857 | CU11: 185957.1429 | CV11: 385914.2857 | CW11: 1949571.429 | CX11: 0 | CY11: 37136.73469 | CZ11: 206183.6735 | DA11: 426367.3469 | DB11: 2151836.735 | DC11: 0
A12: Wall Above | B12: 0 | C12: 500 | D12: 5000 | E12: 50000 | F12: 0 | G12: 0 | H12: 0 | I12: 0 | J12: 0 | K12: 0 | L12: 0 | M12: 0 | N12: 0 | O12: 0 | P12: 0 | Q12: 0 | R12: 5000 | S12: 25000 | T12: 5000 | U12: 125000 | V12: 500000 | W12: 750000 | X12: 750000 | Y12: 750000 | Z12: 750000 | AA12: 750000 | AB12: 5000 | AC12: 5000 | AD12: 25000 | AE12: 50000 | AF12: 500000 | AG12: 1 | AH12: 2 | AI12: 2 | AJ12: 1 | AK12: 1 | AL12: 1 | AM12: 1 | AN12: 1 | AO12: 1 | AP12: 2 | AQ12: 3 | AR12: 4 | AS12: 5 | AT12: 0.96 | AU12: 0.9 | AV12: 0.8 | AW12: 0.5 | AX12: 0.03 | AY12: 0.05 | AZ12: 0.1 | BA12: 0.01 | BB12: 0.01 | BC12: 0.01 | BD12: 0.01 | BE12: 0.01 | BF12: 1 | BG12: 1 | BH12: 1 | BI12: 1 | BJ12: 4 | BK12: 1 | BL12: 1 | BM12: 1 | BN12: 1 | BO12: 4 | BP12: 1 | BQ12: 1 | BR12: 1 | BS12: 1 | BT12: 4 | BU12: 1 | BV12: 1 | BW12: 1 | BX12: 1 | BY12: 4 | BZ12: 3 | CA12: 3 | CB12: 3 | CC12: 3 | CD12: 4 | CE12: 32714.28571 | CF12: 184071.4286 | CG12: 377142.8571 | CH12: 1930714.286 | CI12: 0 | CJ12: 32714.28571 | CK12: 184071.4286 | CL12: 377142.8571 | CM12: 1930714.286 | CN12: 0 | CO12: 32893.42857 | CP12: 184967.1429 | CQ12: 378934.2857 | CR12: 1939671.429 | CS12: 0 | CT12: 33091.42857 | CU12: 185957.1429 | CV12: 380914.2857 | CW12: 1949571.429 | CX12: 0 | CY12: 103746.712 | CZ12: 272793.6508 | DA12: 487977.3243 | DB12: 2218446.712 | DC12: 0
A13: NatHaz-RockDebris | B13: 0 | C13: 500 | D13: 2500 | E13: 5000 | F13: 0 | G13: 0 | H13: 0 | I13: 0 | J13: 0 | K13: 0 | L13: 0 | M13: 0 | N13: 0 | O13: 0 | P13: 0 | Q13: 0 | R13: 10000 | S13: 100000 | T13: 10000 | U13: 250000 | V13: 1000000 | W13: 1500000 | X13: 1500000 | Y13: 1500000 | Z13: 1500000 | AA13: 1500000 | AB13: 5000 | AC13: 5000 | AD13: 25000 | AE13: 50000 | AF13: 500000 | AG13: 1 | AH13: 2 | AI13: 2 | AJ13: 1 | AK13: 1 | AL13: 1 | AM13: 1 | AN13: 1 | AO13: 1 | AP13: 2 | AQ13: 3 | AR13: 4 | AS13: 5 | AT13: 0.98 | AU13: 0.98 | AV13: 0.98 | AW13: 0.5 | AX13: 0.01 | AY13: 0.01 | AZ13: 0.01 | BA13: 0.01 | BB13: 0.01 | BC13: 0.01 | BD13: 0.01 | BE13: 0.01 | BF13: 1 | BG13: 1 | BH13: 1 | BI13: 1 | BJ13: 4 | BK13: 1 | BL13: 1 | BM13: 1 | BN13: 1 | BO13: 4 | BP13: 1 | BQ13: 1 | BR13: 1 | BS13: 1 | BT13: 4 | BU13: 1 | BV13: 1 | BW13: 1 | BX13: 1 | BY13: 4 | BZ13: 1 | CA13: 1 | CB13: 1 | CC13: 1 | CD13: 4 | CE13: 27714.28571 | CF13: 28214.28571 | CG13: 30214.28571 | CH13: 1880714.286 | CI13: 0 | CJ13: 27714.28571 | CK13: 28214.28571 | CL13: 30214.28571 | CM13: 1880714.286 | CN13: 0 | CO13: 27893.42857 | CP13: 28393.42857 | CQ13: 30393.42857 | CR13: 1889671.429 | CS13: 0 | CT13: 28091.42857 | CU13: 28591.42857 | CV13: 30591.42857 | CW13: 1899571.429 | CX13: 0 | CY13: 32136.73469 | CZ13: 32636.73469 | DA13: 34636.73469 | DB13: 2101836.735 | DC13: 0
A14: NatHaz-Landslide | B14: 0 | C14: 500 | D14: 10000 | E14: 50000 | F14: 0 | G14: 0 | H14: 0 | I14: 0 | J14: 0 | K14: 0 | L14: 0 | M14: 0 | N14: 0 | O14: 0 | P14: 0 | Q14: 0 | R14: 50000 | S14: 500000 | T14: 5000 | U14: 250000 | V14: 500000 | W14: 3000000 | X14: 3000000 | Y14: 3000000 | Z14: 3000000 | AA14: 3000000 | AB14: 5000 | AC14: 5000 | AD14: 25000 | AE14: 50000 | AF14: 500000 | AG14: 1 | AH14: 2 | AI14: 2 | AJ14: 1 | AK14: 1 | AL14: 1 | AM14: 1 | AN14: 1 | AO14: 1 | AP14: 2 | AQ14: 3 | AR14: 4 | AS14: 5 | AT14: 0.98 | AU14: 0.98 | AV14: 0.98 | AW14: 0.5 | AX14: 0.01 | AY14: 0.01 | AZ14: 0.01 | BA14: 0.01 | BB14: 0.01 | BC14: 0.01 | BD14: 0.01 | BE14: 0.01 | BF14: 1 | BG14: 1 | BH14: 1 | BI14: 1 | BJ14: 4 | BK14: 1 | BL14: 1 | BM14: 1 | BN14: 1 | BO14: 4 | BP14: 1 | BQ14: 1 | BR14: 1 | BS14: 1 | BT14: 4 | BU14: 1 | BV14: 1 | BW14: 1 | BX14: 1 | BY14: 4 | BZ14: 3 | CA14: 3 | CB14: 3 | CC14: 3 | CD14: 4 | CE14: 32714.28571 | CF14: 33214.28571 | CG14: 42714.28571 | CH14: 1930714.286 | CI14: 0 | CJ14: 32714.28571 | CK14: 33214.28571 | CL14: 42714.28571 | CM14: 1930714.286 | CN14: 0 | CO14: 32893.42857 | CP14: 33393.42857 | CQ14: 42893.42857 | CR14: 1939671.429 | CS14: 0 | CT14: 33091.42857 | CU14: 33591.42857 | CV14: 43091.42857 | CW14: 1949571.429 | CX14: 0 | CY14: 103746.712 | CZ14: 104246.712 | DA14: 113746.712 | DB14: 2218446.712 | DC14: 0
E158: 0 | F158: 0 | G158: 0 | H158: 0 | I158: 0 | J158: 0 | K158: 0 | L158: 0 | M158: 0 | N158: 0 | O158: 0 | P158: 0 | Q158: 0 | R158: 0 | S158: 0 | T158: 0 | U158: 0 | V158: 0 | W158: 0 | X158: 0 | Y158: 0 | Z158: 0 | AA158: 0 | AB158: 0 | AC158: 0

Sheet Asset Model Names
A1: NCHRP Project 24-46
A2: Asset Model Names
A4: Asset Model Names
A5: Cut-All | B5: ='Cut-All'!F7 -> Cut-All
A6: Embankment | B6: =Embankment!F7 -> Embankment
A7: Subgrade | B7: =Subgrade!F7 -> Subgrade
A8: Wall Below | B8: ='Wall Below'!F7 -> Wall Below
A9: Wall Above | B9: ='Wall Above'!F7 -> Wall Above
A10: NatHaz-RockDebris | B10: ='NatHaz-RockDebris'!F7 -> NatHaz-RockDebris
A11: NatHaz-Landslide | B11: ='NatHaz-Landslide'!F7 -> NatHaz-Landslide

Sheet Year 01
A1: NCHRP Project 24-46
A2: Asset Simulation
A4: Year | B4: ='Summary Results'!C9 -> 1
A5: Budget | B5: =VLOOKUP($B4,'Summary Results'!$C$9:$E$19,3) -> 50000
A8: Random | B8: Fixed Rand | C8: Other | M8: Failure Risk | N8: Failure Cost | P8: Do-Minimum Prob | U8: Resulting | V8: Do-Min Cost | X8: Treatment | Z8: Rec. Action Prob | AE8: Rec Action | AL8: Results | AP8: Costs
A9: Num | B9: Num | C9: Num | D9: Asset ID | E9: Type | F9: Quantity | G9: Maint Risk | H9: Safety Risk | I9: Mobility Risk | J9: S+M Risk | K9: State | L9: Row Num | M9: Base on S/M Cat | N9: Agency | O9: User | P9: 1 | Q9: 2 | R9: 3 | S9: 4 | T9: 5 | U9: State | V9: Agency | W9: User | X9: Rec | Y9: Desc | Z9: 1 | AA9: 2 | AB9: 3 | AC9: 4 | AD9: 5 | AE9: S/M Risk Level | AF9: State | AG9: Cost | AH9: Benefit | AI9: BCR | AJ9: Cum Cost | AK9: Program? | AL9: Treatment | AM9: Maint Risk | AN9: S+M Risk | AO9: State | AP9: Total Agency | AQ9: Do Min | AR9: Agency Fail | AS9: Total User | AT9: User Fail | AU9: Repl Value
A10: =RAND() -> 0.4293111894 | B10: 0.6677154953 | C10: =IF(Inventory!AH9=Inventory!$C$1032,0.5,1)*B10 -> 0.6677154953 | D10: =Inventory!C9 -> 0 | E10: =Inventory!E9 -> 0 | F10: =Inventory!W9 -> 1 | G10: =Inventory!AI9 ->  | H10: =IF(G10<>"",Inventory!AQ9/G10,"") ->  | I10: =IF(G10<>"",Inventory!AS9/G10,"") ->  | J10: =Inventory!AK9 ->  | K10: =IF(J10 = "", "", (J10-1)*5+G10) ->  | L10: =IF(E10 = 0, "", MATCH($E10,'Asset Models'!$A$7:$A$18,0)) ->  | M10: =IF(L10="", "", INDEX('Asset Models'!$A$7:$DC$18,$L10,'Asset Models'!BA$7+$J10-1)) ->  | N10: =IF(L10="", "", INDEX('Asset Models'!$A$7:$DC$18,$L10,'Asset Models'!$W$7+$J10-1)*$F10) ->  | O10: =IF(L10="", "", INDEX('Asset Models'!$A$7:$DC$18,$L10,'Asset Models'!$AB$7+$J10-1)*$F10) ->  | P10: =IF(L10="", "", IF($G10=5,1,IF($G10=1,INDEX('Asset Models'!$A$7:$DC$18,$L10,'Asset Models'!$AT$7+$G10-1),0)*(1-$M10))) ->  | Q10: =IF(L10="", "", IF($G10=5,0,IF($G10=1,INDEX('Asset Models'!$A$7:$DC$18,$L10,'Asset Models'!$AX$7+$G10-1),IF($G10=2,INDEX('Asset Models'!$A$7:$DC$18,$L10,'Asset Models'!$AT$7+$G10-1),0))*(1-$M10))) ->  | R10: =IF(L10="", "", IF($G10=5,0,IF($G10=2,INDEX('Asset Models'!$A$7:$DC$18,$L10,'Asset Models'!$AX$7+$G10-1),IF($G10=3,INDEX('Asset Models'!$A$7:$DC$18,$L10,'Asset Models'!$AT$7+$G10-1),0))*(1-$M10))) ->  | S10: =IF(L10="", "", IF($G10=5,0,IF($G10=3,INDEX('Asset Models'!$A$7:$DC$18,$L10,'Asset Models'!$AX$7+$G10-1),IF($G10=4,INDEX('Asset Models'!$A$7:$DC$18,$L10,'Asset Models'!$AT$7+$G10-1),0))*(1-$M10))) ->  | T10: =IF(L10="", "", 1-SUM(P10:S10)) ->  | U10: =IF(L10="", "", IF($C10<=T10,($J10-1)*5+5,(IF($C10<=S10+T10,4,IF($C10<=R10+S10+T10,3,IF($C10<=Q10+R10+S10+T10,2,1))))+($J10-1)*5)) ->  | V10: =IF(L10="", "", IF($G10=5,$N10,(INDEX('Asset Models'!$A$7:$DC$18,$L10,'Asset Models'!$B$7+$G10-1)+INDEX('Asset Models'!$A$7:$DC$18,$L10,'Asset Models'!$J$7+$J10-1))*$F10)) ->  | W10: =IF(L10="", "", IF($G10=5,$O10,(INDEX('Asset Models'!$A$7:$DC$18,$L10,'Asset Models'!$F$7+$G10-1)+INDEX('Asset Models'!$A$7:$DC$18,$L10,'Asset Models'!$O$7+$J10-1))*$F10)) ->  | X10: =IF(L10="", "", INDEX('Asset Models'!$A$7:$DC$18,$L10,'Asset Models'!$BF$7+$K10-1)) ->  | Y10: =IF(L10="", "", VLOOKUP(X10,'Asset Model Builder'!$E$169:$F$173,2)) ->  | Z10: =IF(L10="", "", IF($X10=0,P10,IF($X10=1,IF(Z$9=$G10,(1-$M10),0),IF($X10=2,IF(Z$9=INDEX('Asset Models'!$A$7:$DC$18,$L10,'Asset Models'!$AG$7+$G10-2),(1-$M10),0),IF($X10=3,IF(Z$9=1,1,0),IF(INDEX('Asset Models'!$A$7:$DC$18,$L10,'Asset Models'!$AJ$7+$J10-1)=Z$9,1,0)))))) ->  | AA10: =IF(L10="", "", IF($X10=0,Q10,IF($X10=1,IF(AA$9=$G10,(1-$M10),0),IF($X10=2,IF(AA$9=INDEX('Asset Models'!$A$7:$DC$18,$L10,'Asset Models'!$AG$7+$G10-2),(1-$M10),0),IF($X10=3,IF(AA$9=1,1,0),IF(INDEX('Asset Models'!$A$7:$DC$18,$L10,'Asset Models'!$AJ$7+$J10-1)=AA$9,1,0)))))) ->  | AB10: =IF(L10="", "", IF($X10=0,R10,IF($X10=1,IF(AB$9=$G10,(1-$M10),0),IF($X10=2,IF(AB$9=INDEX('Asset Models'!$A$7:$DC$18,$L10,'Asset Models'!$AG$7+$G10-2),(1-$M10),0),IF($X10=3,IF(AB$9=1,1,0),IF(INDEX('Asset Models'!$A$7:$DC$18,$L10,'Asset Models'!$AJ$7+$J10-1)=AB$9,1,0)))))) ->  | AC10: =IF(L10="", "", IF($X10=0,S10,IF($X10=1,IF(AC$9=$G10,(1-$M10),0),IF($X10=2,IF(AC$9=INDEX('Asset Models'!$A$7:$DC$18,$L10,'Asset Models'!$AG$7+$G10-2),(1-$M10),0),IF($X10=3,IF(AC$9=1,1,0),IF(INDEX('Asset Models'!$A$7:$DC$18,$L10,'Asset Models'!$AJ$7+$J10-1)=AC$9,1,0)))))) ->  | AD10: =IF(L10="", "", 1-SUM(Z10:AC10)) ->  | AE10: =IF($X10=3,1,IF($X10=4,INDEX('Asset Models'!$A$7:$DC$18,$L10,'Asset Models'!$AO$7+$J10-1),$J10)) ->  | AF10: =IF(L10="", "", IF($C10<=AD10,5,IF($C10<=AC10+AD10,4,IF($C10<=AB10+AC10+AD10,3,IF($C10<=AA10+AB10+AC10+AD10,2,1))))+($AE10-1)*5) ->  | AG10: =IF(L10="", "", IF($X10=0,$V10,IF($G10=5,$N10,(INDEX('Asset Models'!$A$7:$DC$18,$L10,'Asset Models'!$T$7+$X10-1)+INDEX('Asset Models'!$A$7:$DC$18,$L10,'Asset Models'!$J$7+$J10-1))*$F10))) ->  | AH10: =IF(L10="", "", INDEX('Asset Models'!$A$7:$DC$18,$L10,'Asset Models'!$CE$7+$K10-1)*$F10) ->  | AI10: =IF(L10="", "", IF(OR(AH10=0,AG10=0,AG10=V10),999999,AH10/(AG10-V10))) ->  | AJ10: =IF(L10="", "", SUMIF($AI$10:$AI$1009,">="&$AI10,$AG$10:$AG$1009)) ->  | AK10: =IF(L10="", "", IF(OR(AI10=999999,$AJ10<=$B$5),1,0)) ->  | AL10: =IF(L10="", "", IF($AK10,$X10,0)) ->  | AM10: =IF(L10="", "", $AO10-($AN10-1)*5) ->  | AN10: =IF(L10="", "", INT(($AO10-1)/5)+1) ->  | AO10: =IF(L10="", "", IF($AK10,$AF10,$U10)) ->  | AP10: =IF(L10="", "", IF($AK10,$AG10,$V10)) ->  | AQ10: =IF(L10="", "", IF(OR(X10=0,AK10=0),AP10,0)) ->  | AR10: =IF(L10="", "", IF($G10=5,AP10,0)) ->  | AS10: =IF(L10="", "", IF($G10=5,$O10,IF($AK10=0,$W10,INDEX('Asset Models'!$A$7:$DC$18,$L10,'Asset Models'!$J$7+$J10-1)*$F10))) ->  | AT10: =IF(L10="", "", IF($G10=5,AS10,0)) ->  | AU10: =IF(L10="", "", INDEX('Asset Models'!$A$7:$DC$18,$L10,'Asset Models'!$V$7)*$F10) -> 
A11: 0.6443012534 | B11: 0.730652161 | C11: =IF(Inventory!AH10=Inventory!$C$1032,0.5,1)*B11 -> 0.730652161 | D11: =Inventory!C10 -> 0 | E11: =Inventory!E10 -> 0 | F11: =Inventory!W10 -> 1 | G11: =Inventory!AI10 ->  | H11: =IF(G11<>"",Inventory!AQ10/G11,"") ->  | I11: =IF(G11<>"",Inventory!AS10/G11,"") ->  | J11: =Inventory!AK10 ->  | K11: =IF(J11 = "", "", (J11-1)*5+G11) ->  | L11: =IF(E11 = 0, "", MATCH($E11,'Asset Models'!$A$7:$A$18,0)) ->  | M11: =IF(L11="", "", INDEX('Asset Models'!$A$7:$DC$18,$L11,'Asset Models'!BA$7+$J11-1)) ->  | N11: =IF(L11="", "", INDEX('Asset Models'!$A$7:$DC$18,$L11,'Asset Models'!$W$7+$J11-1)*$F11) ->  | O11: =IF(L11="", "", INDEX('Asset Models'!$A$7:$DC$18,$L11,'Asset Models'!$AB$7+$J11-1)*$F11) ->  | P11: =IF(L11="", "", IF($G11=5,1,IF($G11=1,INDEX('Asset Models'!$A$7:$DC$18,$L11,'Asset Models'!$AT$7+$G11-1),0)*(1-$M11))) ->  | Q11: =IF(L11="", "", IF($G11=5,0,IF($G11=1,INDEX('Asset Models'!$A$7:$DC$18,$L11,'Asset Models'!$AX$7+$G11-1),IF($G11=2,INDEX('Asset Models'!$A$7:$DC$18,$L11,'Asset Models'!$AT$7+$G11-1),0))*(1-$M11))) ->  | R11: =IF(L11="", "", IF($G11=5,0,IF($G11=2,INDEX('Asset Models'!$A$7:$DC$18,$L11,'Asset Models'!$AX$7+$G11-1),IF($G11=3,INDEX('Asset Models'!$A$7:$DC$18,$L11,'Asset Models'!$AT$7+$G11-1),0))*(1-$M11))) ->  | S11: =IF(L11="", "", IF($G11=5,0,IF($G11=3,INDEX('Asset Models'!$A$7:$DC$18,$L11,'Asset Models'!$AX$7+$G11-1),IF($G11=4,INDEX('Asset Models'!$A$7:$DC$18,$L11,'Asset Models'!$AT$7+$G11-1),0))*(1-$M11))) ->  | T11: =IF(L11="", "", 1-SUM(P11:S11)) ->  | U11: =IF(L11="", "", IF($C11<=T11,($J11-1)*5+5,(IF($C11<=S11+T11,4,IF($C11<=R11+S11+T11,3,IF($C11<=Q11+R11+S11+T11,2,1))))+($J11-1)*5)) ->  | V11: =IF(L11="", "", IF($G11=5,$N11,(INDEX('Asset Models'!$A$7:$DC$18,$L11,'Asset Models'!$B$7+$G11-1)+INDEX('Asset Models'!$A$7:$DC$18,$L11,'Asset Models'!$J$7+$J11-1))*$F11)) ->  | W11: =IF(L11="", "", IF($G11=5,$O11,(INDEX('Asset Models'!$A$7:$DC$18,$L11,'Asset Models'!$F$7+$G11-1)+INDEX('Asset Models'!$A$7:$DC$18,$L11,'Asset Models'!$O$7+$J11-1))*$F11)) ->  | X11: =IF(L11="", "", INDEX('Asset Models'!$A$7:$DC$18,$L11,'Asset Models'!$BF$7+$K11-1)) ->  | Y11: =IF(L11="", "", VLOOKUP(X11,'Asset Model Builder'!$E$169:$F$173,2)) ->  | Z11: =IF(L11="", "", IF($X11=0,P11,IF($X11=1,IF(Z$9=$G11,(1-$M11),0),IF($X11=2,IF(Z$9=INDEX('Asset Models'!$A$7:$DC$18,$L11,'Asset Models'!$AG$7+$G11-2),(1-$M11),0),IF($X11=3,IF(Z$9=1,1,0),IF(INDEX('Asset Models'!$A$7:$DC$18,$L11,'Asset Models'!$AJ$7+$J11-1)=Z$9,1,0)))))) ->  | AA11: =IF(L11="", "", IF($X11=0,Q11,IF($X11=1,IF(AA$9=$G11,(1-$M11),0),IF($X11=2,IF(AA$9=INDEX('Asset Models'!$A$7:$DC$18,$L11,'Asset Models'!$AG$7+$G11-2),(1-$M11),0),IF($X11=3,IF(AA$9=1,1,0),IF(INDEX('Asset Models'!$A$7:$DC$18,$L11,'Asset Models'!$AJ$7+$J11-1)=AA$9,1,0)))))) ->  | AB11: =IF(L11="", "", IF($X11=0,R11,IF($X11=1,IF(AB$9=$G11,(1-$M11),0),IF($X11=2,IF(AB$9=INDEX('Asset Models'!$A$7:$DC$18,$L11,'Asset Models'!$AG$7+$G11-2),(1-$M11),0),IF($X11=3,IF(AB$9=1,1,0),IF(INDEX('Asset Models'!$A$7:$DC$18,$L11,'Asset Models'!$AJ$7+$J11-1)=AB$9,1,0)))))) ->  | AC11: =IF(L11="", "", IF($X11=0,S11,IF($X11=1,IF(AC$9=$G11,(1-$M11),0),IF($X11=2,IF(AC$9=INDEX('Asset Models'!$A$7:$DC$18,$L11,'Asset Models'!$AG$7+$G11-2),(1-$M11),0),IF($X11=3,IF(AC$9=1,1,0),IF(INDEX('Asset Models'!$A$7:$DC$18,$L11,'Asset Models'!$AJ$7+$J11-1)=AC$9,1,0)))))) ->  | AD11: =IF(L11="", "", 1-SUM(Z11:AC11)) ->  | AE11: =IF($X11=3,1,IF($X11=4,INDEX('Asset Models'!$A$7:$DC$18,$L11,'Asset Models'!$AO$7+$J11-1),$J11)) ->  | AF11: =IF(L11="", "", IF($C11<=AD11,5,IF($C11<=AC11+AD11,4,IF($C11<=AB11+AC11+AD11,3,IF($C11<=AA11+AB11+AC11+AD11,2,1))))+($AE11-1)*5) ->  | AG11: =IF(L11="", "", IF($X11=0,$V11,IF($G11=5,$N11,(INDEX('Asset Models'!$A$7:$DC$18,$L11,'Asset Models'!$T$7+$X11-1)+INDEX('Asset Models'!$A$7:$DC$18,$L11,'Asset Models'!$J$7+$J11-1))*$F11))) ->  | AH11: =IF(L11="", "", INDEX('Asset Models'!$A$7:$DC$18,$L11,'Asset Models'!$CE$7+$K11-1)*$F11) ->  | AI11: =IF(L11="", "", IF(OR(AH11=0,AG11=0,AG11=V11),999999,AH11/(AG11-V11))) ->  | AJ11: =IF(L11="", "", SUMIF($AI$10:$AI$1009,">="&$AI11,$AG$10:$AG$1009)) ->  | AK11: =IF(L11="", "", IF(OR(AI11=999999,$AJ11<=$B$5),1,0)) ->  | AL11: =IF(L11="", "", IF($AK11,$X11,0)) ->  | AM11: =IF(L11="", "", $AO11-($AN11-1)*5) ->  | AN11: =IF(L11="", "", INT(($AO11-1)/5)+1) ->  | AO11: =IF(L11="", "", IF($AK11,$AF11,$U11)) ->  | AP11: =IF(L11="", "", IF($AK11,$AG11,$V11)) ->  | AQ11: =IF(L11="", "", IF(OR(X11=0,AK11=0),AP11,0)) ->  | AR11: =IF(L11="", "", IF($G11=5,AP11,0)) ->  | AS11: =IF(L11="", "", IF($G11=5,$O11,IF($AK11=0,$W11,INDEX('Asset Models'!$A$7:$DC$18,$L11,'Asset Models'!$J$7+$J11-1)*$F11))) ->  | AT11: =IF(L11="", "", IF($G11=5,AS11,0)) ->  | AU11: =IF(L11="", "", INDEX('Asset Models'!$A$7:$DC$18,$L11,'Asset Models'!$V$7)*$F11) -> 
A12: 0.4720838732 | B12: 0.6716809059 | C12: =IF(Inventory!AH11=Inventory!$C$1032,0.5,1)*B12 -> 0.6716809059 | D12: =Inventory!C11 -> 0 | E12: =Inventory!E11 -> 0 | F12: =Inventory!W11 -> 1 | G12: =Inventory!AI11 ->  | H12: =IF(G12<>"",Inventory!AQ11/G12,"") ->  | I12: =IF(G12<>"",Inventory!AS11/G12,"") ->  | J12: =Inventory!AK11 ->  | L12: =IF(E12 = 0, "", MATCH($E12,'Asset Models'!$A$7:$A$18,0)) ->  | M12: =IF(L12="", "", INDEX('Asset Models'!$A$7:$DC$18,$L12,'Asset Models'!BA$7+$J12-1)) ->  | N12: =IF(L12="", "", INDEX('Asset Models'!$A$7:$DC$18,$L12,'Asset Models'!$W$7+$J12-1)*$F12) ->  | O12: =IF(L12="", "", INDEX('Asset Models'!$A$7:$DC$18,$L12,'Asset Models'!$AB$7+$J12-1)*$F12) ->  | P12: =IF(L12="", "", IF($G12=5,1,IF($G12=1,INDEX('Asset Models'!$A$7:$DC$18,$L12,'Asset Models'!$AT$7+$G12-1),0)*(1-$M12))) ->  | Q12: =IF(L12="", "", IF($G12=5,0,IF($G12=1,INDEX('Asset Models'!$A$7:$DC$18,$L12,'Asset Models'!$AX$7+$G12-1),IF($G12=2,INDEX('Asset Models'!$A$7:$DC$18,$L12,'Asset Models'!$AT$7+$G12-1),0))*(1-$M12))) ->  | R12: =IF(L12="", "", IF($G12=5,0,IF($G12=2,INDEX('Asset Models'!$A$7:$DC$18,$L12,'Asset Models'!$AX$7+$G12-1),IF($G12=3,INDEX('Asset Models'!$A$7:$DC$18,$L12,'Asset Models'!$AT$7+$G12-1),0))*(1-$M12))) ->  | S12: =IF(L12="", "", IF($G12=5,0,IF($G12=3,INDEX('Asset Models'!$A$7:$DC$18,$L12,'Asset Models'!$AX$7+$G12-1),IF($G12=4,INDEX('Asset Models'!$A$7:$DC$18,$L12,'Asset Models'!$AT$7+$G12-1),0))*(1-$M12))) ->  | V12: =IF(L12="", "", IF($G12=5,$N12,(INDEX('Asset Models'!$A$7:$DC$18,$L12,'Asset Models'!$B$7+$G12-1)+INDEX('Asset Models'!$A$7:$DC$18,$L12,'Asset Models'!$J$7+$J12-1))*$F12)) ->  | W12: =IF(L12="", "", IF($G12=5,$O12,(INDEX('Asset Models'!$A$7:$DC$18,$L12,'Asset Models'!$F$7+$G12-1)+INDEX('Asset Models'!$A$7:$DC$18,$L12,'Asset Models'!$O$7+$J12-1))*$F12)) ->  | X12: =IF(L12="", "", INDEX('Asset Models'!$A$7:$DC$18,$L12,'Asset Models'!$BF$7+$K12-1)) ->  | Y12: =IF(L12="", "", VLOOKUP(X12,'Asset Model Builder'!$E$169:$F$173,2)) ->  | Z12: =IF(L12="", "", IF($X12=0,P12,IF($X12=1,IF(Z$9=$G12,(1-$M12),0),IF($X12=2,IF(Z$9=INDEX('Asset Models'!$A$7:$DC$18,$L12,'Asset Models'!$AG$7+$G12-2),(1-$M12),0),IF($X12=3,IF(Z$9=1,1,0),IF(INDEX('Asset Models'!$A$7:$DC$18,$L12,'Asset Models'!$AJ$7+$J12-1)=Z$9,1,0)))))) ->  | AA12: =IF(L12="", "", IF($X12=0,Q12,IF($X12=1,IF(AA$9=$G12,(1-$M12),0),IF($X12=2,IF(AA$9=INDEX('Asset Models'!$A$7:$DC$18,$L12,'Asset Models'!$AG$7+$G12-2),(1-$M12),0),IF($X12=3,IF(AA$9=1,1,0),IF(INDEX('Asset Models'!$A$7:$DC$18,$L12,'Asset Models'!$AJ$7+$J12-1)=AA$9,1,0)))))) ->  | AB12: =IF(L12="", "", IF($X12=0,R12,IF($X12=1,IF(AB$9=$G12,(1-$M12),0),IF($X12=2,IF(AB$9=INDEX('Asset Models'!$A$7:$DC$18,$L12,'Asset Models'!$AG$7+$G12-2),(1-$M12),0),IF($X12=3,IF(AB$9=1,1,0),IF(INDEX('Asset Models'!$A$7:$DC$18,$L12,'Asset Models'!$AJ$7+$J12-1)=AB$9,1,0)))))) ->  | AC12: =IF(L12="", "", IF($X12=0,S12,IF($X12=1,IF(AC$9=$G12,(1-$M12),0),IF($X12=2,IF(AC$9=INDEX('Asset Models'!$A$7:$DC$18,$L12,'Asset Models'!$AG$7+$G12-2),(1-$M12),0),IF($X12=3,IF(AC$9=1,1,0),IF(INDEX('Asset Models'!$A$7:$DC$18,$L12,'Asset Models'!$AJ$7+$J12-1)=AC$9,1,0)))))) ->  | AE12: =IF($X12=3,1,IF($X12=4,INDEX('Asset Models'!$A$7:$DC$18,$L12,'Asset Models'!$AO$7+$J12-1),$J12)) ->  | AG12: =IF(L12="", "", IF($X12=0,$V12,IF($G12=5,$N12,(INDEX('Asset Models'!$A$7:$DC$18,$L12,'Asset Models'!$T$7+$X12-1)+INDEX('Asset Models'!$A$7:$DC$18,$L12,'Asset Models'!$J$7+$J12-1))*$F12))) ->  | AH12: =IF(L12="", "", INDEX('Asset Models'!$A$7:$DC$18,$L12,'Asset Models'!$CE$7+$K12-1)*$F12) ->  | AS12: =IF(L12="", "", IF($G12=5,$O12,IF($AK12=0,$W12,INDEX('Asset Models'!$A$7:$DC$18,$L12,'Asset Models'!$J$7+$J12-1)*$F12))) ->  | AU12: =IF(L12="", "", INDEX('Asset Models'!$A$7:$DC$18,$L12,'Asset Models'!$V$7)*$F12) -> 
A13: 0.8732827607 | B13: 0.9799300551 | C13: =IF(Inventory!AH12=Inventory!$C$1032,0.5,1)*B13 -> 0.9799300551 | D13: =Inventory!C12 -> 0 | E13: =Inventory!E12 -> 0 | F13: =Inventory!W12 -> 1 | G13: =Inventory!AI12 ->  | H13: =IF(G13<>"",Inventory!AQ12/G13,"") ->  | I13: =IF(G13<>"",Inventory!AS12/G13,"") ->  | J13: =Inventory!AK12 ->  | L13: =IF(E13 = 0, "", MATCH($E13,'Asset Models'!$A$7:$A$18,0)) ->  | M13: =IF(L13="", "", INDEX('Asset Models'!$A$7:$DC$18,$L13,'Asset Models'!BA$7+$J13-1)) ->  | N13: =IF(L13="", "", INDEX('Asset Models'!$A$7:$DC$18,$L13,'Asset Models'!$W$7+$J13-1)*$F13) ->  | O13: =IF(L13="", "", INDEX('Asset Models'!$A$7:$DC$18,$L13,'Asset Models'!$AB$7+$J13-1)*$F13) ->  | P13: =IF(L13="", "", IF($G13=5,1,IF($G13=1,INDEX('Asset Models'!$A$7:$DC$18,$L13,'Asset Models'!$AT$7+$G13-1),0)*(1-$M13))) ->  | Q13: =IF(L13="", "", IF($G13=5,0,IF($G13=1,INDEX('Asset Models'!$A$7:$DC$18,$L13,'Asset Models'!$AX$7+$G13-1),IF($G13=2,INDEX('Asset Models'!$A$7:$DC$18,$L13,'Asset Models'!$AT$7+$G13-1),0))*(1-$M13))) ->  | R13: =IF(L13="", "", IF($G13=5,0,IF($G13=2,INDEX('Asset Models'!$A$7:$DC$18,$L13,'Asset Models'!$AX$7+$G13-1),IF($G13=3,INDEX('Asset Models'!$A$7:$DC$18,$L13,'Asset Models'!$AT$7+$G13-1),0))*(1-$M13))) ->  | S13: =IF(L13="", "", IF($G13=5,0,IF($G13=3,INDEX('Asset Models'!$A$7:$DC$18,$L13,'Asset Models'!$AX$7+$G13-1),IF($G13=4,INDEX('Asset Models'!$A$7:$DC$18,$L13,'Asset Models'!$AT$7+$G13-1),0))*(1-$M13))) ->  | V13: =IF(L13="", "", IF($G13=5,$N13,(INDEX('Asset Models'!$A$7:$DC$18,$L13,'Asset Models'!$B$7+$G13-1)+INDEX('Asset Models'!$A$7:$DC$18,$L13,'Asset Models'!$J$7+$J13-1))*$F13)) ->  | W13: =IF(L13="", "", IF($G13=5,$O13,(INDEX('Asset Models'!$A$7:$DC$18,$L13,'Asset Models'!$F$7+$G13-1)+INDEX('Asset Models'!$A$7:$DC$18,$L13,'Asset Models'!$O$7+$J13-1))*$F13)) ->  | X13: =IF(L13="", "", INDEX('Asset Models'!$A$7:$DC$18,$L13,'Asset Models'!$BF$7+$K13-1)) ->  | Y13: =IF(L13="", "", VLOOKUP(X13,'Asset Model Builder'!$E$169:$F$173,2)) ->  | Z13: =IF(L13="", "", IF($X13=0,P13,IF($X13=1,IF(Z$9=$G13,(1-$M13),0),IF($X13=2,IF(Z$9=INDEX('Asset Models'!$A$7:$DC$18,$L13,'Asset Models'!$AG$7+$G13-2),(1-$M13),0),IF($X13=3,IF(Z$9=1,1,0),IF(INDEX('Asset Models'!$A$7:$DC$18,$L13,'Asset Models'!$AJ$7+$J13-1)=Z$9,1,0)))))) ->  | AA13: =IF(L13="", "", IF($X13=0,Q13,IF($X13=1,IF(AA$9=$G13,(1-$M13),0),IF($X13=2,IF(AA$9=INDEX('Asset Models'!$A$7:$DC$18,$L13,'Asset Models'!$AG$7+$G13-2),(1-$M13),0),IF($X13=3,IF(AA$9=1,1,0),IF(INDEX('Asset Models'!$A$7:$DC$18,$L13,'Asset Models'!$AJ$7+$J13-1)=AA$9,1,0)))))) ->  | AB13: =IF(L13="", "", IF($X13=0,R13,IF($X13=1,IF(AB$9=$G13,(1-$M13),0),IF($X13=2,IF(AB$9=INDEX('Asset Models'!$A$7:$DC$18,$L13,'Asset Models'!$AG$7+$G13-2),(1-$M13),0),IF($X13=3,IF(AB$9=1,1,0),IF(INDEX('Asset Models'!$A$7:$DC$18,$L13,'Asset Models'!$AJ$7+$J13-1)=AB$9,1,0)))))) ->  | AC13: =IF(L13="", "", IF($X13=0,S13,IF($X13=1,IF(AC$9=$G13,(1-$M13),0),IF($X13=2,IF(AC$9=INDEX('Asset Models'!$A$7:$DC$18,$L13,'Asset Models'!$AG$7+$G13-2),(1-$M13),0),IF($X13=3,IF(AC$9=1,1,0),IF(INDEX('Asset Models'!$A$7:$DC$18,$L13,'Asset Models'!$AJ$7+$J13-1)=AC$9,1,0)))))) ->  | AE13: =IF($X13=3,1,IF($X13=4,INDEX('Asset Models'!$A$7:$DC$18,$L13,'Asset Models'!$AO$7+$J13-1),$J13)) ->  | AG13: =IF(L13="", "", IF($X13=0,$V13,IF($G13=5,$N13,(INDEX('Asset Models'!$A$7:$DC$18,$L13,'Asset Models'!$T$7+$X13-1)+INDEX('Asset Models'!$A$7:$DC$18,$L13,'Asset Models'!$J$7+$J13-1))*$F13))) ->  | AH13: =IF(L13="", "", INDEX('Asset Models'!$A$7:$DC$18,$L13,'Asset Models'!$CE$7+$K13-1)*$F13) ->  | AS13: =IF(L13="", "", IF($G13=5,$O13,IF($AK13=0,$W13,INDEX('Asset Models'!$A$7:$DC$18,$L13,'Asset Models'!$J$7+$J13-1)*$F13))) ->  | AU13: =IF(L13="", "", INDEX('Asset Models'!$A$7:$DC$18,$L13,'Asset Models'!$V$7)*$F13) -> 
A14: 0.6481106382 | B14: 0.1057210815 | C14: =IF(Inventory!AH13=Inventory!$C$1032,0.5,1)*B14 -> 0.1057210815 | D14: =Inventory!C13 -> 0 | E14: =Inventory!E13 -> 0 | F14: =Inventory!W13 -> 1 | G14: =Inventory!AI13 ->  | H14: =IF(G14<>"",Inventory!AQ13/G14,"") ->  | I14: =IF(G14<>"",Inventory!AS13/G14,"") ->  | J14: =Inventory!AK13 ->  | L14: =IF(E14 = 0, "", MATCH($E14,'Asset Models'!$A$7:$A$18,0)) ->  | M14: =IF(L14="", "", INDEX('Asset Models'!$A$7:$DC$18,$L14,'Asset Models'!BA$7+$J14-1)) ->  | N14: =IF(L14="", "", INDEX('Asset Models'!$A$7:$DC$18,$L14,'Asset Models'!$W$7+$J14-1)*$F14) ->  | O14: =IF(L14="", "", INDEX('Asset Models'!$A$7:$DC$18,$L14,'Asset Models'!$AB$7+$J14-1)*$F14) ->  | P14: =IF(L14="", "", IF($G14=5,1,IF($G14=1,INDEX('Asset Models'!$A$7:$DC$18,$L14,'Asset Models'!$AT$7+$G14-1),0)*(1-$M14))) ->  | Q14: =IF(L14="", "", IF($G14=5,0,IF($G14=1,INDEX('Asset Models'!$A$7:$DC$18,$L14,'Asset Models'!$AX$7+$G14-1),IF($G14=2,INDEX('Asset Models'!$A$7:$DC$18,$L14,'Asset Models'!$AT$7+$G14-1),0))*(1-$M14))) ->  | R14: =IF(L14="", "", IF($G14=5,0,IF($G14=2,INDEX('Asset Models'!$A$7:$DC$18,$L14,'Asset Models'!$AX$7+$G14-1),IF($G14=3,INDEX('Asset Models'!$A$7:$DC$18,$L14,'Asset Models'!$AT$7+$G14-1),0))*(1-$M14))) ->  | S14: =IF(L14="", "", IF($G14=5,0,IF($G14=3,INDEX('Asset Models'!$A$7:$DC$18,$L14,'Asset Models'!$AX$7+$G14-1),IF($G14=4,INDEX('Asset Models'!$A$7:$DC$18,$L14,'Asset Models'!$AT$7+$G14-1),0))*(1-$M14))) ->  | V14: =IF(L14="", "", IF($G14=5,$N14,(INDEX('Asset Models'!$A$7:$DC$18,$L14,'Asset Models'!$B$7+$G14-1)+INDEX('Asset Models'!$A$7:$DC$18,$L14,'Asset Models'!$J$7+$J14-1))*$F14)) ->  | W14: =IF(L14="", "", IF($G14=5,$O14,(INDEX('Asset Models'!$A$7:$DC$18,$L14,'Asset Models'!$F$7+$G14-1)+INDEX('Asset Models'!$A$7:$DC$18,$L14,'Asset Models'!$O$7+$J14-1))*$F14)) ->  | X14: =IF(L14="", "", INDEX('Asset Models'!$A$7:$DC$18,$L14,'Asset Models'!$BF$7+$K14-1)) ->  | Y14: =IF(L14="", "", VLOOKUP(X14,'Asset Model Builder'!$E$169:$F$173,2)) ->  | Z14: =IF(L14="", "", IF($X14=0,P14,IF($X14=1,IF(Z$9=$G14,(1-$M14),0),IF($X14=2,IF(Z$9=INDEX('Asset Models'!$A$7:$DC$18,$L14,'Asset Models'!$AG$7+$G14-2),(1-$M14),0),IF($X14=3,IF(Z$9=1,1,0),IF(INDEX('Asset Models'!$A$7:$DC$18,$L14,'Asset Models'!$AJ$7+$J14-1)=Z$9,1,0)))))) ->  | AA14: =IF(L14="", "", IF($X14=0,Q14,IF($X14=1,IF(AA$9=$G14,(1-$M14),0),IF($X14=2,IF(AA$9=INDEX('Asset Models'!$A$7:$DC$18,$L14,'Asset Models'!$AG$7+$G14-2),(1-$M14),0),IF($X14=3,IF(AA$9=1,1,0),IF(INDEX('Asset Models'!$A$7:$DC$18,$L14,'Asset Models'!$AJ$7+$J14-1)=AA$9,1,0)))))) ->  | AB14: =IF(L14="", "", IF($X14=0,R14,IF($X14=1,IF(AB$9=$G14,(1-$M14),0),IF($X14=2,IF(AB$9=INDEX('Asset Models'!$A$7:$DC$18,$L14,'Asset Models'!$AG$7+$G14-2),(1-$M14),0),IF($X14=3,IF(AB$9=1,1,0),IF(INDEX('Asset Models'!$A$7:$DC$18,$L14,'Asset Models'!$AJ$7+$J14-1)=AB$9,1,0)))))) ->  | AC14: =IF(L14="", "", IF($X14=0,S14,IF($X14=1,IF(AC$9=$G14,(1-$M14),0),IF($X14=2,IF(AC$9=INDEX('Asset Models'!$A$7:$DC$18,$L14,'Asset Models'!$AG$7+$G14-2),(1-$M14),0),IF($X14=3,IF(AC$9=1,1,0),IF(INDEX('Asset Models'!$A$7:$DC$18,$L14,'Asset Models'!$AJ$7+$J14-1)=AC$9,1,0)))))) ->  | AE14: =IF($X14=3,1,IF($X14=4,INDEX('Asset Models'!$A$7:$DC$18,$L14,'Asset Models'!$AO$7+$J14-1),$J14)) ->  | AG14: =IF(L14="", "", IF($X14=0,$V14,IF($G14=5,$N14,(INDEX('Asset Models'!$A$7:$DC$18,$L14,'Asset Models'!$T$7+$X14-1)+INDEX('Asset Models'!$A$7:$DC$18,$L14,'Asset Models'!$J$7+$J14-1))*$F14))) ->  | AH14: =IF(L14="", "", INDEX('Asset Models'!$A$7:$DC$18,$L14,'Asset Models'!$CE$7+$K14-1)*$F14) ->  | AS14: =IF(L14="", "", IF($G14=5,$O14,IF($AK14=0,$W14,INDEX('Asset Models'!$A$7:$DC$18,$L14,'Asset Models'!$J$7+$J14-1)*$F14))) ->  | AU14: =IF(L14="", "", INDEX('Asset Models'!$A$7:$DC$18,$L14,'Asset Models'!$V$7)*$F14) -> 
A15: 0.3085459363 | B15: 0.1668888502 | C15: =IF(Inventory!AH14=Inventory!$C$1032,0.5,1)*B15 -> 0.1668888502 | D15: =Inventory!C14 -> 0 | E15: =Inventory!E14 -> 0 | F15: =Inventory!W14 -> 1 | G15: =Inventory!AI14 ->  | H15: =IF(G15<>"",Inventory!AQ14/G15,"") ->  | I15: =IF(G15<>"",Inventory!AS14/G15,"") ->  | J15: =Inventory!AK14 ->  | L15: =IF(E15 = 0, "", MATCH($E15,'Asset Models'!$A$7:$A$18,0)) ->  | M15: =IF(L15="", "", INDEX('Asset Models'!$A$7:$DC$18,$L15,'Asset Models'!BA$7+$J15-1)) ->  | N15: =IF(L15="", "", INDEX('Asset Models'!$A$7:$DC$18,$L15,'Asset Models'!$W$7+$J15-1)*$F15) ->  | O15: =IF(L15="", "", INDEX('Asset Models'!$A$7:$DC$18,$L15,'Asset Models'!$AB$7+$J15-1)*$F15) ->  | P15: =IF(L15="", "", IF($G15=5,1,IF($G15=1,INDEX('Asset Models'!$A$7:$DC$18,$L15,'Asset Models'!$AT$7+$G15-1),0)*(1-$M15))) ->  | Q15: =IF(L15="", "", IF($G15=5,0,IF($G15=1,INDEX('Asset Models'!$A$7:$DC$18,$L15,'Asset Models'!$AX$7+$G15-1),IF($G15=2,INDEX('Asset Models'!$A$7:$DC$18,$L15,'Asset Models'!$AT$7+$G15-1),0))*(1-$M15))) ->  | R15: =IF(L15="", "", IF($G15=5,0,IF($G15=2,INDEX('Asset Models'!$A$7:$DC$18,$L15,'Asset Models'!$AX$7+$G15-1),IF($G15=3,INDEX('Asset Models'!$A$7:$DC$18,$L15,'Asset Models'!$AT$7+$G15-1),0))*(1-$M15))) ->  | S15: =IF(L15="", "", IF($G15=5,0,IF($G15=3,INDEX('Asset Models'!$A$7:$DC$18,$L15,'Asset Models'!$AX$7+$G15-1),IF($G15=4,INDEX('Asset Models'!$A$7:$DC$18,$L15,'Asset Models'!$AT$7+$G15-1),0))*(1-$M15))) ->  | V15: =IF(L15="", "", IF($G15=5,$N15,(INDEX('Asset Models'!$A$7:$DC$18,$L15,'Asset Models'!$B$7+$G15-1)+INDEX('Asset Models'!$A$7:$DC$18,$L15,'Asset Models'!$J$7+$J15-1))*$F15)) ->  | W15: =IF(L15="", "", IF($G15=5,$O15,(INDEX('Asset Models'!$A$7:$DC$18,$L15,'Asset Models'!$F$7+$G15-1)+INDEX('Asset Models'!$A$7:$DC$18,$L15,'Asset Models'!$O$7+$J15-1))*$F15)) ->  | X15: =IF(L15="", "", INDEX('Asset Models'!$A$7:$DC$18,$L15,'Asset Models'!$BF$7+$K15-1)) ->  | Y15: =IF(L15="", "", VLOOKUP(X15,'Asset Model Builder'!$E$169:$F$173,2)) ->  | Z15: =IF(L15="", "", IF($X15=0,P15,IF($X15=1,IF(Z$9=$G15,(1-$M15),0),IF($X15=2,IF(Z$9=INDEX('Asset Models'!$A$7:$DC$18,$L15,'Asset Models'!$AG$7+$G15-2),(1-$M15),0),IF($X15=3,IF(Z$9=1,1,0),IF(INDEX('Asset Models'!$A$7:$DC$18,$L15,'Asset Models'!$AJ$7+$J15-1)=Z$9,1,0)))))) ->  | AA15: =IF(L15="", "", IF($X15=0,Q15,IF($X15=1,IF(AA$9=$G15,(1-$M15),0),IF($X15=2,IF(AA$9=INDEX('Asset Models'!$A$7:$DC$18,$L15,'Asset Models'!$AG$7+$G15-2),(1-$M15),0),IF($X15=3,IF(AA$9=1,1,0),IF(INDEX('Asset Models'!$A$7:$DC$18,$L15,'Asset Models'!$AJ$7+$J15-1)=AA$9,1,0)))))) ->  | AB15: =IF(L15="", "", IF($X15=0,R15,IF($X15=1,IF(AB$9=$G15,(1-$M15),0),IF($X15=2,IF(AB$9=INDEX('Asset Models'!$A$7:$DC$18,$L15,'Asset Models'!$AG$7+$G15-2),(1-$M15),0),IF($X15=3,IF(AB$9=1,1,0),IF(INDEX('Asset Models'!$A$7:$DC$18,$L15,'Asset Models'!$AJ$7+$J15-1)=AB$9,1,0)))))) ->  | AC15: =IF(L15="", "", IF($X15=0,S15,IF($X15=1,IF(AC$9=$G15,(1-$M15),0),IF($X15=2,IF(AC$9=INDEX('Asset Models'!$A$7:$DC$18,$L15,'Asset Models'!$AG$7+$G15-2),(1-$M15),0),IF($X15=3,IF(AC$9=1,1,0),IF(INDEX('Asset Models'!$A$7:$DC$18,$L15,'Asset Models'!$AJ$7+$J15-1)=AC$9,1,0)))))) ->  | AE15: =IF($X15=3,1,IF($X15=4,INDEX('Asset Models'!$A$7:$DC$18,$L15,'Asset Models'!$AO$7+$J15-1),$J15)) ->  | AG15: =IF(L15="", "", IF($X15=0,$V15,IF($G15=5,$N15,(INDEX('Asset Models'!$A$7:$DC$18,$L15,'Asset Models'!$T$7+$X15-1)+INDEX('Asset Models'!$A$7:$DC$18,$L15,'Asset Models'!$J$7+$J15-1))*$F15))) ->  | AH15: =IF(L15="", "", INDEX('Asset Models'!$A$7:$DC$18,$L15,'Asset Models'!$CE$7+$K15-1)*$F15) ->  | AS15: =IF(L15="", "", IF($G15=5,$O15,IF($AK15=0,$W15,INDEX('Asset Models'!$A$7:$DC$18,$L15,'Asset Models'!$J$7+$J15-1)*$F15))) ->  | AU15: =IF(L15="", "", INDEX('Asset Models'!$A$7:$DC$18,$L15,'Asset Models'!$V$7)*$F15) -> 
A16: 0.7959274935 | B16: 0.09003718331 | C16: =IF(Inventory!AH15=Inventory!$C$1032,0.5,1)*B16 -> 0.09003718331 | D16: =Inventory!C15 -> 0 | E16: =Inventory!E15 -> 0 | F16: =Inventory!W15 -> 1 | G16: =Inventory!AI15 ->  | H16: =IF(G16<>"",Inventory!AQ15/G16,"") ->  | I16: =IF(G16<>"",Inventory!AS15/G16,"") ->  | J16: =Inventory!AK15 ->  | L16: =IF(E16 = 0, "", MATCH($E16,'Asset Models'!$A$7:$A$18,0)) ->  | M16: =IF(L16="", "", INDEX('Asset Models'!$A$7:$DC$18,$L16,'Asset Models'!BA$7+$J16-1)) ->  | N16: =IF(L16="", "", INDEX('Asset Models'!$A$7:$DC$18,$L16,'Asset Models'!$W$7+$J16-1)*$F16) ->  | O16: =IF(L16="", "", INDEX('Asset Models'!$A$7:$DC$18,$L16,'Asset Models'!$AB$7+$J16-1)*$F16) ->  | P16: =IF(L16="", "", IF($G16=5,1,IF($G16=1,INDEX('Asset Models'!$A$7:$DC$18,$L16,'Asset Models'!$AT$7+$G16-1),0)*(1-$M16))) ->  | Q16: =IF(L16="", "", IF($G16=5,0,IF($G16=1,INDEX('Asset Models'!$A$7:$DC$18,$L16,'Asset Models'!$AX$7+$G16-1),IF($G16=2,INDEX('Asset Models'!$A$7:$DC$18,$L16,'Asset Models'!$AT$7+$G16-1),0))*(1-$M16))) ->  | R16: =IF(L16="", "", IF($G16=5,0,IF($G16=2,INDEX('Asset Models'!$A$7:$DC$18,$L16,'Asset Models'!$AX$7+$G16-1),IF($G16=3,INDEX('Asset Models'!$A$7:$DC$18,$L16,'Asset Models'!$AT$7+$G16-1),0))*(1-$M16))) ->  | S16: =IF(L16="", "", IF($G16=5,0,IF($G16=3,INDEX('Asset Models'!$A$7:$DC$18,$L16,'Asset Models'!$AX$7+$G16-1),IF($G16=4,INDEX('Asset Models'!$A$7:$DC$18,$L16,'Asset Models'!$AT$7+$G16-1),0))*(1-$M16))) ->  | V16: =IF(L16="", "", IF($G16=5,$N16,(INDEX('Asset Models'!$A$7:$DC$18,$L16,'Asset Models'!$B$7+$G16-1)+INDEX('Asset Models'!$A$7:$DC$18,$L16,'Asset Models'!$J$7+$J16-1))*$F16)) ->  | W16: =IF(L16="", "", IF($G16=5,$O16,(INDEX('Asset Models'!$A$7:$DC$18,$L16,'Asset Models'!$F$7+$G16-1)+INDEX('Asset Models'!$A$7:$DC$18,$L16,'Asset Models'!$O$7+$J16-1))*$F16)) ->  | X16: =IF(L16="", "", INDEX('Asset Models'!$A$7:$DC$18,$L16,'Asset Models'!$BF$7+$K16-1)) ->  | Y16: =IF(L16="", "", VLOOKUP(X16,'Asset Model Builder'!$E$169:$F$173,2)) ->  | Z16: =IF(L16="", "", IF($X16=0,P16,IF($X16=1,IF(Z$9=$G16,(1-$M16),0),IF($X16=2,IF(Z$9=INDEX('Asset Models'!$A$7:$DC$18,$L16,'Asset Models'!$AG$7+$G16-2),(1-$M16),0),IF($X16=3,IF(Z$9=1,1,0),IF(INDEX('Asset Models'!$A$7:$DC$18,$L16,'Asset Models'!$AJ$7+$J16-1)=Z$9,1,0)))))) ->  | AA16: =IF(L16="", "", IF($X16=0,Q16,IF($X16=1,IF(AA$9=$G16,(1-$M16),0),IF($X16=2,IF(AA$9=INDEX('Asset Models'!$A$7:$DC$18,$L16,'Asset Models'!$AG$7+$G16-2),(1-$M16),0),IF($X16=3,IF(AA$9=1,1,0),IF(INDEX('Asset Models'!$A$7:$DC$18,$L16,'Asset Models'!$AJ$7+$J16-1)=AA$9,1,0)))))) ->  | AB16: =IF(L16="", "", IF($X16=0,R16,IF($X16=1,IF(AB$9=$G16,(1-$M16),0),IF($X16=2,IF(AB$9=INDEX('Asset Models'!$A$7:$DC$18,$L16,'Asset Models'!$AG$7+$G16-2),(1-$M16),0),IF($X16=3,IF(AB$9=1,1,0),IF(INDEX('Asset Models'!$A$7:$DC$18,$L16,'Asset Models'!$AJ$7+$J16-1)=AB$9,1,0)))))) ->  | AC16: =IF(L16="", "", IF($X16=0,S16,IF($X16=1,IF(AC$9=$G16,(1-$M16),0),IF($X16=2,IF(AC$9=INDEX('Asset Models'!$A$7:$DC$18,$L16,'Asset Models'!$AG$7+$G16-2),(1-$M16),0),IF($X16=3,IF(AC$9=1,1,0),IF(INDEX('Asset Models'!$A$7:$DC$18,$L16,'Asset Models'!$AJ$7+$J16-1)=AC$9,1,0)))))) ->  | AE16: =IF($X16=3,1,IF($X16=4,INDEX('Asset Models'!$A$7:$DC$18,$L16,'Asset Models'!$AO$7+$J16-1),$J16)) ->  | AG16: =IF(L16="", "", IF($X16=0,$V16,IF($G16=5,$N16,(INDEX('Asset Models'!$A$7:$DC$18,$L16,'Asset Models'!$T$7+$X16-1)+INDEX('Asset Models'!$A$7:$DC$18,$L16,'Asset Models'!$J$7+$J16-1))*$F16))) ->  | AH16: =IF(L16="", "", INDEX('Asset Models'!$A$7:$DC$18,$L16,'Asset Models'!$CE$7+$K16-1)*$F16) ->  | AS16: =IF(L16="", "", IF($G16=5,$O16,IF($AK16=0,$W16,INDEX('Asset Models'!$A$7:$DC$18,$L16,'Asset Models'!$J$7+$J16-1)*$F16))) ->  | AU16: =IF(L16="", "", INDEX('Asset Models'!$A$7:$DC$18,$L16,'Asset Models'!$V$7)*$F16) -> 
A17: 0.9175039184 | B17: 0.3339030259 | C17: =IF(Inventory!AH16=Inventory!$C$1032,0.5,1)*B17 -> 0.3339030259 | D17: =Inventory!C16 -> 0 | E17: =Inventory!E16 -> 0 | F17: =Inventory!W16 -> 1 | G17: =Inventory!AI16 ->  | H17: =IF(G17<>"",Inventory!AQ16/G17,"") ->  | I17: =IF(G17<>"",Inventory!AS16/G17,"") ->  | J17: =Inventory!AK16 ->  | L17: =IF(E17 = 0, "", MATCH($E17,'Asset Models'!$A$7:$A$18,0)) ->  | M17: =IF(L17="", "", INDEX('Asset Models'!$A$7:$DC$18,$L17,'Asset Models'!BA$7+$J17-1)) ->  | N17: =IF(L17="", "", INDEX('Asset Models'!$A$7:$DC$18,$L17,'Asset Models'!$W$7+$J17-1)*$F17) ->  | O17: =IF(L17="", "", INDEX('Asset Models'!$A$7:$DC$18,$L17,'Asset Models'!$AB$7+$J17-1)*$F17) ->  | P17: =IF(L17="", "", IF($G17=5,1,IF($G17=1,INDEX('Asset Models'!$A$7:$DC$18,$L17,'Asset Models'!$AT$7+$G17-1),0)*(1-$M17))) ->  | Q17: =IF(L17="", "", IF($G17=5,0,IF($G17=1,INDEX('Asset Models'!$A$7:$DC$18,$L17,'Asset Models'!$AX$7+$G17-1),IF($G17=2,INDEX('Asset Models'!$A$7:$DC$18,$L17,'Asset Models'!$AT$7+$G17-1),0))*(1-$M17))) ->  | R17: =IF(L17="", "", IF($G17=5,0,IF($G17=2,INDEX('Asset Models'!$A$7:$DC$18,$L17,'Asset Models'!$AX$7+$G17-1),IF($G17=3,INDEX('Asset Models'!$A$7:$DC$18,$L17,'Asset Models'!$AT$7+$G17-1),0))*(1-$M17))) ->  | S17: =IF(L17="", "", IF($G17=5,0,IF($G17=3,INDEX('Asset Models'!$A$7:$DC$18,$L17,'Asset Models'!$AX$7+$G17-1),IF($G17=4,INDEX('Asset Models'!$A$7:$DC$18,$L17,'Asset Models'!$AT$7+$G17-1),0))*(1-$M17))) ->  | V17: =IF(L17="", "", IF($G17=5,$N17,(INDEX('Asset Models'!$A$7:$DC$18,$L17,'Asset Models'!$B$7+$G17-1)+INDEX('Asset Models'!$A$7:$DC$18,$L17,'Asset Models'!$J$7+$J17-1))*$F17)) ->  | W17: =IF(L17="", "", IF($G17=5,$O17,(INDEX('Asset Models'!$A$7:$DC$18,$L17,'Asset Models'!$F$7+$G17-1)+INDEX('Asset Models'!$A$7:$DC$18,$L17,'Asset Models'!$O$7+$J17-1))*$F17)) ->  | X17: =IF(L17="", "", INDEX('Asset Models'!$A$7:$DC$18,$L17,'Asset Models'!$BF$7+$K17-1)) ->  | Y17: =IF(L17="", "", VLOOKUP(X17,'Asset Model Builder'!$E$169:$F$173,2)) ->  | Z17: =IF(L17="", "", IF($X17=0,P17,IF($X17=1,IF(Z$9=$G17,(1-$M17),0),IF($X17=2,IF(Z$9=INDEX('Asset Models'!$A$7:$DC$18,$L17,'Asset Models'!$AG$7+$G17-2),(1-$M17),0),IF($X17=3,IF(Z$9=1,1,0),IF(INDEX('Asset Models'!$A$7:$DC$18,$L17,'Asset Models'!$AJ$7+$J17-1)=Z$9,1,0)))))) ->  | AA17: =IF(L17="", "", IF($X17=0,Q17,IF($X17=1,IF(AA$9=$G17,(1-$M17),0),IF($X17=2,IF(AA$9=INDEX('Asset Models'!$A$7:$DC$18,$L17,'Asset Models'!$AG$7+$G17-2),(1-$M17),0),IF($X17=3,IF(AA$9=1,1,0),IF(INDEX('Asset Models'!$A$7:$DC$18,$L17,'Asset Models'!$AJ$7+$J17-1)=AA$9,1,0)))))) ->  | AB17: =IF(L17="", "", IF($X17=0,R17,IF($X17=1,IF(AB$9=$G17,(1-$M17),0),IF($X17=2,IF(AB$9=INDEX('Asset Models'!$A$7:$DC$18,$L17,'Asset Models'!$AG$7+$G17-2),(1-$M17),0),IF($X17=3,IF(AB$9=1,1,0),IF(INDEX('Asset Models'!$A$7:$DC$18,$L17,'Asset Models'!$AJ$7+$J17-1)=AB$9,1,0)))))) ->  | AC17: =IF(L17="", "", IF($X17=0,S17,IF($X17=1,IF(AC$9=$G17,(1-$M17),0),IF($X17=2,IF(AC$9=INDEX('Asset Models'!$A$7:$DC$18,$L17,'Asset Models'!$AG$7+$G17-2),(1-$M17),0),IF($X17=3,IF(AC$9=1,1,0),IF(INDEX('Asset Models'!$A$7:$DC$18,$L17,'Asset Models'!$AJ$7+$J17-1)=AC$9,1,0)))))) ->  | AE17: =IF($X17=3,1,IF($X17=4,INDEX('Asset Models'!$A$7:$DC$18,$L17,'Asset Models'!$AO$7+$J17-1),$J17)) ->  | AG17: =IF(L17="", "", IF($X17=0,$V17,IF($G17=5,$N17,(INDEX('Asset Models'!$A$7:$DC$18,$L17,'Asset Models'!$T$7+$X17-1)+INDEX('Asset Models'!$A$7:$DC$18,$L17,'Asset Models'!$J$7+$J17-1))*$F17))) ->  | AH17: =IF(L17="", "", INDEX('Asset Models'!$A$7:$DC$18,$L17,'Asset Models'!$CE$7+$K17-1)*$F17) ->  | AS17: =IF(L17="", "", IF($G17=5,$O17,IF($AK17=0,$W17,INDEX('Asset Models'!$A$7:$DC$18,$L17,'Asset Models'!$J$7+$J17-1)*$F17))) ->  | AU17: =IF(L17="", "", INDEX('Asset Models'!$A$7:$DC$18,$L17,'Asset Models'!$V$7)*$F17) -> 
A18: 0.6167065945 | B18: 0.8803800274 | C18: =IF(Inventory!AH17=Inventory!$C$1032,0.5,1)*B18 -> 0.8803800274 | D18: =Inventory!C17 -> 0 | E18: =Inventory!E17 -> 0 | F18: =Inventory!W17 -> 1 | G18: =Inventory!AI17 ->  | H18: =IF(G18<>"",Inventory!AQ17/G18,"") ->  | I18: =IF(G18<>"",Inventory!AS17/G18,"") ->  | J18: =Inventory!AK17 ->  | L18: =IF(E18 = 0, "", MATCH($E18,'Asset Models'!$A$7:$A$18,0)) ->  | M18: =IF(L18="", "", INDEX('Asset Models'!$A$7:$DC$18,$L18,'Asset Models'!BA$7+$J18-1)) ->  | N18: =IF(L18="", "", INDEX('Asset Models'!$A$7:$DC$18,$L18,'Asset Models'!$W$7+$J18-1)*$F18) ->  | O18: =IF(L18="", "", INDEX('Asset Models'!$A$7:$DC$18,$L18,'Asset Models'!$AB$7+$J18-1)*$F18) ->  | P18: =IF(L18="", "", IF($G18=5,1,IF($G18=1,INDEX('Asset Models'!$A$7:$DC$18,$L18,'Asset Models'!$AT$7+$G18-1),0)*(1-$M18))) ->  | Q18: =IF(L18="", "", IF($G18=5,0,IF($G18=1,INDEX('Asset Models'!$A$7:$DC$18,$L18,'Asset Models'!$AX$7+$G18-1),IF($G18=2,INDEX('Asset Models'!$A$7:$DC$18,$L18,'Asset Models'!$AT$7+$G18-1),0))*(1-$M18))) ->  | R18: =IF(L18="", "", IF($G18=5,0,IF($G18=2,INDEX('Asset Models'!$A$7:$DC$18,$L18,'Asset Models'!$AX$7+$G18-1),IF($G18=3,INDEX('Asset Models'!$A$7:$DC$18,$L18,'Asset Models'!$AT$7+$G18-1),0))*(1-$M18))) ->  | S18: =IF(L18="", "", IF($G18=5,0,IF($G18=3,INDEX('Asset Models'!$A$7:$DC$18,$L18,'Asset Models'!$AX$7+$G18-1),IF($G18=4,INDEX('Asset Models'!$A$7:$DC$18,$L18,'Asset Models'!$AT$7+$G18-1),0))*(1-$M18))) ->  | V18: =IF(L18="", "", IF($G18=5,$N18,(INDEX('Asset Models'!$A$7:$DC$18,$L18,'Asset Models'!$B$7+$G18-1)+INDEX('Asset Models'!$A$7:$DC$18,$L18,'Asset Models'!$J$7+$J18-1))*$F18)) ->  | W18: =IF(L18="", "", IF($G18=5,$O18,(INDEX('Asset Models'!$A$7:$DC$18,$L18,'Asset Models'!$F$7+$G18-1)+INDEX('Asset Models'!$A$7:$DC$18,$L18,'Asset Models'!$O$7+$J18-1))*$F18)) ->  | X18: =IF(L18="", "", INDEX('Asset Models'!$A$7:$DC$18,$L18,'Asset Models'!$BF$7+$K18-1)) ->  | Y18: =IF(L18="", "", VLOOKUP(X18,'Asset Model Builder'!$E$169:$F$173,2)) ->  | Z18: =IF(L18="", "", IF($X18=0,P18,IF($X18=1,IF(Z$9=$G18,(1-$M18),0),IF($X18=2,IF(Z$9=INDEX('Asset Models'!$A$7:$DC$18,$L18,'Asset Models'!$AG$7+$G18-2),(1-$M18),0),IF($X18=3,IF(Z$9=1,1,0),IF(INDEX('Asset Models'!$A$7:$DC$18,$L18,'Asset Models'!$AJ$7+$J18-1)=Z$9,1,0)))))) ->  | AA18: =IF(L18="", "", IF($X18=0,Q18,IF($X18=1,IF(AA$9=$G18,(1-$M18),0),IF($X18=2,IF(AA$9=INDEX('Asset Models'!$A$7:$DC$18,$L18,'Asset Models'!$AG$7+$G18-2),(1-$M18),0),IF($X18=3,IF(AA$9=1,1,0),IF(INDEX('Asset Models'!$A$7:$DC$18,$L18,'Asset Models'!$AJ$7+$J18-1)=AA$9,1,0)))))) ->  | AB18: =IF(L18="", "", IF($X18=0,R18,IF($X18=1,IF(AB$9=$G18,(1-$M18),0),IF($X18=2,IF(AB$9=INDEX('Asset Models'!$A$7:$DC$18,$L18,'Asset Models'!$AG$7+$G18-2),(1-$M18),0),IF($X18=3,IF(AB$9=1,1,0),IF(INDEX('Asset Models'!$A$7:$DC$18,$L18,'Asset Models'!$AJ$7+$J18-1)=AB$9,1,0)))))) ->  | AC18: =IF(L18="", "", IF($X18=0,S18,IF($X18=1,IF(AC$9=$G18,(1-$M18),0),IF($X18=2,IF(AC$9=INDEX('Asset Models'!$A$7:$DC$18,$L18,'Asset Models'!$AG$7+$G18-2),(1-$M18),0),IF($X18=3,IF(AC$9=1,1,0),IF(INDEX('Asset Models'!$A$7:$DC$18,$L18,'Asset Models'!$AJ$7+$J18-1)=AC$9,1,0)))))) ->  | AE18: =IF($X18=3,1,IF($X18=4,INDEX('Asset Models'!$A$7:$DC$18,$L18,'Asset Models'!$AO$7+$J18-1),$J18)) ->  | AG18: =IF(L18="", "", IF($X18=0,$V18,IF($G18=5,$N18,(INDEX('Asset Models'!$A$7:$DC$18,$L18,'Asset Models'!$T$7+$X18-1)+INDEX('Asset Models'!$A$7:$DC$18,$L18,'Asset Models'!$J$7+$J18-1))*$F18))) ->  | AH18: =IF(L18="", "", INDEX('Asset Models'!$A$7:$DC$18,$L18,'Asset Models'!$CE$7+$K18-1)*$F18) ->  | AS18: =IF(L18="", "", IF($G18=5,$O18,IF($AK18=0,$W18,INDEX('Asset Models'!$A$7:$DC$18,$L18,'Asset Models'!$J$7+$J18-1)*$F18))) ->  | AU18: =IF(L18="", "", INDEX('Asset Models'!$A$7:$DC$18,$L18,'Asset Models'!$V$7)*$F18) -> 
A19: 0.7457208312 | B19: 0.6953057642 | C19: =IF(Inventory!AH18=Inventory!$C$1032,0.5,1)*B19 -> 0.6953057642 | D19: =Inventory!C18 -> 0 | E19: =Inventory!E18 -> 0 | F19: =Inventory!W18 -> 1 | G19: =Inventory!AI18 ->  | H19: =IF(G19<>"",Inventory!AQ18/G19,"") ->  | I19: =IF(G19<>"",Inventory!AS18/G19,"") ->  | J19: =Inventory!AK18 ->  | L19: =IF(E19 = 0, "", MATCH($E19,'Asset Models'!$A$7:$A$18,0)) ->  | M19: =IF(L19="", "", INDEX('Asset Models'!$A$7:$DC$18,$L19,'Asset Models'!BA$7+$J19-1)) ->  | N19: =IF(L19="", "", INDEX('Asset Models'!$A$7:$DC$18,$L19,'Asset Models'!$W$7+$J19-1)*$F19) ->  | O19: =IF(L19="", "", INDEX('Asset Models'!$A$7:$DC$18,$L19,'Asset Models'!$AB$7+$J19-1)*$F19) ->  | P19: =IF(L19="", "", IF($G19=5,1,IF($G19=1,INDEX('Asset Models'!$A$7:$DC$18,$L19,'Asset Models'!$AT$7+$G19-1),0)*(1-$M19))) ->  | Q19: =IF(L19="", "", IF($G19=5,0,IF($G19=1,INDEX('Asset Models'!$A$7:$DC$18,$L19,'Asset Models'!$AX$7+$G19-1),IF($G19=2,INDEX('Asset Models'!$A$7:$DC$18,$L19,'Asset Models'!$AT$7+$G19-1),0))*(1-$M19))) ->  | R19: =IF(L19="", "", IF($G19=5,0,IF($G19=2,INDEX('Asset Models'!$A$7:$DC$18,$L19,'Asset Models'!$AX$7+$G19-1),IF($G19=3,INDEX('Asset Models'!$A$7:$DC$18,$L19,'Asset Models'!$AT$7+$G19-1),0))*(1-$M19))) ->  | S19: =IF(L19="", "", IF($G19=5,0,IF($G19=3,INDEX('Asset Models'!$A$7:$DC$18,$L19,'Asset Models'!$AX$7+$G19-1),IF($G19=4,INDEX('Asset Models'!$A$7:$DC$18,$L19,'Asset Models'!$AT$7+$G19-1),0))*(1-$M19))) ->  | V19: =IF(L19="", "", IF($G19=5,$N19,(INDEX('Asset Models'!$A$7:$DC$18,$L19,'Asset Models'!$B$7+$G19-1)+INDEX('Asset Models'!$A$7:$DC$18,$L19,'Asset Models'!$J$7+$J19-1))*$F19)) ->  | W19: =IF(L19="", "", IF($G19=5,$O19,(INDEX('Asset Models'!$A$7:$DC$18,$L19,'Asset Models'!$F$7+$G19-1)+INDEX('Asset Models'!$A$7:$DC$18,$L19,'Asset Models'!$O$7+$J19-1))*$F19)) ->  | X19: =IF(L19="", "", INDEX('Asset Models'!$A$7:$DC$18,$L19,'Asset Models'!$BF$7+$K19-1)) ->  | Y19: =IF(L19="", "", VLOOKUP(X19,'Asset Model Builder'!$E$169:$F$173,2)) ->  | Z19: =IF(L19="", "", IF($X19=0,P19,IF($X19=1,IF(Z$9=$G19,(1-$M19),0),IF($X19=2,IF(Z$9=INDEX('Asset Models'!$A$7:$DC$18,$L19,'Asset Models'!$AG$7+$G19-2),(1-$M19),0),IF($X19=3,IF(Z$9=1,1,0),IF(INDEX('Asset Models'!$A$7:$DC$18,$L19,'Asset Models'!$AJ$7+$J19-1)=Z$9,1,0)))))) ->  | AA19: =IF(L19="", "", IF($X19=0,Q19,IF($X19=1,IF(AA$9=$G19,(1-$M19),0),IF($X19=2,IF(AA$9=INDEX('Asset Models'!$A$7:$DC$18,$L19,'Asset Models'!$AG$7+$G19-2),(1-$M19),0),IF($X19=3,IF(AA$9=1,1,0),IF(INDEX('Asset Models'!$A$7:$DC$18,$L19,'Asset Models'!$AJ$7+$J19-1)=AA$9,1,0)))))) ->  | AB19: =IF(L19="", "", IF($X19=0,R19,IF($X19=1,IF(AB$9=$G19,(1-$M19),0),IF($X19=2,IF(AB$9=INDEX('Asset Models'!$A$7:$DC$18,$L19,'Asset Models'!$AG$7+$G19-2),(1-$M19),0),IF($X19=3,IF(AB$9=1,1,0),IF(INDEX('Asset Models'!$A$7:$DC$18,$L19,'Asset Models'!$AJ$7+$J19-1)=AB$9,1,0)))))) ->  | AC19: =IF(L19="", "", IF($X19=0,S19,IF($X19=1,IF(AC$9=$G19,(1-$M19),0),IF($X19=2,IF(AC$9=INDEX('Asset Models'!$A$7:$DC$18,$L19,'Asset Models'!$AG$7+$G19-2),(1-$M19),0),IF($X19=3,IF(AC$9=1,1,0),IF(INDEX('Asset Models'!$A$7:$DC$18,$L19,'Asset Models'!$AJ$7+$J19-1)=AC$9,1,0)))))) ->  | AE19: =IF($X19=3,1,IF($X19=4,INDEX('Asset Models'!$A$7:$DC$18,$L19,'Asset Models'!$AO$7+$J19-1),$J19)) ->  | AG19: =IF(L19="", "", IF($X19=0,$V19,IF($G19=5,$N19,(INDEX('Asset Models'!$A$7:$DC$18,$L19,'Asset Models'!$T$7+$X19-1)+INDEX('Asset Models'!$A$7:$DC$18,$L19,'Asset Models'!$J$7+$J19-1))*$F19))) ->  | AH19: =IF(L19="", "", INDEX('Asset Models'!$A$7:$DC$18,$L19,'Asset Models'!$CE$7+$K19-1)*$F19) ->  | AS19: =IF(L19="", "", IF($G19=5,$O19,IF($AK19=0,$W19,INDEX('Asset Models'!$A$7:$DC$18,$L19,'Asset Models'!$J$7+$J19-1)*$F19))) ->  | AU19: =IF(L19="", "", INDEX('Asset Models'!$A$7:$DC$18,$L19,'Asset Models'!$V$7)*$F19) -> 
A20: 0.7056195317 | B20: 0.7751013752 | C20: =IF(Inventory!AH19=Inventory!$C$1032,0.5,1)*B20 -> 0.7751013752 | D20: =Inventory!C19 -> 0 | E20: =Inventory!E19 -> 0 | F20: =Inventory!W19 ->  | G20: =Inventory!AI19 ->  | H20: =IF(G20<>"",Inventory!AQ19/G20,"") ->  | I20: =IF(G20<>"",Inventory!AS19/G20,"") ->  | J20: =Inventory!AK19 ->  | L20: =IF(E20 = 0, "", MATCH($E20,'Asset Models'!$A$7:$A$18,0)) ->  | M20: =IF(L20="", "", INDEX('Asset Models'!$A$7:$DC$18,$L20,'Asset Models'!BA$7+$J20-1)) ->  | N20: =IF(L20="", "", INDEX('Asset Models'!$A$7:$DC$18,$L20,'Asset Models'!$W$7+$J20-1)*$F20) ->  | O20: =IF(L20="", "", INDEX('Asset Models'!$A$7:$DC$18,$L20,'Asset Models'!$AB$7+$J20-1)*$F20) ->  | P20: =IF(L20="", "", IF($G20=5,1,IF($G20=1,INDEX('Asset Models'!$A$7:$DC$18,$L20,'Asset Models'!$AT$7+$G20-1),0)*(1-$M20))) ->  | Q20: =IF(L20="", "", IF($G20=5,0,IF($G20=1,INDEX('Asset Models'!$A$7:$DC$18,$L20,'Asset Models'!$AX$7+$G20-1),IF($G20=2,INDEX('Asset Models'!$A$7:$DC$18,$L20,'Asset Models'!$AT$7+$G20-1),0))*(1-$M20))) ->  | R20: =IF(L20="", "", IF($G20=5,0,IF($G20=2,INDEX('Asset Models'!$A$7:$DC$18,$L20,'Asset Models'!$AX$7+$G20-1),IF($G20=3,INDEX('Asset Models'!$A$7:$DC$18,$L20,'Asset Models'!$AT$7+$G20-1),0))*(1-$M20))) ->  | S20: =IF(L20="", "", IF($G20=5,0,IF($G20=3,INDEX('Asset Models'!$A$7:$DC$18,$L20,'Asset Models'!$AX$7+$G20-1),IF($G20=4,INDEX('Asset Models'!$A$7:$DC$18,$L20,'Asset Models'!$AT$7+$G20-1),0))*(1-$M20))) ->  | V20: =IF(L20="", "", IF($G20=5,$N20,(INDEX('Asset Models'!$A$7:$DC$18,$L20,'Asset Models'!$B$7+$G20-1)+INDEX('Asset Models'!$A$7:$DC$18,$L20,'Asset Models'!$J$7+$J20-1))*$F20)) ->  | W20: =IF(L20="", "", IF($G20=5,$O20,(INDEX('Asset Models'!$A$7:$DC$18,$L20,'Asset Models'!$F$7+$G20-1)+INDEX('Asset Models'!$A$7:$DC$18,$L20,'Asset Models'!$O$7+$J20-1))*$F20)) ->  | X20: =IF(L20="", "", INDEX('Asset Models'!$A$7:$DC$18,$L20,'Asset Models'!$BF$7+$K20-1)) ->  | Y20: =IF(L20="", "", VLOOKUP(X20,'Asset Model Builder'!$E$169:$F$173,2)) ->  | Z20: =IF(L20="", "", IF($X20=0,P20,IF($X20=1,IF(Z$9=$G20,(1-$M20),0),IF($X20=2,IF(Z$9=INDEX('Asset Models'!$A$7:$DC$18,$L20,'Asset Models'!$AG$7+$G20-2),(1-$M20),0),IF($X20=3,IF(Z$9=1,1,0),IF(INDEX('Asset Models'!$A$7:$DC$18,$L20,'Asset Models'!$AJ$7+$J20-1)=Z$9,1,0)))))) ->  | AA20: =IF(L20="", "", IF($X20=0,Q20,IF($X20=1,IF(AA$9=$G20,(1-$M20),0),IF($X20=2,IF(AA$9=INDEX('Asset Models'!$A$7:$DC$18,$L20,'Asset Models'!$AG$7+$G20-2),(1-$M20),0),IF($X20=3,IF(AA$9=1,1,0),IF(INDEX('Asset Models'!$A$7:$DC$18,$L20,'Asset Models'!$AJ$7+$J20-1)=AA$9,1,0)))))) ->  | AB20: =IF(L20="", "", IF($X20=0,R20,IF($X20=1,IF(AB$9=$G20,(1-$M20),0),IF($X20=2,IF(AB$9=INDEX('Asset Models'!$A$7:$DC$18,$L20,'Asset Models'!$AG$7+$G20-2),(1-$M20),0),IF($X20=3,IF(AB$9=1,1,0),IF(INDEX('Asset Models'!$A$7:$DC$18,$L20,'Asset Models'!$AJ$7+$J20-1)=AB$9,1,0)))))) ->  | AC20: =IF(L20="", "", IF($X20=0,S20,IF($X20=1,IF(AC$9=$G20,(1-$M20),0),IF($X20=2,IF(AC$9=INDEX('Asset Models'!$A$7:$DC$18,$L20,'Asset Models'!$AG$7+$G20-2),(1-$M20),0),IF($X20=3,IF(AC$9=1,1,0),IF(INDEX('Asset Models'!$A$7:$DC$18,$L20,'Asset Models'!$AJ$7+$J20-1)=AC$9,1,0)))))) ->  | AE20: =IF($X20=3,1,IF($X20=4,INDEX('Asset Models'!$A$7:$DC$18,$L20,'Asset Models'!$AO$7+$J20-1),$J20)) ->  | AG20: =IF(L20="", "", IF($X20=0,$V20,IF($G20=5,$N20,(INDEX('Asset Models'!$A$7:$DC$18,$L20,'Asset Models'!$T$7+$X20-1)+INDEX('Asset Models'!$A$7:$DC$18,$L20,'Asset Models'!$J$7+$J20-1))*$F20))) ->  | AH20: =IF(L20="", "", INDEX('Asset Models'!$A$7:$DC$18,$L20,'Asset Models'!$CE$7+$K20-1)*$F20) ->  | AS20: =IF(L20="", "", IF($G20=5,$O20,IF($AK20=0,$W20,INDEX('Asset Models'!$A$7:$DC$18,$L20,'Asset Models'!$J$7+$J20-1)*$F20))) ->  | AU20: =IF(L20="", "", INDEX('Asset Models'!$A$7:$DC$18,$L20,'Asset Models'!$V$7)*$F20) -> 
A21: 0.1090708736 | B21: 0.8828281527 | C21: =IF(Inventory!AH20=Inventory!$C$1032,0.5,1)*B21 -> 0.8828281527 | D21: =Inventory!C20 -> 0 | E21: =Inventory!E20 -> 0 | F21: =Inventory!W20 ->  | G21: =Inventory!AI20 ->  | H21: =IF(G21<>"",Inventory!AQ20/G21,"") ->  | I21: =IF(G21<>"",Inventory!AS20/G21,"") ->  | J21: =Inventory!AK20 ->  | L21: =IF(E21 = 0, "", MATCH($E21,'Asset Models'!$A$7:$A$18,0)) ->  | M21: =IF(L21="", "", INDEX('Asset Models'!$A$7:$DC$18,$L21,'Asset Models'!BA$7+$J21-1)) ->  | N21: =IF(L21="", "", INDEX('Asset Models'!$A$7:$DC$18,$L21,'Asset Models'!$W$7+$J21-1)*$F21) ->  | O21: =IF(L21="", "", INDEX('Asset Models'!$A$7:$DC$18,$L21,'Asset Models'!$AB$7+$J21-1)*$F21) ->  | P21: =IF(L21="", "", IF($G21=5,1,IF($G21=1,INDEX('Asset Models'!$A$7:$DC$18,$L21,'Asset Models'!$AT$7+$G21-1),0)*(1-$M21))) ->  | Q21: =IF(L21="", "", IF($G21=5,0,IF($G21=1,INDEX('Asset Models'!$A$7:$DC$18,$L21,'Asset Models'!$AX$7+$G21-1),IF($G21=2,INDEX('Asset Models'!$A$7:$DC$18,$L21,'Asset Models'!$AT$7+$G21-1),0))*(1-$M21))) ->  | R21: =IF(L21="", "", IF($G21=5,0,IF($G21=2,INDEX('Asset Models'!$A$7:$DC$18,$L21,'Asset Models'!$AX$7+$G21-1),IF($G21=3,INDEX('Asset Models'!$A$7:$DC$18,$L21,'Asset Models'!$AT$7+$G21-1),0))*(1-$M21))) ->  | S21: =IF(L21="", "", IF($G21=5,0,IF($G21=3,INDEX('Asset Models'!$A$7:$DC$18,$L21,'Asset Models'!$AX$7+$G21-1),IF($G21=4,INDEX('Asset Models'!$A$7:$DC$18,$L21,'Asset Models'!$AT$7+$G21-1),0))*(1-$M21))) ->  | V21: =IF(L21="", "", IF($G21=5,$N21,(INDEX('Asset Models'!$A$7:$DC$18,$L21,'Asset Models'!$B$7+$G21-1)+INDEX('Asset Models'!$A$7:$DC$18,$L21,'Asset Models'!$J$7+$J21-1))*$F21)) ->  | W21: =IF(L21="", "", IF($G21=5,$O21,(INDEX('Asset Models'!$A$7:$DC$18,$L21,'Asset Models'!$F$7+$G21-1)+INDEX('Asset Models'!$A$7:$DC$18,$L21,'Asset Models'!$O$7+$J21-1))*$F21)) ->  | X21: =IF(L21="", "", INDEX('Asset Models'!$A$7:$DC$18,$L21,'Asset Models'!$BF$7+$K21-1)) ->  | Y21: =IF(L21="", "", VLOOKUP(X21,'Asset Model Builder'!$E$169:$F$173,2)) ->  | Z21: =IF(L21="", "", IF($X21=0,P21,IF($X21=1,IF(Z$9=$G21,(1-$M21),0),IF($X21=2,IF(Z$9=INDEX('Asset Models'!$A$7:$DC$18,$L21,'Asset Models'!$AG$7+$G21-2),(1-$M21),0),IF($X21=3,IF(Z$9=1,1,0),IF(INDEX('Asset Models'!$A$7:$DC$18,$L21,'Asset Models'!$AJ$7+$J21-1)=Z$9,1,0)))))) ->  | AA21: =IF(L21="", "", IF($X21=0,Q21,IF($X21=1,IF(AA$9=$G21,(1-$M21),0),IF($X21=2,IF(AA$9=INDEX('Asset Models'!$A$7:$DC$18,$L21,'Asset Models'!$AG$7+$G21-2),(1-$M21),0),IF($X21=3,IF(AA$9=1,1,0),IF(INDEX('Asset Models'!$A$7:$DC$18,$L21,'Asset Models'!$AJ$7+$J21-1)=AA$9,1,0)))))) ->  | AB21: =IF(L21="", "", IF($X21=0,R21,IF($X21=1,IF(AB$9=$G21,(1-$M21),0),IF($X21=2,IF(AB$9=INDEX('Asset Models'!$A$7:$DC$18,$L21,'Asset Models'!$AG$7+$G21-2),(1-$M21),0),IF($X21=3,IF(AB$9=1,1,0),IF(INDEX('Asset Models'!$A$7:$DC$18,$L21,'Asset Models'!$AJ$7+$J21-1)=AB$9,1,0)))))) ->  | AC21: =IF(L21="", "", IF($X21=0,S21,IF($X21=1,IF(AC$9=$G21,(1-$M21),0),IF($X21=2,IF(AC$9=INDEX('Asset Models'!$A$7:$DC$18,$L21,'Asset Models'!$AG$7+$G21-2),(1-$M21),0),IF($X21=3,IF(AC$9=1,1,0),IF(INDEX('Asset Models'!$A$7:$DC$18,$L21,'Asset Models'!$AJ$7+$J21-1)=AC$9,1,0)))))) ->  | AE21: =IF($X21=3,1,IF($X21=4,INDEX('Asset Models'!$A$7:$DC$18,$L21,'Asset Models'!$AO$7+$J21-1),$J21)) ->  | AG21: =IF(L21="", "", IF($X21=0,$V21,IF($G21=5,$N21,(INDEX('Asset Models'!$A$7:$DC$18,$L21,'Asset Models'!$T$7+$X21-1)+INDEX('Asset Models'!$A$7:$DC$18,$L21,'Asset Models'!$J$7+$J21-1))*$F21))) ->  | AH21: =IF(L21="", "", INDEX('Asset Models'!$A$7:$DC$18,$L21,'Asset Models'!$CE$7+$K21-1)*$F21) ->  | AS21: =IF(L21="", "", IF($G21=5,$O21,IF($AK21=0,$W21,INDEX('Asset Models'!$A$7:$DC$18,$L21,'Asset Models'!$J$7+$J21-1)*$F21))) ->  | AU21: =IF(L21="", "", INDEX('Asset Models'!$A$7:$DC$18,$L21,'Asset Models'!$V$7)*$F21) -> 
A22: 0.5776765905 | B22: 0.4558436263 | C22: =IF(Inventory!AH21=Inventory!$C$1032,0.5,1)*B22 -> 0.4558436263 | D22: =Inventory!C21 -> 0 | E22: =Inventory!E21 -> 0 | F22: =Inventory!W21 ->  | G22: =Inventory!AI21 ->  | H22: =IF(G22<>"",Inventory!AQ21/G22,"") ->  | I22: =IF(G22<>"",Inventory!AS21/G22,"") ->  | J22: =Inventory!AK21 ->  | L22: =IF(E22 = 0, "", MATCH($E22,'Asset Models'!$A$7:$A$18,0)) ->  | M22: =IF(L22="", "", INDEX('Asset Models'!$A$7:$DC$18,$L22,'Asset Models'!BA$7+$J22-1)) ->  | N22: =IF(L22="", "", INDEX('Asset Models'!$A$7:$DC$18,$L22,'Asset Models'!$W$7+$J22-1)*$F22) ->  | O22: =IF(L22="", "", INDEX('Asset Models'!$A$7:$DC$18,$L22,'Asset Models'!$AB$7+$J22-1)*$F22) ->  | P22: =IF(L22="", "", IF($G22=5,1,IF($G22=1,INDEX('Asset Models'!$A$7:$DC$18,$L22,'Asset Models'!$AT$7+$G22-1),0)*(1-$M22))) ->  | Q22: =IF(L22="", "", IF($G22=5,0,IF($G22=1,INDEX('Asset Models'!$A$7:$DC$18,$L22,'Asset Models'!$AX$7+$G22-1),IF($G22=2,INDEX('Asset Models'!$A$7:$DC$18,$L22,'Asset Models'!$AT$7+$G22-1),0))*(1-$M22))) ->  | R22: =IF(L22="", "", IF($G22=5,0,IF($G22=2,INDEX('Asset Models'!$A$7:$DC$18,$L22,'Asset Models'!$AX$7+$G22-1),IF($G22=3,INDEX('Asset Models'!$A$7:$DC$18,$L22,'Asset Models'!$AT$7+$G22-1),0))*(1-$M22))) ->  | S22: =IF(L22="", "", IF($G22=5,0,IF($G22=3,INDEX('Asset Models'!$A$7:$DC$18,$L22,'Asset Models'!$AX$7+$G22-1),IF($G22=4,INDEX('Asset Models'!$A$7:$DC$18,$L22,'Asset Models'!$AT$7+$G22-1),0))*(1-$M22))) ->  | V22: =IF(L22="", "", IF($G22=5,$N22,(INDEX('Asset Models'!$A$7:$DC$18,$L22,'Asset Models'!$B$7+$G22-1)+INDEX('Asset Models'!$A$7:$DC$18,$L22,'Asset Models'!$J$7+$J22-1))*$F22)) ->  | W22: =IF(L22="", "", IF($G22=5,$O22,(INDEX('Asset Models'!$A$7:$DC$18,$L22,'Asset Models'!$F$7+$G22-1)+INDEX('Asset Models'!$A$7:$DC$18,$L22,'Asset Models'!$O$7+$J22-1))*$F22)) ->  | X22: =IF(L22="", "", INDEX('Asset Models'!$A$7:$DC$18,$L22,'Asset Models'!$BF$7+$K22-1)) ->  | Y22: =IF(L22="", "", VLOOKUP(X22,'Asset Model Builder'!$E$169:$F$173,2)) ->  | Z22: =IF(L22="", "", IF($X22=0,P22,IF($X22=1,IF(Z$9=$G22,(1-$M22),0),IF($X22=2,IF(Z$9=INDEX('Asset Models'!$A$7:$DC$18,$L22,'Asset Models'!$AG$7+$G22-2),(1-$M22),0),IF($X22=3,IF(Z$9=1,1,0),IF(INDEX('Asset Models'!$A$7:$DC$18,$L22,'Asset Models'!$AJ$7+$J22-1)=Z$9,1,0)))))) ->  | AA22: =IF(L22="", "", IF($X22=0,Q22,IF($X22=1,IF(AA$9=$G22,(1-$M22),0),IF($X22=2,IF(AA$9=INDEX('Asset Models'!$A$7:$DC$18,$L22,'Asset Models'!$AG$7+$G22-2),(1-$M22),0),IF($X22=3,IF(AA$9=1,1,0),IF(INDEX('Asset Models'!$A$7:$DC$18,$L22,'Asset Models'!$AJ$7+$J22-1)=AA$9,1,0)))))) ->  | AB22: =IF(L22="", "", IF($X22=0,R22,IF($X22=1,IF(AB$9=$G22,(1-$M22),0),IF($X22=2,IF(AB$9=INDEX('Asset Models'!$A$7:$DC$18,$L22,'Asset Models'!$AG$7+$G22-2),(1-$M22),0),IF($X22=3,IF(AB$9=1,1,0),IF(INDEX('Asset Models'!$A$7:$DC$18,$L22,'Asset Models'!$AJ$7+$J22-1)=AB$9,1,0)))))) ->  | AC22: =IF(L22="", "", IF($X22=0,S22,IF($X22=1,IF(AC$9=$G22,(1-$M22),0),IF($X22=2,IF(AC$9=INDEX('Asset Models'!$A$7:$DC$18,$L22,'Asset Models'!$AG$7+$G22-2),(1-$M22),0),IF($X22=3,IF(AC$9=1,1,0),IF(INDEX('Asset Models'!$A$7:$DC$18,$L22,'Asset Models'!$AJ$7+$J22-1)=AC$9,1,0)))))) ->  | AE22: =IF($X22=3,1,IF($X22=4,INDEX('Asset Models'!$A$7:$DC$18,$L22,'Asset Models'!$AO$7+$J22-1),$J22)) ->  | AG22: =IF(L22="", "", IF($X22=0,$V22,IF($G22=5,$N22,(INDEX('Asset Models'!$A$7:$DC$18,$L22,'Asset Models'!$T$7+$X22-1)+INDEX('Asset Models'!$A$7:$DC$18,$L22,'Asset Models'!$J$7+$J22-1))*$F22))) ->  | AH22: =IF(L22="", "", INDEX('Asset Models'!$A$7:$DC$18,$L22,'Asset Models'!$CE$7+$K22-1)*$F22) ->  | AS22: =IF(L22="", "", IF($G22=5,$O22,IF($AK22=0,$W22,INDEX('Asset Models'!$A$7:$DC$18,$L22,'Asset Models'!$J$7+$J22-1)*$F22))) ->  | AU22: =IF(L22="", "", INDEX('Asset Models'!$A$7:$DC$18,$L22,'Asset Models'!$V$7)*$F22) -> 
A23: 0.1073842179 | B23: 0.524394646 | C23: =IF(Inventory!AH22=Inventory!$C$1032,0.5,1)*B23 -> 0.524394646 | D23: =Inventory!C22 -> 0 | E23: =Inventory!E22 -> 0 | F23: =Inventory!W22 ->  | G23: =Inventory!AI22 ->  | H23: =IF(G23<>"",Inventory!AQ22/G23,"") ->  | I23: =IF(G23<>"",Inventory!AS22/G23,"") ->  | J23: =Inventory!AK22 ->  | L23: =IF(E23 = 0, "", MATCH($E23,'Asset Models'!$A$7:$A$18,0)) ->  | M23: =IF(L23="", "", INDEX('Asset Models'!$A$7:$DC$18,$L23,'Asset Models'!BA$7+$J23-1)) ->  | N23: =IF(L23="", "", INDEX('Asset Models'!$A$7:$DC$18,$L23,'Asset Models'!$W$7+$J23-1)*$F23) ->  | O23: =IF(L23="", "", INDEX('Asset Models'!$A$7:$DC$18,$L23,'Asset Models'!$AB$7+$J23-1)*$F23) ->  | P23: =IF(L23="", "", IF($G23=5,1,IF($G23=1,INDEX('Asset Models'!$A$7:$DC$18,$L23,'Asset Models'!$AT$7+$G23-1),0)*(1-$M23))) ->  | Q23: =IF(L23="", "", IF($G23=5,0,IF($G23=1,INDEX('Asset Models'!$A$7:$DC$18,$L23,'Asset Models'!$AX$7+$G23-1),IF($G23=2,INDEX('Asset Models'!$A$7:$DC$18,$L23,'Asset Models'!$AT$7+$G23-1),0))*(1-$M23))) ->  | R23: =IF(L23="", "", IF($G23=5,0,IF($G23=2,INDEX('Asset Models'!$A$7:$DC$18,$L23,'Asset Models'!$AX$7+$G23-1),IF($G23=3,INDEX('Asset Models'!$A$7:$DC$18,$L23,'Asset Models'!$AT$7+$G23-1),0))*(1-$M23))) ->  | S23: =IF(L23="", "", IF($G23=5,0,IF($G23=3,INDEX('Asset Models'!$A$7:$DC$18,$L23,'Asset Models'!$AX$7+$G23-1),IF($G23=4,INDEX('Asset Models'!$A$7:$DC$18,$L23,'Asset Models'!$AT$7+$G23-1),0))*(1-$M23))) ->  | V23: =IF(L23="", "", IF($G23=5,$N23,(INDEX('Asset Models'!$A$7:$DC$18,$L23,'Asset Models'!$B$7+$G23-1)+INDEX('Asset Models'!$A$7:$DC$18,$L23,'Asset Models'!$J$7+$J23-1))*$F23)) ->  | W23: =IF(L23="", "", IF($G23=5,$O23,(INDEX('Asset Models'!$A$7:$DC$18,$L23,'Asset Models'!$F$7+$G23-1)+INDEX('Asset Models'!$A$7:$DC$18,$L23,'Asset Models'!$O$7+$J23-1))*$F23)) ->  | X23: =IF(L23="", "", INDEX('Asset Models'!$A$7:$DC$18,$L23,'Asset Models'!$BF$7+$K23-1)) ->  | Y23: =IF(L23="", "", VLOOKUP(X23,'Asset Model Builder'!$E$169:$F$173,2)) ->  | Z23: =IF(L23="", "", IF($X23=0,P23,IF($X23=1,IF(Z$9=$G23,(1-$M23),0),IF($X23=2,IF(Z$9=INDEX('Asset Models'!$A$7:$DC$18,$L23,'Asset Models'!$AG$7+$G23-2),(1-$M23),0),IF($X23=3,IF(Z$9=1,1,0),IF(INDEX('Asset Models'!$A$7:$DC$18,$L23,'Asset Models'!$AJ$7+$J23-1)=Z$9,1,0)))))) ->  | AA23: =IF(L23="", "", IF($X23=0,Q23,IF($X23=1,IF(AA$9=$G23,(1-$M23),0),IF($X23=2,IF(AA$9=INDEX('Asset Models'!$A$7:$DC$18,$L23,'Asset Models'!$AG$7+$G23-2),(1-$M23),0),IF($X23=3,IF(AA$9=1,1,0),IF(INDEX('Asset Models'!$A$7:$DC$18,$L23,'Asset Models'!$AJ$7+$J23-1)=AA$9,1,0)))))) ->  | AB23: =IF(L23="", "", IF($X23=0,R23,IF($X23=1,IF(AB$9=$G23,(1-$M23),0),IF($X23=2,IF(AB$9=INDEX('Asset Models'!$A$7:$DC$18,$L23,'Asset Models'!$AG$7+$G23-2),(1-$M23),0),IF($X23=3,IF(AB$9=1,1,0),IF(INDEX('Asset Models'!$A$7:$DC$18,$L23,'Asset Models'!$AJ$7+$J23-1)=AB$9,1,0)))))) ->  | AC23: =IF(L23="", "", IF($X23=0,S23,IF($X23=1,IF(AC$9=$G23,(1-$M23),0),IF($X23=2,IF(AC$9=INDEX('Asset Models'!$A$7:$DC$18,$L23,'Asset Models'!$AG$7+$G23-2),(1-$M23),0),IF($X23=3,IF(AC$9=1,1,0),IF(INDEX('Asset Models'!$A$7:$DC$18,$L23,'Asset Models'!$AJ$7+$J23-1)=AC$9,1,0)))))) ->  | AE23: =IF($X23=3,1,IF($X23=4,INDEX('Asset Models'!$A$7:$DC$18,$L23,'Asset Models'!$AO$7+$J23-1),$J23)) ->  | AG23: =IF(L23="", "", IF($X23=0,$V23,IF($G23=5,$N23,(INDEX('Asset Models'!$A$7:$DC$18,$L23,'Asset Models'!$T$7+$X23-1)+INDEX('Asset Models'!$A$7:$DC$18,$L23,'Asset Models'!$J$7+$J23-1))*$F23))) ->  | AH23: =IF(L23="", "", INDEX('Asset Models'!$A$7:$DC$18,$L23,'Asset Models'!$CE$7+$K23-1)*$F23) ->  | AS23: =IF(L23="", "", IF($G23=5,$O23,IF($AK23=0,$W23,INDEX('Asset Models'!$A$7:$DC$18,$L23,'Asset Models'!$J$7+$J23-1)*$F23))) ->  | AU23: =IF(L23="", "", INDEX('Asset Models'!$A$7:$DC$18,$L23,'Asset Models'!$V$7)*$F23) -> 
A24: 0.09227348707 | B24: 0.01595878197 | C24: =IF(Inventory!AH23=Inventory!$C$1032,0.5,1)*B24 -> 0.01595878197 | D24: =Inventory!C23 -> 0 | E24: =Inventory!E23 -> 0 | F24: =Inventory!W23 ->  | G24: =Inventory!AI23 ->  | H24: =IF(G24<>"",Inventory!AQ23/G24,"") ->  | I24: =IF(G24<>"",Inventory!AS23/G24,"") ->  | J24: =Inventory!AK23 ->  | L24: =IF(E24 = 0, "", MATCH($E24,'Asset Models'!$A$7:$A$18,0)) ->  | M24: =IF(L24="", "", INDEX('Asset Models'!$A$7:$DC$18,$L24,'Asset Models'!BA$7+$J24-1)) ->  | N24: =IF(L24="", "", INDEX('Asset Models'!$A$7:$DC$18,$L24,'Asset Models'!$W$7+$J24-1)*$F24) ->  | O24: =IF(L24="", "", INDEX('Asset Models'!$A$7:$DC$18,$L24,'Asset Models'!$AB$7+$J24-1)*$F24) ->  | P24: =IF(L24="", "", IF($G24=5,1,IF($G24=1,INDEX('Asset Models'!$A$7:$DC$18,$L24,'Asset Models'!$AT$7+$G24-1),0)*(1-$M24))) ->  | Q24: =IF(L24="", "", IF($G24=5,0,IF($G24=1,INDEX('Asset Models'!$A$7:$DC$18,$L24,'Asset Models'!$AX$7+$G24-1),IF($G24=2,INDEX('Asset Models'!$A$7:$DC$18,$L24,'Asset Models'!$AT$7+$G24-1),0))*(1-$M24))) ->  | R24: =IF(L24="", "", IF($G24=5,0,IF($G24=2,INDEX('Asset Models'!$A$7:$DC$18,$L24,'Asset Models'!$AX$7+$G24-1),IF($G24=3,INDEX('Asset Models'!$A$7:$DC$18,$L24,'Asset Models'!$AT$7+$G24-1),0))*(1-$M24))) ->  | S24: =IF(L24="", "", IF($G24=5,0,IF($G24=3,INDEX('Asset Models'!$A$7:$DC$18,$L24,'Asset Models'!$AX$7+$G24-1),IF($G24=4,INDEX('Asset Models'!$A$7:$DC$18,$L24,'Asset Models'!$AT$7+$G24-1),0))*(1-$M24))) ->  | V24: =IF(L24="", "", IF($G24=5,$N24,(INDEX('Asset Models'!$A$7:$DC$18,$L24,'Asset Models'!$B$7+$G24-1)+INDEX('Asset Models'!$A$7:$DC$18,$L24,'Asset Models'!$J$7+$J24-1))*$F24)) ->  | W24: =IF(L24="", "", IF($G24=5,$O24,(INDEX('Asset Models'!$A$7:$DC$18,$L24,'Asset Models'!$F$7+$G24-1)+INDEX('Asset Models'!$A$7:$DC$18,$L24,'Asset Models'!$O$7+$J24-1))*$F24)) ->  | X24: =IF(L24="", "", INDEX('Asset Models'!$A$7:$DC$18,$L24,'Asset Models'!$BF$7+$K24-1)) ->  | Y24: =IF(L24="", "", VLOOKUP(X24,'Asset Model Builder'!$E$169:$F$173,2)) ->  | Z24: =IF(L24="", "", IF($X24=0,P24,IF($X24=1,IF(Z$9=$G24,(1-$M24),0),IF($X24=2,IF(Z$9=INDEX('Asset Models'!$A$7:$DC$18,$L24,'Asset Models'!$AG$7+$G24-2),(1-$M24),0),IF($X24=3,IF(Z$9=1,1,0),IF(INDEX('Asset Models'!$A$7:$DC$18,$L24,'Asset Models'!$AJ$7+$J24-1)=Z$9,1,0)))))) ->  | AA24: =IF(L24="", "", IF($X24=0,Q24,IF($X24=1,IF(AA$9=$G24,(1-$M24),0),IF($X24=2,IF(AA$9=INDEX('Asset Models'!$A$7:$DC$18,$L24,'Asset Models'!$AG$7+$G24-2),(1-$M24),0),IF($X24=3,IF(AA$9=1,1,0),IF(INDEX('Asset Models'!$A$7:$DC$18,$L24,'Asset Models'!$AJ$7+$J24-1)=AA$9,1,0)))))) ->  | AB24: =IF(L24="", "", IF($X24=0,R24,IF($X24=1,IF(AB$9=$G24,(1-$M24),0),IF($X24=2,IF(AB$9=INDEX('Asset Models'!$A$7:$DC$18,$L24,'Asset Models'!$AG$7+$G24-2),(1-$M24),0),IF($X24=3,IF(AB$9=1,1,0),IF(INDEX('Asset Models'!$A$7:$DC$18,$L24,'Asset Models'!$AJ$7+$J24-1)=AB$9,1,0)))))) ->  | AC24: =IF(L24="", "", IF($X24=0,S24,IF($X24=1,IF(AC$9=$G24,(1-$M24),0),IF($X24=2,IF(AC$9=INDEX('Asset Models'!$A$7:$DC$18,$L24,'Asset Models'!$AG$7+$G24-2),(1-$M24),0),IF($X24=3,IF(AC$9=1,1,0),IF(INDEX('Asset Models'!$A$7:$DC$18,$L24,'Asset Models'!$AJ$7+$J24-1)=AC$9,1,0)))))) ->  | AE24: =IF($X24=3,1,IF($X24=4,INDEX('Asset Models'!$A$7:$DC$18,$L24,'Asset Models'!$AO$7+$J24-1),$J24)) ->  | AG24: =IF(L24="", "", IF($X24=0,$V24,IF($G24=5,$N24,(INDEX('Asset Models'!$A$7:$DC$18,$L24,'Asset Models'!$T$7+$X24-1)+INDEX('Asset Models'!$A$7:$DC$18,$L24,'Asset Models'!$J$7+$J24-1))*$F24))) ->  | AH24: =IF(L24="", "", INDEX('Asset Models'!$A$7:$DC$18,$L24,'Asset Models'!$CE$7+$K24-1)*$F24) ->  | AS24: =IF(L24="", "", IF($G24=5,$O24,IF($AK24=0,$W24,INDEX('Asset Models'!$A$7:$DC$18,$L24,'Asset Models'!$J$7+$J24-1)*$F24))) ->  | AU24: =IF(L24="", "", INDEX('Asset Models'!$A$7:$DC$18,$L24,'Asset Models'!$V$7)*$F24) -> 
A25: 0.7929903363 | B25: 0.08355228068 | C25: =IF(Inventory!AH24=Inventory!$C$1032,0.5,1)*B25 -> 0.08355228068 | D25: =Inventory!C24 -> 0 | E25: =Inventory!E24 -> 0 | F25: =Inventory!W24 ->  | G25: =Inventory!AI24 ->  | H25: =IF(G25<>"",Inventory!AQ24/G25,"") ->  | I25: =IF(G25<>"",Inventory!AS24/G25,"") ->  | J25: =Inventory!AK24 ->  | L25: =IF(E25 = 0, "", MATCH($E25,'Asset Models'!$A$7:$A$18,0)) ->  | M25: =IF(L25="", "", INDEX('Asset Models'!$A$7:$DC$18,$L25,'Asset Models'!BA$7+$J25-1)) ->  | N25: =IF(L25="", "", INDEX('Asset Models'!$A$7:$DC$18,$L25,'Asset Models'!$W$7+$J25-1)*$F25) ->  | O25: =IF(L25="", "", INDEX('Asset Models'!$A$7:$DC$18,$L25,'Asset Models'!$AB$7+$J25-1)*$F25) ->  | P25: =IF(L25="", "", IF($G25=5,1,IF($G25=1,INDEX('Asset Models'!$A$7:$DC$18,$L25,'Asset Models'!$AT$7+$G25-1),0)*(1-$M25))) ->  | Q25: =IF(L25="", "", IF($G25=5,0,IF($G25=1,INDEX('Asset Models'!$A$7:$DC$18,$L25,'Asset Models'!$AX$7+$G25-1),IF($G25=2,INDEX('Asset Models'!$A$7:$DC$18,$L25,'Asset Models'!$AT$7+$G25-1),0))*(1-$M25))) ->  | R25: =IF(L25="", "", IF($G25=5,0,IF($G25=2,INDEX('Asset Models'!$A$7:$DC$18,$L25,'Asset Models'!$AX$7+$G25-1),IF($G25=3,INDEX('Asset Models'!$A$7:$DC$18,$L25,'Asset Models'!$AT$7+$G25-1),0))*(1-$M25))) ->  | S25: =IF(L25="", "", IF($G25=5,0,IF($G25=3,INDEX('Asset Models'!$A$7:$DC$18,$L25,'Asset Models'!$AX$7+$G25-1),IF($G25=4,INDEX('Asset Models'!$A$7:$DC$18,$L25,'Asset Models'!$AT$7+$G25-1),0))*(1-$M25))) ->  | V25: =IF(L25="", "", IF($G25=5,$N25,(INDEX('Asset Models'!$A$7:$DC$18,$L25,'Asset Models'!$B$7+$G25-1)+INDEX('Asset Models'!$A$7:$DC$18,$L25,'Asset Models'!$J$7+$J25-1))*$F25)) ->  | W25: =IF(L25="", "", IF($G25=5,$O25,(INDEX('Asset Models'!$A$7:$DC$18,$L25,'Asset Models'!$F$7+$G25-1)+INDEX('Asset Models'!$A$7:$DC$18,$L25,'Asset Models'!$O$7+$J25-1))*$F25)) ->  | X25: =IF(L25="", "", INDEX('Asset Models'!$A$7:$DC$18,$L25,'Asset Models'!$BF$7+$K25-1)) ->  | Y25: =IF(L25="", "", VLOOKUP(X25,'Asset Model Builder'!$E$169:$F$173,2)) ->  | Z25: =IF(L25="", "", IF($X25=0,P25,IF($X25=1,IF(Z$9=$G25,(1-$M25),0),IF($X25=2,IF(Z$9=INDEX('Asset Models'!$A$7:$DC$18,$L25,'Asset Models'!$AG$7+$G25-2),(1-$M25),0),IF($X25=3,IF(Z$9=1,1,0),IF(INDEX('Asset Models'!$A$7:$DC$18,$L25,'Asset Models'!$AJ$7+$J25-1)=Z$9,1,0)))))) ->  | AA25: =IF(L25="", "", IF($X25=0,Q25,IF($X25=1,IF(AA$9=$G25,(1-$M25),0),IF($X25=2,IF(AA$9=INDEX('Asset Models'!$A$7:$DC$18,$L25,'Asset Models'!$AG$7+$G25-2),(1-$M25),0),IF($X25=3,IF(AA$9=1,1,0),IF(INDEX('Asset Models'!$A$7:$DC$18,$L25,'Asset Models'!$AJ$7+$J25-1)=AA$9,1,0)))))) ->  | AB25: =IF(L25="", "", IF($X25=0,R25,IF($X25=1,IF(AB$9=$G25,(1-$M25),0),IF($X25=2,IF(AB$9=INDEX('Asset Models'!$A$7:$DC$18,$L25,'Asset Models'!$AG$7+$G25-2),(1-$M25),0),IF($X25=3,IF(AB$9=1,1,0),IF(INDEX('Asset Models'!$A$7:$DC$18,$L25,'Asset Models'!$AJ$7+$J25-1)=AB$9,1,0)))))) ->  | AC25: =IF(L25="", "", IF($X25=0,S25,IF($X25=1,IF(AC$9=$G25,(1-$M25),0),IF($X25=2,IF(AC$9=INDEX('Asset Models'!$A$7:$DC$18,$L25,'Asset Models'!$AG$7+$G25-2),(1-$M25),0),IF($X25=3,IF(AC$9=1,1,0),IF(INDEX('Asset Models'!$A$7:$DC$18,$L25,'Asset Models'!$AJ$7+$J25-1)=AC$9,1,0)))))) ->  | AE25: =IF($X25=3,1,IF($X25=4,INDEX('Asset Models'!$A$7:$DC$18,$L25,'Asset Models'!$AO$7+$J25-1),$J25)) ->  | AG25: =IF(L25="", "", IF($X25=0,$V25,IF($G25=5,$N25,(INDEX('Asset Models'!$A$7:$DC$18,$L25,'Asset Models'!$T$7+$X25-1)+INDEX('Asset Models'!$A$7:$DC$18,$L25,'Asset Models'!$J$7+$J25-1))*$F25))) ->  | AH25: =IF(L25="", "", INDEX('Asset Models'!$A$7:$DC$18,$L25,'Asset Models'!$CE$7+$K25-1)*$F25) ->  | AS25: =IF(L25="", "", IF($G25=5,$O25,IF($AK25=0,$W25,INDEX('Asset Models'!$A$7:$DC$18,$L25,'Asset Models'!$J$7+$J25-1)*$F25))) ->  | AU25: =IF(L25="", "", INDEX('Asset Models'!$A$7:$DC$18,$L25,'Asset Models'!$V$7)*$F25) -> 
A26: 0.1188034007 | B26: 0.6219755404 | C26: =IF(Inventory!AH25=Inventory!$C$1032,0.5,1)*B26 -> 0.6219755404 | D26: =Inventory!C25 -> 0 | E26: =Inventory!E25 -> 0 | F26: =Inventory!W25 ->  | G26: =Inventory!AI25 ->  | H26: =IF(G26<>"",Inventory!AQ25/G26,"") ->  | I26: =IF(G26<>"",Inventory!AS25/G26,"") ->  | J26: =Inventory!AK25 ->  | L26: =IF(E26 = 0, "", MATCH($E26,'Asset Models'!$A$7:$A$18,0)) ->  | M26: =IF(L26="", "", INDEX('Asset Models'!$A$7:$DC$18,$L26,'Asset Models'!BA$7+$J26-1)) ->  | N26: =IF(L26="", "", INDEX('Asset Models'!$A$7:$DC$18,$L26,'Asset Models'!$W$7+$J26-1)*$F26) ->  | O26: =IF(L26="", "", INDEX('Asset Models'!$A$7:$DC$18,$L26,'Asset Models'!$AB$7+$J26-1)*$F26) ->  | P26: =IF(L26="", "", IF($G26=5,1,IF($G26=1,INDEX('Asset Models'!$A$7:$DC$18,$L26,'Asset Models'!$AT$7+$G26-1),0)*(1-$M26))) ->  | Q26: =IF(L26="", "", IF($G26=5,0,IF($G26=1,INDEX('Asset Models'!$A$7:$DC$18,$L26,'Asset Models'!$AX$7+$G26-1),IF($G26=2,INDEX('Asset Models'!$A$7:$DC$18,$L26,'Asset Models'!$AT$7+$G26-1),0))*(1-$M26))) ->  | R26: =IF(L26="", "", IF($G26=5,0,IF($G26=2,INDEX('Asset Models'!$A$7:$DC$18,$L26,'Asset Models'!$AX$7+$G26-1),IF($G26=3,INDEX('Asset Models'!$A$7:$DC$18,$L26,'Asset Models'!$AT$7+$G26-1),0))*(1-$M26))) ->  | S26: =IF(L26="", "", IF($G26=5,0,IF($G26=3,INDEX('Asset Models'!$A$7:$DC$18,$L26,'Asset Models'!$AX$7+$G26-1),IF($G26=4,INDEX('Asset Models'!$A$7:$DC$18,$L26,'Asset Models'!$AT$7+$G26-1),0))*(1-$M26))) ->  | V26: =IF(L26="", "", IF($G26=5,$N26,(INDEX('Asset Models'!$A$7:$DC$18,$L26,'Asset Models'!$B$7+$G26-1)+INDEX('Asset Models'!$A$7:$DC$18,$L26,'Asset Models'!$J$7+$J26-1))*$F26)) ->  | W26: =IF(L26="", "", IF($G26=5,$O26,(INDEX('Asset Models'!$A$7:$DC$18,$L26,'Asset Models'!$F$7+$G26-1)+INDEX('Asset Models'!$A$7:$DC$18,$L26,'Asset Models'!$O$7+$J26-1))*$F26)) ->  | X26: =IF(L26="", "", INDEX('Asset Models'!$A$7:$DC$18,$L26,'Asset Models'!$BF$7+$K26-1)) ->  | Y26: =IF(L26="", "", VLOOKUP(X26,'Asset Model Builder'!$E$169:$F$173,2)) ->  | Z26: =IF(L26="", "", IF($X26=0,P26,IF($X26=1,IF(Z$9=$G26,(1-$M26),0),IF($X26=2,IF(Z$9=INDEX('Asset Models'!$A$7:$DC$18,$L26,'Asset Models'!$AG$7+$G26-2),(1-$M26),0),IF($X26=3,IF(Z$9=1,1,0),IF(INDEX('Asset Models'!$A$7:$DC$18,$L26,'Asset Models'!$AJ$7+$J26-1)=Z$9,1,0)))))) ->  | AA26: =IF(L26="", "", IF($X26=0,Q26,IF($X26=1,IF(AA$9=$G26,(1-$M26),0),IF($X26=2,IF(AA$9=INDEX('Asset Models'!$A$7:$DC$18,$L26,'Asset Models'!$AG$7+$G26-2),(1-$M26),0),IF($X26=3,IF(AA$9=1,1,0),IF(INDEX('Asset Models'!$A$7:$DC$18,$L26,'Asset Models'!$AJ$7+$J26-1)=AA$9,1,0)))))) ->  | AB26: =IF(L26="", "", IF($X26=0,R26,IF($X26=1,IF(AB$9=$G26,(1-$M26),0),IF($X26=2,IF(AB$9=INDEX('Asset Models'!$A$7:$DC$18,$L26,'Asset Models'!$AG$7+$G26-2),(1-$M26),0),IF($X26=3,IF(AB$9=1,1,0),IF(INDEX('Asset Models'!$A$7:$DC$18,$L26,'Asset Models'!$AJ$7+$J26-1)=AB$9,1,0)))))) ->  | AC26: =IF(L26="", "", IF($X26=0,S26,IF($X26=1,IF(AC$9=$G26,(1-$M26),0),IF($X26=2,IF(AC$9=INDEX('Asset Models'!$A$7:$DC$18,$L26,'Asset Models'!$AG$7+$G26-2),(1-$M26),0),IF($X26=3,IF(AC$9=1,1,0),IF(INDEX('Asset Models'!$A$7:$DC$18,$L26,'Asset Models'!$AJ$7+$J26-1)=AC$9,1,0)))))) ->  | AE26: =IF($X26=3,1,IF($X26=4,INDEX('Asset Models'!$A$7:$DC$18,$L26,'Asset Models'!$AO$7+$J26-1),$J26)) ->  | AG26: =IF(L26="", "", IF($X26=0,$V26,IF($G26=5,$N26,(INDEX('Asset Models'!$A$7:$DC$18,$L26,'Asset Models'!$T$7+$X26-1)+INDEX('Asset Models'!$A$7:$DC$18,$L26,'Asset Models'!$J$7+$J26-1))*$F26))) ->  | AH26: =IF(L26="", "", INDEX('Asset Models'!$A$7:$DC$18,$L26,'Asset Models'!$CE$7+$K26-1)*$F26) ->  | AS26: =IF(L26="", "", IF($G26=5,$O26,IF($AK26=0,$W26,INDEX('Asset Models'!$A$7:$DC$18,$L26,'Asset Models'!$J$7+$J26-1)*$F26))) ->  | AU26: =IF(L26="", "", INDEX('Asset Models'!$A$7:$DC$18,$L26,'Asset Models'!$V$7)*$F26) -> 
A27: 0.2850746069 | B27: 0.7287784074 | C27: =IF(Inventory!AH26=Inventory!$C$1032,0.5,1)*B27 -> 0.7287784074 | D27: =Inventory!C26 -> 0 | E27: =Inventory!E26 -> 0 | F27: =Inventory!W26 ->  | G27: =Inventory!AI26 ->  | H27: =IF(G27<>"",Inventory!AQ26/G27,"") ->  | I27: =IF(G27<>"",Inventory!AS26/G27,"") ->  | J27: =Inventory!AK26 ->  | L27: =IF(E27 = 0, "", MATCH($E27,'Asset Models'!$A$7:$A$18,0)) ->  | M27: =IF(L27="", "", INDEX('Asset Models'!$A$7:$DC$18,$L27,'Asset Models'!BA$7+$J27-1)) ->  | N27: =IF(L27="", "", INDEX('Asset Models'!$A$7:$DC$18,$L27,'Asset Models'!$W$7+$J27-1)*$F27) ->  | O27: =IF(L27="", "", INDEX('Asset Models'!$A$7:$DC$18,$L27,'Asset Models'!$AB$7+$J27-1)*$F27) ->  | P27: =IF(L27="", "", IF($G27=5,1,IF($G27=1,INDEX('Asset Models'!$A$7:$DC$18,$L27,'Asset Models'!$AT$7+$G27-1),0)*(1-$M27))) ->  | Q27: =IF(L27="", "", IF($G27=5,0,IF($G27=1,INDEX('Asset Models'!$A$7:$DC$18,$L27,'Asset Models'!$AX$7+$G27-1),IF($G27=2,INDEX('Asset Models'!$A$7:$DC$18,$L27,'Asset Models'!$AT$7+$G27-1),0))*(1-$M27))) ->  | R27: =IF(L27="", "", IF($G27=5,0,IF($G27=2,INDEX('Asset Models'!$A$7:$DC$18,$L27,'Asset Models'!$AX$7+$G27-1),IF($G27=3,INDEX('Asset Models'!$A$7:$DC$18,$L27,'Asset Models'!$AT$7+$G27-1),0))*(1-$M27))) ->  | S27: =IF(L27="", "", IF($G27=5,0,IF($G27=3,INDEX('Asset Models'!$A$7:$DC$18,$L27,'Asset Models'!$AX$7+$G27-1),IF($G27=4,INDEX('Asset Models'!$A$7:$DC$18,$L27,'Asset Models'!$AT$7+$G27-1),0))*(1-$M27))) ->  | V27: =IF(L27="", "", IF($G27=5,$N27,(INDEX('Asset Models'!$A$7:$DC$18,$L27,'Asset Models'!$B$7+$G27-1)+INDEX('Asset Models'!$A$7:$DC$18,$L27,'Asset Models'!$J$7+$J27-1))*$F27)) ->  | W27: =IF(L27="", "", IF($G27=5,$O27,(INDEX('Asset Models'!$A$7:$DC$18,$L27,'Asset Models'!$F$7+$G27-1)+INDEX('Asset Models'!$A$7:$DC$18,$L27,'Asset Models'!$O$7+$J27-1))*$F27)) ->  | X27: =IF(L27="", "", INDEX('Asset Models'!$A$7:$DC$18,$L27,'Asset Models'!$BF$7+$K27-1)) ->  | Y27: =IF(L27="", "", VLOOKUP(X27,'Asset Model Builder'!$E$169:$F$173,2)) ->  | Z27: =IF(L27="", "", IF($X27=0,P27,IF($X27=1,IF(Z$9=$G27,(1-$M27),0),IF($X27=2,IF(Z$9=INDEX('Asset Models'!$A$7:$DC$18,$L27,'Asset Models'!$AG$7+$G27-2),(1-$M27),0),IF($X27=3,IF(Z$9=1,1,0),IF(INDEX('Asset Models'!$A$7:$DC$18,$L27,'Asset Models'!$AJ$7+$J27-1)=Z$9,1,0)))))) ->  | AA27: =IF(L27="", "", IF($X27=0,Q27,IF($X27=1,IF(AA$9=$G27,(1-$M27),0),IF($X27=2,IF(AA$9=INDEX('Asset Models'!$A$7:$DC$18,$L27,'Asset Models'!$AG$7+$G27-2),(1-$M27),0),IF($X27=3,IF(AA$9=1,1,0),IF(INDEX('Asset Models'!$A$7:$DC$18,$L27,'Asset Models'!$AJ$7+$J27-1)=AA$9,1,0)))))) ->  | AB27: =IF(L27="", "", IF($X27=0,R27,IF($X27=1,IF(AB$9=$G27,(1-$M27),0),IF($X27=2,IF(AB$9=INDEX('Asset Models'!$A$7:$DC$18,$L27,'Asset Models'!$AG$7+$G27-2),(1-$M27),0),IF($X27=3,IF(AB$9=1,1,0),IF(INDEX('Asset Models'!$A$7:$DC$18,$L27,'Asset Models'!$AJ$7+$J27-1)=AB$9,1,0)))))) ->  | AC27: =IF(L27="", "", IF($X27=0,S27,IF($X27=1,IF(AC$9=$G27,(1-$M27),0),IF($X27=2,IF(AC$9=INDEX('Asset Models'!$A$7:$DC$18,$L27,'Asset Models'!$AG$7+$G27-2),(1-$M27),0),IF($X27=3,IF(AC$9=1,1,0),IF(INDEX('Asset Models'!$A$7:$DC$18,$L27,'Asset Models'!$AJ$7+$J27-1)=AC$9,1,0)))))) ->  | AE27: =IF($X27=3,1,IF($X27=4,INDEX('Asset Models'!$A$7:$DC$18,$L27,'Asset Models'!$AO$7+$J27-1),$J27)) ->  | AG27: =IF(L27="", "", IF($X27=0,$V27,IF($G27=5,$N27,(INDEX('Asset Models'!$A$7:$DC$18,$L27,'Asset Models'!$T$7+$X27-1)+INDEX('Asset Models'!$A$7:$DC$18,$L27,'Asset Models'!$J$7+$J27-1))*$F27))) ->  | AH27: =IF(L27="", "", INDEX('Asset Models'!$A$7:$DC$18,$L27,'Asset Models'!$CE$7+$K27-1)*$F27) ->  | AS27: =IF(L27="", "", IF($G27=5,$O27,IF($AK27=0,$W27,INDEX('Asset Models'!$A$7:$DC$18,$L27,'Asset Models'!$J$7+$J27-1)*$F27))) ->  | AU27: =IF(L27="", "", INDEX('Asset Models'!$A$7:$DC$18,$L27,'Asset Models'!$V$7)*$F27) -> 
A28: 0.5961573039 | B28: 0.6694418422 | C28: =IF(Inventory!AH27=Inventory!$C$1032,0.5,1)*B28 -> 0.6694418422 | D28: =Inventory!C27 -> 0 | E28: =Inventory!E27 -> 0 | F28: =Inventory!W27 ->  | G28: =Inventory!AI27 ->  | H28: =IF(G28<>"",Inventory!AQ27/G28,"") ->  | I28: =IF(G28<>"",Inventory!AS27/G28,"") ->  | J28: =Inventory!AK27 ->  | L28: =IF(E28 = 0, "", MATCH($E28,'Asset Models'!$A$7:$A$18,0)) ->  | M28: =IF(L28="", "", INDEX('Asset Models'!$A$7:$DC$18,$L28,'Asset Models'!BA$7+$J28-1)) ->  | N28: =IF(L28="", "", INDEX('Asset Models'!$A$7:$DC$18,$L28,'Asset Models'!$W$7+$J28-1)*$F28) ->  | O28: =IF(L28="", "", INDEX('Asset Models'!$A$7:$DC$18,$L28,'Asset Models'!$AB$7+$J28-1)*$F28) ->  | P28: =IF(L28="", "", IF($G28=5,1,IF($G28=1,INDEX('Asset Models'!$A$7:$DC$18,$L28,'Asset Models'!$AT$7+$G28-1),0)*(1-$M28))) ->  | Q28: =IF(L28="", "", IF($G28=5,0,IF($G28=1,INDEX('Asset Models'!$A$7:$DC$18,$L28,'Asset Models'!$AX$7+$G28-1),IF($G28=2,INDEX('Asset Models'!$A$7:$DC$18,$L28,'Asset Models'!$AT$7+$G28-1),0))*(1-$M28))) ->  | R28: =IF(L28="", "", IF($G28=5,0,IF($G28=2,INDEX('Asset Models'!$A$7:$DC$18,$L28,'Asset Models'!$AX$7+$G28-1),IF($G28=3,INDEX('Asset Models'!$A$7:$DC$18,$L28,'Asset Models'!$AT$7+$G28-1),0))*(1-$M28))) ->  | S28: =IF(L28="", "", IF($G28=5,0,IF($G28=3,INDEX('Asset Models'!$A$7:$DC$18,$L28,'Asset Models'!$AX$7+$G28-1),IF($G28=4,INDEX('Asset Models'!$A$7:$DC$18,$L28,'Asset Models'!$AT$7+$G28-1),0))*(1-$M28))) ->  | V28: =IF(L28="", "", IF($G28=5,$N28,(INDEX('Asset Models'!$A$7:$DC$18,$L28,'Asset Models'!$B$7+$G28-1)+INDEX('Asset Models'!$A$7:$DC$18,$L28,'Asset Models'!$J$7+$J28-1))*$F28)) ->  | W28: =IF(L28="", "", IF($G28=5,$O28,(INDEX('Asset Models'!$A$7:$DC$18,$L28,'Asset Models'!$F$7+$G28-1)+INDEX('Asset Models'!$A$7:$DC$18,$L28,'Asset Models'!$O$7+$J28-1))*$F28)) ->  | X28: =IF(L28="", "", INDEX('Asset Models'!$A$7:$DC$18,$L28,'Asset Models'!$BF$7+$K28-1)) ->  | Y28: =IF(L28="", "", VLOOKUP(X28,'Asset Model Builder'!$E$169:$F$173,2)) ->  | Z28: =IF(L28="", "", IF($X28=0,P28,IF($X28=1,IF(Z$9=$G28,(1-$M28),0),IF($X28=2,IF(Z$9=INDEX('Asset Models'!$A$7:$DC$18,$L28,'Asset Models'!$AG$7+$G28-2),(1-$M28),0),IF($X28=3,IF(Z$9=1,1,0),IF(INDEX('Asset Models'!$A$7:$DC$18,$L28,'Asset Models'!$AJ$7+$J28-1)=Z$9,1,0)))))) ->  | AA28: =IF(L28="", "", IF($X28=0,Q28,IF($X28=1,IF(AA$9=$G28,(1-$M28),0),IF($X28=2,IF(AA$9=INDEX('Asset Models'!$A$7:$DC$18,$L28,'Asset Models'!$AG$7+$G28-2),(1-$M28),0),IF($X28=3,IF(AA$9=1,1,0),IF(INDEX('Asset Models'!$A$7:$DC$18,$L28,'Asset Models'!$AJ$7+$J28-1)=AA$9,1,0)))))) ->  | AB28: =IF(L28="", "", IF($X28=0,R28,IF($X28=1,IF(AB$9=$G28,(1-$M28),0),IF($X28=2,IF(AB$9=INDEX('Asset Models'!$A$7:$DC$18,$L28,'Asset Models'!$AG$7+$G28-2),(1-$M28),0),IF($X28=3,IF(AB$9=1,1,0),IF(INDEX('Asset Models'!$A$7:$DC$18,$L28,'Asset Models'!$AJ$7+$J28-1)=AB$9,1,0)))))) ->  | AC28: =IF(L28="", "", IF($X28=0,S28,IF($X28=1,IF(AC$9=$G28,(1-$M28),0),IF($X28=2,IF(AC$9=INDEX('Asset Models'!$A$7:$DC$18,$L28,'Asset Models'!$AG$7+$G28-2),(1-$M28),0),IF($X28=3,IF(AC$9=1,1,0),IF(INDEX('Asset Models'!$A$7:$DC$18,$L28,'Asset Models'!$AJ$7+$J28-1)=AC$9,1,0)))))) ->  | AE28: =IF($X28=3,1,IF($X28=4,INDEX('Asset Models'!$A$7:$DC$18,$L28,'Asset Models'!$AO$7+$J28-1),$J28)) ->  | AG28: =IF(L28="", "", IF($X28=0,$V28,IF($G28=5,$N28,(INDEX('Asset Models'!$A$7:$DC$18,$L28,'Asset Models'!$T$7+$X28-1)+INDEX('Asset Models'!$A$7:$DC$18,$L28,'Asset Models'!$J$7+$J28-1))*$F28))) ->  | AH28: =IF(L28="", "", INDEX('Asset Models'!$A$7:$DC$18,$L28,'Asset Models'!$CE$7+$K28-1)*$F28) ->  | AS28: =IF(L28="", "", IF($G28=5,$O28,IF($AK28=0,$W28,INDEX('Asset Models'!$A$7:$DC$18,$L28,'Asset Models'!$J$7+$J28-1)*$F28))) ->  | AU28: =IF(L28="", "", INDEX('Asset Models'!$A$7:$DC$18,$L28,'Asset Models'!$V$7)*$F28) -> 
A29: 0.5339318315 | B29: 0.6076307991 | C29: =IF(Inventory!AH28=Inventory!$C$1032,0.5,1)*B29 -> 0.6076307991 | D29: =Inventory!C28 -> 0 | E29: =Inventory!E28 -> 0 | F29: =Inventory!W28 ->  | G29: =Inventory!AI28 ->  | H29: =IF(G29<>"",Inventory!AQ28/G29,"") ->  | I29: =IF(G29<>"",Inventory!AS28/G29,"") ->  | J29: =Inventory!AK28 ->  | L29: =IF(E29 = 0, "", MATCH($E29,'Asset Models'!$A$7:$A$18,0)) ->  | M29: =IF(L29="", "", INDEX('Asset Models'!$A$7:$DC$18,$L29,'Asset Models'!BA$7+$J29-1)) ->  | N29: =IF(L29="", "", INDEX('Asset Models'!$A$7:$DC$18,$L29,'Asset Models'!$W$7+$J29-1)*$F29) ->  | O29: =IF(L29="", "", INDEX('Asset Models'!$A$7:$DC$18,$L29,'Asset Models'!$AB$7+$J29-1)*$F29) ->  | P29: =IF(L29="", "", IF($G29=5,1,IF($G29=1,INDEX('Asset Models'!$A$7:$DC$18,$L29,'Asset Models'!$AT$7+$G29-1),0)*(1-$M29))) ->  | Q29: =IF(L29="", "", IF($G29=5,0,IF($G29=1,INDEX('Asset Models'!$A$7:$DC$18,$L29,'Asset Models'!$AX$7+$G29-1),IF($G29=2,INDEX('Asset Models'!$A$7:$DC$18,$L29,'Asset Models'!$AT$7+$G29-1),0))*(1-$M29))) ->  | R29: =IF(L29="", "", IF($G29=5,0,IF($G29=2,INDEX('Asset Models'!$A$7:$DC$18,$L29,'Asset Models'!$AX$7+$G29-1),IF($G29=3,INDEX('Asset Models'!$A$7:$DC$18,$L29,'Asset Models'!$AT$7+$G29-1),0))*(1-$M29))) ->  | S29: =IF(L29="", "", IF($G29=5,0,IF($G29=3,INDEX('Asset Models'!$A$7:$DC$18,$L29,'Asset Models'!$AX$7+$G29-1),IF($G29=4,INDEX('Asset Models'!$A$7:$DC$18,$L29,'Asset Models'!$AT$7+$G29-1),0))*(1-$M29))) ->  | V29: =IF(L29="", "", IF($G29=5,$N29,(INDEX('Asset Models'!$A$7:$DC$18,$L29,'Asset Models'!$B$7+$G29-1)+INDEX('Asset Models'!$A$7:$DC$18,$L29,'Asset Models'!$J$7+$J29-1))*$F29)) ->  | W29: =IF(L29="", "", IF($G29=5,$O29,(INDEX('Asset Models'!$A$7:$DC$18,$L29,'Asset Models'!$F$7+$G29-1)+INDEX('Asset Models'!$A$7:$DC$18,$L29,'Asset Models'!$O$7+$J29-1))*$F29)) ->  | X29: =IF(L29="", "", INDEX('Asset Models'!$A$7:$DC$18,$L29,'Asset Models'!$BF$7+$K29-1)) ->  | Y29: =IF(L29="", "", VLOOKUP(X29,'Asset Model Builder'!$E$169:$F$173,2)) ->  | Z29: =IF(L29="", "", IF($X29=0,P29,IF($X29=1,IF(Z$9=$G29,(1-$M29),0),IF($X29=2,IF(Z$9=INDEX('Asset Models'!$A$7:$DC$18,$L29,'Asset Models'!$AG$7+$G29-2),(1-$M29),0),IF($X29=3,IF(Z$9=1,1,0),IF(INDEX('Asset Models'!$A$7:$DC$18,$L29,'Asset Models'!$AJ$7+$J29-1)=Z$9,1,0)))))) ->  | AA29: =IF(L29="", "", IF($X29=0,Q29,IF($X29=1,IF(AA$9=$G29,(1-$M29),0),IF($X29=2,IF(AA$9=INDEX('Asset Models'!$A$7:$DC$18,$L29,'Asset Models'!$AG$7+$G29-2),(1-$M29),0),IF($X29=3,IF(AA$9=1,1,0),IF(INDEX('Asset Models'!$A$7:$DC$18,$L29,'Asset Models'!$AJ$7+$J29-1)=AA$9,1,0)))))) ->  | AB29: =IF(L29="", "", IF($X29=0,R29,IF($X29=1,IF(AB$9=$G29,(1-$M29),0),IF($X29=2,IF(AB$9=INDEX('Asset Models'!$A$7:$DC$18,$L29,'Asset Models'!$AG$7+$G29-2),(1-$M29),0),IF($X29=3,IF(AB$9=1,1,0),IF(INDEX('Asset Models'!$A$7:$DC$18,$L29,'Asset Models'!$AJ$7+$J29-1)=AB$9,1,0)))))) ->  | AC29: =IF(L29="", "", IF($X29=0,S29,IF($X29=1,IF(AC$9=$G29,(1-$M29),0),IF($X29=2,IF(AC$9=INDEX('Asset Models'!$A$7:$DC$18,$L29,'Asset Models'!$AG$7+$G29-2),(1-$M29),0),IF($X29=3,IF(AC$9=1,1,0),IF(INDEX('Asset Models'!$A$7:$DC$18,$L29,'Asset Models'!$AJ$7+$J29-1)=AC$9,1,0)))))) ->  | AE29: =IF($X29=3,1,IF($X29=4,INDEX('Asset Models'!$A$7:$DC$18,$L29,'Asset Models'!$AO$7+$J29-1),$J29)) ->  | AG29: =IF(L29="", "", IF($X29=0,$V29,IF($G29=5,$N29,(INDEX('Asset Models'!$A$7:$DC$18,$L29,'Asset Models'!$T$7+$X29-1)+INDEX('Asset Models'!$A$7:$DC$18,$L29,'Asset Models'!$J$7+$J29-1))*$F29))) ->  | AH29: =IF(L29="", "", INDEX('Asset Models'!$A$7:$DC$18,$L29,'Asset Models'!$CE$7+$K29-1)*$F29) ->  | AS29: =IF(L29="", "", IF($G29=5,$O29,IF($AK29=0,$W29,INDEX('Asset Models'!$A$7:$DC$18,$L29,'Asset Models'!$J$7+$J29-1)*$F29))) ->  | AU29: =IF(L29="", "", INDEX('Asset Models'!$A$7:$DC$18,$L29,'Asset Models'!$V$7)*$F29) -> 
A30: 0.6465441862 | B30: 0.3916067986 | C30: =IF(Inventory!AH29=Inventory!$C$1032,0.5,1)*B30 -> 0.3916067986 | D30: =Inventory!C29 -> 0 | E30: =Inventory!E29 -> 0 | F30: =Inventory!W29 ->  | G30: =Inventory!AI29 ->  | H30: =IF(G30<>"",Inventory!AQ29/G30,"") ->  | I30: =IF(G30<>"",Inventory!AS29/G30,"") ->  | J30: =Inventory!AK29 ->  | L30: =IF(E30 = 0, "", MATCH($E30,'Asset Models'!$A$7:$A$18,0)) ->  | M30: =IF(L30="", "", INDEX('Asset Models'!$A$7:$DC$18,$L30,'Asset Models'!BA$7+$J30-1)) ->  | N30: =IF(L30="", "", INDEX('Asset Models'!$A$7:$DC$18,$L30,'Asset Models'!$W$7+$J30-1)*$F30) ->  | O30: =IF(L30="", "", INDEX('Asset Models'!$A$7:$DC$18,$L30,'Asset Models'!$AB$7+$J30-1)*$F30) ->  | P30: =IF(L30="", "", IF($G30=5,1,IF($G30=1,INDEX('Asset Models'!$A$7:$DC$18,$L30,'Asset Models'!$AT$7+$G30-1),0)*(1-$M30))) ->  | Q30: =IF(L30="", "", IF($G30=5,0,IF($G30=1,INDEX('Asset Models'!$A$7:$DC$18,$L30,'Asset Models'!$AX$7+$G30-1),IF($G30=2,INDEX('Asset Models'!$A$7:$DC$18,$L30,'Asset Models'!$AT$7+$G30-1),0))*(1-$M30))) ->  | R30: =IF(L30="", "", IF($G30=5,0,IF($G30=2,INDEX('Asset Models'!$A$7:$DC$18,$L30,'Asset Models'!$AX$7+$G30-1),IF($G30=3,INDEX('Asset Models'!$A$7:$DC$18,$L30,'Asset Models'!$AT$7+$G30-1),0))*(1-$M30))) ->  | S30: =IF(L30="", "", IF($G30=5,0,IF($G30=3,INDEX('Asset Models'!$A$7:$DC$18,$L30,'Asset Models'!$AX$7+$G30-1),IF($G30=4,INDEX('Asset Models'!$A$7:$DC$18,$L30,'Asset Models'!$AT$7+$G30-1),0))*(1-$M30))) ->  | V30: =IF(L30="", "", IF($G30=5,$N30,(INDEX('Asset Models'!$A$7:$DC$18,$L30,'Asset Models'!$B$7+$G30-1)+INDEX('Asset Models'!$A$7:$DC$18,$L30,'Asset Models'!$J$7+$J30-1))*$F30)) ->  | W30: =IF(L30="", "", IF($G30=5,$O30,(INDEX('Asset Models'!$A$7:$DC$18,$L30,'Asset Models'!$F$7+$G30-1)+INDEX('Asset Models'!$A$7:$DC$18,$L30,'Asset Models'!$O$7+$J30-1))*$F30)) ->  | X30: =IF(L30="", "", INDEX('Asset Models'!$A$7:$DC$18,$L30,'Asset Models'!$BF$7+$K30-1)) ->  | Y30: =IF(L30="", "", VLOOKUP(X30,'Asset Model Builder'!$E$169:$F$173,2)) ->  | Z30: =IF(L30="", "", IF($X30=0,P30,IF($X30=1,IF(Z$9=$G30,(1-$M30),0),IF($X30=2,IF(Z$9=INDEX('Asset Models'!$A$7:$DC$18,$L30,'Asset Models'!$AG$7+$G30-2),(1-$M30),0),IF($X30=3,IF(Z$9=1,1,0),IF(INDEX('Asset Models'!$A$7:$DC$18,$L30,'Asset Models'!$AJ$7+$J30-1)=Z$9,1,0)))))) ->  | AA30: =IF(L30="", "", IF($X30=0,Q30,IF($X30=1,IF(AA$9=$G30,(1-$M30),0),IF($X30=2,IF(AA$9=INDEX('Asset Models'!$A$7:$DC$18,$L30,'Asset Models'!$AG$7+$G30-2),(1-$M30),0),IF($X30=3,IF(AA$9=1,1,0),IF(INDEX('Asset Models'!$A$7:$DC$18,$L30,'Asset Models'!$AJ$7+$J30-1)=AA$9,1,0)))))) ->  | AB30: =IF(L30="", "", IF($X30=0,R30,IF($X30=1,IF(AB$9=$G30,(1-$M30),0),IF($X30=2,IF(AB$9=INDEX('Asset Models'!$A$7:$DC$18,$L30,'Asset Models'!$AG$7+$G30-2),(1-$M30),0),IF($X30=3,IF(AB$9=1,1,0),IF(INDEX('Asset Models'!$A$7:$DC$18,$L30,'Asset Models'!$AJ$7+$J30-1)=AB$9,1,0)))))) ->  | AC30: =IF(L30="", "", IF($X30=0,S30,IF($X30=1,IF(AC$9=$G30,(1-$M30),0),IF($X30=2,IF(AC$9=INDEX('Asset Models'!$A$7:$DC$18,$L30,'Asset Models'!$AG$7+$G30-2),(1-$M30),0),IF($X30=3,IF(AC$9=1,1,0),IF(INDEX('Asset Models'!$A$7:$DC$18,$L30,'Asset Models'!$AJ$7+$J30-1)=AC$9,1,0)))))) ->  | AE30: =IF($X30=3,1,IF($X30=4,INDEX('Asset Models'!$A$7:$DC$18,$L30,'Asset Models'!$AO$7+$J30-1),$J30)) ->  | AG30: =IF(L30="", "", IF($X30=0,$V30,IF($G30=5,$N30,(INDEX('Asset Models'!$A$7:$DC$18,$L30,'Asset Models'!$T$7+$X30-1)+INDEX('Asset Models'!$A$7:$DC$18,$L30,'Asset Models'!$J$7+$J30-1))*$F30))) ->  | AH30: =IF(L30="", "", INDEX('Asset Models'!$A$7:$DC$18,$L30,'Asset Models'!$CE$7+$K30-1)*$F30) ->  | AS30: =IF(L30="", "", IF($G30=5,$O30,IF($AK30=0,$W30,INDEX('Asset Models'!$A$7:$DC$18,$L30,'Asset Models'!$J$7+$J30-1)*$F30))) ->  | AU30: =IF(L30="", "", INDEX('Asset Models'!$A$7:$DC$18,$L30,'Asset Models'!$V$7)*$F30) -> 
A31: 0.3685063464 | B31: 0.6033279059 | C31: =IF(Inventory!AH30=Inventory!$C$1032,0.5,1)*B31 -> 0.6033279059 | D31: =Inventory!C30 -> 0 | E31: =Inventory!E30 -> 0 | F31: =Inventory!W30 ->  | G31: =Inventory!AI30 ->  | H31: =IF(G31<>"",Inventory!AQ30/G31,"") ->  | I31: =IF(G31<>"",Inventory!AS30/G31,"") ->  | J31: =Inventory!AK30 ->  | L31: =IF(E31 = 0, "", MATCH($E31,'Asset Models'!$A$7:$A$18,0)) ->  | M31: =IF(L31="", "", INDEX('Asset Models'!$A$7:$DC$18,$L31,'Asset Models'!BA$7+$J31-1)) ->  | N31: =IF(L31="", "", INDEX('Asset Models'!$A$7:$DC$18,$L31,'Asset Models'!$W$7+$J31-1)*$F31) ->  | O31: =IF(L31="", "", INDEX('Asset Models'!$A$7:$DC$18,$L31,'Asset Models'!$AB$7+$J31-1)*$F31) ->  | P31: =IF(L31="", "", IF($G31=5,1,IF($G31=1,INDEX('Asset Models'!$A$7:$DC$18,$L31,'Asset Models'!$AT$7+$G31-1),0)*(1-$M31))) ->  | Q31: =IF(L31="", "", IF($G31=5,0,IF($G31=1,INDEX('Asset Models'!$A$7:$DC$18,$L31,'Asset Models'!$AX$7+$G31-1),IF($G31=2,INDEX('Asset Models'!$A$7:$DC$18,$L31,'Asset Models'!$AT$7+$G31-1),0))*(1-$M31))) ->  | R31: =IF(L31="", "", IF($G31=5,0,IF($G31=2,INDEX('Asset Models'!$A$7:$DC$18,$L31,'Asset Models'!$AX$7+$G31-1),IF($G31=3,INDEX('Asset Models'!$A$7:$DC$18,$L31,'Asset Models'!$AT$7+$G31-1),0))*(1-$M31))) ->  | S31: =IF(L31="", "", IF($G31=5,0,IF($G31=3,INDEX('Asset Models'!$A$7:$DC$18,$L31,'Asset Models'!$AX$7+$G31-1),IF($G31=4,INDEX('Asset Models'!$A$7:$DC$18,$L31,'Asset Models'!$AT$7+$G31-1),0))*(1-$M31))) ->  | V31: =IF(L31="", "", IF($G31=5,$N31,(INDEX('Asset Models'!$A$7:$DC$18,$L31,'Asset Models'!$B$7+$G31-1)+INDEX('Asset Models'!$A$7:$DC$18,$L31,'Asset Models'!$J$7+$J31-1))*$F31)) ->  | W31: =IF(L31="", "", IF($G31=5,$O31,(INDEX('Asset Models'!$A$7:$DC$18,$L31,'Asset Models'!$F$7+$G31-1)+INDEX('Asset Models'!$A$7:$DC$18,$L31,'Asset Models'!$O$7+$J31-1))*$F31)) ->  | X31: =IF(L31="", "", INDEX('Asset Models'!$A$7:$DC$18,$L31,'Asset Models'!$BF$7+$K31-1)) ->  | Y31: =IF(L31="", "", VLOOKUP(X31,'Asset Model Builder'!$E$169:$F$173,2)) ->  | Z31: =IF(L31="", "", IF($X31=0,P31,IF($X31=1,IF(Z$9=$G31,(1-$M31),0),IF($X31=2,IF(Z$9=INDEX('Asset Models'!$A$7:$DC$18,$L31,'Asset Models'!$AG$7+$G31-2),(1-$M31),0),IF($X31=3,IF(Z$9=1,1,0),IF(INDEX('Asset Models'!$A$7:$DC$18,$L31,'Asset Models'!$AJ$7+$J31-1)=Z$9,1,0)))))) ->  | AA31: =IF(L31="", "", IF($X31=0,Q31,IF($X31=1,IF(AA$9=$G31,(1-$M31),0),IF($X31=2,IF(AA$9=INDEX('Asset Models'!$A$7:$DC$18,$L31,'Asset Models'!$AG$7+$G31-2),(1-$M31),0),IF($X31=3,IF(AA$9=1,1,0),IF(INDEX('Asset Models'!$A$7:$DC$18,$L31,'Asset Models'!$AJ$7+$J31-1)=AA$9,1,0)))))) ->  | AB31: =IF(L31="", "", IF($X31=0,R31,IF($X31=1,IF(AB$9=$G31,(1-$M31),0),IF($X31=2,IF(AB$9=INDEX('Asset Models'!$A$7:$DC$18,$L31,'Asset Models'!$AG$7+$G31-2),(1-$M31),0),IF($X31=3,IF(AB$9=1,1,0),IF(INDEX('Asset Models'!$A$7:$DC$18,$L31,'Asset Models'!$AJ$7+$J31-1)=AB$9,1,0)))))) ->  | AC31: =IF(L31="", "", IF($X31=0,S31,IF($X31=1,IF(AC$9=$G31,(1-$M31),0),IF($X31=2,IF(AC$9=INDEX('Asset Models'!$A$7:$DC$18,$L31,'Asset Models'!$AG$7+$G31-2),(1-$M31),0),IF($X31=3,IF(AC$9=1,1,0),IF(INDEX('Asset Models'!$A$7:$DC$18,$L31,'Asset Models'!$AJ$7+$J31-1)=AC$9,1,0)))))) ->  | AE31: =IF($X31=3,1,IF($X31=4,INDEX('Asset Models'!$A$7:$DC$18,$L31,'Asset Models'!$AO$7+$J31-1),$J31)) ->  | AG31: =IF(L31="", "", IF($X31=0,$V31,IF($G31=5,$N31,(INDEX('Asset Models'!$A$7:$DC$18,$L31,'Asset Models'!$T$7+$X31-1)+INDEX('Asset Models'!$A$7:$DC$18,$L31,'Asset Models'!$J$7+$J31-1))*$F31))) ->  | AH31: =IF(L31="", "", INDEX('Asset Models'!$A$7:$DC$18,$L31,'Asset Models'!$CE$7+$K31-1)*$F31) ->  | AS31: =IF(L31="", "", IF($G31=5,$O31,IF($AK31=0,$W31,INDEX('Asset Models'!$A$7:$DC$18,$L31,'Asset Models'!$J$7+$J31-1)*$F31))) ->  | AU31: =IF(L31="", "", INDEX('Asset Models'!$A$7:$DC$18,$L31,'Asset Models'!$V$7)*$F31) -> 
A32: 0.7608792413 | B32: 0.3720615271 | C32: =IF(Inventory!AH31=Inventory!$C$1032,0.5,1)*B32 -> 0.3720615271 | D32: =Inventory!C31 -> 0 | E32: =Inventory!E31 -> 0 | F32: =Inventory!W31 ->  | G32: =Inventory!AI31 ->  | H32: =IF(G32<>"",Inventory!AQ31/G32,"") ->  | I32: =IF(G32<>"",Inventory!AS31/G32,"") ->  | J32: =Inventory!AK31 ->  | L32: =IF(E32 = 0, "", MATCH($E32,'Asset Models'!$A$7:$A$18,0)) ->  | M32: =IF(L32="", "", INDEX('Asset Models'!$A$7:$DC$18,$L32,'Asset Models'!BA$7+$J32-1)) ->  | N32: =IF(L32="", "", INDEX('Asset Models'!$A$7:$DC$18,$L32,'Asset Models'!$W$7+$J32-1)*$F32) ->  | O32: =IF(L32="", "", INDEX('Asset Models'!$A$7:$DC$18,$L32,'Asset Models'!$AB$7+$J32-1)*$F32) ->  | P32: =IF(L32="", "", IF($G32=5,1,IF($G32=1,INDEX('Asset Models'!$A$7:$DC$18,$L32,'Asset Models'!$AT$7+$G32-1),0)*(1-$M32))) ->  | Q32: =IF(L32="", "", IF($G32=5,0,IF($G32=1,INDEX('Asset Models'!$A$7:$DC$18,$L32,'Asset Models'!$AX$7+$G32-1),IF($G32=2,INDEX('Asset Models'!$A$7:$DC$18,$L32,'Asset Models'!$AT$7+$G32-1),0))*(1-$M32))) ->  | R32: =IF(L32="", "", IF($G32=5,0,IF($G32=2,INDEX('Asset Models'!$A$7:$DC$18,$L32,'Asset Models'!$AX$7+$G32-1),IF($G32=3,INDEX('Asset Models'!$A$7:$DC$18,$L32,'Asset Models'!$AT$7+$G32-1),0))*(1-$M32))) ->  | S32: =IF(L32="", "", IF($G32=5,0,IF($G32=3,INDEX('Asset Models'!$A$7:$DC$18,$L32,'Asset Models'!$AX$7+$G32-1),IF($G32=4,INDEX('Asset Models'!$A$7:$DC$18,$L32,'Asset Models'!$AT$7+$G32-1),0))*(1-$M32))) ->  | V32: =IF(L32="", "", IF($G32=5,$N32,(INDEX('Asset Models'!$A$7:$DC$18,$L32,'Asset Models'!$B$7+$G32-1)+INDEX('Asset Models'!$A$7:$DC$18,$L32,'Asset Models'!$J$7+$J32-1))*$F32)) ->  | W32: =IF(L32="", "", IF($G32=5,$O32,(INDEX('Asset Models'!$A$7:$DC$18,$L32,'Asset Models'!$F$7+$G32-1)+INDEX('Asset Models'!$A$7:$DC$18,$L32,'Asset Models'!$O$7+$J32-1))*$F32)) ->  | X32: =IF(L32="", "", INDEX('Asset Models'!$A$7:$DC$18,$L32,'Asset Models'!$BF$7+$K32-1)) ->  | Y32: =IF(L32="", "", VLOOKUP(X32,'Asset Model Builder'!$E$169:$F$173,2)) ->  | Z32: =IF(L32="", "", IF($X32=0,P32,IF($X32=1,IF(Z$9=$G32,(1-$M32),0),IF($X32=2,IF(Z$9=INDEX('Asset Models'!$A$7:$DC$18,$L32,'Asset Models'!$AG$7+$G32-2),(1-$M32),0),IF($X32=3,IF(Z$9=1,1,0),IF(INDEX('Asset Models'!$A$7:$DC$18,$L32,'Asset Models'!$AJ$7+$J32-1)=Z$9,1,0)))))) ->  | AA32: =IF(L32="", "", IF($X32=0,Q32,IF($X32=1,IF(AA$9=$G32,(1-$M32),0),IF($X32=2,IF(AA$9=INDEX('Asset Models'!$A$7:$DC$18,$L32,'Asset Models'!$AG$7+$G32-2),(1-$M32),0),IF($X32=3,IF(AA$9=1,1,0),IF(INDEX('Asset Models'!$A$7:$DC$18,$L32,'Asset Models'!$AJ$7+$J32-1)=AA$9,1,0)))))) ->  | AB32: =IF(L32="", "", IF($X32=0,R32,IF($X32=1,IF(AB$9=$G32,(1-$M32),0),IF($X32=2,IF(AB$9=INDEX('Asset Models'!$A$7:$DC$18,$L32,'Asset Models'!$AG$7+$G32-2),(1-$M32),0),IF($X32=3,IF(AB$9=1,1,0),IF(INDEX('Asset Models'!$A$7:$DC$18,$L32,'Asset Models'!$AJ$7+$J32-1)=AB$9,1,0)))))) ->  | AC32: =IF(L32="", "", IF($X32=0,S32,IF($X32=1,IF(AC$9=$G32,(1-$M32),0),IF($X32=2,IF(AC$9=INDEX('Asset Models'!$A$7:$DC$18,$L32,'Asset Models'!$AG$7+$G32-2),(1-$M32),0),IF($X32=3,IF(AC$9=1,1,0),IF(INDEX('Asset Models'!$A$7:$DC$18,$L32,'Asset Models'!$AJ$7+$J32-1)=AC$9,1,0)))))) ->  | AE32: =IF($X32=3,1,IF($X32=4,INDEX('Asset Models'!$A$7:$DC$18,$L32,'Asset Models'!$AO$7+$J32-1),$J32)) ->  | AG32: =IF(L32="", "", IF($X32=0,$V32,IF($G32=5,$N32,(INDEX('Asset Models'!$A$7:$DC$18,$L32,'Asset Models'!$T$7+$X32-1)+INDEX('Asset Models'!$A$7:$DC$18,$L32,'Asset Models'!$J$7+$J32-1))*$F32))) ->  | AH32: =IF(L32="", "", INDEX('Asset Models'!$A$7:$DC$18,$L32,'Asset Models'!$CE$7+$K32-1)*$F32) ->  | AS32: =IF(L32="", "", IF($G32=5,$O32,IF($AK32=0,$W32,INDEX('Asset Models'!$A$7:$DC$18,$L32,'Asset Models'!$J$7+$J32-1)*$F32))) ->  | AU32: =IF(L32="", "", INDEX('Asset Models'!$A$7:$DC$18,$L32,'Asset Models'!$V$7)*$F32) -> 
A33: 0.8482731855 | B33: 0.5259380344 | C33: =IF(Inventory!AH32=Inventory!$C$1032,0.5,1)*B33 -> 0.5259380344 | D33: =Inventory!C32 -> 0 | E33: =Inventory!E32 -> 0 | F33: =Inventory!W32 ->  | G33: =Inventory!AI32 ->  | H33: =IF(G33<>"",Inventory!AQ32/G33,"") ->  | I33: =IF(G33<>"",Inventory!AS32/G33,"") ->  | J33: =Inventory!AK32 ->  | L33: =IF(E33 = 0, "", MATCH($E33,'Asset Models'!$A$7:$A$18,0)) ->  | M33: =IF(L33="", "", INDEX('Asset Models'!$A$7:$DC$18,$L33,'Asset Models'!BA$7+$J33-1)) ->  | N33: =IF(L33="", "", INDEX('Asset Models'!$A$7:$DC$18,$L33,'Asset Models'!$W$7+$J33-1)*$F33) ->  | O33: =IF(L33="", "", INDEX('Asset Models'!$A$7:$DC$18,$L33,'Asset Models'!$AB$7+$J33-1)*$F33) ->  | P33: =IF(L33="", "", IF($G33=5,1,IF($G33=1,INDEX('Asset Models'!$A$7:$DC$18,$L33,'Asset Models'!$AT$7+$G33-1),0)*(1-$M33))) ->  | Q33: =IF(L33="", "", IF($G33=5,0,IF($G33=1,INDEX('Asset Models'!$A$7:$DC$18,$L33,'Asset Models'!$AX$7+$G33-1),IF($G33=2,INDEX('Asset Models'!$A$7:$DC$18,$L33,'Asset Models'!$AT$7+$G33-1),0))*(1-$M33))) ->  | R33: =IF(L33="", "", IF($G33=5,0,IF($G33=2,INDEX('Asset Models'!$A$7:$DC$18,$L33,'Asset Models'!$AX$7+$G33-1),IF($G33=3,INDEX('Asset Models'!$A$7:$DC$18,$L33,'Asset Models'!$AT$7+$G33-1),0))*(1-$M33))) ->  | S33: =IF(L33="", "", IF($G33=5,0,IF($G33=3,INDEX('Asset Models'!$A$7:$DC$18,$L33,'Asset Models'!$AX$7+$G33-1),IF($G33=4,INDEX('Asset Models'!$A$7:$DC$18,$L33,'Asset Models'!$AT$7+$G33-1),0))*(1-$M33))) ->  | V33: =IF(L33="", "", IF($G33=5,$N33,(INDEX('Asset Models'!$A$7:$DC$18,$L33,'Asset Models'!$B$7+$G33-1)+INDEX('Asset Models'!$A$7:$DC$18,$L33,'Asset Models'!$J$7+$J33-1))*$F33)) ->  | W33: =IF(L33="", "", IF($G33=5,$O33,(INDEX('Asset Models'!$A$7:$DC$18,$L33,'Asset Models'!$F$7+$G33-1)+INDEX('Asset Models'!$A$7:$DC$18,$L33,'Asset Models'!$O$7+$J33-1))*$F33)) ->  | X33: =IF(L33="", "", INDEX('Asset Models'!$A$7:$DC$18,$L33,'Asset Models'!$BF$7+$K33-1)) ->  | Y33: =IF(L33="", "", VLOOKUP(X33,'Asset Model Builder'!$E$169:$F$173,2)) ->  | Z33: =IF(L33="", "", IF($X33=0,P33,IF($X33=1,IF(Z$9=$G33,(1-$M33),0),IF($X33=2,IF(Z$9=INDEX('Asset Models'!$A$7:$DC$18,$L33,'Asset Models'!$AG$7+$G33-2),(1-$M33),0),IF($X33=3,IF(Z$9=1,1,0),IF(INDEX('Asset Models'!$A$7:$DC$18,$L33,'Asset Models'!$AJ$7+$J33-1)=Z$9,1,0)))))) ->  | AA33: =IF(L33="", "", IF($X33=0,Q33,IF($X33=1,IF(AA$9=$G33,(1-$M33),0),IF($X33=2,IF(AA$9=INDEX('Asset Models'!$A$7:$DC$18,$L33,'Asset Models'!$AG$7+$G33-2),(1-$M33),0),IF($X33=3,IF(AA$9=1,1,0),IF(INDEX('Asset Models'!$A$7:$DC$18,$L33,'Asset Models'!$AJ$7+$J33-1)=AA$9,1,0)))))) ->  | AB33: =IF(L33="", "", IF($X33=0,R33,IF($X33=1,IF(AB$9=$G33,(1-$M33),0),IF($X33=2,IF(AB$9=INDEX('Asset Models'!$A$7:$DC$18,$L33,'Asset Models'!$AG$7+$G33-2),(1-$M33),0),IF($X33=3,IF(AB$9=1,1,0),IF(INDEX('Asset Models'!$A$7:$DC$18,$L33,'Asset Models'!$AJ$7+$J33-1)=AB$9,1,0)))))) ->  | AC33: =IF(L33="", "", IF($X33=0,S33,IF($X33=1,IF(AC$9=$G33,(1-$M33),0),IF($X33=2,IF(AC$9=INDEX('Asset Models'!$A$7:$DC$18,$L33,'Asset Models'!$AG$7+$G33-2),(1-$M33),0),IF($X33=3,IF(AC$9=1,1,0),IF(INDEX('Asset Models'!$A$7:$DC$18,$L33,'Asset Models'!$AJ$7+$J33-1)=AC$9,1,0)))))) ->  | AE33: =IF($X33=3,1,IF($X33=4,INDEX('Asset Models'!$A$7:$DC$18,$L33,'Asset Models'!$AO$7+$J33-1),$J33)) ->  | AG33: =IF(L33="", "", IF($X33=0,$V33,IF($G33=5,$N33,(INDEX('Asset Models'!$A$7:$DC$18,$L33,'Asset Models'!$T$7+$X33-1)+INDEX('Asset Models'!$A$7:$DC$18,$L33,'Asset Models'!$J$7+$J33-1))*$F33))) ->  | AH33: =IF(L33="", "", INDEX('Asset Models'!$A$7:$DC$18,$L33,'Asset Models'!$CE$7+$K33-1)*$F33) ->  | AS33: =IF(L33="", "", IF($G33=5,$O33,IF($AK33=0,$W33,INDEX('Asset Models'!$A$7:$DC$18,$L33,'Asset Models'!$J$7+$J33-1)*$F33))) ->  | AU33: =IF(L33="", "", INDEX('Asset Models'!$A$7:$DC$18,$L33,'Asset Models'!$V$7)*$F33) -> 
A34: 0.2636659086 | B34: 0.2380800953 | C34: =IF(Inventory!AH33=Inventory!$C$1032,0.5,1)*B34 -> 0.2380800953 | D34: =Inventory!C33 -> 0 | E34: =Inventory!E33 -> 0 | F34: =Inventory!W33 ->  | G34: =Inventory!AI33 ->  | H34: =IF(G34<>"",Inventory!AQ33/G34,"") ->  | I34: =IF(G34<>"",Inventory!AS33/G34,"") ->  | J34: =Inventory!AK33 ->  | L34: =IF(E34 = 0, "", MATCH($E34,'Asset Models'!$A$7:$A$18,0)) ->  | M34: =IF(L34="", "", INDEX('Asset Models'!$A$7:$DC$18,$L34,'Asset Models'!BA$7+$J34-1)) ->  | N34: =IF(L34="", "", INDEX('Asset Models'!$A$7:$DC$18,$L34,'Asset Models'!$W$7+$J34-1)*$F34) ->  | O34: =IF(L34="", "", INDEX('Asset Models'!$A$7:$DC$18,$L34,'Asset Models'!$AB$7+$J34-1)*$F34) ->  | P34: =IF(L34="", "", IF($G34=5,1,IF($G34=1,INDEX('Asset Models'!$A$7:$DC$18,$L34,'Asset Models'!$AT$7+$G34-1),0)*(1-$M34))) ->  | Q34: =IF(L34="", "", IF($G34=5,0,IF($G34=1,INDEX('Asset Models'!$A$7:$DC$18,$L34,'Asset Models'!$AX$7+$G34-1),IF($G34=2,INDEX('Asset Models'!$A$7:$DC$18,$L34,'Asset Models'!$AT$7+$G34-1),0))*(1-$M34))) ->  | R34: =IF(L34="", "", IF($G34=5,0,IF($G34=2,INDEX('Asset Models'!$A$7:$DC$18,$L34,'Asset Models'!$AX$7+$G34-1),IF($G34=3,INDEX('Asset Models'!$A$7:$DC$18,$L34,'Asset Models'!$AT$7+$G34-1),0))*(1-$M34))) ->  | S34: =IF(L34="", "", IF($G34=5,0,IF($G34=3,INDEX('Asset Models'!$A$7:$DC$18,$L34,'Asset Models'!$AX$7+$G34-1),IF($G34=4,INDEX('Asset Models'!$A$7:$DC$18,$L34,'Asset Models'!$AT$7+$G34-1),0))*(1-$M34))) ->  | V34: =IF(L34="", "", IF($G34=5,$N34,(INDEX('Asset Models'!$A$7:$DC$18,$L34,'Asset Models'!$B$7+$G34-1)+INDEX('Asset Models'!$A$7:$DC$18,$L34,'Asset Models'!$J$7+$J34-1))*$F34)) ->  | W34: =IF(L34="", "", IF($G34=5,$O34,(INDEX('Asset Models'!$A$7:$DC$18,$L34,'Asset Models'!$F$7+$G34-1)+INDEX('Asset Models'!$A$7:$DC$18,$L34,'Asset Models'!$O$7+$J34-1))*$F34)) ->  | X34: =IF(L34="", "", INDEX('Asset Models'!$A$7:$DC$18,$L34,'Asset Models'!$BF$7+$K34-1)) ->  | Y34: =IF(L34="", "", VLOOKUP(X34,'Asset Model Builder'!$E$169:$F$173,2)) ->  | Z34: =IF(L34="", "", IF($X34=0,P34,IF($X34=1,IF(Z$9=$G34,(1-$M34),0),IF($X34=2,IF(Z$9=INDEX('Asset Models'!$A$7:$DC$18,$L34,'Asset Models'!$AG$7+$G34-2),(1-$M34),0),IF($X34=3,IF(Z$9=1,1,0),IF(INDEX('Asset Models'!$A$7:$DC$18,$L34,'Asset Models'!$AJ$7+$J34-1)=Z$9,1,0)))))) ->  | AA34: =IF(L34="", "", IF($X34=0,Q34,IF($X34=1,IF(AA$9=$G34,(1-$M34),0),IF($X34=2,IF(AA$9=INDEX('Asset Models'!$A$7:$DC$18,$L34,'Asset Models'!$AG$7+$G34-2),(1-$M34),0),IF($X34=3,IF(AA$9=1,1,0),IF(INDEX('Asset Models'!$A$7:$DC$18,$L34,'Asset Models'!$AJ$7+$J34-1)=AA$9,1,0)))))) ->  | AB34: =IF(L34="", "", IF($X34=0,R34,IF($X34=1,IF(AB$9=$G34,(1-$M34),0),IF($X34=2,IF(AB$9=INDEX('Asset Models'!$A$7:$DC$18,$L34,'Asset Models'!$AG$7+$G34-2),(1-$M34),0),IF($X34=3,IF(AB$9=1,1,0),IF(INDEX('Asset Models'!$A$7:$DC$18,$L34,'Asset Models'!$AJ$7+$J34-1)=AB$9,1,0)))))) ->  | AC34: =IF(L34="", "", IF($X34=0,S34,IF($X34=1,IF(AC$9=$G34,(1-$M34),0),IF($X34=2,IF(AC$9=INDEX('Asset Models'!$A$7:$DC$18,$L34,'Asset Models'!$AG$7+$G34-2),(1-$M34),0),IF($X34=3,IF(AC$9=1,1,0),IF(INDEX('Asset Models'!$A$7:$DC$18,$L34,'Asset Models'!$AJ$7+$J34-1)=AC$9,1,0)))))) ->  | AE34: =IF($X34=3,1,IF($X34=4,INDEX('Asset Models'!$A$7:$DC$18,$L34,'Asset Models'!$AO$7+$J34-1),$J34)) ->  | AG34: =IF(L34="", "", IF($X34=0,$V34,IF($G34=5,$N34,(INDEX('Asset Models'!$A$7:$DC$18,$L34,'Asset Models'!$T$7+$X34-1)+INDEX('Asset Models'!$A$7:$DC$18,$L34,'Asset Models'!$J$7+$J34-1))*$F34))) ->  | AH34: =IF(L34="", "", INDEX('Asset Models'!$A$7:$DC$18,$L34,'Asset Models'!$CE$7+$K34-1)*$F34) ->  | AS34: =IF(L34="", "", IF($G34=5,$O34,IF($AK34=0,$W34,INDEX('Asset Models'!$A$7:$DC$18,$L34,'Asset Models'!$J$7+$J34-1)*$F34))) ->  | AU34: =IF(L34="", "", INDEX('Asset Models'!$A$7:$DC$18,$L34,'Asset Models'!$V$7)*$F34) -> 
A35: 0.6681222024 | B35: 0.4802802802 | C35: =IF(Inventory!AH34=Inventory!$C$1032,0.5,1)*B35 -> 0.4802802802 | D35: =Inventory!C34 -> 0 | E35: =Inventory!E34 -> 0 | F35: =Inventory!W34 ->  | G35: =Inventory!AI34 ->  | H35: =IF(G35<>"",Inventory!AQ34/G35,"") ->  | I35: =IF(G35<>"",Inventory!AS34/G35,"") ->  | J35: =Inventory!AK34 ->  | L35: =IF(E35 = 0, "", MATCH($E35,'Asset Models'!$A$7:$A$18,0)) ->  | M35: =IF(L35="", "", INDEX('Asset Models'!$A$7:$DC$18,$L35,'Asset Models'!BA$7+$J35-1)) ->  | N35: =IF(L35="", "", INDEX('Asset Models'!$A$7:$DC$18,$L35,'Asset Models'!$W$7+$J35-1)*$F35) ->  | O35: =IF(L35="", "", INDEX('Asset Models'!$A$7:$DC$18,$L35,'Asset Models'!$AB$7+$J35-1)*$F35) ->  | P35: =IF(L35="", "", IF($G35=5,1,IF($G35=1,INDEX('Asset Models'!$A$7:$DC$18,$L35,'Asset Models'!$AT$7+$G35-1),0)*(1-$M35))) ->  | Q35: =IF(L35="", "", IF($G35=5,0,IF($G35=1,INDEX('Asset Models'!$A$7:$DC$18,$L35,'Asset Models'!$AX$7+$G35-1),IF($G35=2,INDEX('Asset Models'!$A$7:$DC$18,$L35,'Asset Models'!$AT$7+$G35-1),0))*(1-$M35))) ->  | R35: =IF(L35="", "", IF($G35=5,0,IF($G35=2,INDEX('Asset Models'!$A$7:$DC$18,$L35,'Asset Models'!$AX$7+$G35-1),IF($G35=3,INDEX('Asset Models'!$A$7:$DC$18,$L35,'Asset Models'!$AT$7+$G35-1),0))*(1-$M35))) ->  | S35: =IF(L35="", "", IF($G35=5,0,IF($G35=3,INDEX('Asset Models'!$A$7:$DC$18,$L35,'Asset Models'!$AX$7+$G35-1),IF($G35=4,INDEX('Asset Models'!$A$7:$DC$18,$L35,'Asset Models'!$AT$7+$G35-1),0))*(1-$M35))) ->  | V35: =IF(L35="", "", IF($G35=5,$N35,(INDEX('Asset Models'!$A$7:$DC$18,$L35,'Asset Models'!$B$7+$G35-1)+INDEX('Asset Models'!$A$7:$DC$18,$L35,'Asset Models'!$J$7+$J35-1))*$F35)) ->  | W35: =IF(L35="", "", IF($G35=5,$O35,(INDEX('Asset Models'!$A$7:$DC$18,$L35,'Asset Models'!$F$7+$G35-1)+INDEX('Asset Models'!$A$7:$DC$18,$L35,'Asset Models'!$O$7+$J35-1))*$F35)) ->  | X35: =IF(L35="", "", INDEX('Asset Models'!$A$7:$DC$18,$L35,'Asset Models'!$BF$7+$K35-1)) ->  | Y35: =IF(L35="", "", VLOOKUP(X35,'Asset Model Builder'!$E$169:$F$173,2)) ->  | Z35: =IF(L35="", "", IF($X35=0,P35,IF($X35=1,IF(Z$9=$G35,(1-$M35),0),IF($X35=2,IF(Z$9=INDEX('Asset Models'!$A$7:$DC$18,$L35,'Asset Models'!$AG$7+$G35-2),(1-$M35),0),IF($X35=3,IF(Z$9=1,1,0),IF(INDEX('Asset Models'!$A$7:$DC$18,$L35,'Asset Models'!$AJ$7+$J35-1)=Z$9,1,0)))))) ->  | AA35: =IF(L35="", "", IF($X35=0,Q35,IF($X35=1,IF(AA$9=$G35,(1-$M35),0),IF($X35=2,IF(AA$9=INDEX('Asset Models'!$A$7:$DC$18,$L35,'Asset Models'!$AG$7+$G35-2),(1-$M35),0),IF($X35=3,IF(AA$9=1,1,0),IF(INDEX('Asset Models'!$A$7:$DC$18,$L35,'Asset Models'!$AJ$7+$J35-1)=AA$9,1,0)))))) ->  | AB35: =IF(L35="", "", IF($X35=0,R35,IF($X35=1,IF(AB$9=$G35,(1-$M35),0),IF($X35=2,IF(AB$9=INDEX('Asset Models'!$A$7:$DC$18,$L35,'Asset Models'!$AG$7+$G35-2),(1-$M35),0),IF($X35=3,IF(AB$9=1,1,0),IF(INDEX('Asset Models'!$A$7:$DC$18,$L35,'Asset Models'!$AJ$7+$J35-1)=AB$9,1,0)))))) ->  | AC35: =IF(L35="", "", IF($X35=0,S35,IF($X35=1,IF(AC$9=$G35,(1-$M35),0),IF($X35=2,IF(AC$9=INDEX('Asset Models'!$A$7:$DC$18,$L35,'Asset Models'!$AG$7+$G35-2),(1-$M35),0),IF($X35=3,IF(AC$9=1,1,0),IF(INDEX('Asset Models'!$A$7:$DC$18,$L35,'Asset Models'!$AJ$7+$J35-1)=AC$9,1,0)))))) ->  | AE35: =IF($X35=3,1,IF($X35=4,INDEX('Asset Models'!$A$7:$DC$18,$L35,'Asset Models'!$AO$7+$J35-1),$J35)) ->  | AG35: =IF(L35="", "", IF($X35=0,$V35,IF($G35=5,$N35,(INDEX('Asset Models'!$A$7:$DC$18,$L35,'Asset Models'!$T$7+$X35-1)+INDEX('Asset Models'!$A$7:$DC$18,$L35,'Asset Models'!$J$7+$J35-1))*$F35))) ->  | AH35: =IF(L35="", "", INDEX('Asset Models'!$A$7:$DC$18,$L35,'Asset Models'!$CE$7+$K35-1)*$F35) ->  | AS35: =IF(L35="", "", IF($G35=5,$O35,IF($AK35=0,$W35,INDEX('Asset Models'!$A$7:$DC$18,$L35,'Asset Models'!$J$7+$J35-1)*$F35))) ->  | AU35: =IF(L35="", "", INDEX('Asset Models'!$A$7:$DC$18,$L35,'Asset Models'!$V$7)*$F35) -> 
A36: 0.1515377995 | B36: 0.8919550277 | C36: =IF(Inventory!AH35=Inventory!$C$1032,0.5,1)*B36 -> 0.8919550277 | D36: =Inventory!C35 -> 0 | E36: =Inventory!E35 -> 0 | F36: =Inventory!W35 ->  | G36: =Inventory!AI35 ->  | H36: =IF(G36<>"",Inventory!AQ35/G36,"") ->  | I36: =IF(G36<>"",Inventory!AS35/G36,"") ->  | J36: =Inventory!AK35 ->  | L36: =IF(E36 = 0, "", MATCH($E36,'Asset Models'!$A$7:$A$18,0)) ->  | M36: =IF(L36="", "", INDEX('Asset Models'!$A$7:$DC$18,$L36,'Asset Models'!BA$7+$J36-1)) ->  | N36: =IF(L36="", "", INDEX('Asset Models'!$A$7:$DC$18,$L36,'Asset Models'!$W$7+$J36-1)*$F36) ->  | O36: =IF(L36="", "", INDEX('Asset Models'!$A$7:$DC$18,$L36,'Asset Models'!$AB$7+$J36-1)*$F36) ->  | P36: =IF(L36="", "", IF($G36=5,1,IF($G36=1,INDEX('Asset Models'!$A$7:$DC$18,$L36,'Asset Models'!$AT$7+$G36-1),0)*(1-$M36))) ->  | Q36: =IF(L36="", "", IF($G36=5,0,IF($G36=1,INDEX('Asset Models'!$A$7:$DC$18,$L36,'Asset Models'!$AX$7+$G36-1),IF($G36=2,INDEX('Asset Models'!$A$7:$DC$18,$L36,'Asset Models'!$AT$7+$G36-1),0))*(1-$M36))) ->  | R36: =IF(L36="", "", IF($G36=5,0,IF($G36=2,INDEX('Asset Models'!$A$7:$DC$18,$L36,'Asset Models'!$AX$7+$G36-1),IF($G36=3,INDEX('Asset Models'!$A$7:$DC$18,$L36,'Asset Models'!$AT$7+$G36-1),0))*(1-$M36))) ->  | S36: =IF(L36="", "", IF($G36=5,0,IF($G36=3,INDEX('Asset Models'!$A$7:$DC$18,$L36,'Asset Models'!$AX$7+$G36-1),IF($G36=4,INDEX('Asset Models'!$A$7:$DC$18,$L36,'Asset Models'!$AT$7+$G36-1),0))*(1-$M36))) ->  | V36: =IF(L36="", "", IF($G36=5,$N36,(INDEX('Asset Models'!$A$7:$DC$18,$L36,'Asset Models'!$B$7+$G36-1)+INDEX('Asset Models'!$A$7:$DC$18,$L36,'Asset Models'!$J$7+$J36-1))*$F36)) ->  | W36: =IF(L36="", "", IF($G36=5,$O36,(INDEX('Asset Models'!$A$7:$DC$18,$L36,'Asset Models'!$F$7+$G36-1)+INDEX('Asset Models'!$A$7:$DC$18,$L36,'Asset Models'!$O$7+$J36-1))*$F36)) ->  | X36: =IF(L36="", "", INDEX('Asset Models'!$A$7:$DC$18,$L36,'Asset Models'!$BF$7+$K36-1)) ->  | Y36: =IF(L36="", "", VLOOKUP(X36,'Asset Model Builder'!$E$169:$F$173,2)) ->  | Z36: =IF(L36="", "", IF($X36=0,P36,IF($X36=1,IF(Z$9=$G36,(1-$M36),0),IF($X36=2,IF(Z$9=INDEX('Asset Models'!$A$7:$DC$18,$L36,'Asset Models'!$AG$7+$G36-2),(1-$M36),0),IF($X36=3,IF(Z$9=1,1,0),IF(INDEX('Asset Models'!$A$7:$DC$18,$L36,'Asset Models'!$AJ$7+$J36-1)=Z$9,1,0)))))) ->  | AA36: =IF(L36="", "", IF($X36=0,Q36,IF($X36=1,IF(AA$9=$G36,(1-$M36),0),IF($X36=2,IF(AA$9=INDEX('Asset Models'!$A$7:$DC$18,$L36,'Asset Models'!$AG$7+$G36-2),(1-$M36),0),IF($X36=3,IF(AA$9=1,1,0),IF(INDEX('Asset Models'!$A$7:$DC$18,$L36,'Asset Models'!$AJ$7+$J36-1)=AA$9,1,0)))))) ->  | AB36: =IF(L36="", "", IF($X36=0,R36,IF($X36=1,IF(AB$9=$G36,(1-$M36),0),IF($X36=2,IF(AB$9=INDEX('Asset Models'!$A$7:$DC$18,$L36,'Asset Models'!$AG$7+$G36-2),(1-$M36),0),IF($X36=3,IF(AB$9=1,1,0),IF(INDEX('Asset Models'!$A$7:$DC$18,$L36,'Asset Models'!$AJ$7+$J36-1)=AB$9,1,0)))))) ->  | AC36: =IF(L36="", "", IF($X36=0,S36,IF($X36=1,IF(AC$9=$G36,(1-$M36),0),IF($X36=2,IF(AC$9=INDEX('Asset Models'!$A$7:$DC$18,$L36,'Asset Models'!$AG$7+$G36-2),(1-$M36),0),IF($X36=3,IF(AC$9=1,1,0),IF(INDEX('Asset Models'!$A$7:$DC$18,$L36,'Asset Models'!$AJ$7+$J36-1)=AC$9,1,0)))))) ->  | AE36: =IF($X36=3,1,IF($X36=4,INDEX('Asset Models'!$A$7:$DC$18,$L36,'Asset Models'!$AO$7+$J36-1),$J36)) ->  | AG36: =IF(L36="", "", IF($X36=0,$V36,IF($G36=5,$N36,(INDEX('Asset Models'!$A$7:$DC$18,$L36,'Asset Models'!$T$7+$X36-1)+INDEX('Asset Models'!$A$7:$DC$18,$L36,'Asset Models'!$J$7+$J36-1))*$F36))) ->  | AH36: =IF(L36="", "", INDEX('Asset Models'!$A$7:$DC$18,$L36,'Asset Models'!$CE$7+$K36-1)*$F36) ->  | AS36: =IF(L36="", "", IF($G36=5,$O36,IF($AK36=0,$W36,INDEX('Asset Models'!$A$7:$DC$18,$L36,'Asset Models'!$J$7+$J36-1)*$F36))) ->  | AU36: =IF(L36="", "", INDEX('Asset Models'!$A$7:$DC$18,$L36,'Asset Models'!$V$7)*$F36) -> 
A37: 0.8506694213 | B37: 0.9776034292 | C37: =IF(Inventory!AH36=Inventory!$C$1032,0.5,1)*B37 -> 0.9776034292 | D37: =Inventory!C36 -> 0 | E37: =Inventory!E36 -> 0 | F37: =Inventory!W36 ->  | G37: =Inventory!AI36 ->  | H37: =IF(G37<>"",Inventory!AQ36/G37,"") ->  | I37: =IF(G37<>"",Inventory!AS36/G37,"") ->  | J37: =Inventory!AK36 ->  | L37: =IF(E37 = 0, "", MATCH($E37,'Asset Models'!$A$7:$A$18,0)) ->  | M37: =IF(L37="", "", INDEX('Asset Models'!$A$7:$DC$18,$L37,'Asset Models'!BA$7+$J37-1)) ->  | N37: =IF(L37="", "", INDEX('Asset Models'!$A$7:$DC$18,$L37,'Asset Models'!$W$7+$J37-1)*$F37) ->  | O37: =IF(L37="", "", INDEX('Asset Models'!$A$7:$DC$18,$L37,'Asset Models'!$AB$7+$J37-1)*$F37) ->  | P37: =IF(L37="", "", IF($G37=5,1,IF($G37=1,INDEX('Asset Models'!$A$7:$DC$18,$L37,'Asset Models'!$AT$7+$G37-1),0)*(1-$M37))) ->  | Q37: =IF(L37="", "", IF($G37=5,0,IF($G37=1,INDEX('Asset Models'!$A$7:$DC$18,$L37,'Asset Models'!$AX$7+$G37-1),IF($G37=2,INDEX('Asset Models'!$A$7:$DC$18,$L37,'Asset Models'!$AT$7+$G37-1),0))*(1-$M37))) ->  | R37: =IF(L37="", "", IF($G37=5,0,IF($G37=2,INDEX('Asset Models'!$A$7:$DC$18,$L37,'Asset Models'!$AX$7+$G37-1),IF($G37=3,INDEX('Asset Models'!$A$7:$DC$18,$L37,'Asset Models'!$AT$7+$G37-1),0))*(1-$M37))) ->  | S37: =IF(L37="", "", IF($G37=5,0,IF($G37=3,INDEX('Asset Models'!$A$7:$DC$18,$L37,'Asset Models'!$AX$7+$G37-1),IF($G37=4,INDEX('Asset Models'!$A$7:$DC$18,$L37,'Asset Models'!$AT$7+$G37-1),0))*(1-$M37))) ->  | V37: =IF(L37="", "", IF($G37=5,$N37,(INDEX('Asset Models'!$A$7:$DC$18,$L37,'Asset Models'!$B$7+$G37-1)+INDEX('Asset Models'!$A$7:$DC$18,$L37,'Asset Models'!$J$7+$J37-1))*$F37)) ->  | W37: =IF(L37="", "", IF($G37=5,$O37,(INDEX('Asset Models'!$A$7:$DC$18,$L37,'Asset Models'!$F$7+$G37-1)+INDEX('Asset Models'!$A$7:$DC$18,$L37,'Asset Models'!$O$7+$J37-1))*$F37)) ->  | X37: =IF(L37="", "", INDEX('Asset Models'!$A$7:$DC$18,$L37,'Asset Models'!$BF$7+$K37-1)) ->  | Y37: =IF(L37="", "", VLOOKUP(X37,'Asset Model Builder'!$E$169:$F$173,2)) ->  | Z37: =IF(L37="", "", IF($X37=0,P37,IF($X37=1,IF(Z$9=$G37,(1-$M37),0),IF($X37=2,IF(Z$9=INDEX('Asset Models'!$A$7:$DC$18,$L37,'Asset Models'!$AG$7+$G37-2),(1-$M37),0),IF($X37=3,IF(Z$9=1,1,0),IF(INDEX('Asset Models'!$A$7:$DC$18,$L37,'Asset Models'!$AJ$7+$J37-1)=Z$9,1,0)))))) ->  | AA37: =IF(L37="", "", IF($X37=0,Q37,IF($X37=1,IF(AA$9=$G37,(1-$M37),0),IF($X37=2,IF(AA$9=INDEX('Asset Models'!$A$7:$DC$18,$L37,'Asset Models'!$AG$7+$G37-2),(1-$M37),0),IF($X37=3,IF(AA$9=1,1,0),IF(INDEX('Asset Models'!$A$7:$DC$18,$L37,'Asset Models'!$AJ$7+$J37-1)=AA$9,1,0)))))) ->  | AB37: =IF(L37="", "", IF($X37=0,R37,IF($X37=1,IF(AB$9=$G37,(1-$M37),0),IF($X37=2,IF(AB$9=INDEX('Asset Models'!$A$7:$DC$18,$L37,'Asset Models'!$AG$7+$G37-2),(1-$M37),0),IF($X37=3,IF(AB$9=1,1,0),IF(INDEX('Asset Models'!$A$7:$DC$18,$L37,'Asset Models'!$AJ$7+$J37-1)=AB$9,1,0)))))) ->  | AC37: =IF(L37="", "", IF($X37=0,S37,IF($X37=1,IF(AC$9=$G37,(1-$M37),0),IF($X37=2,IF(AC$9=INDEX('Asset Models'!$A$7:$DC$18,$L37,'Asset Models'!$AG$7+$G37-2),(1-$M37),0),IF($X37=3,IF(AC$9=1,1,0),IF(INDEX('Asset Models'!$A$7:$DC$18,$L37,'Asset Models'!$AJ$7+$J37-1)=AC$9,1,0)))))) ->  | AE37: =IF($X37=3,1,IF($X37=4,INDEX('Asset Models'!$A$7:$DC$18,$L37,'Asset Models'!$AO$7+$J37-1),$J37)) ->  | AG37: =IF(L37="", "", IF($X37=0,$V37,IF($G37=5,$N37,(INDEX('Asset Models'!$A$7:$DC$18,$L37,'Asset Models'!$T$7+$X37-1)+INDEX('Asset Models'!$A$7:$DC$18,$L37,'Asset Models'!$J$7+$J37-1))*$F37))) ->  | AH37: =IF(L37="", "", INDEX('Asset Models'!$A$7:$DC$18,$L37,'Asset Models'!$CE$7+$K37-1)*$F37) ->  | AS37: =IF(L37="", "", IF($G37=5,$O37,IF($AK37=0,$W37,INDEX('Asset Models'!$A$7:$DC$18,$L37,'Asset Models'!$J$7+$J37-1)*$F37))) ->  | AU37: =IF(L37="", "", INDEX('Asset Models'!$A$7:$DC$18,$L37,'Asset Models'!$V$7)*$F37) -> 
A38: 0.5008946823 | B38: 0.7135343761 | C38: =IF(Inventory!AH37=Inventory!$C$1032,0.5,1)*B38 -> 0.7135343761 | D38: =Inventory!C37 -> 0 | E38: =Inventory!E37 -> 0 | F38: =Inventory!W37 ->  | G38: =Inventory!AI37 ->  | H38: =IF(G38<>"",Inventory!AQ37/G38,"") ->  | I38: =IF(G38<>"",Inventory!AS37/G38,"") ->  | J38: =Inventory!AK37 ->  | L38: =IF(E38 = 0, "", MATCH($E38,'Asset Models'!$A$7:$A$18,0)) ->  | M38: =IF(L38="", "", INDEX('Asset Models'!$A$7:$DC$18,$L38,'Asset Models'!BA$7+$J38-1)) ->  | N38: =IF(L38="", "", INDEX('Asset Models'!$A$7:$DC$18,$L38,'Asset Models'!$W$7+$J38-1)*$F38) ->  | O38: =IF(L38="", "", INDEX('Asset Models'!$A$7:$DC$18,$L38,'Asset Models'!$AB$7+$J38-1)*$F38) ->  | P38: =IF(L38="", "", IF($G38=5,1,IF($G38=1,INDEX('Asset Models'!$A$7:$DC$18,$L38,'Asset Models'!$AT$7+$G38-1),0)*(1-$M38))) ->  | Q38: =IF(L38="", "", IF($G38=5,0,IF($G38=1,INDEX('Asset Models'!$A$7:$DC$18,$L38,'Asset Models'!$AX$7+$G38-1),IF($G38=2,INDEX('Asset Models'!$A$7:$DC$18,$L38,'Asset Models'!$AT$7+$G38-1),0))*(1-$M38))) ->  | R38: =IF(L38="", "", IF($G38=5,0,IF($G38=2,INDEX('Asset Models'!$A$7:$DC$18,$L38,'Asset Models'!$AX$7+$G38-1),IF($G38=3,INDEX('Asset Models'!$A$7:$DC$18,$L38,'Asset Models'!$AT$7+$G38-1),0))*(1-$M38))) ->  | S38: =IF(L38="", "", IF($G38=5,0,IF($G38=3,INDEX('Asset Models'!$A$7:$DC$18,$L38,'Asset Models'!$AX$7+$G38-1),IF($G38=4,INDEX('Asset Models'!$A$7:$DC$18,$L38,'Asset Models'!$AT$7+$G38-1),0))*(1-$M38))) ->  | V38: =IF(L38="", "", IF($G38=5,$N38,(INDEX('Asset Models'!$A$7:$DC$18,$L38,'Asset Models'!$B$7+$G38-1)+INDEX('Asset Models'!$A$7:$DC$18,$L38,'Asset Models'!$J$7+$J38-1))*$F38)) ->  | W38: =IF(L38="", "", IF($G38=5,$O38,(INDEX('Asset Models'!$A$7:$DC$18,$L38,'Asset Models'!$F$7+$G38-1)+INDEX('Asset Models'!$A$7:$DC$18,$L38,'Asset Models'!$O$7+$J38-1))*$F38)) ->  | X38: =IF(L38="", "", INDEX('Asset Models'!$A$7:$DC$18,$L38,'Asset Models'!$BF$7+$K38-1)) ->  | Y38: =IF(L38="", "", VLOOKUP(X38,'Asset Model Builder'!$E$169:$F$173,2)) ->  | Z38: =IF(L38="", "", IF($X38=0,P38,IF($X38=1,IF(Z$9=$G38,(1-$M38),0),IF($X38=2,IF(Z$9=INDEX('Asset Models'!$A$7:$DC$18,$L38,'Asset Models'!$AG$7+$G38-2),(1-$M38),0),IF($X38=3,IF(Z$9=1,1,0),IF(INDEX('Asset Models'!$A$7:$DC$18,$L38,'Asset Models'!$AJ$7+$J38-1)=Z$9,1,0)))))) ->  | AA38: =IF(L38="", "", IF($X38=0,Q38,IF($X38=1,IF(AA$9=$G38,(1-$M38),0),IF($X38=2,IF(AA$9=INDEX('Asset Models'!$A$7:$DC$18,$L38,'Asset Models'!$AG$7+$G38-2),(1-$M38),0),IF($X38=3,IF(AA$9=1,1,0),IF(INDEX('Asset Models'!$A$7:$DC$18,$L38,'Asset Models'!$AJ$7+$J38-1)=AA$9,1,0)))))) ->  | AB38: =IF(L38="", "", IF($X38=0,R38,IF($X38=1,IF(AB$9=$G38,(1-$M38),0),IF($X38=2,IF(AB$9=INDEX('Asset Models'!$A$7:$DC$18,$L38,'Asset Models'!$AG$7+$G38-2),(1-$M38),0),IF($X38=3,IF(AB$9=1,1,0),IF(INDEX('Asset Models'!$A$7:$DC$18,$L38,'Asset Models'!$AJ$7+$J38-1)=AB$9,1,0)))))) ->  | AC38: =IF(L38="", "", IF($X38=0,S38,IF($X38=1,IF(AC$9=$G38,(1-$M38),0),IF($X38=2,IF(AC$9=INDEX('Asset Models'!$A$7:$DC$18,$L38,'Asset Models'!$AG$7+$G38-2),(1-$M38),0),IF($X38=3,IF(AC$9=1,1,0),IF(INDEX('Asset Models'!$A$7:$DC$18,$L38,'Asset Models'!$AJ$7+$J38-1)=AC$9,1,0)))))) ->  | AE38: =IF($X38=3,1,IF($X38=4,INDEX('Asset Models'!$A$7:$DC$18,$L38,'Asset Models'!$AO$7+$J38-1),$J38)) ->  | AG38: =IF(L38="", "", IF($X38=0,$V38,IF($G38=5,$N38,(INDEX('Asset Models'!$A$7:$DC$18,$L38,'Asset Models'!$T$7+$X38-1)+INDEX('Asset Models'!$A$7:$DC$18,$L38,'Asset Models'!$J$7+$J38-1))*$F38))) ->  | AH38: =IF(L38="", "", INDEX('Asset Models'!$A$7:$DC$18,$L38,'Asset Models'!$CE$7+$K38-1)*$F38) ->  | AS38: =IF(L38="", "", IF($G38=5,$O38,IF($AK38=0,$W38,INDEX('Asset Models'!$A$7:$DC$18,$L38,'Asset Models'!$J$7+$J38-1)*$F38))) ->  | AU38: =IF(L38="", "", INDEX('Asset Models'!$A$7:$DC$18,$L38,'Asset Models'!$V$7)*$F38) -> 
A39: 0.3188661279 | B39: 0.05301191009 | C39: =IF(Inventory!AH38=Inventory!$C$1032,0.5,1)*B39 -> 0.05301191009 | D39: =Inventory!C38 -> 0 | E39: =Inventory!E38 -> 0 | F39: =Inventory!W38 ->  | G39: =Inventory!AI38 ->  | H39: =IF(G39<>"",Inventory!AQ38/G39,"") ->  | I39: =IF(G39<>"",Inventory!AS38/G39,"") ->  | J39: =Inventory!AK38 ->  | L39: =IF(E39 = 0, "", MATCH($E39,'Asset Models'!$A$7:$A$18,0)) ->  | M39: =IF(L39="", "", INDEX('Asset Models'!$A$7:$DC$18,$L39,'Asset Models'!BA$7+$J39-1)) ->  | N39: =IF(L39="", "", INDEX('Asset Models'!$A$7:$DC$18,$L39,'Asset Models'!$W$7+$J39-1)*$F39) ->  | O39: =IF(L39="", "", INDEX('Asset Models'!$A$7:$DC$18,$L39,'Asset Models'!$AB$7+$J39-1)*$F39) ->  | P39: =IF(L39="", "", IF($G39=5,1,IF($G39=1,INDEX('Asset Models'!$A$7:$DC$18,$L39,'Asset Models'!$AT$7+$G39-1),0)*(1-$M39))) ->  | Q39: =IF(L39="", "", IF($G39=5,0,IF($G39=1,INDEX('Asset Models'!$A$7:$DC$18,$L39,'Asset Models'!$AX$7+$G39-1),IF($G39=2,INDEX('Asset Models'!$A$7:$DC$18,$L39,'Asset Models'!$AT$7+$G39-1),0))*(1-$M39))) ->  | R39: =IF(L39="", "", IF($G39=5,0,IF($G39=2,INDEX('Asset Models'!$A$7:$DC$18,$L39,'Asset Models'!$AX$7+$G39-1),IF($G39=3,INDEX('Asset Models'!$A$7:$DC$18,$L39,'Asset Models'!$AT$7+$G39-1),0))*(1-$M39))) ->  | S39: =IF(L39="", "", IF($G39=5,0,IF($G39=3,INDEX('Asset Models'!$A$7:$DC$18,$L39,'Asset Models'!$AX$7+$G39-1),IF($G39=4,INDEX('Asset Models'!$A$7:$DC$18,$L39,'Asset Models'!$AT$7+$G39-1),0))*(1-$M39))) ->  | V39: =IF(L39="", "", IF($G39=5,$N39,(INDEX('Asset Models'!$A$7:$DC$18,$L39,'Asset Models'!$B$7+$G39-1)+INDEX('Asset Models'!$A$7:$DC$18,$L39,'Asset Models'!$J$7+$J39-1))*$F39)) ->  | W39: =IF(L39="", "", IF($G39=5,$O39,(INDEX('Asset Models'!$A$7:$DC$18,$L39,'Asset Models'!$F$7+$G39-1)+INDEX('Asset Models'!$A$7:$DC$18,$L39,'Asset Models'!$O$7+$J39-1))*$F39)) ->  | X39: =IF(L39="", "", INDEX('Asset Models'!$A$7:$DC$18,$L39,'Asset Models'!$BF$7+$K39-1)) ->  | Y39: =IF(L39="", "", VLOOKUP(X39,'Asset Model Builder'!$E$169:$F$173,2)) ->  | Z39: =IF(L39="", "", IF($X39=0,P39,IF($X39=1,IF(Z$9=$G39,(1-$M39),0),IF($X39=2,IF(Z$9=INDEX('Asset Models'!$A$7:$DC$18,$L39,'Asset Models'!$AG$7+$G39-2),(1-$M39),0),IF($X39=3,IF(Z$9=1,1,0),IF(INDEX('Asset Models'!$A$7:$DC$18,$L39,'Asset Models'!$AJ$7+$J39-1)=Z$9,1,0)))))) ->  | AA39: =IF(L39="", "", IF($X39=0,Q39,IF($X39=1,IF(AA$9=$G39,(1-$M39),0),IF($X39=2,IF(AA$9=INDEX('Asset Models'!$A$7:$DC$18,$L39,'Asset Models'!$AG$7+$G39-2),(1-$M39),0),IF($X39=3,IF(AA$9=1,1,0),IF(INDEX('Asset Models'!$A$7:$DC$18,$L39,'Asset Models'!$AJ$7+$J39-1)=AA$9,1,0)))))) ->  | AB39: =IF(L39="", "", IF($X39=0,R39,IF($X39=1,IF(AB$9=$G39,(1-$M39),0),IF($X39=2,IF(AB$9=INDEX('Asset Models'!$A$7:$DC$18,$L39,'Asset Models'!$AG$7+$G39-2),(1-$M39),0),IF($X39=3,IF(AB$9=1,1,0),IF(INDEX('Asset Models'!$A$7:$DC$18,$L39,'Asset Models'!$AJ$7+$J39-1)=AB$9,1,0)))))) ->  | AC39: =IF(L39="", "", IF($X39=0,S39,IF($X39=1,IF(AC$9=$G39,(1-$M39),0),IF($X39=2,IF(AC$9=INDEX('Asset Models'!$A$7:$DC$18,$L39,'Asset Models'!$AG$7+$G39-2),(1-$M39),0),IF($X39=3,IF(AC$9=1,1,0),IF(INDEX('Asset Models'!$A$7:$DC$18,$L39,'Asset Models'!$AJ$7+$J39-1)=AC$9,1,0)))))) ->  | AE39: =IF($X39=3,1,IF($X39=4,INDEX('Asset Models'!$A$7:$DC$18,$L39,'Asset Models'!$AO$7+$J39-1),$J39)) ->  | AG39: =IF(L39="", "", IF($X39=0,$V39,IF($G39=5,$N39,(INDEX('Asset Models'!$A$7:$DC$18,$L39,'Asset Models'!$T$7+$X39-1)+INDEX('Asset Models'!$A$7:$DC$18,$L39,'Asset Models'!$J$7+$J39-1))*$F39))) ->  | AH39: =IF(L39="", "", INDEX('Asset Models'!$A$7:$DC$18,$L39,'Asset Models'!$CE$7+$K39-1)*$F39) ->  | AS39: =IF(L39="", "", IF($G39=5,$O39,IF($AK39=0,$W39,INDEX('Asset Models'!$A$7:$DC$18,$L39,'Asset Models'!$J$7+$J39-1)*$F39))) ->  | AU39: =IF(L39="", "", INDEX('Asset Models'!$A$7:$DC$18,$L39,'Asset Models'!$V$7)*$F39) -> 
A40: 0.8794947453 | B40: 0.9038253864 | C40: =IF(Inventory!AH39=Inventory!$C$1032,0.5,1)*B40 -> 0.9038253864 | D40: =Inventory!C39 -> 0 | E40: =Inventory!E39 -> 0 | F40: =Inventory!W39 ->  | G40: =Inventory!AI39 ->  | H40: =IF(G40<>"",Inventory!AQ39/G40,"") ->  | I40: =IF(G40<>"",Inventory!AS39/G40,"") ->  | J40: =Inventory!AK39 ->  | L40: =IF(E40 = 0, "", MATCH($E40,'Asset Models'!$A$7:$A$18,0)) ->  | M40: =IF(L40="", "", INDEX('Asset Models'!$A$7:$DC$18,$L40,'Asset Models'!BA$7+$J40-1)) ->  | N40: =IF(L40="", "", INDEX('Asset Models'!$A$7:$DC$18,$L40,'Asset Models'!$W$7+$J40-1)*$F40) ->  | O40: =IF(L40="", "", INDEX('Asset Models'!$A$7:$DC$18,$L40,'Asset Models'!$AB$7+$J40-1)*$F40) ->  | P40: =IF(L40="", "", IF($G40=5,1,IF($G40=1,INDEX('Asset Models'!$A$7:$DC$18,$L40,'Asset Models'!$AT$7+$G40-1),0)*(1-$M40))) ->  | Q40: =IF(L40="", "", IF($G40=5,0,IF($G40=1,INDEX('Asset Models'!$A$7:$DC$18,$L40,'Asset Models'!$AX$7+$G40-1),IF($G40=2,INDEX('Asset Models'!$A$7:$DC$18,$L40,'Asset Models'!$AT$7+$G40-1),0))*(1-$M40))) ->  | R40: =IF(L40="", "", IF($G40=5,0,IF($G40=2,INDEX('Asset Models'!$A$7:$DC$18,$L40,'Asset Models'!$AX$7+$G40-1),IF($G40=3,INDEX('Asset Models'!$A$7:$DC$18,$L40,'Asset Models'!$AT$7+$G40-1),0))*(1-$M40))) ->  | S40: =IF(L40="", "", IF($G40=5,0,IF($G40=3,INDEX('Asset Models'!$A$7:$DC$18,$L40,'Asset Models'!$AX$7+$G40-1),IF($G40=4,INDEX('Asset Models'!$A$7:$DC$18,$L40,'Asset Models'!$AT$7+$G40-1),0))*(1-$M40))) ->  | V40: =IF(L40="", "", IF($G40=5,$N40,(INDEX('Asset Models'!$A$7:$DC$18,$L40,'Asset Models'!$B$7+$G40-1)+INDEX('Asset Models'!$A$7:$DC$18,$L40,'Asset Models'!$J$7+$J40-1))*$F40)) ->  | W40: =IF(L40="", "", IF($G40=5,$O40,(INDEX('Asset Models'!$A$7:$DC$18,$L40,'Asset Models'!$F$7+$G40-1)+INDEX('Asset Models'!$A$7:$DC$18,$L40,'Asset Models'!$O$7+$J40-1))*$F40)) ->  | X40: =IF(L40="", "", INDEX('Asset Models'!$A$7:$DC$18,$L40,'Asset Models'!$BF$7+$K40-1)) ->  | Y40: =IF(L40="", "", VLOOKUP(X40,'Asset Model Builder'!$E$169:$F$173,2)) ->  | Z40: =IF(L40="", "", IF($X40=0,P40,IF($X40=1,IF(Z$9=$G40,(1-$M40),0),IF($X40=2,IF(Z$9=INDEX('Asset Models'!$A$7:$DC$18,$L40,'Asset Models'!$AG$7+$G40-2),(1-$M40),0),IF($X40=3,IF(Z$9=1,1,0),IF(INDEX('Asset Models'!$A$7:$DC$18,$L40,'Asset Models'!$AJ$7+$J40-1)=Z$9,1,0)))))) ->  | AA40: =IF(L40="", "", IF($X40=0,Q40,IF($X40=1,IF(AA$9=$G40,(1-$M40),0),IF($X40=2,IF(AA$9=INDEX('Asset Models'!$A$7:$DC$18,$L40,'Asset Models'!$AG$7+$G40-2),(1-$M40),0),IF($X40=3,IF(AA$9=1,1,0),IF(INDEX('Asset Models'!$A$7:$DC$18,$L40,'Asset Models'!$AJ$7+$J40-1)=AA$9,1,0)))))) ->  | AB40: =IF(L40="", "", IF($X40=0,R40,IF($X40=1,IF(AB$9=$G40,(1-$M40),0),IF($X40=2,IF(AB$9=INDEX('Asset Models'!$A$7:$DC$18,$L40,'Asset Models'!$AG$7+$G40-2),(1-$M40),0),IF($X40=3,IF(AB$9=1,1,0),IF(INDEX('Asset Models'!$A$7:$DC$18,$L40,'Asset Models'!$AJ$7+$J40-1)=AB$9,1,0)))))) ->  | AC40: =IF(L40="", "", IF($X40=0,S40,IF($X40=1,IF(AC$9=$G40,(1-$M40),0),IF($X40=2,IF(AC$9=INDEX('Asset Models'!$A$7:$DC$18,$L40,'Asset Models'!$AG$7+$G40-2),(1-$M40),0),IF($X40=3,IF(AC$9=1,1,0),IF(INDEX('Asset Models'!$A$7:$DC$18,$L40,'Asset Models'!$AJ$7+$J40-1)=AC$9,1,0)))))) ->  | AE40: =IF($X40=3,1,IF($X40=4,INDEX('Asset Models'!$A$7:$DC$18,$L40,'Asset Models'!$AO$7+$J40-1),$J40)) ->  | AG40: =IF(L40="", "", IF($X40=0,$V40,IF($G40=5,$N40,(INDEX('Asset Models'!$A$7:$DC$18,$L40,'Asset Models'!$T$7+$X40-1)+INDEX('Asset Models'!$A$7:$DC$18,$L40,'Asset Models'!$J$7+$J40-1))*$F40))) ->  | AH40: =IF(L40="", "", INDEX('Asset Models'!$A$7:$DC$18,$L40,'Asset Models'!$CE$7+$K40-1)*$F40) ->  | AS40: =IF(L40="", "", IF($G40=5,$O40,IF($AK40=0,$W40,INDEX('Asset Models'!$A$7:$DC$18,$L40,'Asset Models'!$J$7+$J40-1)*$F40))) ->  | AU40: =IF(L40="", "", INDEX('Asset Models'!$A$7:$DC$18,$L40,'Asset Models'!$V$7)*$F40) -> 
A41: 0.2463852128 | B41: 0.9693985218 | C41: =IF(Inventory!AH40=Inventory!$C$1032,0.5,1)*B41 -> 0.9693985218 | D41: =Inventory!C40 -> 0 | E41: =Inventory!E40 -> 0 | F41: =Inventory!W40 ->  | G41: =Inventory!AI40 ->  | H41: =IF(G41<>"",Inventory!AQ40/G41,"") ->  | I41: =IF(G41<>"",Inventory!AS40/G41,"") ->  | J41: =Inventory!AK40 ->  | L41: =IF(E41 = 0, "", MATCH($E41,'Asset Models'!$A$7:$A$18,0)) ->  | M41: =IF(L41="", "", INDEX('Asset Models'!$A$7:$DC$18,$L41,'Asset Models'!BA$7+$J41-1)) ->  | N41: =IF(L41="", "", INDEX('Asset Models'!$A$7:$DC$18,$L41,'Asset Models'!$W$7+$J41-1)*$F41) ->  | O41: =IF(L41="", "", INDEX('Asset Models'!$A$7:$DC$18,$L41,'Asset Models'!$AB$7+$J41-1)*$F41) ->  | P41: =IF(L41="", "", IF($G41=5,1,IF($G41=1,INDEX('Asset Models'!$A$7:$DC$18,$L41,'Asset Models'!$AT$7+$G41-1),0)*(1-$M41))) ->  | Q41: =IF(L41="", "", IF($G41=5,0,IF($G41=1,INDEX('Asset Models'!$A$7:$DC$18,$L41,'Asset Models'!$AX$7+$G41-1),IF($G41=2,INDEX('Asset Models'!$A$7:$DC$18,$L41,'Asset Models'!$AT$7+$G41-1),0))*(1-$M41))) ->  | R41: =IF(L41="", "", IF($G41=5,0,IF($G41=2,INDEX('Asset Models'!$A$7:$DC$18,$L41,'Asset Models'!$AX$7+$G41-1),IF($G41=3,INDEX('Asset Models'!$A$7:$DC$18,$L41,'Asset Models'!$AT$7+$G41-1),0))*(1-$M41))) ->  | S41: =IF(L41="", "", IF($G41=5,0,IF($G41=3,INDEX('Asset Models'!$A$7:$DC$18,$L41,'Asset Models'!$AX$7+$G41-1),IF($G41=4,INDEX('Asset Models'!$A$7:$DC$18,$L41,'Asset Models'!$AT$7+$G41-1),0))*(1-$M41))) ->  | V41: =IF(L41="", "", IF($G41=5,$N41,(INDEX('Asset Models'!$A$7:$DC$18,$L41,'Asset Models'!$B$7+$G41-1)+INDEX('Asset Models'!$A$7:$DC$18,$L41,'Asset Models'!$J$7+$J41-1))*$F41)) ->  | W41: =IF(L41="", "", IF($G41=5,$O41,(INDEX('Asset Models'!$A$7:$DC$18,$L41,'Asset Models'!$F$7+$G41-1)+INDEX('Asset Models'!$A$7:$DC$18,$L41,'Asset Models'!$O$7+$J41-1))*$F41)) ->  | X41: =IF(L41="", "", INDEX('Asset Models'!$A$7:$DC$18,$L41,'Asset Models'!$BF$7+$K41-1)) ->  | Y41: =IF(L41="", "", VLOOKUP(X41,'Asset Model Builder'!$E$169:$F$173,2)) ->  | Z41: =IF(L41="", "", IF($X41=0,P41,IF($X41=1,IF(Z$9=$G41,(1-$M41),0),IF($X41=2,IF(Z$9=INDEX('Asset Models'!$A$7:$DC$18,$L41,'Asset Models'!$AG$7+$G41-2),(1-$M41),0),IF($X41=3,IF(Z$9=1,1,0),IF(INDEX('Asset Models'!$A$7:$DC$18,$L41,'Asset Models'!$AJ$7+$J41-1)=Z$9,1,0)))))) ->  | AA41: =IF(L41="", "", IF($X41=0,Q41,IF($X41=1,IF(AA$9=$G41,(1-$M41),0),IF($X41=2,IF(AA$9=INDEX('Asset Models'!$A$7:$DC$18,$L41,'Asset Models'!$AG$7+$G41-2),(1-$M41),0),IF($X41=3,IF(AA$9=1,1,0),IF(INDEX('Asset Models'!$A$7:$DC$18,$L41,'Asset Models'!$AJ$7+$J41-1)=AA$9,1,0)))))) ->  | AB41: =IF(L41="", "", IF($X41=0,R41,IF($X41=1,IF(AB$9=$G41,(1-$M41),0),IF($X41=2,IF(AB$9=INDEX('Asset Models'!$A$7:$DC$18,$L41,'Asset Models'!$AG$7+$G41-2),(1-$M41),0),IF($X41=3,IF(AB$9=1,1,0),IF(INDEX('Asset Models'!$A$7:$DC$18,$L41,'Asset Models'!$AJ$7+$J41-1)=AB$9,1,0)))))) ->  | AC41: =IF(L41="", "", IF($X41=0,S41,IF($X41=1,IF(AC$9=$G41,(1-$M41),0),IF($X41=2,IF(AC$9=INDEX('Asset Models'!$A$7:$DC$18,$L41,'Asset Models'!$AG$7+$G41-2),(1-$M41),0),IF($X41=3,IF(AC$9=1,1,0),IF(INDEX('Asset Models'!$A$7:$DC$18,$L41,'Asset Models'!$AJ$7+$J41-1)=AC$9,1,0)))))) ->  | AE41: =IF($X41=3,1,IF($X41=4,INDEX('Asset Models'!$A$7:$DC$18,$L41,'Asset Models'!$AO$7+$J41-1),$J41)) ->  | AG41: =IF(L41="", "", IF($X41=0,$V41,IF($G41=5,$N41,(INDEX('Asset Models'!$A$7:$DC$18,$L41,'Asset Models'!$T$7+$X41-1)+INDEX('Asset Models'!$A$7:$DC$18,$L41,'Asset Models'!$J$7+$J41-1))*$F41))) ->  | AH41: =IF(L41="", "", INDEX('Asset Models'!$A$7:$DC$18,$L41,'Asset Models'!$CE$7+$K41-1)*$F41) ->  | AS41: =IF(L41="", "", IF($G41=5,$O41,IF($AK41=0,$W41,INDEX('Asset Models'!$A$7:$DC$18,$L41,'Asset Models'!$J$7+$J41-1)*$F41))) ->  | AU41: =IF(L41="", "", INDEX('Asset Models'!$A$7:$DC$18,$L41,'Asset Models'!$V$7)*$F41) -> 
A42: 0.3889870628 | B42: 0.7344455232 | C42: =IF(Inventory!AH41=Inventory!$C$1032,0.5,1)*B42 -> 0.7344455232 | D42: =Inventory!C41 -> 0 | E42: =Inventory!E41 -> 0 | F42: =Inventory!W41 ->  | G42: =Inventory!AI41 ->  | H42: =IF(G42<>"",Inventory!AQ41/G42,"") ->  | I42: =IF(G42<>"",Inventory!AS41/G42,"") ->  | J42: =Inventory!AK41 ->  | L42: =IF(E42 = 0, "", MATCH($E42,'Asset Models'!$A$7:$A$18,0)) ->  | M42: =IF(L42="", "", INDEX('Asset Models'!$A$7:$DC$18,$L42,'Asset Models'!BA$7+$J42-1)) ->  | N42: =IF(L42="", "", INDEX('Asset Models'!$A$7:$DC$18,$L42,'Asset Models'!$W$7+$J42-1)*$F42) ->  | O42: =IF(L42="", "", INDEX('Asset Models'!$A$7:$DC$18,$L42,'Asset Models'!$AB$7+$J42-1)*$F42) ->  | P42: =IF(L42="", "", IF($G42=5,1,IF($G42=1,INDEX('Asset Models'!$A$7:$DC$18,$L42,'Asset Models'!$AT$7+$G42-1),0)*(1-$M42))) ->  | Q42: =IF(L42="", "", IF($G42=5,0,IF($G42=1,INDEX('Asset Models'!$A$7:$DC$18,$L42,'Asset Models'!$AX$7+$G42-1),IF($G42=2,INDEX('Asset Models'!$A$7:$DC$18,$L42,'Asset Models'!$AT$7+$G42-1),0))*(1-$M42))) ->  | R42: =IF(L42="", "", IF($G42=5,0,IF($G42=2,INDEX('Asset Models'!$A$7:$DC$18,$L42,'Asset Models'!$AX$7+$G42-1),IF($G42=3,INDEX('Asset Models'!$A$7:$DC$18,$L42,'Asset Models'!$AT$7+$G42-1),0))*(1-$M42))) ->  | S42: =IF(L42="", "", IF($G42=5,0,IF($G42=3,INDEX('Asset Models'!$A$7:$DC$18,$L42,'Asset Models'!$AX$7+$G42-1),IF($G42=4,INDEX('Asset Models'!$A$7:$DC$18,$L42,'Asset Models'!$AT$7+$G42-1),0))*(1-$M42))) ->  | V42: =IF(L42="", "", IF($G42=5,$N42,(INDEX('Asset Models'!$A$7:$DC$18,$L42,'Asset Models'!$B$7+$G42-1)+INDEX('Asset Models'!$A$7:$DC$18,$L42,'Asset Models'!$J$7+$J42-1))*$F42)) ->  | W42: =IF(L42="", "", IF($G42=5,$O42,(INDEX('Asset Models'!$A$7:$DC$18,$L42,'Asset Models'!$F$7+$G42-1)+INDEX('Asset Models'!$A$7:$DC$18,$L42,'Asset Models'!$O$7+$J42-1))*$F42)) ->  | X42: =IF(L42="", "", INDEX('Asset Models'!$A$7:$DC$18,$L42,'Asset Models'!$BF$7+$K42-1)) ->  | Y42: =IF(L42="", "", VLOOKUP(X42,'Asset Model Builder'!$E$169:$F$173,2)) ->  | Z42: =IF(L42="", "", IF($X42=0,P42,IF($X42=1,IF(Z$9=$G42,(1-$M42),0),IF($X42=2,IF(Z$9=INDEX('Asset Models'!$A$7:$DC$18,$L42,'Asset Models'!$AG$7+$G42-2),(1-$M42),0),IF($X42=3,IF(Z$9=1,1,0),IF(INDEX('Asset Models'!$A$7:$DC$18,$L42,'Asset Models'!$AJ$7+$J42-1)=Z$9,1,0)))))) ->  | AA42: =IF(L42="", "", IF($X42=0,Q42,IF($X42=1,IF(AA$9=$G42,(1-$M42),0),IF($X42=2,IF(AA$9=INDEX('Asset Models'!$A$7:$DC$18,$L42,'Asset Models'!$AG$7+$G42-2),(1-$M42),0),IF($X42=3,IF(AA$9=1,1,0),IF(INDEX('Asset Models'!$A$7:$DC$18,$L42,'Asset Models'!$AJ$7+$J42-1)=AA$9,1,0)))))) ->  | AB42: =IF(L42="", "", IF($X42=0,R42,IF($X42=1,IF(AB$9=$G42,(1-$M42),0),IF($X42=2,IF(AB$9=INDEX('Asset Models'!$A$7:$DC$18,$L42,'Asset Models'!$AG$7+$G42-2),(1-$M42),0),IF($X42=3,IF(AB$9=1,1,0),IF(INDEX('Asset Models'!$A$7:$DC$18,$L42,'Asset Models'!$AJ$7+$J42-1)=AB$9,1,0)))))) ->  | AC42: =IF(L42="", "", IF($X42=0,S42,IF($X42=1,IF(AC$9=$G42,(1-$M42),0),IF($X42=2,IF(AC$9=INDEX('Asset Models'!$A$7:$DC$18,$L42,'Asset Models'!$AG$7+$G42-2),(1-$M42),0),IF($X42=3,IF(AC$9=1,1,0),IF(INDEX('Asset Models'!$A$7:$DC$18,$L42,'Asset Models'!$AJ$7+$J42-1)=AC$9,1,0)))))) ->  | AE42: =IF($X42=3,1,IF($X42=4,INDEX('Asset Models'!$A$7:$DC$18,$L42,'Asset Models'!$AO$7+$J42-1),$J42)) ->  | AG42: =IF(L42="", "", IF($X42=0,$V42,IF($G42=5,$N42,(INDEX('Asset Models'!$A$7:$DC$18,$L42,'Asset Models'!$T$7+$X42-1)+INDEX('Asset Models'!$A$7:$DC$18,$L42,'Asset Models'!$J$7+$J42-1))*$F42))) ->  | AH42: =IF(L42="", "", INDEX('Asset Models'!$A$7:$DC$18,$L42,'Asset Models'!$CE$7+$K42-1)*$F42) ->  | AS42: =IF(L42="", "", IF($G42=5,$O42,IF($AK42=0,$W42,INDEX('Asset Models'!$A$7:$DC$18,$L42,'Asset Models'!$J$7+$J42-1)*$F42))) ->  | AU42: =IF(L42="", "", INDEX('Asset Models'!$A$7:$DC$18,$L42,'Asset Models'!$V$7)*$F42) -> 
A43: 0.9847039449 | B43: 0.2248498085 | C43: =IF(Inventory!AH42=Inventory!$C$1032,0.5,1)*B43 -> 0.2248498085 | D43: =Inventory!C42 -> 0 | E43: =Inventory!E42 -> 0 | F43: =Inventory!W42 ->  | G43: =Inventory!AI42 ->  | H43: =IF(G43<>"",Inventory!AQ42/G43,"") ->  | I43: =IF(G43<>"",Inventory!AS42/G43,"") ->  | J43: =Inventory!AK42 ->  | L43: =IF(E43 = 0, "", MATCH($E43,'Asset Models'!$A$7:$A$18,0)) ->  | M43: =IF(L43="", "", INDEX('Asset Models'!$A$7:$DC$18,$L43,'Asset Models'!BA$7+$J43-1)) ->  | N43: =IF(L43="", "", INDEX('Asset Models'!$A$7:$DC$18,$L43,'Asset Models'!$W$7+$J43-1)*$F43) ->  | O43: =IF(L43="", "", INDEX('Asset Models'!$A$7:$DC$18,$L43,'Asset Models'!$AB$7+$J43-1)*$F43) ->  | P43: =IF(L43="", "", IF($G43=5,1,IF($G43=1,INDEX('Asset Models'!$A$7:$DC$18,$L43,'Asset Models'!$AT$7+$G43-1),0)*(1-$M43))) ->  | Q43: =IF(L43="", "", IF($G43=5,0,IF($G43=1,INDEX('Asset Models'!$A$7:$DC$18,$L43,'Asset Models'!$AX$7+$G43-1),IF($G43=2,INDEX('Asset Models'!$A$7:$DC$18,$L43,'Asset Models'!$AT$7+$G43-1),0))*(1-$M43))) ->  | R43: =IF(L43="", "", IF($G43=5,0,IF($G43=2,INDEX('Asset Models'!$A$7:$DC$18,$L43,'Asset Models'!$AX$7+$G43-1),IF($G43=3,INDEX('Asset Models'!$A$7:$DC$18,$L43,'Asset Models'!$AT$7+$G43-1),0))*(1-$M43))) ->  | S43: =IF(L43="", "", IF($G43=5,0,IF($G43=3,INDEX('Asset Models'!$A$7:$DC$18,$L43,'Asset Models'!$AX$7+$G43-1),IF($G43=4,INDEX('Asset Models'!$A$7:$DC$18,$L43,'Asset Models'!$AT$7+$G43-1),0))*(1-$M43))) ->  | V43: =IF(L43="", "", IF($G43=5,$N43,(INDEX('Asset Models'!$A$7:$DC$18,$L43,'Asset Models'!$B$7+$G43-1)+INDEX('Asset Models'!$A$7:$DC$18,$L43,'Asset Models'!$J$7+$J43-1))*$F43)) ->  | W43: =IF(L43="", "", IF($G43=5,$O43,(INDEX('Asset Models'!$A$7:$DC$18,$L43,'Asset Models'!$F$7+$G43-1)+INDEX('Asset Models'!$A$7:$DC$18,$L43,'Asset Models'!$O$7+$J43-1))*$F43)) ->  | X43: =IF(L43="", "", INDEX('Asset Models'!$A$7:$DC$18,$L43,'Asset Models'!$BF$7+$K43-1)) ->  | Y43: =IF(L43="", "", VLOOKUP(X43,'Asset Model Builder'!$E$169:$F$173,2)) ->  | Z43: =IF(L43="", "", IF($X43=0,P43,IF($X43=1,IF(Z$9=$G43,(1-$M43),0),IF($X43=2,IF(Z$9=INDEX('Asset Models'!$A$7:$DC$18,$L43,'Asset Models'!$AG$7+$G43-2),(1-$M43),0),IF($X43=3,IF(Z$9=1,1,0),IF(INDEX('Asset Models'!$A$7:$DC$18,$L43,'Asset Models'!$AJ$7+$J43-1)=Z$9,1,0)))))) ->  | AA43: =IF(L43="", "", IF($X43=0,Q43,IF($X43=1,IF(AA$9=$G43,(1-$M43),0),IF($X43=2,IF(AA$9=INDEX('Asset Models'!$A$7:$DC$18,$L43,'Asset Models'!$AG$7+$G43-2),(1-$M43),0),IF($X43=3,IF(AA$9=1,1,0),IF(INDEX('Asset Models'!$A$7:$DC$18,$L43,'Asset Models'!$AJ$7+$J43-1)=AA$9,1,0)))))) ->  | AB43: =IF(L43="", "", IF($X43=0,R43,IF($X43=1,IF(AB$9=$G43,(1-$M43),0),IF($X43=2,IF(AB$9=INDEX('Asset Models'!$A$7:$DC$18,$L43,'Asset Models'!$AG$7+$G43-2),(1-$M43),0),IF($X43=3,IF(AB$9=1,1,0),IF(INDEX('Asset Models'!$A$7:$DC$18,$L43,'Asset Models'!$AJ$7+$J43-1)=AB$9,1,0)))))) ->  | AC43: =IF(L43="", "", IF($X43=0,S43,IF($X43=1,IF(AC$9=$G43,(1-$M43),0),IF($X43=2,IF(AC$9=INDEX('Asset Models'!$A$7:$DC$18,$L43,'Asset Models'!$AG$7+$G43-2),(1-$M43),0),IF($X43=3,IF(AC$9=1,1,0),IF(INDEX('Asset Models'!$A$7:$DC$18,$L43,'Asset Models'!$AJ$7+$J43-1)=AC$9,1,0)))))) ->  | AE43: =IF($X43=3,1,IF($X43=4,INDEX('Asset Models'!$A$7:$DC$18,$L43,'Asset Models'!$AO$7+$J43-1),$J43)) ->  | AG43: =IF(L43="", "", IF($X43=0,$V43,IF($G43=5,$N43,(INDEX('Asset Models'!$A$7:$DC$18,$L43,'Asset Models'!$T$7+$X43-1)+INDEX('Asset Models'!$A$7:$DC$18,$L43,'Asset Models'!$J$7+$J43-1))*$F43))) ->  | AH43: =IF(L43="", "", INDEX('Asset Models'!$A$7:$DC$18,$L43,'Asset Models'!$CE$7+$K43-1)*$F43) ->  | AS43: =IF(L43="", "", IF($G43=5,$O43,IF($AK43=0,$W43,INDEX('Asset Models'!$A$7:$DC$18,$L43,'Asset Models'!$J$7+$J43-1)*$F43))) ->  | AU43: =IF(L43="", "", INDEX('Asset Models'!$A$7:$DC$18,$L43,'Asset Models'!$V$7)*$F43) -> 
A44: 0.1190377064 | B44: 0.3679999702 | C44: =IF(Inventory!AH43=Inventory!$C$1032,0.5,1)*B44 -> 0.3679999702 | D44: =Inventory!C43 -> 0 | E44: =Inventory!E43 -> 0 | F44: =Inventory!W43 ->  | G44: =Inventory!AI43 ->  | H44: =IF(G44<>"",Inventory!AQ43/G44,"") ->  | I44: =IF(G44<>"",Inventory!AS43/G44,"") ->  | J44: =Inventory!AK43 ->  | L44: =IF(E44 = 0, "", MATCH($E44,'Asset Models'!$A$7:$A$18,0)) ->  | M44: =IF(L44="", "", INDEX('Asset Models'!$A$7:$DC$18,$L44,'Asset Models'!BA$7+$J44-1)) ->  | N44: =IF(L44="", "", INDEX('Asset Models'!$A$7:$DC$18,$L44,'Asset Models'!$W$7+$J44-1)*$F44) ->  | O44: =IF(L44="", "", INDEX('Asset Models'!$A$7:$DC$18,$L44,'Asset Models'!$AB$7+$J44-1)*$F44) ->  | P44: =IF(L44="", "", IF($G44=5,1,IF($G44=1,INDEX('Asset Models'!$A$7:$DC$18,$L44,'Asset Models'!$AT$7+$G44-1),0)*(1-$M44))) ->  | Q44: =IF(L44="", "", IF($G44=5,0,IF($G44=1,INDEX('Asset Models'!$A$7:$DC$18,$L44,'Asset Models'!$AX$7+$G44-1),IF($G44=2,INDEX('Asset Models'!$A$7:$DC$18,$L44,'Asset Models'!$AT$7+$G44-1),0))*(1-$M44))) ->  | R44: =IF(L44="", "", IF($G44=5,0,IF($G44=2,INDEX('Asset Models'!$A$7:$DC$18,$L44,'Asset Models'!$AX$7+$G44-1),IF($G44=3,INDEX('Asset Models'!$A$7:$DC$18,$L44,'Asset Models'!$AT$7+$G44-1),0))*(1-$M44))) ->  | S44: =IF(L44="", "", IF($G44=5,0,IF($G44=3,INDEX('Asset Models'!$A$7:$DC$18,$L44,'Asset Models'!$AX$7+$G44-1),IF($G44=4,INDEX('Asset Models'!$A$7:$DC$18,$L44,'Asset Models'!$AT$7+$G44-1),0))*(1-$M44))) ->  | V44: =IF(L44="", "", IF($G44=5,$N44,(INDEX('Asset Models'!$A$7:$DC$18,$L44,'Asset Models'!$B$7+$G44-1)+INDEX('Asset Models'!$A$7:$DC$18,$L44,'Asset Models'!$J$7+$J44-1))*$F44)) ->  | W44: =IF(L44="", "", IF($G44=5,$O44,(INDEX('Asset Models'!$A$7:$DC$18,$L44,'Asset Models'!$F$7+$G44-1)+INDEX('Asset Models'!$A$7:$DC$18,$L44,'Asset Models'!$O$7+$J44-1))*$F44)) ->  | X44: =IF(L44="", "", INDEX('Asset Models'!$A$7:$DC$18,$L44,'Asset Models'!$BF$7+$K44-1)) ->  | Y44: =IF(L44="", "", VLOOKUP(X44,'Asset Model Builder'!$E$169:$F$173,2)) ->  | Z44: =IF(L44="", "", IF($X44=0,P44,IF($X44=1,IF(Z$9=$G44,(1-$M44),0),IF($X44=2,IF(Z$9=INDEX('Asset Models'!$A$7:$DC$18,$L44,'Asset Models'!$AG$7+$G44-2),(1-$M44),0),IF($X44=3,IF(Z$9=1,1,0),IF(INDEX('Asset Models'!$A$7:$DC$18,$L44,'Asset Models'!$AJ$7+$J44-1)=Z$9,1,0)))))) ->  | AA44: =IF(L44="", "", IF($X44=0,Q44,IF($X44=1,IF(AA$9=$G44,(1-$M44),0),IF($X44=2,IF(AA$9=INDEX('Asset Models'!$A$7:$DC$18,$L44,'Asset Models'!$AG$7+$G44-2),(1-$M44),0),IF($X44=3,IF(AA$9=1,1,0),IF(INDEX('Asset Models'!$A$7:$DC$18,$L44,'Asset Models'!$AJ$7+$J44-1)=AA$9,1,0)))))) ->  | AB44: =IF(L44="", "", IF($X44=0,R44,IF($X44=1,IF(AB$9=$G44,(1-$M44),0),IF($X44=2,IF(AB$9=INDEX('Asset Models'!$A$7:$DC$18,$L44,'Asset Models'!$AG$7+$G44-2),(1-$M44),0),IF($X44=3,IF(AB$9=1,1,0),IF(INDEX('Asset Models'!$A$7:$DC$18,$L44,'Asset Models'!$AJ$7+$J44-1)=AB$9,1,0)))))) ->  | AC44: =IF(L44="", "", IF($X44=0,S44,IF($X44=1,IF(AC$9=$G44,(1-$M44),0),IF($X44=2,IF(AC$9=INDEX('Asset Models'!$A$7:$DC$18,$L44,'Asset Models'!$AG$7+$G44-2),(1-$M44),0),IF($X44=3,IF(AC$9=1,1,0),IF(INDEX('Asset Models'!$A$7:$DC$18,$L44,'Asset Models'!$AJ$7+$J44-1)=AC$9,1,0)))))) ->  | AE44: =IF($X44=3,1,IF($X44=4,INDEX('Asset Models'!$A$7:$DC$18,$L44,'Asset Models'!$AO$7+$J44-1),$J44)) ->  | AG44: =IF(L44="", "", IF($X44=0,$V44,IF($G44=5,$N44,(INDEX('Asset Models'!$A$7:$DC$18,$L44,'Asset Models'!$T$7+$X44-1)+INDEX('Asset Models'!$A$7:$DC$18,$L44,'Asset Models'!$J$7+$J44-1))*$F44))) ->  | AH44: =IF(L44="", "", INDEX('Asset Models'!$A$7:$DC$18,$L44,'Asset Models'!$CE$7+$K44-1)*$F44) ->  | AS44: =IF(L44="", "", IF($G44=5,$O44,IF($AK44=0,$W44,INDEX('Asset Models'!$A$7:$DC$18,$L44,'Asset Models'!$J$7+$J44-1)*$F44))) ->  | AU44: =IF(L44="", "", INDEX('Asset Models'!$A$7:$DC$18,$L44,'Asset Models'!$V$7)*$F44) -> 
A45: 0.22768855 | B45: 0.4361475646 | C45: =IF(Inventory!AH44=Inventory!$C$1032,0.5,1)*B45 -> 0.4361475646 | D45: =Inventory!C44 -> 0 | E45: =Inventory!E44 -> 0 | F45: =Inventory!W44 ->  | G45: =Inventory!AI44 ->  | H45: =IF(G45<>"",Inventory!AQ44/G45,"") ->  | I45: =IF(G45<>"",Inventory!AS44/G45,"") ->  | J45: =Inventory!AK44 ->  | L45: =IF(E45 = 0, "", MATCH($E45,'Asset Models'!$A$7:$A$18,0)) ->  | M45: =IF(L45="", "", INDEX('Asset Models'!$A$7:$DC$18,$L45,'Asset Models'!BA$7+$J45-1)) ->  | N45: =IF(L45="", "", INDEX('Asset Models'!$A$7:$DC$18,$L45,'Asset Models'!$W$7+$J45-1)*$F45) ->  | O45: =IF(L45="", "", INDEX('Asset Models'!$A$7:$DC$18,$L45,'Asset Models'!$AB$7+$J45-1)*$F45) ->  | P45: =IF(L45="", "", IF($G45=5,1,IF($G45=1,INDEX('Asset Models'!$A$7:$DC$18,$L45,'Asset Models'!$AT$7+$G45-1),0)*(1-$M45))) ->  | Q45: =IF(L45="", "", IF($G45=5,0,IF($G45=1,INDEX('Asset Models'!$A$7:$DC$18,$L45,'Asset Models'!$AX$7+$G45-1),IF($G45=2,INDEX('Asset Models'!$A$7:$DC$18,$L45,'Asset Models'!$AT$7+$G45-1),0))*(1-$M45))) ->  | R45: =IF(L45="", "", IF($G45=5,0,IF($G45=2,INDEX('Asset Models'!$A$7:$DC$18,$L45,'Asset Models'!$AX$7+$G45-1),IF($G45=3,INDEX('Asset Models'!$A$7:$DC$18,$L45,'Asset Models'!$AT$7+$G45-1),0))*(1-$M45))) ->  | S45: =IF(L45="", "", IF($G45=5,0,IF($G45=3,INDEX('Asset Models'!$A$7:$DC$18,$L45,'Asset Models'!$AX$7+$G45-1),IF($G45=4,INDEX('Asset Models'!$A$7:$DC$18,$L45,'Asset Models'!$AT$7+$G45-1),0))*(1-$M45))) ->  | V45: =IF(L45="", "", IF($G45=5,$N45,(INDEX('Asset Models'!$A$7:$DC$18,$L45,'Asset Models'!$B$7+$G45-1)+INDEX('Asset Models'!$A$7:$DC$18,$L45,'Asset Models'!$J$7+$J45-1))*$F45)) ->  | W45: =IF(L45="", "", IF($G45=5,$O45,(INDEX('Asset Models'!$A$7:$DC$18,$L45,'Asset Models'!$F$7+$G45-1)+INDEX('Asset Models'!$A$7:$DC$18,$L45,'Asset Models'!$O$7+$J45-1))*$F45)) ->  | X45: =IF(L45="", "", INDEX('Asset Models'!$A$7:$DC$18,$L45,'Asset Models'!$BF$7+$K45-1)) ->  | Y45: =IF(L45="", "", VLOOKUP(X45,'Asset Model Builder'!$E$169:$F$173,2)) ->  | Z45: =IF(L45="", "", IF($X45=0,P45,IF($X45=1,IF(Z$9=$G45,(1-$M45),0),IF($X45=2,IF(Z$9=INDEX('Asset Models'!$A$7:$DC$18,$L45,'Asset Models'!$AG$7+$G45-2),(1-$M45),0),IF($X45=3,IF(Z$9=1,1,0),IF(INDEX('Asset Models'!$A$7:$DC$18,$L45,'Asset Models'!$AJ$7+$J45-1)=Z$9,1,0)))))) ->  | AA45: =IF(L45="", "", IF($X45=0,Q45,IF($X45=1,IF(AA$9=$G45,(1-$M45),0),IF($X45=2,IF(AA$9=INDEX('Asset Models'!$A$7:$DC$18,$L45,'Asset Models'!$AG$7+$G45-2),(1-$M45),0),IF($X45=3,IF(AA$9=1,1,0),IF(INDEX('Asset Models'!$A$7:$DC$18,$L45,'Asset Models'!$AJ$7+$J45-1)=AA$9,1,0)))))) ->  | AB45: =IF(L45="", "", IF($X45=0,R45,IF($X45=1,IF(AB$9=$G45,(1-$M45),0),IF($X45=2,IF(AB$9=INDEX('Asset Models'!$A$7:$DC$18,$L45,'Asset Models'!$AG$7+$G45-2),(1-$M45),0),IF($X45=3,IF(AB$9=1,1,0),IF(INDEX('Asset Models'!$A$7:$DC$18,$L45,'Asset Models'!$AJ$7+$J45-1)=AB$9,1,0)))))) ->  | AC45: =IF(L45="", "", IF($X45=0,S45,IF($X45=1,IF(AC$9=$G45,(1-$M45),0),IF($X45=2,IF(AC$9=INDEX('Asset Models'!$A$7:$DC$18,$L45,'Asset Models'!$AG$7+$G45-2),(1-$M45),0),IF($X45=3,IF(AC$9=1,1,0),IF(INDEX('Asset Models'!$A$7:$DC$18,$L45,'Asset Models'!$AJ$7+$J45-1)=AC$9,1,0)))))) ->  | AE45: =IF($X45=3,1,IF($X45=4,INDEX('Asset Models'!$A$7:$DC$18,$L45,'Asset Models'!$AO$7+$J45-1),$J45)) ->  | AG45: =IF(L45="", "", IF($X45=0,$V45,IF($G45=5,$N45,(INDEX('Asset Models'!$A$7:$DC$18,$L45,'Asset Models'!$T$7+$X45-1)+INDEX('Asset Models'!$A$7:$DC$18,$L45,'Asset Models'!$J$7+$J45-1))*$F45))) ->  | AH45: =IF(L45="", "", INDEX('Asset Models'!$A$7:$DC$18,$L45,'Asset Models'!$CE$7+$K45-1)*$F45) ->  | AS45: =IF(L45="", "", IF($G45=5,$O45,IF($AK45=0,$W45,INDEX('Asset Models'!$A$7:$DC$18,$L45,'Asset Models'!$J$7+$J45-1)*$F45))) ->  | AU45: =IF(L45="", "", INDEX('Asset Models'!$A$7:$DC$18,$L45,'Asset Models'!$V$7)*$F45) -> 
A46: 0.05259792384 | B46: 0.8093007296 | C46: =IF(Inventory!AH45=Inventory!$C$1032,0.5,1)*B46 -> 0.8093007296 | D46: =Inventory!C45 -> 0 | E46: =Inventory!E45 -> 0 | F46: =Inventory!W45 ->  | G46: =Inventory!AI45 ->  | H46: =IF(G46<>"",Inventory!AQ45/G46,"") ->  | I46: =IF(G46<>"",Inventory!AS45/G46,"") ->  | J46: =Inventory!AK45 ->  | L46: =IF(E46 = 0, "", MATCH($E46,'Asset Models'!$A$7:$A$18,0)) ->  | M46: =IF(L46="", "", INDEX('Asset Models'!$A$7:$DC$18,$L46,'Asset Models'!BA$7+$J46-1)) ->  | N46: =IF(L46="", "", INDEX('Asset Models'!$A$7:$DC$18,$L46,'Asset Models'!$W$7+$J46-1)*$F46) ->  | O46: =IF(L46="", "", INDEX('Asset Models'!$A$7:$DC$18,$L46,'Asset Models'!$AB$7+$J46-1)*$F46) ->  | P46: =IF(L46="", "", IF($G46=5,1,IF($G46=1,INDEX('Asset Models'!$A$7:$DC$18,$L46,'Asset Models'!$AT$7+$G46-1),0)*(1-$M46))) ->  | Q46: =IF(L46="", "", IF($G46=5,0,IF($G46=1,INDEX('Asset Models'!$A$7:$DC$18,$L46,'Asset Models'!$AX$7+$G46-1),IF($G46=2,INDEX('Asset Models'!$A$7:$DC$18,$L46,'Asset Models'!$AT$7+$G46-1),0))*(1-$M46))) ->  | R46: =IF(L46="", "", IF($G46=5,0,IF($G46=2,INDEX('Asset Models'!$A$7:$DC$18,$L46,'Asset Models'!$AX$7+$G46-1),IF($G46=3,INDEX('Asset Models'!$A$7:$DC$18,$L46,'Asset Models'!$AT$7+$G46-1),0))*(1-$M46))) ->  | S46: =IF(L46="", "", IF($G46=5,0,IF($G46=3,INDEX('Asset Models'!$A$7:$DC$18,$L46,'Asset Models'!$AX$7+$G46-1),IF($G46=4,INDEX('Asset Models'!$A$7:$DC$18,$L46,'Asset Models'!$AT$7+$G46-1),0))*(1-$M46))) ->  | V46: =IF(L46="", "", IF($G46=5,$N46,(INDEX('Asset Models'!$A$7:$DC$18,$L46,'Asset Models'!$B$7+$G46-1)+INDEX('Asset Models'!$A$7:$DC$18,$L46,'Asset Models'!$J$7+$J46-1))*$F46)) ->  | W46: =IF(L46="", "", IF($G46=5,$O46,(INDEX('Asset Models'!$A$7:$DC$18,$L46,'Asset Models'!$F$7+$G46-1)+INDEX('Asset Models'!$A$7:$DC$18,$L46,'Asset Models'!$O$7+$J46-1))*$F46)) ->  | X46: =IF(L46="", "", INDEX('Asset Models'!$A$7:$DC$18,$L46,'Asset Models'!$BF$7+$K46-1)) ->  | Y46: =IF(L46="", "", VLOOKUP(X46,'Asset Model Builder'!$E$169:$F$173,2)) ->  | Z46: =IF(L46="", "", IF($X46=0,P46,IF($X46=1,IF(Z$9=$G46,(1-$M46),0),IF($X46=2,IF(Z$9=INDEX('Asset Models'!$A$7:$DC$18,$L46,'Asset Models'!$AG$7+$G46-2),(1-$M46),0),IF($X46=3,IF(Z$9=1,1,0),IF(INDEX('Asset Models'!$A$7:$DC$18,$L46,'Asset Models'!$AJ$7+$J46-1)=Z$9,1,0)))))) ->  | AA46: =IF(L46="", "", IF($X46=0,Q46,IF($X46=1,IF(AA$9=$G46,(1-$M46),0),IF($X46=2,IF(AA$9=INDEX('Asset Models'!$A$7:$DC$18,$L46,'Asset Models'!$AG$7+$G46-2),(1-$M46),0),IF($X46=3,IF(AA$9=1,1,0),IF(INDEX('Asset Models'!$A$7:$DC$18,$L46,'Asset Models'!$AJ$7+$J46-1)=AA$9,1,0)))))) ->  | AB46: =IF(L46="", "", IF($X46=0,R46,IF($X46=1,IF(AB$9=$G46,(1-$M46),0),IF($X46=2,IF(AB$9=INDEX('Asset Models'!$A$7:$DC$18,$L46,'Asset Models'!$AG$7+$G46-2),(1-$M46),0),IF($X46=3,IF(AB$9=1,1,0),IF(INDEX('Asset Models'!$A$7:$DC$18,$L46,'Asset Models'!$AJ$7+$J46-1)=AB$9,1,0)))))) ->  | AC46: =IF(L46="", "", IF($X46=0,S46,IF($X46=1,IF(AC$9=$G46,(1-$M46),0),IF($X46=2,IF(AC$9=INDEX('Asset Models'!$A$7:$DC$18,$L46,'Asset Models'!$AG$7+$G46-2),(1-$M46),0),IF($X46=3,IF(AC$9=1,1,0),IF(INDEX('Asset Models'!$A$7:$DC$18,$L46,'Asset Models'!$AJ$7+$J46-1)=AC$9,1,0)))))) ->  | AE46: =IF($X46=3,1,IF($X46=4,INDEX('Asset Models'!$A$7:$DC$18,$L46,'Asset Models'!$AO$7+$J46-1),$J46)) ->  | AG46: =IF(L46="", "", IF($X46=0,$V46,IF($G46=5,$N46,(INDEX('Asset Models'!$A$7:$DC$18,$L46,'Asset Models'!$T$7+$X46-1)+INDEX('Asset Models'!$A$7:$DC$18,$L46,'Asset Models'!$J$7+$J46-1))*$F46))) ->  | AH46: =IF(L46="", "", INDEX('Asset Models'!$A$7:$DC$18,$L46,'Asset Models'!$CE$7+$K46-1)*$F46) ->  | AS46: =IF(L46="", "", IF($G46=5,$O46,IF($AK46=0,$W46,INDEX('Asset Models'!$A$7:$DC$18,$L46,'Asset Models'!$J$7+$J46-1)*$F46))) ->  | AU46: =IF(L46="", "", INDEX('Asset Models'!$A$7:$DC$18,$L46,'Asset Models'!$V$7)*$F46) -> 
A47: 0.06780909757 | B47: 0.3593855552 | C47: =IF(Inventory!AH46=Inventory!$C$1032,0.5,1)*B47 -> 0.3593855552 | D47: =Inventory!C46 -> 0 | E47: =Inventory!E46 -> 0 | F47: =Inventory!W46 ->  | G47: =Inventory!AI46 ->  | H47: =IF(G47<>"",Inventory!AQ46/G47,"") ->  | I47: =IF(G47<>"",Inventory!AS46/G47,"") ->  | J47: =Inventory!AK46 ->  | L47: =IF(E47 = 0, "", MATCH($E47,'Asset Models'!$A$7:$A$18,0)) ->  | M47: =IF(L47="", "", INDEX('Asset Models'!$A$7:$DC$18,$L47,'Asset Models'!BA$7+$J47-1)) ->  | N47: =IF(L47="", "", INDEX('Asset Models'!$A$7:$DC$18,$L47,'Asset Models'!$W$7+$J47-1)*$F47) ->  | O47: =IF(L47="", "", INDEX('Asset Models'!$A$7:$DC$18,$L47,'Asset Models'!$AB$7+$J47-1)*$F47) ->  | P47: =IF(L47="", "", IF($G47=5,1,IF($G47=1,INDEX('Asset Models'!$A$7:$DC$18,$L47,'Asset Models'!$AT$7+$G47-1),0)*(1-$M47))) ->  | Q47: =IF(L47="", "", IF($G47=5,0,IF($G47=1,INDEX('Asset Models'!$A$7:$DC$18,$L47,'Asset Models'!$AX$7+$G47-1),IF($G47=2,INDEX('Asset Models'!$A$7:$DC$18,$L47,'Asset Models'!$AT$7+$G47-1),0))*(1-$M47))) ->  | R47: =IF(L47="", "", IF($G47=5,0,IF($G47=2,INDEX('Asset Models'!$A$7:$DC$18,$L47,'Asset Models'!$AX$7+$G47-1),IF($G47=3,INDEX('Asset Models'!$A$7:$DC$18,$L47,'Asset Models'!$AT$7+$G47-1),0))*(1-$M47))) ->  | S47: =IF(L47="", "", IF($G47=5,0,IF($G47=3,INDEX('Asset Models'!$A$7:$DC$18,$L47,'Asset Models'!$AX$7+$G47-1),IF($G47=4,INDEX('Asset Models'!$A$7:$DC$18,$L47,'Asset Models'!$AT$7+$G47-1),0))*(1-$M47))) ->  | V47: =IF(L47="", "", IF($G47=5,$N47,(INDEX('Asset Models'!$A$7:$DC$18,$L47,'Asset Models'!$B$7+$G47-1)+INDEX('Asset Models'!$A$7:$DC$18,$L47,'Asset Models'!$J$7+$J47-1))*$F47)) ->  | W47: =IF(L47="", "", IF($G47=5,$O47,(INDEX('Asset Models'!$A$7:$DC$18,$L47,'Asset Models'!$F$7+$G47-1)+INDEX('Asset Models'!$A$7:$DC$18,$L47,'Asset Models'!$O$7+$J47-1))*$F47)) ->  | X47: =IF(L47="", "", INDEX('Asset Models'!$A$7:$DC$18,$L47,'Asset Models'!$BF$7+$K47-1)) ->  | Y47: =IF(L47="", "", VLOOKUP(X47,'Asset Model Builder'!$E$169:$F$173,2)) ->  | Z47: =IF(L47="", "", IF($X47=0,P47,IF($X47=1,IF(Z$9=$G47,(1-$M47),0),IF($X47=2,IF(Z$9=INDEX('Asset Models'!$A$7:$DC$18,$L47,'Asset Models'!$AG$7+$G47-2),(1-$M47),0),IF($X47=3,IF(Z$9=1,1,0),IF(INDEX('Asset Models'!$A$7:$DC$18,$L47,'Asset Models'!$AJ$7+$J47-1)=Z$9,1,0)))))) ->  | AA47: =IF(L47="", "", IF($X47=0,Q47,IF($X47=1,IF(AA$9=$G47,(1-$M47),0),IF($X47=2,IF(AA$9=INDEX('Asset Models'!$A$7:$DC$18,$L47,'Asset Models'!$AG$7+$G47-2),(1-$M47),0),IF($X47=3,IF(AA$9=1,1,0),IF(INDEX('Asset Models'!$A$7:$DC$18,$L47,'Asset Models'!$AJ$7+$J47-1)=AA$9,1,0)))))) ->  | AB47: =IF(L47="", "", IF($X47=0,R47,IF($X47=1,IF(AB$9=$G47,(1-$M47),0),IF($X47=2,IF(AB$9=INDEX('Asset Models'!$A$7:$DC$18,$L47,'Asset Models'!$AG$7+$G47-2),(1-$M47),0),IF($X47=3,IF(AB$9=1,1,0),IF(INDEX('Asset Models'!$A$7:$DC$18,$L47,'Asset Models'!$AJ$7+$J47-1)=AB$9,1,0)))))) ->  | AC47: =IF(L47="", "", IF($X47=0,S47,IF($X47=1,IF(AC$9=$G47,(1-$M47),0),IF($X47=2,IF(AC$9=INDEX('Asset Models'!$A$7:$DC$18,$L47,'Asset Models'!$AG$7+$G47-2),(1-$M47),0),IF($X47=3,IF(AC$9=1,1,0),IF(INDEX('Asset Models'!$A$7:$DC$18,$L47,'Asset Models'!$AJ$7+$J47-1)=AC$9,1,0)))))) ->  | AE47: =IF($X47=3,1,IF($X47=4,INDEX('Asset Models'!$A$7:$DC$18,$L47,'Asset Models'!$AO$7+$J47-1),$J47)) ->  | AG47: =IF(L47="", "", IF($X47=0,$V47,IF($G47=5,$N47,(INDEX('Asset Models'!$A$7:$DC$18,$L47,'Asset Models'!$T$7+$X47-1)+INDEX('Asset Models'!$A$7:$DC$18,$L47,'Asset Models'!$J$7+$J47-1))*$F47))) ->  | AH47: =IF(L47="", "", INDEX('Asset Models'!$A$7:$DC$18,$L47,'Asset Models'!$CE$7+$K47-1)*$F47) ->  | AS47: =IF(L47="", "", IF($G47=5,$O47,IF($AK47=0,$W47,INDEX('Asset Models'!$A$7:$DC$18,$L47,'Asset Models'!$J$7+$J47-1)*$F47))) ->  | AU47: =IF(L47="", "", INDEX('Asset Models'!$A$7:$DC$18,$L47,'Asset Models'!$V$7)*$F47) -> 
A48: 0.2539079774 | B48: 0.5647735332 | C48: =IF(Inventory!AH47=Inventory!$C$1032,0.5,1)*B48 -> 0.5647735332 | D48: =Inventory!C47 -> 0 | E48: =Inventory!E47 -> 0 | F48: =Inventory!W47 ->  | G48: =Inventory!AI47 ->  | H48: =IF(G48<>"",Inventory!AQ47/G48,"") ->  | I48: =IF(G48<>"",Inventory!AS47/G48,"") ->  | J48: =Inventory!AK47 ->  | L48: =IF(E48 = 0, "", MATCH($E48,'Asset Models'!$A$7:$A$18,0)) ->  | M48: =IF(L48="", "", INDEX('Asset Models'!$A$7:$DC$18,$L48,'Asset Models'!BA$7+$J48-1)) ->  | N48: =IF(L48="", "", INDEX('Asset Models'!$A$7:$DC$18,$L48,'Asset Models'!$W$7+$J48-1)*$F48) ->  | O48: =IF(L48="", "", INDEX('Asset Models'!$A$7:$DC$18,$L48,'Asset Models'!$AB$7+$J48-1)*$F48) ->  | P48: =IF(L48="", "", IF($G48=5,1,IF($G48=1,INDEX('Asset Models'!$A$7:$DC$18,$L48,'Asset Models'!$AT$7+$G48-1),0)*(1-$M48))) ->  | Q48: =IF(L48="", "", IF($G48=5,0,IF($G48=1,INDEX('Asset Models'!$A$7:$DC$18,$L48,'Asset Models'!$AX$7+$G48-1),IF($G48=2,INDEX('Asset Models'!$A$7:$DC$18,$L48,'Asset Models'!$AT$7+$G48-1),0))*(1-$M48))) ->  | R48: =IF(L48="", "", IF($G48=5,0,IF($G48=2,INDEX('Asset Models'!$A$7:$DC$18,$L48,'Asset Models'!$AX$7+$G48-1),IF($G48=3,INDEX('Asset Models'!$A$7:$DC$18,$L48,'Asset Models'!$AT$7+$G48-1),0))*(1-$M48))) ->  | S48: =IF(L48="", "", IF($G48=5,0,IF($G48=3,INDEX('Asset Models'!$A$7:$DC$18,$L48,'Asset Models'!$AX$7+$G48-1),IF($G48=4,INDEX('Asset Models'!$A$7:$DC$18,$L48,'Asset Models'!$AT$7+$G48-1),0))*(1-$M48))) ->  | V48: =IF(L48="", "", IF($G48=5,$N48,(INDEX('Asset Models'!$A$7:$DC$18,$L48,'Asset Models'!$B$7+$G48-1)+INDEX('Asset Models'!$A$7:$DC$18,$L48,'Asset Models'!$J$7+$J48-1))*$F48)) ->  | W48: =IF(L48="", "", IF($G48=5,$O48,(INDEX('Asset Models'!$A$7:$DC$18,$L48,'Asset Models'!$F$7+$G48-1)+INDEX('Asset Models'!$A$7:$DC$18,$L48,'Asset Models'!$O$7+$J48-1))*$F48)) ->  | X48: =IF(L48="", "", INDEX('Asset Models'!$A$7:$DC$18,$L48,'Asset Models'!$BF$7+$K48-1)) ->  | Y48: =IF(L48="", "", VLOOKUP(X48,'Asset Model Builder'!$E$169:$F$173,2)) ->  | Z48: =IF(L48="", "", IF($X48=0,P48,IF($X48=1,IF(Z$9=$G48,(1-$M48),0),IF($X48=2,IF(Z$9=INDEX('Asset Models'!$A$7:$DC$18,$L48,'Asset Models'!$AG$7+$G48-2),(1-$M48),0),IF($X48=3,IF(Z$9=1,1,0),IF(INDEX('Asset Models'!$A$7:$DC$18,$L48,'Asset Models'!$AJ$7+$J48-1)=Z$9,1,0)))))) ->  | AA48: =IF(L48="", "", IF($X48=0,Q48,IF($X48=1,IF(AA$9=$G48,(1-$M48),0),IF($X48=2,IF(AA$9=INDEX('Asset Models'!$A$7:$DC$18,$L48,'Asset Models'!$AG$7+$G48-2),(1-$M48),0),IF($X48=3,IF(AA$9=1,1,0),IF(INDEX('Asset Models'!$A$7:$DC$18,$L48,'Asset Models'!$AJ$7+$J48-1)=AA$9,1,0)))))) ->  | AB48: =IF(L48="", "", IF($X48=0,R48,IF($X48=1,IF(AB$9=$G48,(1-$M48),0),IF($X48=2,IF(AB$9=INDEX('Asset Models'!$A$7:$DC$18,$L48,'Asset Models'!$AG$7+$G48-2),(1-$M48),0),IF($X48=3,IF(AB$9=1,1,0),IF(INDEX('Asset Models'!$A$7:$DC$18,$L48,'Asset Models'!$AJ$7+$J48-1)=AB$9,1,0)))))) ->  | AC48: =IF(L48="", "", IF($X48=0,S48,IF($X48=1,IF(AC$9=$G48,(1-$M48),0),IF($X48=2,IF(AC$9=INDEX('Asset Models'!$A$7:$DC$18,$L48,'Asset Models'!$AG$7+$G48-2),(1-$M48),0),IF($X48=3,IF(AC$9=1,1,0),IF(INDEX('Asset Models'!$A$7:$DC$18,$L48,'Asset Models'!$AJ$7+$J48-1)=AC$9,1,0)))))) ->  | AE48: =IF($X48=3,1,IF($X48=4,INDEX('Asset Models'!$A$7:$DC$18,$L48,'Asset Models'!$AO$7+$J48-1),$J48)) ->  | AG48: =IF(L48="", "", IF($X48=0,$V48,IF($G48=5,$N48,(INDEX('Asset Models'!$A$7:$DC$18,$L48,'Asset Models'!$T$7+$X48-1)+INDEX('Asset Models'!$A$7:$DC$18,$L48,'Asset Models'!$J$7+$J48-1))*$F48))) ->  | AH48: =IF(L48="", "", INDEX('Asset Models'!$A$7:$DC$18,$L48,'Asset Models'!$CE$7+$K48-1)*$F48) ->  | AS48: =IF(L48="", "", IF($G48=5,$O48,IF($AK48=0,$W48,INDEX('Asset Models'!$A$7:$DC$18,$L48,'Asset Models'!$J$7+$J48-1)*$F48))) ->  | AU48: =IF(L48="", "", INDEX('Asset Models'!$A$7:$DC$18,$L48,'Asset Models'!$V$7)*$F48) -> 
A49: 0.2246321858 | B49: 0.7348268132 | C49: =IF(Inventory!AH48=Inventory!$C$1032,0.5,1)*B49 -> 0.7348268132 | D49: =Inventory!C48 -> 0 | E49: =Inventory!E48 -> 0 | F49: =Inventory!W48 ->  | G49: =Inventory!AI48 ->  | H49: =IF(G49<>"",Inventory!AQ48/G49,"") ->  | I49: =IF(G49<>"",Inventory!AS48/G49,"") ->  | J49: =Inventory!AK48 ->  | L49: =IF(E49 = 0, "", MATCH($E49,'Asset Models'!$A$7:$A$18,0)) ->  | M49: =IF(L49="", "", INDEX('Asset Models'!$A$7:$DC$18,$L49,'Asset Models'!BA$7+$J49-1)) ->  | N49: =IF(L49="", "", INDEX('Asset Models'!$A$7:$DC$18,$L49,'Asset Models'!$W$7+$J49-1)*$F49) ->  | O49: =IF(L49="", "", INDEX('Asset Models'!$A$7:$DC$18,$L49,'Asset Models'!$AB$7+$J49-1)*$F49) ->  | P49: =IF(L49="", "", IF($G49=5,1,IF($G49=1,INDEX('Asset Models'!$A$7:$DC$18,$L49,'Asset Models'!$AT$7+$G49-1),0)*(1-$M49))) ->  | Q49: =IF(L49="", "", IF($G49=5,0,IF($G49=1,INDEX('Asset Models'!$A$7:$DC$18,$L49,'Asset Models'!$AX$7+$G49-1),IF($G49=2,INDEX('Asset Models'!$A$7:$DC$18,$L49,'Asset Models'!$AT$7+$G49-1),0))*(1-$M49))) ->  | R49: =IF(L49="", "", IF($G49=5,0,IF($G49=2,INDEX('Asset Models'!$A$7:$DC$18,$L49,'Asset Models'!$AX$7+$G49-1),IF($G49=3,INDEX('Asset Models'!$A$7:$DC$18,$L49,'Asset Models'!$AT$7+$G49-1),0))*(1-$M49))) ->  | S49: =IF(L49="", "", IF($G49=5,0,IF($G49=3,INDEX('Asset Models'!$A$7:$DC$18,$L49,'Asset Models'!$AX$7+$G49-1),IF($G49=4,INDEX('Asset Models'!$A$7:$DC$18,$L49,'Asset Models'!$AT$7+$G49-1),0))*(1-$M49))) ->  | V49: =IF(L49="", "", IF($G49=5,$N49,(INDEX('Asset Models'!$A$7:$DC$18,$L49,'Asset Models'!$B$7+$G49-1)+INDEX('Asset Models'!$A$7:$DC$18,$L49,'Asset Models'!$J$7+$J49-1))*$F49)) ->  | W49: =IF(L49="", "", IF($G49=5,$O49,(INDEX('Asset Models'!$A$7:$DC$18,$L49,'Asset Models'!$F$7+$G49-1)+INDEX('Asset Models'!$A$7:$DC$18,$L49,'Asset Models'!$O$7+$J49-1))*$F49)) ->  | X49: =IF(L49="", "", INDEX('Asset Models'!$A$7:$DC$18,$L49,'Asset Models'!$BF$7+$K49-1)) ->  | Y49: =IF(L49="", "", VLOOKUP(X49,'Asset Model Builder'!$E$169:$F$173,2)) ->  | Z49: =IF(L49="", "", IF($X49=0,P49,IF($X49=1,IF(Z$9=$G49,(1-$M49),0),IF($X49=2,IF(Z$9=INDEX('Asset Models'!$A$7:$DC$18,$L49,'Asset Models'!$AG$7+$G49-2),(1-$M49),0),IF($X49=3,IF(Z$9=1,1,0),IF(INDEX('Asset Models'!$A$7:$DC$18,$L49,'Asset Models'!$AJ$7+$J49-1)=Z$9,1,0)))))) ->  | AA49: =IF(L49="", "", IF($X49=0,Q49,IF($X49=1,IF(AA$9=$G49,(1-$M49),0),IF($X49=2,IF(AA$9=INDEX('Asset Models'!$A$7:$DC$18,$L49,'Asset Models'!$AG$7+$G49-2),(1-$M49),0),IF($X49=3,IF(AA$9=1,1,0),IF(INDEX('Asset Models'!$A$7:$DC$18,$L49,'Asset Models'!$AJ$7+$J49-1)=AA$9,1,0)))))) ->  | AB49: =IF(L49="", "", IF($X49=0,R49,IF($X49=1,IF(AB$9=$G49,(1-$M49),0),IF($X49=2,IF(AB$9=INDEX('Asset Models'!$A$7:$DC$18,$L49,'Asset Models'!$AG$7+$G49-2),(1-$M49),0),IF($X49=3,IF(AB$9=1,1,0),IF(INDEX('Asset Models'!$A$7:$DC$18,$L49,'Asset Models'!$AJ$7+$J49-1)=AB$9,1,0)))))) ->  | AC49: =IF(L49="", "", IF($X49=0,S49,IF($X49=1,IF(AC$9=$G49,(1-$M49),0),IF($X49=2,IF(AC$9=INDEX('Asset Models'!$A$7:$DC$18,$L49,'Asset Models'!$AG$7+$G49-2),(1-$M49),0),IF($X49=3,IF(AC$9=1,1,0),IF(INDEX('Asset Models'!$A$7:$DC$18,$L49,'Asset Models'!$AJ$7+$J49-1)=AC$9,1,0)))))) ->  | AE49: =IF($X49=3,1,IF($X49=4,INDEX('Asset Models'!$A$7:$DC$18,$L49,'Asset Models'!$AO$7+$J49-1),$J49)) ->  | AG49: =IF(L49="", "", IF($X49=0,$V49,IF($G49=5,$N49,(INDEX('Asset Models'!$A$7:$DC$18,$L49,'Asset Models'!$T$7+$X49-1)+INDEX('Asset Models'!$A$7:$DC$18,$L49,'Asset Models'!$J$7+$J49-1))*$F49))) ->  | AH49: =IF(L49="", "", INDEX('Asset Models'!$A$7:$DC$18,$L49,'Asset Models'!$CE$7+$K49-1)*$F49) ->  | AS49: =IF(L49="", "", IF($G49=5,$O49,IF($AK49=0,$W49,INDEX('Asset Models'!$A$7:$DC$18,$L49,'Asset Models'!$J$7+$J49-1)*$F49))) ->  | AU49: =IF(L49="", "", INDEX('Asset Models'!$A$7:$DC$18,$L49,'Asset Models'!$V$7)*$F49) -> 
A50: 0.4194151881 | B50: 0.4709954583 | C50: =IF(Inventory!AH49=Inventory!$C$1032,0.5,1)*B50 -> 0.4709954583 | D50: =Inventory!C49 -> 0 | E50: =Inventory!E49 -> 0 | F50: =Inventory!W49 ->  | G50: =Inventory!AI49 ->  | H50: =IF(G50<>"",Inventory!AQ49/G50,"") ->  | I50: =IF(G50<>"",Inventory!AS49/G50,"") ->  | J50: =Inventory!AK49 ->  | L50: =IF(E50 = 0, "", MATCH($E50,'Asset Models'!$A$7:$A$18,0)) ->  | M50: =IF(L50="", "", INDEX('Asset Models'!$A$7:$DC$18,$L50,'Asset Models'!BA$7+$J50-1)) ->  | N50: =IF(L50="", "", INDEX('Asset Models'!$A$7:$DC$18,$L50,'Asset Models'!$W$7+$J50-1)*$F50) ->  | O50: =IF(L50="", "", INDEX('Asset Models'!$A$7:$DC$18,$L50,'Asset Models'!$AB$7+$J50-1)*$F50) ->  | P50: =IF(L50="", "", IF($G50=5,1,IF($G50=1,INDEX('Asset Models'!$A$7:$DC$18,$L50,'Asset Models'!$AT$7+$G50-1),0)*(1-$M50))) ->  | Q50: =IF(L50="", "", IF($G50=5,0,IF($G50=1,INDEX('Asset Models'!$A$7:$DC$18,$L50,'Asset Models'!$AX$7+$G50-1),IF($G50=2,INDEX('Asset Models'!$A$7:$DC$18,$L50,'Asset Models'!$AT$7+$G50-1),0))*(1-$M50))) ->  | R50: =IF(L50="", "", IF($G50=5,0,IF($G50=2,INDEX('Asset Models'!$A$7:$DC$18,$L50,'Asset Models'!$AX$7+$G50-1),IF($G50=3,INDEX('Asset Models'!$A$7:$DC$18,$L50,'Asset Models'!$AT$7+$G50-1),0))*(1-$M50))) ->  | S50: =IF(L50="", "", IF($G50=5,0,IF($G50=3,INDEX('Asset Models'!$A$7:$DC$18,$L50,'Asset Models'!$AX$7+$G50-1),IF($G50=4,INDEX('Asset Models'!$A$7:$DC$18,$L50,'Asset Models'!$AT$7+$G50-1),0))*(1-$M50))) ->  | V50: =IF(L50="", "", IF($G50=5,$N50,(INDEX('Asset Models'!$A$7:$DC$18,$L50,'Asset Models'!$B$7+$G50-1)+INDEX('Asset Models'!$A$7:$DC$18,$L50,'Asset Models'!$J$7+$J50-1))*$F50)) ->  | W50: =IF(L50="", "", IF($G50=5,$O50,(INDEX('Asset Models'!$A$7:$DC$18,$L50,'Asset Models'!$F$7+$G50-1)+INDEX('Asset Models'!$A$7:$DC$18,$L50,'Asset Models'!$O$7+$J50-1))*$F50)) ->  | X50: =IF(L50="", "", INDEX('Asset Models'!$A$7:$DC$18,$L50,'Asset Models'!$BF$7+$K50-1)) ->  | Y50: =IF(L50="", "", VLOOKUP(X50,'Asset Model Builder'!$E$169:$F$173,2)) ->  | Z50: =IF(L50="", "", IF($X50=0,P50,IF($X50=1,IF(Z$9=$G50,(1-$M50),0),IF($X50=2,IF(Z$9=INDEX('Asset Models'!$A$7:$DC$18,$L50,'Asset Models'!$AG$7+$G50-2),(1-$M50),0),IF($X50=3,IF(Z$9=1,1,0),IF(INDEX('Asset Models'!$A$7:$DC$18,$L50,'Asset Models'!$AJ$7+$J50-1)=Z$9,1,0)))))) ->  | AA50: =IF(L50="", "", IF($X50=0,Q50,IF($X50=1,IF(AA$9=$G50,(1-$M50),0),IF($X50=2,IF(AA$9=INDEX('Asset Models'!$A$7:$DC$18,$L50,'Asset Models'!$AG$7+$G50-2),(1-$M50),0),IF($X50=3,IF(AA$9=1,1,0),IF(INDEX('Asset Models'!$A$7:$DC$18,$L50,'Asset Models'!$AJ$7+$J50-1)=AA$9,1,0)))))) ->  | AB50: =IF(L50="", "", IF($X50=0,R50,IF($X50=1,IF(AB$9=$G50,(1-$M50),0),IF($X50=2,IF(AB$9=INDEX('Asset Models'!$A$7:$DC$18,$L50,'Asset Models'!$AG$7+$G50-2),(1-$M50),0),IF($X50=3,IF(AB$9=1,1,0),IF(INDEX('Asset Models'!$A$7:$DC$18,$L50,'Asset Models'!$AJ$7+$J50-1)=AB$9,1,0)))))) ->  | AC50: =IF(L50="", "", IF($X50=0,S50,IF($X50=1,IF(AC$9=$G50,(1-$M50),0),IF($X50=2,IF(AC$9=INDEX('Asset Models'!$A$7:$DC$18,$L50,'Asset Models'!$AG$7+$G50-2),(1-$M50),0),IF($X50=3,IF(AC$9=1,1,0),IF(INDEX('Asset Models'!$A$7:$DC$18,$L50,'Asset Models'!$AJ$7+$J50-1)=AC$9,1,0)))))) ->  | AE50: =IF($X50=3,1,IF($X50=4,INDEX('Asset Models'!$A$7:$DC$18,$L50,'Asset Models'!$AO$7+$J50-1),$J50)) ->  | AG50: =IF(L50="", "", IF($X50=0,$V50,IF($G50=5,$N50,(INDEX('Asset Models'!$A$7:$DC$18,$L50,'Asset Models'!$T$7+$X50-1)+INDEX('Asset Models'!$A$7:$DC$18,$L50,'Asset Models'!$J$7+$J50-1))*$F50))) ->  | AH50: =IF(L50="", "", INDEX('Asset Models'!$A$7:$DC$18,$L50,'Asset Models'!$CE$7+$K50-1)*$F50) ->  | AS50: =IF(L50="", "", IF($G50=5,$O50,IF($AK50=0,$W50,INDEX('Asset Models'!$A$7:$DC$18,$L50,'Asset Models'!$J$7+$J50-1)*$F50))) ->  | AU50: =IF(L50="", "", INDEX('Asset Models'!$A$7:$DC$18,$L50,'Asset Models'!$V$7)*$F50) -> 
A51: 0.3677386284 | B51: 0.9806980305 | C51: =IF(Inventory!AH50=Inventory!$C$1032,0.5,1)*B51 -> 0.9806980305 | D51: =Inventory!C50 -> 0 | E51: =Inventory!E50 -> 0 | F51: =Inventory!W50 ->  | G51: =Inventory!AI50 ->  | H51: =IF(G51<>"",Inventory!AQ50/G51,"") ->  | I51: =IF(G51<>"",Inventory!AS50/G51,"") ->  | J51: =Inventory!AK50 ->  | L51: =IF(E51 = 0, "", MATCH($E51,'Asset Models'!$A$7:$A$18,0)) ->  | M51: =IF(L51="", "", INDEX('Asset Models'!$A$7:$DC$18,$L51,'Asset Models'!BA$7+$J51-1)) ->  | N51: =IF(L51="", "", INDEX('Asset Models'!$A$7:$DC$18,$L51,'Asset Models'!$W$7+$J51-1)*$F51) ->  | O51: =IF(L51="", "", INDEX('Asset Models'!$A$7:$DC$18,$L51,'Asset Models'!$AB$7+$J51-1)*$F51) ->  | P51: =IF(L51="", "", IF($G51=5,1,IF($G51=1,INDEX('Asset Models'!$A$7:$DC$18,$L51,'Asset Models'!$AT$7+$G51-1),0)*(1-$M51))) ->  | Q51: =IF(L51="", "", IF($G51=5,0,IF($G51=1,INDEX('Asset Models'!$A$7:$DC$18,$L51,'Asset Models'!$AX$7+$G51-1),IF($G51=2,INDEX('Asset Models'!$A$7:$DC$18,$L51,'Asset Models'!$AT$7+$G51-1),0))*(1-$M51))) ->  | R51: =IF(L51="", "", IF($G51=5,0,IF($G51=2,INDEX('Asset Models'!$A$7:$DC$18,$L51,'Asset Models'!$AX$7+$G51-1),IF($G51=3,INDEX('Asset Models'!$A$7:$DC$18,$L51,'Asset Models'!$AT$7+$G51-1),0))*(1-$M51))) ->  | S51: =IF(L51="", "", IF($G51=5,0,IF($G51=3,INDEX('Asset Models'!$A$7:$DC$18,$L51,'Asset Models'!$AX$7+$G51-1),IF($G51=4,INDEX('Asset Models'!$A$7:$DC$18,$L51,'Asset Models'!$AT$7+$G51-1),0))*(1-$M51))) ->  | V51: =IF(L51="", "", IF($G51=5,$N51,(INDEX('Asset Models'!$A$7:$DC$18,$L51,'Asset Models'!$B$7+$G51-1)+INDEX('Asset Models'!$A$7:$DC$18,$L51,'Asset Models'!$J$7+$J51-1))*$F51)) ->  | W51: =IF(L51="", "", IF($G51=5,$O51,(INDEX('Asset Models'!$A$7:$DC$18,$L51,'Asset Models'!$F$7+$G51-1)+INDEX('Asset Models'!$A$7:$DC$18,$L51,'Asset Models'!$O$7+$J51-1))*$F51)) ->  | X51: =IF(L51="", "", INDEX('Asset Models'!$A$7:$DC$18,$L51,'Asset Models'!$BF$7+$K51-1)) ->  | Y51: =IF(L51="", "", VLOOKUP(X51,'Asset Model Builder'!$E$169:$F$173,2)) ->  | Z51: =IF(L51="", "", IF($X51=0,P51,IF($X51=1,IF(Z$9=$G51,(1-$M51),0),IF($X51=2,IF(Z$9=INDEX('Asset Models'!$A$7:$DC$18,$L51,'Asset Models'!$AG$7+$G51-2),(1-$M51),0),IF($X51=3,IF(Z$9=1,1,0),IF(INDEX('Asset Models'!$A$7:$DC$18,$L51,'Asset Models'!$AJ$7+$J51-1)=Z$9,1,0)))))) ->  | AA51: =IF(L51="", "", IF($X51=0,Q51,IF($X51=1,IF(AA$9=$G51,(1-$M51),0),IF($X51=2,IF(AA$9=INDEX('Asset Models'!$A$7:$DC$18,$L51,'Asset Models'!$AG$7+$G51-2),(1-$M51),0),IF($X51=3,IF(AA$9=1,1,0),IF(INDEX('Asset Models'!$A$7:$DC$18,$L51,'Asset Models'!$AJ$7+$J51-1)=AA$9,1,0)))))) ->  | AB51: =IF(L51="", "", IF($X51=0,R51,IF($X51=1,IF(AB$9=$G51,(1-$M51),0),IF($X51=2,IF(AB$9=INDEX('Asset Models'!$A$7:$DC$18,$L51,'Asset Models'!$AG$7+$G51-2),(1-$M51),0),IF($X51=3,IF(AB$9=1,1,0),IF(INDEX('Asset Models'!$A$7:$DC$18,$L51,'Asset Models'!$AJ$7+$J51-1)=AB$9,1,0)))))) ->  | AC51: =IF(L51="", "", IF($X51=0,S51,IF($X51=1,IF(AC$9=$G51,(1-$M51),0),IF($X51=2,IF(AC$9=INDEX('Asset Models'!$A$7:$DC$18,$L51,'Asset Models'!$AG$7+$G51-2),(1-$M51),0),IF($X51=3,IF(AC$9=1,1,0),IF(INDEX('Asset Models'!$A$7:$DC$18,$L51,'Asset Models'!$AJ$7+$J51-1)=AC$9,1,0)))))) ->  | AE51: =IF($X51=3,1,IF($X51=4,INDEX('Asset Models'!$A$7:$DC$18,$L51,'Asset Models'!$AO$7+$J51-1),$J51)) ->  | AG51: =IF(L51="", "", IF($X51=0,$V51,IF($G51=5,$N51,(INDEX('Asset Models'!$A$7:$DC$18,$L51,'Asset Models'!$T$7+$X51-1)+INDEX('Asset Models'!$A$7:$DC$18,$L51,'Asset Models'!$J$7+$J51-1))*$F51))) ->  | AH51: =IF(L51="", "", INDEX('Asset Models'!$A$7:$DC$18,$L51,'Asset Models'!$CE$7+$K51-1)*$F51) ->  | AS51: =IF(L51="", "", IF($G51=5,$O51,IF($AK51=0,$W51,INDEX('Asset Models'!$A$7:$DC$18,$L51,'Asset Models'!$J$7+$J51-1)*$F51))) ->  | AU51: =IF(L51="", "", INDEX('Asset Models'!$A$7:$DC$18,$L51,'Asset Models'!$V$7)*$F51) -> 
A52: 0.2380545947 | B52: 0.1323336565 | C52: =IF(Inventory!AH51=Inventory!$C$1032,0.5,1)*B52 -> 0.1323336565 | D52: =Inventory!C51 -> 0 | E52: =Inventory!E51 -> 0 | F52: =Inventory!W51 ->  | G52: =Inventory!AI51 ->  | H52: =IF(G52<>"",Inventory!AQ51/G52,"") ->  | I52: =IF(G52<>"",Inventory!AS51/G52,"") ->  | J52: =Inventory!AK51 ->  | L52: =IF(E52 = 0, "", MATCH($E52,'Asset Models'!$A$7:$A$18,0)) ->  | M52: =IF(L52="", "", INDEX('Asset Models'!$A$7:$DC$18,$L52,'Asset Models'!BA$7+$J52-1)) ->  | N52: =IF(L52="", "", INDEX('Asset Models'!$A$7:$DC$18,$L52,'Asset Models'!$W$7+$J52-1)*$F52) ->  | O52: =IF(L52="", "", INDEX('Asset Models'!$A$7:$DC$18,$L52,'Asset Models'!$AB$7+$J52-1)*$F52) ->  | P52: =IF(L52="", "", IF($G52=5,1,IF($G52=1,INDEX('Asset Models'!$A$7:$DC$18,$L52,'Asset Models'!$AT$7+$G52-1),0)*(1-$M52))) ->  | Q52: =IF(L52="", "", IF($G52=5,0,IF($G52=1,INDEX('Asset Models'!$A$7:$DC$18,$L52,'Asset Models'!$AX$7+$G52-1),IF($G52=2,INDEX('Asset Models'!$A$7:$DC$18,$L52,'Asset Models'!$AT$7+$G52-1),0))*(1-$M52))) ->  | R52: =IF(L52="", "", IF($G52=5,0,IF($G52=2,INDEX('Asset Models'!$A$7:$DC$18,$L52,'Asset Models'!$AX$7+$G52-1),IF($G52=3,INDEX('Asset Models'!$A$7:$DC$18,$L52,'Asset Models'!$AT$7+$G52-1),0))*(1-$M52))) ->  | S52: =IF(L52="", "", IF($G52=5,0,IF($G52=3,INDEX('Asset Models'!$A$7:$DC$18,$L52,'Asset Models'!$AX$7+$G52-1),IF($G52=4,INDEX('Asset Models'!$A$7:$DC$18,$L52,'Asset Models'!$AT$7+$G52-1),0))*(1-$M52))) ->  | V52: =IF(L52="", "", IF($G52=5,$N52,(INDEX('Asset Models'!$A$7:$DC$18,$L52,'Asset Models'!$B$7+$G52-1)+INDEX('Asset Models'!$A$7:$DC$18,$L52,'Asset Models'!$J$7+$J52-1))*$F52)) ->  | W52: =IF(L52="", "", IF($G52=5,$O52,(INDEX('Asset Models'!$A$7:$DC$18,$L52,'Asset Models'!$F$7+$G52-1)+INDEX('Asset Models'!$A$7:$DC$18,$L52,'Asset Models'!$O$7+$J52-1))*$F52)) ->  | X52: =IF(L52="", "", INDEX('Asset Models'!$A$7:$DC$18,$L52,'Asset Models'!$BF$7+$K52-1)) ->  | Y52: =IF(L52="", "", VLOOKUP(X52,'Asset Model Builder'!$E$169:$F$173,2)) ->  | Z52: =IF(L52="", "", IF($X52=0,P52,IF($X52=1,IF(Z$9=$G52,(1-$M52),0),IF($X52=2,IF(Z$9=INDEX('Asset Models'!$A$7:$DC$18,$L52,'Asset Models'!$AG$7+$G52-2),(1-$M52),0),IF($X52=3,IF(Z$9=1,1,0),IF(INDEX('Asset Models'!$A$7:$DC$18,$L52,'Asset Models'!$AJ$7+$J52-1)=Z$9,1,0)))))) ->  | AA52: =IF(L52="", "", IF($X52=0,Q52,IF($X52=1,IF(AA$9=$G52,(1-$M52),0),IF($X52=2,IF(AA$9=INDEX('Asset Models'!$A$7:$DC$18,$L52,'Asset Models'!$AG$7+$G52-2),(1-$M52),0),IF($X52=3,IF(AA$9=1,1,0),IF(INDEX('Asset Models'!$A$7:$DC$18,$L52,'Asset Models'!$AJ$7+$J52-1)=AA$9,1,0)))))) ->  | AB52: =IF(L52="", "", IF($X52=0,R52,IF($X52=1,IF(AB$9=$G52,(1-$M52),0),IF($X52=2,IF(AB$9=INDEX('Asset Models'!$A$7:$DC$18,$L52,'Asset Models'!$AG$7+$G52-2),(1-$M52),0),IF($X52=3,IF(AB$9=1,1,0),IF(INDEX('Asset Models'!$A$7:$DC$18,$L52,'Asset Models'!$AJ$7+$J52-1)=AB$9,1,0)))))) ->  | AC52: =IF(L52="", "", IF($X52=0,S52,IF($X52=1,IF(AC$9=$G52,(1-$M52),0),IF($X52=2,IF(AC$9=INDEX('Asset Models'!$A$7:$DC$18,$L52,'Asset Models'!$AG$7+$G52-2),(1-$M52),0),IF($X52=3,IF(AC$9=1,1,0),IF(INDEX('Asset Models'!$A$7:$DC$18,$L52,'Asset Models'!$AJ$7+$J52-1)=AC$9,1,0)))))) ->  | AE52: =IF($X52=3,1,IF($X52=4,INDEX('Asset Models'!$A$7:$DC$18,$L52,'Asset Models'!$AO$7+$J52-1),$J52)) ->  | AG52: =IF(L52="", "", IF($X52=0,$V52,IF($G52=5,$N52,(INDEX('Asset Models'!$A$7:$DC$18,$L52,'Asset Models'!$T$7+$X52-1)+INDEX('Asset Models'!$A$7:$DC$18,$L52,'Asset Models'!$J$7+$J52-1))*$F52))) ->  | AH52: =IF(L52="", "", INDEX('Asset Models'!$A$7:$DC$18,$L52,'Asset Models'!$CE$7+$K52-1)*$F52) ->  | AS52: =IF(L52="", "", IF($G52=5,$O52,IF($AK52=0,$W52,INDEX('Asset Models'!$A$7:$DC$18,$L52,'Asset Models'!$J$7+$J52-1)*$F52))) ->  | AU52: =IF(L52="", "", INDEX('Asset Models'!$A$7:$DC$18,$L52,'Asset Models'!$V$7)*$F52) -> 
A53: 0.3632685986 | B53: 0.1809713407 | C53: =IF(Inventory!AH52=Inventory!$C$1032,0.5,1)*B53 -> 0.1809713407 | D53: =Inventory!C52 -> 0 | E53: =Inventory!E52 -> 0 | F53: =Inventory!W52 ->  | G53: =Inventory!AI52 ->  | H53: =IF(G53<>"",Inventory!AQ52/G53,"") ->  | I53: =IF(G53<>"",Inventory!AS52/G53,"") ->  | J53: =Inventory!AK52 ->  | L53: =IF(E53 = 0, "", MATCH($E53,'Asset Models'!$A$7:$A$18,0)) ->  | M53: =IF(L53="", "", INDEX('Asset Models'!$A$7:$DC$18,$L53,'Asset Models'!BA$7+$J53-1)) ->  | N53: =IF(L53="", "", INDEX('Asset Models'!$A$7:$DC$18,$L53,'Asset Models'!$W$7+$J53-1)*$F53) ->  | O53: =IF(L53="", "", INDEX('Asset Models'!$A$7:$DC$18,$L53,'Asset Models'!$AB$7+$J53-1)*$F53) ->  | P53: =IF(L53="", "", IF($G53=5,1,IF($G53=1,INDEX('Asset Models'!$A$7:$DC$18,$L53,'Asset Models'!$AT$7+$G53-1),0)*(1-$M53))) ->  | Q53: =IF(L53="", "", IF($G53=5,0,IF($G53=1,INDEX('Asset Models'!$A$7:$DC$18,$L53,'Asset Models'!$AX$7+$G53-1),IF($G53=2,INDEX('Asset Models'!$A$7:$DC$18,$L53,'Asset Models'!$AT$7+$G53-1),0))*(1-$M53))) ->  | R53: =IF(L53="", "", IF($G53=5,0,IF($G53=2,INDEX('Asset Models'!$A$7:$DC$18,$L53,'Asset Models'!$AX$7+$G53-1),IF($G53=3,INDEX('Asset Models'!$A$7:$DC$18,$L53,'Asset Models'!$AT$7+$G53-1),0))*(1-$M53))) ->  | S53: =IF(L53="", "", IF($G53=5,0,IF($G53=3,INDEX('Asset Models'!$A$7:$DC$18,$L53,'Asset Models'!$AX$7+$G53-1),IF($G53=4,INDEX('Asset Models'!$A$7:$DC$18,$L53,'Asset Models'!$AT$7+$G53-1),0))*(1-$M53))) ->  | V53: =IF(L53="", "", IF($G53=5,$N53,(INDEX('Asset Models'!$A$7:$DC$18,$L53,'Asset Models'!$B$7+$G53-1)+INDEX('Asset Models'!$A$7:$DC$18,$L53,'Asset Models'!$J$7+$J53-1))*$F53)) ->  | W53: =IF(L53="", "", IF($G53=5,$O53,(INDEX('Asset Models'!$A$7:$DC$18,$L53,'Asset Models'!$F$7+$G53-1)+INDEX('Asset Models'!$A$7:$DC$18,$L53,'Asset Models'!$O$7+$J53-1))*$F53)) ->  | X53: =IF(L53="", "", INDEX('Asset Models'!$A$7:$DC$18,$L53,'Asset Models'!$BF$7+$K53-1)) ->  | Y53: =IF(L53="", "", VLOOKUP(X53,'Asset Model Builder'!$E$169:$F$173,2)) ->  | Z53: =IF(L53="", "", IF($X53=0,P53,IF($X53=1,IF(Z$9=$G53,(1-$M53),0),IF($X53=2,IF(Z$9=INDEX('Asset Models'!$A$7:$DC$18,$L53,'Asset Models'!$AG$7+$G53-2),(1-$M53),0),IF($X53=3,IF(Z$9=1,1,0),IF(INDEX('Asset Models'!$A$7:$DC$18,$L53,'Asset Models'!$AJ$7+$J53-1)=Z$9,1,0)))))) ->  | AA53: =IF(L53="", "", IF($X53=0,Q53,IF($X53=1,IF(AA$9=$G53,(1-$M53),0),IF($X53=2,IF(AA$9=INDEX('Asset Models'!$A$7:$DC$18,$L53,'Asset Models'!$AG$7+$G53-2),(1-$M53),0),IF($X53=3,IF(AA$9=1,1,0),IF(INDEX('Asset Models'!$A$7:$DC$18,$L53,'Asset Models'!$AJ$7+$J53-1)=AA$9,1,0)))))) ->  | AB53: =IF(L53="", "", IF($X53=0,R53,IF($X53=1,IF(AB$9=$G53,(1-$M53),0),IF($X53=2,IF(AB$9=INDEX('Asset Models'!$A$7:$DC$18,$L53,'Asset Models'!$AG$7+$G53-2),(1-$M53),0),IF($X53=3,IF(AB$9=1,1,0),IF(INDEX('Asset Models'!$A$7:$DC$18,$L53,'Asset Models'!$AJ$7+$J53-1)=AB$9,1,0)))))) ->  | AC53: =IF(L53="", "", IF($X53=0,S53,IF($X53=1,IF(AC$9=$G53,(1-$M53),0),IF($X53=2,IF(AC$9=INDEX('Asset Models'!$A$7:$DC$18,$L53,'Asset Models'!$AG$7+$G53-2),(1-$M53),0),IF($X53=3,IF(AC$9=1,1,0),IF(INDEX('Asset Models'!$A$7:$DC$18,$L53,'Asset Models'!$AJ$7+$J53-1)=AC$9,1,0)))))) ->  | AE53: =IF($X53=3,1,IF($X53=4,INDEX('Asset Models'!$A$7:$DC$18,$L53,'Asset Models'!$AO$7+$J53-1),$J53)) ->  | AG53: =IF(L53="", "", IF($X53=0,$V53,IF($G53=5,$N53,(INDEX('Asset Models'!$A$7:$DC$18,$L53,'Asset Models'!$T$7+$X53-1)+INDEX('Asset Models'!$A$7:$DC$18,$L53,'Asset Models'!$J$7+$J53-1))*$F53))) ->  | AH53: =IF(L53="", "", INDEX('Asset Models'!$A$7:$DC$18,$L53,'Asset Models'!$CE$7+$K53-1)*$F53) ->  | AS53: =IF(L53="", "", IF($G53=5,$O53,IF($AK53=0,$W53,INDEX('Asset Models'!$A$7:$DC$18,$L53,'Asset Models'!$J$7+$J53-1)*$F53))) ->  | AU53: =IF(L53="", "", INDEX('Asset Models'!$A$7:$DC$18,$L53,'Asset Models'!$V$7)*$F53) -> 
A54: 0.3715997001 | B54: 0.187964556 | C54: =IF(Inventory!AH53=Inventory!$C$1032,0.5,1)*B54 -> 0.187964556 | D54: =Inventory!C53 -> 0 | E54: =Inventory!E53 -> 0 | F54: =Inventory!W53 ->  | G54: =Inventory!AI53 ->  | H54: =IF(G54<>"",Inventory!AQ53/G54,"") ->  | I54: =IF(G54<>"",Inventory!AS53/G54,"") ->  | J54: =Inventory!AK53 ->  | L54: =IF(E54 = 0, "", MATCH($E54,'Asset Models'!$A$7:$A$18,0)) ->  | M54: =IF(L54="", "", INDEX('Asset Models'!$A$7:$DC$18,$L54,'Asset Models'!BA$7+$J54-1)) ->  | N54: =IF(L54="", "", INDEX('Asset Models'!$A$7:$DC$18,$L54,'Asset Models'!$W$7+$J54-1)*$F54) ->  | O54: =IF(L54="", "", INDEX('Asset Models'!$A$7:$DC$18,$L54,'Asset Models'!$AB$7+$J54-1)*$F54) ->  | P54: =IF(L54="", "", IF($G54=5,1,IF($G54=1,INDEX('Asset Models'!$A$7:$DC$18,$L54,'Asset Models'!$AT$7+$G54-1),0)*(1-$M54))) ->  | Q54: =IF(L54="", "", IF($G54=5,0,IF($G54=1,INDEX('Asset Models'!$A$7:$DC$18,$L54,'Asset Models'!$AX$7+$G54-1),IF($G54=2,INDEX('Asset Models'!$A$7:$DC$18,$L54,'Asset Models'!$AT$7+$G54-1),0))*(1-$M54))) ->  | R54: =IF(L54="", "", IF($G54=5,0,IF($G54=2,INDEX('Asset Models'!$A$7:$DC$18,$L54,'Asset Models'!$AX$7+$G54-1),IF($G54=3,INDEX('Asset Models'!$A$7:$DC$18,$L54,'Asset Models'!$AT$7+$G54-1),0))*(1-$M54))) ->  | S54: =IF(L54="", "", IF($G54=5,0,IF($G54=3,INDEX('Asset Models'!$A$7:$DC$18,$L54,'Asset Models'!$AX$7+$G54-1),IF($G54=4,INDEX('Asset Models'!$A$7:$DC$18,$L54,'Asset Models'!$AT$7+$G54-1),0))*(1-$M54))) ->  | V54: =IF(L54="", "", IF($G54=5,$N54,(INDEX('Asset Models'!$A$7:$DC$18,$L54,'Asset Models'!$B$7+$G54-1)+INDEX('Asset Models'!$A$7:$DC$18,$L54,'Asset Models'!$J$7+$J54-1))*$F54)) ->  | W54: =IF(L54="", "", IF($G54=5,$O54,(INDEX('Asset Models'!$A$7:$DC$18,$L54,'Asset Models'!$F$7+$G54-1)+INDEX('Asset Models'!$A$7:$DC$18,$L54,'Asset Models'!$O$7+$J54-1))*$F54)) ->  | X54: =IF(L54="", "", INDEX('Asset Models'!$A$7:$DC$18,$L54,'Asset Models'!$BF$7+$K54-1)) ->  | Y54: =IF(L54="", "", VLOOKUP(X54,'Asset Model Builder'!$E$169:$F$173,2)) ->  | Z54: =IF(L54="", "", IF($X54=0,P54,IF($X54=1,IF(Z$9=$G54,(1-$M54),0),IF($X54=2,IF(Z$9=INDEX('Asset Models'!$A$7:$DC$18,$L54,'Asset Models'!$AG$7+$G54-2),(1-$M54),0),IF($X54=3,IF(Z$9=1,1,0),IF(INDEX('Asset Models'!$A$7:$DC$18,$L54,'Asset Models'!$AJ$7+$J54-1)=Z$9,1,0)))))) ->  | AA54: =IF(L54="", "", IF($X54=0,Q54,IF($X54=1,IF(AA$9=$G54,(1-$M54),0),IF($X54=2,IF(AA$9=INDEX('Asset Models'!$A$7:$DC$18,$L54,'Asset Models'!$AG$7+$G54-2),(1-$M54),0),IF($X54=3,IF(AA$9=1,1,0),IF(INDEX('Asset Models'!$A$7:$DC$18,$L54,'Asset Models'!$AJ$7+$J54-1)=AA$9,1,0)))))) ->  | AB54: =IF(L54="", "", IF($X54=0,R54,IF($X54=1,IF(AB$9=$G54,(1-$M54),0),IF($X54=2,IF(AB$9=INDEX('Asset Models'!$A$7:$DC$18,$L54,'Asset Models'!$AG$7+$G54-2),(1-$M54),0),IF($X54=3,IF(AB$9=1,1,0),IF(INDEX('Asset Models'!$A$7:$DC$18,$L54,'Asset Models'!$AJ$7+$J54-1)=AB$9,1,0)))))) ->  | AC54: =IF(L54="", "", IF($X54=0,S54,IF($X54=1,IF(AC$9=$G54,(1-$M54),0),IF($X54=2,IF(AC$9=INDEX('Asset Models'!$A$7:$DC$18,$L54,'Asset Models'!$AG$7+$G54-2),(1-$M54),0),IF($X54=3,IF(AC$9=1,1,0),IF(INDEX('Asset Models'!$A$7:$DC$18,$L54,'Asset Models'!$AJ$7+$J54-1)=AC$9,1,0)))))) ->  | AE54: =IF($X54=3,1,IF($X54=4,INDEX('Asset Models'!$A$7:$DC$18,$L54,'Asset Models'!$AO$7+$J54-1),$J54)) ->  | AG54: =IF(L54="", "", IF($X54=0,$V54,IF($G54=5,$N54,(INDEX('Asset Models'!$A$7:$DC$18,$L54,'Asset Models'!$T$7+$X54-1)+INDEX('Asset Models'!$A$7:$DC$18,$L54,'Asset Models'!$J$7+$J54-1))*$F54))) ->  | AH54: =IF(L54="", "", INDEX('Asset Models'!$A$7:$DC$18,$L54,'Asset Models'!$CE$7+$K54-1)*$F54) ->  | AS54: =IF(L54="", "", IF($G54=5,$O54,IF($AK54=0,$W54,INDEX('Asset Models'!$A$7:$DC$18,$L54,'Asset Models'!$J$7+$J54-1)*$F54))) ->  | AU54: =IF(L54="", "", INDEX('Asset Models'!$A$7:$DC$18,$L54,'Asset Models'!$V$7)*$F54) -> 
